Workbook

Sheet ProjectInformation
A1: CPN DATA
A2: INFORMATION ADDED BY DESIGNER
A3: Section Engineer | B3: Flattery
A4: Design Team | B4: \Bell\Luong
A6: County | B6: LINN
A7: Project Number | B7: NHSX-013-1(53)--3H-57
A8: English or Metric | B8: ENGLISH
A9: Revised
A10: Bridge Block
A11: File No.

Sheet PrintSheets
B94: FILE NO. | I94: =IF(ProjectInformation!$B$11<>"",ProjectInformation!$B$11,"") ->  | P94: =UPPER(ProjectInformation!B8) -> ENGLISH | W94: DESIGN TEAM | AF94: =IF(AND(ProjectInformation!$B$3<>"",ProjectInformation!$B$4<>"",ProjectInformation!$B$5<>""),ProjectInformation!$B$3&"\"&ProjectInformation!$B$4&"\"&ProjectInformation!$B$5,IF(AND(ProjectInformation!$B$3<>"",ProjectInformation!$B$4<>""),ProjectInformation!$B$3&"\"&ProjectInformation!$B$4,IF(ProjectInformation!$B$3<>"",ProjectInformation!$B$3,""))) -> Flattery\\Bell\Luong | BN94: =IF(ProjectInformation!$B$6<>"",ProjectInformation!$B$6,"") -> LINN | CX94: COUNTY | DD94: PROJECT NUMBER | DP94: =IF(ProjectInformation!$B$7<>"",ProjectInformation!$B$7,"") -> NHSX-013-1(53)--3H-57 | ET94: SHEET NUMBER | FD94: CE.1 | FJ94: =IF(FP94<>"","REVISED","") ->  | FP94: =IF(ProjectInformation!$B$9<>"",ProjectInformation!$B$9,"") -> 
B95: 5/24/2016 10:32:32 AM nfische c:\pw_work\pwmain\nfische\d0200240\57013053_CE01.xlsm
B189: FILE NO. | I189: =IF(ProjectInformation!$B$11<>"",ProjectInformation!$B$11,"") ->  | P189: =UPPER(ProjectInformation!B8) -> ENGLISH | W189: DESIGN TEAM | AF189: =IF(AND(ProjectInformation!$B$3<>"",ProjectInformation!$B$4<>"",ProjectInformation!$B$5<>""),ProjectInformation!$B$3&"\"&ProjectInformation!$B$4&"\"&ProjectInformation!$B$5,IF(AND(ProjectInformation!$B$3<>"",ProjectInformation!$B$4<>""),ProjectInformation!$B$3&"\"&ProjectInformation!$B$4,IF(ProjectInformation!$B$3<>"",ProjectInformation!$B$3,""))) -> Flattery\\Bell\Luong | BN189: =IF(ProjectInformation!$B$6<>"",ProjectInformation!$B$6,"") -> LINN | CX189: COUNTY | DD189: PROJECT NUMBER | DP189: =IF(ProjectInformation!$B$7<>"",ProjectInformation!$B$7,"") -> NHSX-013-1(53)--3H-57 | ET189: SHEET NUMBER | FD189: =IF($FD$94<>"","CE."& MID(OFFSET($FD$189,-95,0),4,LEN(OFFSET($FD$189,-95,0))-2)+1,"") -> CE.2 | FJ189: =IF(FP189<>"","REVISED","") ->  | FP189: =IF(ProjectInformation!$B$9<>"",ProjectInformation!$B$9,"") -> 
B190: 5/24/2016 10:32:32 AM nfische c:\pw_work\pwmain\nfische\d0200240\57013053_CE01.xlsm
B284: FILE NO. | I284: =IF(ProjectInformation!$B$11<>"",ProjectInformation!$B$11,"") ->  | P284: =UPPER(ProjectInformation!B8) -> ENGLISH | W284: DESIGN TEAM | AF284: =IF(AND(ProjectInformation!$B$3<>"",ProjectInformation!$B$4<>"",ProjectInformation!$B$5<>""),ProjectInformation!$B$3&"\"&ProjectInformation!$B$4&"\"&ProjectInformation!$B$5,IF(AND(ProjectInformation!$B$3<>"",ProjectInformation!$B$4<>""),ProjectInformation!$B$3&"\"&ProjectInformation!$B$4,IF(ProjectInformation!$B$3<>"",ProjectInformation!$B$3,""))) -> Flattery\\Bell\Luong | BN284: =IF(ProjectInformation!$B$6<>"",ProjectInformation!$B$6,"") -> LINN | CX284: COUNTY | DD284: PROJECT NUMBER | DP284: =IF(ProjectInformation!$B$7<>"",ProjectInformation!$B$7,"") -> NHSX-013-1(53)--3H-57 | ET284: SHEET NUMBER | FD284: =IF($FD$189<>"","CE."& MID(OFFSET($FD$284,-95,0),4,LEN(OFFSET($FD$284,-95,0))-2)+1,"") -> CE.3 | FJ284: =IF(FP284<>"","REVISED","") ->  | FP284: =IF(ProjectInformation!$B$9<>"",ProjectInformation!$B$9,"") -> 
B285: 5/24/2016 10:32:32 AM nfische c:\pw_work\pwmain\nfische\d0200240\57013053_CE01.xlsm
B379: FILE NO. | I379: =IF(ProjectInformation!$B$11<>"",ProjectInformation!$B$11,"") ->  | P379: =UPPER(ProjectInformation!B8) -> ENGLISH | W379: DESIGN TEAM | AF379: =IF(AND(ProjectInformation!$B$3<>"",ProjectInformation!$B$4<>"",ProjectInformation!$B$5<>""),ProjectInformation!$B$3&"\"&ProjectInformation!$B$4&"\"&ProjectInformation!$B$5,IF(AND(ProjectInformation!$B$3<>"",ProjectInformation!$B$4<>""),ProjectInformation!$B$3&"\"&ProjectInformation!$B$4,IF(ProjectInformation!$B$3<>"",ProjectInformation!$B$3,""))) -> Flattery\\Bell\Luong | BN379: =IF(ProjectInformation!$B$6<>"",ProjectInformation!$B$6,"") -> LINN | CX379: COUNTY | DD379: PROJECT NUMBER | DP379: =IF(ProjectInformation!$B$7<>"",ProjectInformation!$B$7,"") -> NHSX-013-1(53)--3H-57 | ET379: SHEET NUMBER | FD379: =IF($FD$284<>"","CE."& MID(OFFSET($FD$379,-95,0),4,LEN(OFFSET($FD$379,-95,0))-2)+1,"") -> CE.4 | FJ379: =IF(FP379<>"","REVISED","") ->  | FP379: =IF(ProjectInformation!$B$9<>"",ProjectInformation!$B$9,"") -> 
B380: 5/24/2016 10:32:32 AM nfische c:\pw_work\pwmain\nfische\d0200240\57013053_CE01.xlsm
B474: FILE NO. | I474: =IF(ProjectInformation!$B$11<>"",ProjectInformation!$B$11,"") ->  | P474: =UPPER(ProjectInformation!B8) -> ENGLISH | W474: DESIGN TEAM | AF474: =IF(AND(ProjectInformation!$B$3<>"",ProjectInformation!$B$4<>"",ProjectInformation!$B$5<>""),ProjectInformation!$B$3&"\"&ProjectInformation!$B$4&"\"&ProjectInformation!$B$5,IF(AND(ProjectInformation!$B$3<>"",ProjectInformation!$B$4<>""),ProjectInformation!$B$3&"\"&ProjectInformation!$B$4,IF(ProjectInformation!$B$3<>"",ProjectInformation!$B$3,""))) -> Flattery\\Bell\Luong | BN474: =IF(ProjectInformation!$B$6<>"",ProjectInformation!$B$6,"") -> LINN | CX474: COUNTY | DD474: PROJECT NUMBER | DP474: =IF(ProjectInformation!$B$7<>"",ProjectInformation!$B$7,"") -> NHSX-013-1(53)--3H-57 | ET474: SHEET NUMBER | FD474: =IF($FD$379<>"","CE."& MID(OFFSET($FD$474,-95,0),4,LEN(OFFSET($FD$474,-95,0))-2)+1,"") -> CE.5 | FJ474: =IF(FP474<>"","REVISED","") ->  | FP474: =IF(ProjectInformation!$B$9<>"",ProjectInformation!$B$9,"") -> 
B475: 5/24/2016 10:32:32 AM nfische c:\pw_work\pwmain\nfische\d0200240\57013053_CE01.xlsm
B569: FILE NO. | I569: =IF(ProjectInformation!$B$11<>"",ProjectInformation!$B$11,"") ->  | P569: =UPPER(ProjectInformation!B8) -> ENGLISH | W569: DESIGN TEAM | AF569: =IF(AND(ProjectInformation!$B$3<>"",ProjectInformation!$B$4<>"",ProjectInformation!$B$5<>""),ProjectInformation!$B$3&"\"&ProjectInformation!$B$4&"\"&ProjectInformation!$B$5,IF(AND(ProjectInformation!$B$3<>"",ProjectInformation!$B$4<>""),ProjectInformation!$B$3&"\"&ProjectInformation!$B$4,IF(ProjectInformation!$B$3<>"",ProjectInformation!$B$3,""))) -> Flattery\\Bell\Luong | BN569: =IF(ProjectInformation!$B$6<>"",ProjectInformation!$B$6,"") -> LINN | CX569: COUNTY | DD569: PROJECT NUMBER | DP569: =IF(ProjectInformation!$B$7<>"",ProjectInformation!$B$7,"") -> NHSX-013-1(53)--3H-57 | ET569: SHEET NUMBER | FD569: =IF($FD$474<>"","CE."& MID(OFFSET($FD$569,-95,0),4,LEN(OFFSET($FD$569,-95,0))-2)+1,"") -> CE.6 | FJ569: =IF(FP569<>"","REVISED","") ->  | FP569: =IF(ProjectInformation!$B$9<>"",ProjectInformation!$B$9,"") -> 
B570: 5/24/2016 10:32:32 AM nfische c:\pw_work\pwmain\nfische\d0200240\57013053_CE01.xlsm
B665: 5/24/2016 10:32:32 AM nfische c:\pw_work\pwmain\nfische\d0200240\57013053_CE01.xlsm

Sheet DE100_1A
A1: TabTitle | B1: =C15 -> ESTIMATED PROJECT QUANTITIES (1 DIVISION PROJECT)
A2: Number of Tab Columns | B2: 6
A3: DE Starter Row Number | B3: 22
A4: TabSheet Starter Row Number | B4: 9
A5: TabSheet Header Row Count | B5: 8
A6: Top Header Cell | B6: J15
A7: Bottom Header Cell | B7: O22
A8: DESheet Row Count | B8: 4
A9: Fixed Empty Rows | B9: 2
A10: Usable Empty Rows | B10: 0
A11: Total Rows Placed | B11: 6 | C11: xlCenter | D11: xlCenter | E11: xlLeft(1) | F11: xlLeft(1) | G11: xlRight(1) | H11: xlRight(1) | J11: =C11 -> xlCenter | K11: =D11 -> xlCenter | L11: xlLeft(1) | M11: xlLeft(1) | N11: xlRight(1) | O11: xlRight(1)
A12: Total Rows Needed | B12: =SUM(B8:B10) -> 6 | C12: General | D12: General | E12: General | F12: General | G12: General | H12: General | J12: =C12 -> General | K12: General | L12: General | M12: General | N12: General | O12: General
A13: Last Tab DE Starter Row | B13: 22 | C13: =CELL("width",C13) -> 12 | D13: 16 | E13: 83 | F13: 11 | G13: 16 | H13: 16 | J13: =CELL("width",J13) -> 0 | K13: 0 | L13: 0 | M13: 0 | N13: 0 | O13: 0
A14: Last Tab Tabsheet Starter Row | B14: 9 | C14: A | D14: B | E14: C | F14: D | G14: E | H14: F | J14: =LOWER(C14) -> a | K14: =LOWER(D14) -> b | L14: c | M14: d | N14: e | O14: f
A15: Last Copy Starter Row | B15: 1 | C15: ESTIMATED PROJECT QUANTITIES (1 DIVISION PROJECT) | J15: 100-1A
A16: Tab Loop Number | B16: 2 | J16: =B17 -> 1997-07-15
A17: Revision Date | B17: 1997-07-15 | J17: =C15 -> ESTIMATED PROJECT QUANTITIES (1 DIVISION PROJECT)
A18: Tabulation Width | B18: 2
A19: Horizontal Grid Lines | B19: Yes | C19: ="This Data Entry Sheet fills Tab "&J15&" effective "&TEXT(B17,"mm-dd-yy") -> This Data Entry Sheet fills Tab 100-1A effective 07-15-97
C20: Item No. | D20: Item Code | E20: Item | F20: Unit | G20: Total | H20: As Built Qty.
J21: =C20 -> Item No. | K21: =D20 -> Item Code | L21: =E20 -> Item | M21: Unit | N21: =G20 -> Total | O21: =H20 -> As Built Qty.
C22: 1 | D22: 2602-0000030 | E22: SILT FENCE FOR DITCH CHECKS | F22: LF | G22: 14,704.8
C23: 2 | D23: 2602-0000050 | E23: SILT BASINS | F23: EACH | G23: 112
C24: 3 | D24: 2602-0000071 | E24: REMOVAL OF SILT FENCE OR SILT FENCE FOR DITCH CHECKS | F24: LF | G24: 7,352.4
C25: 4 | D25: 2602-0000101 | E25: MAINTENANCE OF SILT FENCE OR SILT FENCE FOR DITCH CHECK | F25: LF | G25: 1,470.5

Sheet DE100_1D
A1: TabTitle | B1: =C15 -> PROJECT DESCRIPTION
A2: Number of Tab Columns | B2: 1
A3: DE Starter Row Number | B3: 18
A4: TabSheet Starter Row Number | B4: 5
A5: TabSheet Header Row Count | B5: 4
A6: Top Header Cell | B6: E15
A7: Bottom Header Cell | B7: E18
A8: DESheet Row Count | B8: 0
A9: Fixed Empty Rows | B9: 2
A10: Usable Empty Rows | B10: 0
A11: Total Rows Placed | B11: 2 | C11: xlLeft(1) | E11: =C11 -> xlLeft(1)
A12: Total Rows Needed | B12: =SUM(B8:B10) -> 2 | C12: General | E12: =C12 -> General
A13: Last Tab DE Starter Row | B13: 18 | C13: =CELL("width",C13) -> 159 | E13: =CELL("width",E13) -> 0
A14: Last Tab Tabsheet Starter Row | B14: 5 | C14: A | E14: a
A15: Last Copy Starter Row | B15: 1 | C15: PROJECT DESCRIPTION | E15: 100-1D
A16: Tab Loop Number | B16: 2 | E16: =B17 -> 2005-10-18
A17: Revision Date | B17: 2005-10-18 | C17: ="This Data Entry Sheet fills Tab "&E15&" effective "&TEXT(B17,"mm-dd-yy") -> This Data Entry Sheet fills Tab 100-1D effective 10-18-05 | E17: =C15 -> PROJECT DESCRIPTION
A18: Tabulation Width | B18: 2
A19: Horizontal Grid Lines | B19: No

Sheet DE100_4A
A1: TabTitle | B1: =C15 -> ESTIMATE REFERENCE INFORMATION
A2: Number of Tab Columns | B2: 3
A3: DE Starter Row Number | B3: 20
A4: TabSheet Starter Row Number | B4: 7
A5: TabSheet Header Row Count | B5: 6
A6: Top Header Cell | B6: G15
A7: Bottom Header Cell | B7: I20
A8: DESheet Row Count | B8: 26
A9: Fixed Empty Rows | B9: 2
A10: Usable Empty Rows | B10: 0
A11: Total Rows Placed | B11: 0 | C11: xlCenter | D11: xlCenter | E11: xlLeft(1) | G11: =C11 -> xlCenter | H11: xlCenter | I11: xlLeft(1)
A12: Total Rows Needed | B12: =SUM(B8:B10) -> 28 | C12: General | D12: General | E12: General | G12: General | H12: General | I12: General
A13: Last Tab DE Starter Row | B13: 0 | C13: =CELL("width",C13) -> 12 | D13: 16 | E13: 129 | G13: =CELL("width",G13) -> 0 | H13: 0 | I13: 0
A14: Last Tab Tabsheet Starter Row | B14: 0 | C14: A | D14: B | E14: C | G14: =LOWER(C14) -> a | H14: =LOWER(D14) -> b | I14: =LOWER(E14) -> c
A15: Last Copy Starter Row | B15: 0 | C15: ESTIMATE REFERENCE INFORMATION | G15: 100-4A
A16: Tab Loop Number | B16: 1 | G16: =B17 -> 2002-10-29
A17: Revision Date | B17: 2002-10-29 | C17: ="This Data Entry Sheet fills Tab "&G15&" effective "&TEXT(B17,"mm-dd-yy") -> This Data Entry Sheet fills Tab 100-4A effective 10-29-02 | G17: =C15 -> ESTIMATE REFERENCE INFORMATION
A18: Tabulation Width | B18: 2 | C18: Item No. | D18: Item Code | E18: Description
A19: Horizontal Grid Lines | B19: Yes | G19: =C18 -> Item No. | H19: =D18 -> Item Code | I19: =E18 -> Description
C20: 1 | D20: 2602-0000030 | E20: SILT FENCE FOR DITCH CHECKS
E21: (Grading Projects)
E22: Refer to Tab. 100-18 in the CE sheets for locations.
E23: The tabulation includes estimated locations for placement of "Silt Fence for Ditch Checks"
E24: to address erosion to be encountered during construction. Verify the specific locations
E25: with the Engineer prior to beginning placement. Bid item includes 50% additional quantity
E26: for field adjustments and replacements.
C27: - | D27: - | E27: -
C28: 2 | D28: 2602-0000050 | E28: SILT BASINS
E29: See Tab. 100-14 in the CE sheets for locations.
E30: The tabulation includes estimated locations for placement of "Silt Basins" to address
E31: erosion to be encountered during construction. Verify the specific locations with the
E32: Engineer prior to beginning placement. Bid item includes 100% additional quantity for
E33: field adjustment and maintenance.
C34: - | D34: - | E34: -
C35: 3 | D35: 2602-0000071 | E35: REMOVAL OF SILT FENCE OR SILT FENCE FOR DITCH CHECKS
E36: See Tab. 100-18 in the CE sheets for locations.
E37: This item is included for silt fence and silt fence for ditch check removal required for
E38: staging reasons, removal to allow for replacement (replacement to be paid separately),
E39: or for areas that have achieved 70% permanent growth.
C40: - | D40: - | E40: -
C41: 4 | D41: 2602-0000101 | E41: MAINTENANCE OF SILT FENCE OR SILT FENCE FOR DITCH CHECK
E42: See Tab. 100-18 in the CE sheets for locations.
E43: This item is included for clean-out and repair of the silt fence and silt fence for ditch
E44: checks during the grading project.
C45: - | D45: - | E45: -

Sheet DE100_7
A1: TabTitle | B1: =C16 -> FENCING
A2: Number of Tab Columns | B2: 20 | AS2: Drop Down Lists
A3: DE Starter Row Number | B3: 27 | AS3: Side | AT3: Chain Link Height | AU3: Chain Link Gate Assembly | AV3: Deer Fence Gate Type | AW3: Field Fence Gate Type | AX3: Field Fence Channel Crossing
A4: TabSheet Starter Row Number | B4: 13 | AS4: LT | AT4: 42 IN. | AU4: 16 FT. | AV4: Deer, As Per Plan | AW4: 12 FT. | AX4: A
A5: TabSheet Header Row Count | B5: 12 | AS5: RT | AT5: 48 IN. | AU5: SEE REMARKS | AV5: As Per Plan | AW5: 16 FT. | AX5: B
A6: Top Header Cell | B6: X15 | AT6: 60 IN. | AW6: 18 FT. | AX6: FLOOD PLAIN
A7: Bottom Header Cell | B7: AQ26 | AT7: 72 IN. | AW7: 20 FT. | AX7: AS PER PLAN
A8: DESheet Row Count | B8: 0 | AT8: 84 IN. | AW8: 22 FT.
A9: Fixed Empty Rows | B9: 2 | AT9: 96 IN. | AW9: 24 FT.
A10: Usable Empty Rows | B10: 0 | AT10: 120 IN.
A11: Total Rows Placed | B11: 0 | C11: xlRight(1) | D11: xlRight(1) | E11: xlRight(1) | F11: xlRight(1) | G11: xlLeft(1) | H11: xlRight(1) | I11: xlLeft(1) | J11: xlRight(1) | K11: xlLeft(1) | L11: xlRight(1) | M11: xlRight(1) | N11: xlRight(1) | O11: xlLeft(1) | P11: xlRight(1) | Q11: xlRight(1) | R11: xlRight(1) | S11: xlLeft(1) | T11: xlRight(1) | U11: xlLeft(1) | V11: xlLeft(1) | X11: =C11 -> xlRight(1) | Y11: xlRight(1) | Z11: xlRight(1) | AA11: xlRight(1) | AB11: xlLeft(1) | AC11: xlRight(1) | AD11: xlLeft(1) | AE11: xlRight(1) | AF11: xlLeft(1) | AG11: xlRight(1) | AH11: xlRight(1) | AI11: xlRight(1) | AJ11: xlLeft(1) | AK11: xlRight(1) | AL11: xlRight(1) | AM11: xlRight(1) | AN11: =S11 -> xlLeft(1) | AO11: xlRight(1) | AP11: xlLeft(1) | AQ11: xlLeft(1) | AT11: 72 IN., SECURITY TOP
A12: Total Rows Needed | B12: =SUM(B8:B10) -> 2 | C12: #+00.00 | D12: 0.0 | E12: #+00.00 | F12: 0.0 | G12: General | H12: 0.0 | I12: General | J12: 0 | K12: General | L12: 0.0 | M12: 0 | N12: 0 | O12: General | P12: 0.0 | Q12: 0 | R12: 0 | S12: General | T12: 0.0 | U12: General | V12: General | X12: #+00.00 | Y12: 0.0 | Z12: #+00.00 | AA12: 0.0 | AB12: General | AC12: 0.0 | AD12: General | AE12: 0 | AF12: General | AG12: 0.0 | AH12: 0 | AI12: 0 | AJ12: General | AK12: 0.0 | AL12: 0 | AM12: 0 | AN12: General | AO12: 0.0 | AP12: General | AQ12: General | AT12: 72 IN., ON WALL
A13: Last Tab DE Starter Row | B13: 0 | C13: =CELL("width",C13) -> 16 | D13: 9 | E13: 16 | F13: 9 | G13: 7 | H13: 11 | I13: 30 | J13: 11 | K13: 25 | L13: 11 | M13: 11 | N13: 11 | O13: 25 | P13: 11 | Q13: 11 | R13: 11 | S13: 11 | T13: 11 | U13: 25 | V13: 38 | X13: =CELL("width",X13) -> 0 | Y13: 0 | Z13: 0 | AA13: 0 | AB13: 0 | AC13: 0 | AD13: 0 | AE13: 0 | AF13: 0 | AG13: 0 | AH13: 0 | AI13: 0 | AJ13: 0 | AK13: 0 | AL13: 0 | AM13: 0 | AN13: 0 | AO13: 0 | AP13: 0 | AQ13: 0 | AT13: VINYL COATED
A14: Last Tab TabSheet Starter Row | B14: 0 | C14: A | D14: B | E14: C | F14: D | G14: E | H14: F | I14: G | J14: H | K14: I | L14: J | M14: K | N14: L | O14: M | P14: N | Q14: O | R14: P | S14: Q | T14: R | U14: S | V14: T | X14: =LOWER(C14) -> a | Y14: b | Z14: c | AA14: d | AB14: e | AC14: f | AD14: g | AE14: h | AF14: i | AG14: j | AH14: k | AI14: l | AJ14: m | AK14: n | AL14: o | AM14: p | AN14: q | AO14: r | AP14: s | AQ14: t
A15: Last Copy Starter Row | B15: 0 | G15: Totals: | H15: =SUBTOTAL(9,H27:H6000) -> 0 | J15: =SUBTOTAL(9,J27:J6000) -> 0 | L15: =SUBTOTAL(9,L27:L6000) -> 0 | M15: =SUBTOTAL(9,M27:M6000) -> 0 | N15: =SUBTOTAL(9,N27:N6000) -> 0 | P15: =SUBTOTAL(9,P27:P6000) -> 0 | Q15: =SUBTOTAL(9,Q27:Q6000) -> 0 | R15: =SUBTOTAL(9,R27:R6000) -> 0 | T15: =SUBTOTAL(9,T27:T6000) -> 0 | X15: 100-7
A16: Tab Loop Number | B16: 1 | C16: FENCING | X16: =B17 -> 2012-10-16
A17: Revision Date | B17: 2012-10-16 | X17: =C16 -> FENCING
A18: Tabulation Width | B18: 4 | C18: Refer to MI-101, MI-102, MI-103, MI-104, 510-3, and 510-5
A19: Horizontal Grid Lines | B19: Yes | C19: * Bid Item | X19: =C19 -> * Bid Item
C20: ="This Data Entry Sheet fills Tab "&X15&" effective "&TEXT(B17,"mm-dd-yy") -> This Data Entry Sheet fills Tab 100-7 effective 10-16-12 | X20: =C18 -> Refer to MI-101, MI-102, MI-103, MI-104, 510-3, and 510-5
C21: Location | G21: Side | H21: Chain Link | L21: Deer | P21: Field | T21: Channel Crossing | V21: Remarks | X21: =C21 -> Location | AB21: =G21 -> Side | AC21: =H21 -> Chain Link | AG21: =L21 -> Deer | AK21: =P21 -> Field | AO21: =T21 -> Channel Crossing | AQ21: =V21 -> Remarks
C22: From | E22: To | X22: =C22 -> From | Z22: =E22 -> To
C23: Station | D23: Offset | E23: Station | F23: Offset | H23: Fence | J23: Gate | L23: Fence Length* | M23: Brace Panels* | N23: Gate | P23: Fence Length* | Q23: Brace Panels* | R23: Gate | X23: =C23 -> Station | Y23: =D23 -> Offset | Z23: =E23 -> Station | AA23: =F23 -> Offset | AC23: =H23 -> Fence | AE23: =J23 -> Gate | AG23: =L23 -> Fence Length* | AH23: =M23 -> Brace Panels* | AI23: =N23 -> Gate | AK23: =P23 -> Fence Length* | AL23: =Q23 -> Brace Panels* | AM23: =R23 -> Gate
H24: Length* | I24: Type | J24: No.* | K24: Type | N24: No.* | O24: Type | R24: No.* | S24: Type | T24: Length* | U24: Type | AC24: =H24 -> Length* | AD24: =I24 -> Type | AE24: =J24 -> No.* | AF24: =K24 -> Type | AI24: =N24 -> No.* | AJ24: =O24 -> Type | AM24: =R24 -> No.* | AN24: =S24 -> Type | AO24: =T24 -> Length* | AP24: =U24 -> Type
H26: LF | J26: EACH | L26: LF | M26: EACH | N26: EACH | P26: LF | Q26: EACH | R26: EACH | T26: LF | AC26: =H26 -> LF | AE26: =J26 -> EACH | AG26: =L26 -> LF | AH26: =M26 -> EACH | AI26: =N26 -> EACH | AK26: =P26 -> LF | AL26: =Q26 -> EACH | AM26: =R26 -> EACH | AO26: =T26 -> LF

Sheet DE100_10
A1: TabTitle | B1: =C16 -> FLOATING SILT CURTAINS
A2: Number of Tab Columns | B2: 6
A3: DE Starter Row Number | B3: 29
A4: TabSheet Starter Row Number | B4: 15
A5: TabSheet Header Row Count | B5: 14
A6: Top Header Cell | B6: J15
A7: Bottom Header Cell | B7: O28
A8: DESheet Row Count | B8: 0
A9: Fixed Empty Rows | B9: 2
A10: Usable Empty Rows | B10: 0
A11: Total Rows Placed | B11: 0 | C11: xlRight(1) | D11: xlRight(1) | E11: xlRight(1) | F11: xlRight(1) | G11: xlRight(1) | H11: xlLeft(1) | J11: =C11 -> xlRight(1) | K11: xlRight(1) | L11: xlRight(1) | M11: xlRight(1) | N11: xlRight(1) | O11: xlLeft(1)
A12: Total Rows Needed | B12: =SUM(B8:B10) -> 2 | C12: #+00.00 | D12: 0.0 | E12: 0.0 | F12: 0.0 | G12: 0.0 | H12: General | J12: #+00.00 | K12: 0.0 | L12: 0.0 | M12: 0.0 | N12: 0.0 | O12: General
A13: Last Tab DE Starter Row | B13: 0 | C13: =CELL("width",C13) -> 16 | D13: 13 | E13: 13 | F13: 13 | G13: 13 | H13: 5 | J13: =CELL("width",J13) -> 0 | K13: 0 | L13: 0 | M13: 0 | N13: 0 | O13: 0
A14: Last Tab TabSheet Starter Row | B14: 0 | C14: A | D14: B | E14: C | F14: D | G14: E | H14: F | J14: =LOWER(C14) -> a | K14: b | L14: c | M14: d | N14: e | O14: f
A15: Last Copy Starter Row | B15: 0 | C15: Totals: | D15: =SUBTOTAL(9,D29:D2600) -> 0 | E15: =SUBTOTAL(9,E29:E2600) -> 0 | F15: =SUBTOTAL(9,F29:F2600) -> 0 | G15: =SUBTOTAL(9,G29:G2600) -> 0 | J15: 100-10
A16: Tab Loop Number | B16: 1 | C16: FLOATING SILT CURTAINS | J16: =B17 -> 2014-10-21
A17: Revision Date | B17: 2014-10-21 | J17: =C16 -> FLOATING SILT CURTAINS
A18: Tabulation Width | B18: 1
A19: Horizontal Grid Lines | B19: Yes | C19: Refer to EC-202 | J19: =C19 -> Refer to EC-202
C20: ="This Data Entry Sheet fills Tab "&J15&" effective "&TEXT(B17,"mm-dd-yy") -> This Data Entry Sheet fills Tab 100-10 effective 10-21-14 | J20: =C21 -> Station | K20: Hanging | L20: Containment | M20: Clean-out (Containment) | N20: Maintenance of Floating Silt Curtain | O20: Remarks
C21: Station | D21: Hanging | E21: Containment | F21: Clean-out (Containment) | G21: Maintenance of Floating Silt Curtain | H21: Remarks
D28: LF | E28: LF | F28: LF | G28: LF | K28: =D28 -> LF | L28: =E28 -> LF | M28: =F28 -> LF | N28: =G28 -> LF
D29: =IF(E29<>"","Must Add","") ->  | F29: =IF(E29<>"",(E29*(1+1)),"") ->  | G29: =IF(C29<>"",(D29+E29)/2,"") -> 
D93: =IF(E93<>"","Must Add","") ->  | F93: =IF(E93<>"",(E93*(1+1)),"") ->  | G93: =IF(C93<>"",(D93+E93)/2,"") -> 
D157: =IF(E157<>"","Must Add","") ->  | F157: =IF(E157<>"",(E157*(1+1)),"") ->  | G157: =IF(C157<>"",(D157+E157)/2,"") -> 
D221: =IF(E221<>"","Must Add","") ->  | F221: =IF(E221<>"",(E221*(1+1)),"") ->  | G221: =IF(C221<>"",(D221+E221)/2,"") -> 
D285: =IF(E285<>"","Must Add","") ->  | F285: =IF(E285<>"",(E285*(1+1)),"") ->  | G285: =IF(C285<>"",(D285+E285)/2,"") -> 
D349: =IF(E349<>"","Must Add","") ->  | F349: =IF(E349<>"",(E349*(1+1)),"") ->  | G349: =IF(C349<>"",(D349+E349)/2,"") -> 
D413: =IF(E413<>"","Must Add","") ->  | F413: =IF(E413<>"",(E413*(1+1)),"") ->  | G413: =IF(C413<>"",(D413+E413)/2,"") -> 
D477: =IF(E477<>"","Must Add","") ->  | F477: =IF(E477<>"",(E477*(1+1)),"") ->  | G477: =IF(C477<>"",(D477+E477)/2,"") -> 
D541: =IF(E541<>"","Must Add","") ->  | F541: =IF(E541<>"",(E541*(1+1)),"") ->  | G541: =IF(C541<>"",(D541+E541)/2,"") -> 
D605: =IF(E605<>"","Must Add","") ->  | F605: =IF(E605<>"",(E605*(1+1)),"") ->  | G605: =IF(C605<>"",(D605+E605)/2,"") -> 
D669: =IF(E669<>"","Must Add","") ->  | F669: =IF(E669<>"",(E669*(1+1)),"") ->  | G669: =IF(C669<>"",(D669+E669)/2,"") -> 
D733: =IF(E733<>"","Must Add","") ->  | F733: =IF(E733<>"",(E733*(1+1)),"") ->  | G733: =IF(C733<>"",(D733+E733)/2,"") -> 
D797: =IF(E797<>"","Must Add","") ->  | F797: =IF(E797<>"",(E797*(1+1)),"") ->  | G797: =IF(C797<>"",(D797+E797)/2,"") -> 
D861: =IF(E861<>"","Must Add","") ->  | F861: =IF(E861<>"",(E861*(1+1)),"") ->  | G861: =IF(C861<>"",(D861+E861)/2,"") -> 
D925: =IF(E925<>"","Must Add","") ->  | F925: =IF(E925<>"",(E925*(1+1)),"") ->  | G925: =IF(C925<>"",(D925+E925)/2,"") -> 
D989: =IF(E989<>"","Must Add","") ->  | F989: =IF(E989<>"",(E989*(1+1)),"") ->  | G989: =IF(C989<>"",(D989+E989)/2,"") -> 
D1053: =IF(E1053<>"","Must Add","") ->  | F1053: =IF(E1053<>"",(E1053*(1+1)),"") ->  | G1053: =IF(C1053<>"",(D1053+E1053)/2,"") -> 
D1117: =IF(E1117<>"","Must Add","") ->  | F1117: =IF(E1117<>"",(E1117*(1+1)),"") ->  | G1117: =IF(C1117<>"",(D1117+E1117)/2,"") -> 
D1181: =IF(E1181<>"","Must Add","") ->  | F1181: =IF(E1181<>"",(E1181*(1+1)),"") ->  | G1181: =IF(C1181<>"",(D1181+E1181)/2,"") -> 
D1245: =IF(E1245<>"","Must Add","") ->  | F1245: =IF(E1245<>"",(E1245*(1+1)),"") ->  | G1245: =IF(C1245<>"",(D1245+E1245)/2,"") -> 
D1309: =IF(E1309<>"","Must Add","") ->  | F1309: =IF(E1309<>"",(E1309*(1+1)),"") ->  | G1309: =IF(C1309<>"",(D1309+E1309)/2,"") -> 
D1373: =IF(E1373<>"","Must Add","") ->  | F1373: =IF(E1373<>"",(E1373*(1+1)),"") ->  | G1373: =IF(C1373<>"",(D1373+E1373)/2,"") -> 
D1437: =IF(E1437<>"","Must Add","") ->  | F1437: =IF(E1437<>"",(E1437*(1+1)),"") ->  | G1437: =IF(C1437<>"",(D1437+E1437)/2,"") -> 
D1501: =IF(E1501<>"","Must Add","") ->  | F1501: =IF(E1501<>"",(E1501*(1+1)),"") ->  | G1501: =IF(C1501<>"",(D1501+E1501)/2,"") -> 
D1565: =IF(E1565<>"","Must Add","") ->  | F1565: =IF(E1565<>"",(E1565*(1+1)),"") ->  | G1565: =IF(C1565<>"",(D1565+E1565)/2,"") -> 
D1629: =IF(E1629<>"","Must Add","") ->  | F1629: =IF(E1629<>"",(E1629*(1+1)),"") ->  | G1629: =IF(C1629<>"",(D1629+E1629)/2,"") -> 
D1693: =IF(E1693<>"","Must Add","") ->  | F1693: =IF(E1693<>"",(E1693*(1+1)),"") ->  | G1693: =IF(C1693<>"",(D1693+E1693)/2,"") -> 
D1757: =IF(E1757<>"","Must Add","") ->  | F1757: =IF(E1757<>"",(E1757*(1+1)),"") ->  | G1757: =IF(C1757<>"",(D1757+E1757)/2,"") -> 
D1821: =IF(E1821<>"","Must Add","") ->  | F1821: =IF(E1821<>"",(E1821*(1+1)),"") ->  | G1821: =IF(C1821<>"",(D1821+E1821)/2,"") -> 
D1885: =IF(E1885<>"","Must Add","") ->  | F1885: =IF(E1885<>"",(E1885*(1+1)),"") ->  | G1885: =IF(C1885<>"",(D1885+E1885)/2,"") -> 
D1949: =IF(E1949<>"","Must Add","") ->  | F1949: =IF(E1949<>"",(E1949*(1+1)),"") ->  | G1949: =IF(C1949<>"",(D1949+E1949)/2,"") -> 
D2013: =IF(E2013<>"","Must Add","") ->  | F2013: =IF(E2013<>"",(E2013*(1+1)),"") ->  | G2013: =IF(C2013<>"",(D2013+E2013)/2,"") -> 
D2077: =IF(E2077<>"","Must Add","") ->  | F2077: =IF(E2077<>"",(E2077*(1+1)),"") ->  | G2077: =IF(C2077<>"",(D2077+E2077)/2,"") -> 
D2141: =IF(E2141<>"","Must Add","") ->  | F2141: =IF(E2141<>"",(E2141*(1+1)),"") ->  | G2141: =IF(C2141<>"",(D2141+E2141)/2,"") -> 
D2205: =IF(E2205<>"","Must Add","") ->  | F2205: =IF(E2205<>"",(E2205*(1+1)),"") ->  | G2205: =IF(C2205<>"",(D2205+E2205)/2,"") -> 
D2269: =IF(E2269<>"","Must Add","") ->  | F2269: =IF(E2269<>"",(E2269*(1+1)),"") ->  | G2269: =IF(C2269<>"",(D2269+E2269)/2,"") -> 
D2333: =IF(E2333<>"","Must Add","") ->  | F2333: =IF(E2333<>"",(E2333*(1+1)),"") ->  | G2333: =IF(C2333<>"",(D2333+E2333)/2,"") -> 
D2397: =IF(E2397<>"","Must Add","") ->  | F2397: =IF(E2397<>"",(E2397*(1+1)),"") ->  | G2397: =IF(C2397<>"",(D2397+E2397)/2,"") -> 
D2461: =IF(E2461<>"","Must Add","") ->  | F2461: =IF(E2461<>"",(E2461*(1+1)),"") ->  | G2461: =IF(C2461<>"",(D2461+E2461)/2,"") -> 
D2525: =IF(E2525<>"","Must Add","") ->  | F2525: =IF(E2525<>"",(E2525*(1+1)),"") ->  | G2525: =IF(C2525<>"",(D2525+E2525)/2,"") -> 
D2589: =IF(E2589<>"","Must Add","") ->  | F2589: =IF(E2589<>"",(E2589*(1+1)),"") ->  | G2589: =IF(C2589<>"",(D2589+E2589)/2,"") -> 
D2653: =IF(E2653<>"","Must Add","") ->  | F2653: =IF(E2653<>"",(E2653*(1+1)),"") ->  | G2653: =IF(C2653<>"",(D2653+E2653)/2,"") -> 
D2717: =IF(E2717<>"","Must Add","") ->  | F2717: =IF(E2717<>"",(E2717*(1+1)),"") ->  | G2717: =IF(C2717<>"",(D2717+E2717)/2,"") -> 
D2781: =IF(E2781<>"","Must Add","") ->  | F2781: =IF(E2781<>"",(E2781*(1+1)),"") ->  | G2781: =IF(C2781<>"",(D2781+E2781)/2,"") -> 
D2845: =IF(E2845<>"","Must Add","") ->  | F2845: =IF(E2845<>"",(E2845*(1+1)),"") ->  | G2845: =IF(C2845<>"",(D2845+E2845)/2,"") -> 
D2909: =IF(E2909<>"","Must Add","") ->  | F2909: =IF(E2909<>"",(E2909*(1+1)),"") ->  | G2909: =IF(C2909<>"",(D2909+E2909)/2,"") -> 
D2973: =IF(E2973<>"","Must Add","") ->  | F2973: =IF(E2973<>"",(E2973*(1+1)),"") ->  | G2973: =IF(C2973<>"",(D2973+E2973)/2,"") -> 
D3037: =IF(E3037<>"","Must Add","") ->  | F3037: =IF(E3037<>"",(E3037*(1+1)),"") ->  | G3037: =IF(C3037<>"",(D3037+E3037)/2,"") -> 
D3101: =IF(E3101<>"","Must Add","") ->  | F3101: =IF(E3101<>"",(E3101*(1+1)),"") ->  | G3101: =IF(C3101<>"",(D3101+E3101)/2,"") -> 
D3165: =IF(E3165<>"","Must Add","") ->  | F3165: =IF(E3165<>"",(E3165*(1+1)),"") ->  | G3165: =IF(C3165<>"",(D3165+E3165)/2,"") -> 
D3229: =IF(E3229<>"","Must Add","") ->  | F3229: =IF(E3229<>"",(E3229*(1+1)),"") ->  | G3229: =IF(C3229<>"",(D3229+E3229)/2,"") -> 
D3293: =IF(E3293<>"","Must Add","") ->  | F3293: =IF(E3293<>"",(E3293*(1+1)),"") ->  | G3293: =IF(C3293<>"",(D3293+E3293)/2,"") -> 
D3357: =IF(E3357<>"","Must Add","") ->  | F3357: =IF(E3357<>"",(E3357*(1+1)),"") ->  | G3357: =IF(C3357<>"",(D3357+E3357)/2,"") -> 
D3421: =IF(E3421<>"","Must Add","") ->  | F3421: =IF(E3421<>"",(E3421*(1+1)),"") ->  | G3421: =IF(C3421<>"",(D3421+E3421)/2,"") -> 
D3485: =IF(E3485<>"","Must Add","") ->  | F3485: =IF(E3485<>"",(E3485*(1+1)),"") ->  | G3485: =IF(C3485<>"",(D3485+E3485)/2,"") -> 
D3549: =IF(E3549<>"","Must Add","") ->  | F3549: =IF(E3549<>"",(E3549*(1+1)),"") ->  | G3549: =IF(C3549<>"",(D3549+E3549)/2,"") -> 
D3613: =IF(E3613<>"","Must Add","") ->  | F3613: =IF(E3613<>"",(E3613*(1+1)),"") ->  | G3613: =IF(C3613<>"",(D3613+E3613)/2,"") -> 
D3677: =IF(E3677<>"","Must Add","") ->  | F3677: =IF(E3677<>"",(E3677*(1+1)),"") ->  | G3677: =IF(C3677<>"",(D3677+E3677)/2,"") -> 
D3741: =IF(E3741<>"","Must Add","") ->  | F3741: =IF(E3741<>"",(E3741*(1+1)),"") ->  | G3741: =IF(C3741<>"",(D3741+E3741)/2,"") -> 
D3805: =IF(E3805<>"","Must Add","") ->  | F3805: =IF(E3805<>"",(E3805*(1+1)),"") ->  | G3805: =IF(C3805<>"",(D3805+E3805)/2,"") -> 
D3869: =IF(E3869<>"","Must Add","") ->  | F3869: =IF(E3869<>"",(E3869*(1+1)),"") ->  | G3869: =IF(C3869<>"",(D3869+E3869)/2,"") -> 
D3933: =IF(E3933<>"","Must Add","") ->  | F3933: =IF(E3933<>"",(E3933*(1+1)),"") ->  | G3933: =IF(C3933<>"",(D3933+E3933)/2,"") -> 
D3997: =IF(E3997<>"","Must Add","") ->  | F3997: =IF(E3997<>"",(E3997*(1+1)),"") ->  | G3997: =IF(C3997<>"",(D3997+E3997)/2,"") -> 
D4061: =IF(E4061<>"","Must Add","") ->  | F4061: =IF(E4061<>"",(E4061*(1+1)),"") ->  | G4061: =IF(C4061<>"",(D4061+E4061)/2,"") -> 
D4125: =IF(E4125<>"","Must Add","") ->  | F4125: =IF(E4125<>"",(E4125*(1+1)),"") ->  | G4125: =IF(C4125<>"",(D4125+E4125)/2,"") -> 
D4189: =IF(E4189<>"","Must Add","") ->  | F4189: =IF(E4189<>"",(E4189*(1+1)),"") ->  | G4189: =IF(C4189<>"",(D4189+E4189)/2,"") -> 
D4253: =IF(E4253<>"","Must Add","") ->  | F4253: =IF(E4253<>"",(E4253*(1+1)),"") ->  | G4253: =IF(C4253<>"",(D4253+E4253)/2,"") -> 
D4317: =IF(E4317<>"","Must Add","") ->  | F4317: =IF(E4317<>"",(E4317*(1+1)),"") ->  | G4317: =IF(C4317<>"",(D4317+E4317)/2,"") -> 
D4381: =IF(E4381<>"","Must Add","") ->  | F4381: =IF(E4381<>"",(E4381*(1+1)),"") ->  | G4381: =IF(C4381<>"",(D4381+E4381)/2,"") -> 
D4445: =IF(E4445<>"","Must Add","") ->  | F4445: =IF(E4445<>"",(E4445*(1+1)),"") ->  | G4445: =IF(C4445<>"",(D4445+E4445)/2,"") -> 
D4509: =IF(E4509<>"","Must Add","") ->  | F4509: =IF(E4509<>"",(E4509*(1+1)),"") ->  | G4509: =IF(C4509<>"",(D4509+E4509)/2,"") -> 
D4573: =IF(E4573<>"","Must Add","") ->  | F4573: =IF(E4573<>"",(E4573*(1+1)),"") ->  | G4573: =IF(C4573<>"",(D4573+E4573)/2,"") -> 
D4637: =IF(E4637<>"","Must Add","") ->  | F4637: =IF(E4637<>"",(E4637*(1+1)),"") ->  | G4637: =IF(C4637<>"",(D4637+E4637)/2,"") -> 
D4701: =IF(E4701<>"","Must Add","") ->  | F4701: =IF(E4701<>"",(E4701*(1+1)),"") ->  | G4701: =IF(C4701<>"",(D4701+E4701)/2,"") -> 
D4765: =IF(E4765<>"","Must Add","") ->  | F4765: =IF(E4765<>"",(E4765*(1+1)),"") ->  | G4765: =IF(C4765<>"",(D4765+E4765)/2,"") -> 
D4829: =IF(E4829<>"","Must Add","") ->  | F4829: =IF(E4829<>"",(E4829*(1+1)),"") ->  | G4829: =IF(C4829<>"",(D4829+E4829)/2,"") -> 
D4893: =IF(E4893<>"","Must Add","") ->  | F4893: =IF(E4893<>"",(E4893*(1+1)),"") ->  | G4893: =IF(C4893<>"",(D4893+E4893)/2,"") -> 
D4957: =IF(E4957<>"","Must Add","") ->  | F4957: =IF(E4957<>"",(E4957*(1+1)),"") ->  | G4957: =IF(C4957<>"",(D4957+E4957)/2,"") -> 
D5021: =IF(E5021<>"","Must Add","") ->  | F5021: =IF(E5021<>"",(E5021*(1+1)),"") ->  | G5021: =IF(C5021<>"",(D5021+E5021)/2,"") -> 
D5085: =IF(E5085<>"","Must Add","") ->  | F5085: =IF(E5085<>"",(E5085*(1+1)),"") ->  | G5085: =IF(C5085<>"",(D5085+E5085)/2,"") -> 
D5149: =IF(E5149<>"","Must Add","") ->  | F5149: =IF(E5149<>"",(E5149*(1+1)),"") ->  | G5149: =IF(C5149<>"",(D5149+E5149)/2,"") -> 
D5213: =IF(E5213<>"","Must Add","") ->  | F5213: =IF(E5213<>"",(E5213*(1+1)),"") ->  | G5213: =IF(C5213<>"",(D5213+E5213)/2,"") -> 
D5277: =IF(E5277<>"","Must Add","") ->  | F5277: =IF(E5277<>"",(E5277*(1+1)),"") ->  | G5277: =IF(C5277<>"",(D5277+E5277)/2,"") -> 
D5341: =IF(E5341<>"","Must Add","") ->  | F5341: =IF(E5341<>"",(E5341*(1+1)),"") ->  | G5341: =IF(C5341<>"",(D5341+E5341)/2,"") -> 
D5405: =IF(E5405<>"","Must Add","") ->  | F5405: =IF(E5405<>"",(E5405*(1+1)),"") ->  | G5405: =IF(C5405<>"",(D5405+E5405)/2,"") -> 
D5469: =IF(E5469<>"","Must Add","") ->  | F5469: =IF(E5469<>"",(E5469*(1+1)),"") ->  | G5469: =IF(C5469<>"",(D5469+E5469)/2,"") -> 
D5533: =IF(E5533<>"","Must Add","") ->  | F5533: =IF(E5533<>"",(E5533*(1+1)),"") ->  | G5533: =IF(C5533<>"",(D5533+E5533)/2,"") -> 
D5597: =IF(E5597<>"","Must Add","") ->  | F5597: =IF(E5597<>"",(E5597*(1+1)),"") ->  | G5597: =IF(C5597<>"",(D5597+E5597)/2,"") -> 
D5661: =IF(E5661<>"","Must Add","") ->  | F5661: =IF(E5661<>"",(E5661*(1+1)),"") ->  | G5661: =IF(C5661<>"",(D5661+E5661)/2,"") -> 
D5725: =IF(E5725<>"","Must Add","") ->  | F5725: =IF(E5725<>"",(E5725*(1+1)),"") ->  | G5725: =IF(C5725<>"",(D5725+E5725)/2,"") -> 
D5789: =IF(E5789<>"","Must Add","") ->  | F5789: =IF(E5789<>"",(E5789*(1+1)),"") ->  | G5789: =IF(C5789<>"",(D5789+E5789)/2,"") -> 
D5853: =IF(E5853<>"","Must Add","") ->  | F5853: =IF(E5853<>"",(E5853*(1+1)),"") ->  | G5853: =IF(C5853<>"",(D5853+E5853)/2,"") -> 
D5917: =IF(E5917<>"","Must Add","") ->  | F5917: =IF(E5917<>"",(E5917*(1+1)),"") ->  | G5917: =IF(C5917<>"",(D5917+E5917)/2,"") -> 
D5981: =IF(E5981<>"","Must Add","") ->  | F5981: =IF(E5981<>"",(E5981*(1+1)),"") ->  | G5981: =IF(C5981<>"",(D5981+E5981)/2,"") -> 

Sheet DE100_14
A1: TabTitle | B1: =C16 -> Silt Basins | AL1: 1 | AM1: =SUMIFS(L$37:L$2820,C$37:C$2820,"=1") -> 1162.5
A2: Number of Tab Columns | B2: 11 | AL2: 2 | AM2: =SUMIFS(L$37:L$2820,C$37:C$2820,"=2") -> 5245
A3: DE Starter Row Number | B3: 38 | AL3: 3 | AM3: =SUMIFS(L$37:L$2820,C$37:C$2820,"=3") -> 2597.5
A4: TabSheet Starter Row Number | B4: 24 | AL4: 4 | AM4: =SUMIFS(L$37:L$2820,C$37:C$2820,"=4") -> 0
A5: TabSheet Header Row Count | B5: 23 | AL5: 5 | AM5: =SUMIFS(L$37:L$2820,C$37:C$2820,"=5") -> 4006.25
A6: Top Header Cell | B6: P15 | AL6: 6 | AM6: =SUMIFS(L$37:L$2820,C$37:C$2820,"=6") -> 7912.5
A7: Bottom Header Cell | B7: Z37 | AL7: 7 | AM7: =SUMIFS(L$37:L$2820,C$37:C$2820,"=7") -> 2731.25
A8: DESheet Row Count | B8: 66 | AL8: 8 | AM8: =SUMIFS(L$37:L$2820,C$37:C$2820,"=8") -> 1331.25
A9: Fixed Empty Rows | B9: 10 | AL9: 9 | AM9: =SUMIFS(L$37:L$2820,C$37:C$2820,"=9") -> 0
A10: Usable Empty Rows | B10: 0 | AL10: 10 | AM10: =SUMIFS(L$37:L$2820,C$37:C$2820,"=10") -> 7655
A11: Total Rows Placed | B11: 76 | C11: xlRight(1) | D11: xlRight(1) | E11: xlLeft(1) | F11: xlRight(1) | G11: xlRight(1) | H11: xlRight(1) | I11: xlRight(1) | J11: xlRight(1) | K11: xlRight(1) | L11: xlRight(1) | N11: xlLeft(1) | P11: =C11 -> xlRight(1) | Q11: xlRight(1) | R11: xlLeft(1) | S11: xlRight(1) | T11: xlRight(1) | U11: xlRight(1) | V11: xlRight(1) | W11: xlRight(1) | X11: xlRight(1) | Y11: =L11 -> xlRight(1) | Z11: =N11 -> xlLeft(1) | AL11: 11 | AM11: =SUMIFS(L$37:L$2820,C$37:C$2820,"=11") -> 3668.75
A12: Total Rows Needed | B12: =SUM(B8:B10) -> 76 | C12: 0 | D12: #+00.00 | E12: General | F12: General | G12: General | H12: 0.0 | I12: 0.0 | J12: 0.00 | K12: 0.0% | L12: 0.0 | N12: General | P12: 0 | Q12: #+00.00 | R12: General | S12: General | T12: General | U12: 0.0 | V12: 0.0 | W12: 0.00 | X12: 0.0% | Y12: =L12 -> 0.0 | Z12: General | AL12: 12 | AM12: =SUMIFS(L$37:L$2820,C$37:C$2820,"=12") -> 0
A13: Last Tab DE Starter Row | B13: 105 | C13: =CELL("width",C13) -> 6 | D13: =CELL("width",D13) -> 16 | E13: =CELL("width",E13) -> 10 | F13: =CELL("width",F13) -> 16 | G13: =CELL("width",G13) -> 16 | H13: =CELL("width",H13) -> 14 | I13: 14 | J13: 14 | K13: 14 | L13: 14 | N13: =CELL("width",N13) -> 19 | P13: =CELL("width",P13) -> 0 | Q13: =CELL("width",Q13) -> 0 | R13: =CELL("width",R13) -> 0 | S13: =CELL("width",S13) -> 0 | T13: =CELL("width",T13) -> 0 | U13: =CELL("width",U13) -> 0 | V13: 0 | W13: 0 | X13: 0 | Y13: 0 | Z13: =CELL("width",Z13) -> 0 | AL13: 13 | AM13: =SUMIFS(L$37:L$2820,C$37:C$2820,"=13") -> 1362.5
A14: Last Tab TabSheet Starter Row | B14: 114 | C14: A | D14: B | E14: C | F14: D | G14: E | H14: F | I14: G | J14: H | K14: I | L14: J | N14: K | P14: =LOWER(C14) -> a | Q14: b | R14: c | S14: d | T14: e | U14: f | V14: g | W14: h | X14: i | Y14: j | Z14: =LOWER(N14) -> k | AL14: 14 | AM14: =SUMIFS(L$37:L$2820,C$37:C$2820,"=14") -> 2712.5
A15: Last Copy Starter Row | B15: 91 | C15: Totals: | L15: =SUBTOTAL(9,L38:L5999) -> 59847.5 | P15: 100-14 | AL15: 15 | AM15: =SUMIFS(L$37:L$2820,C$37:C$2820,"=15") -> 1362.5
A16: Tab Loop Number | B16: 3 | C16: Silt Basins | P16: =B17 -> Modified | AL16: 16 | AM16: =SUMIFS(L$37:L$2820,C$37:C$2820,"=16") -> 6750
A17: Revision Date | B17: Modified | P17: =C16 -> Silt Basins | AL17: 17 | AM17: =SUMIFS(L$37:L$2820,C$37:C$2820,"=17") -> 2675
A18: Tabulation Width | B18: 2 | C18: Possible Standard: EW-403 | AL18: 18 | AM18: =SUMIFS(L$37:L$2820,C$37:C$2820,"=18") -> 4075
A19: Horizontal Grid Lines | B19: Yes | AL19: 19 | AM19: =SUMIFS(L$37:L$2820,C$37:C$2820,"=19") -> 1037.5
P20: =C18 -> Possible Standard: EW-403 | AL20: 20 | AM20: =SUMIFS(L$37:L$2820,C$37:C$2820,"=20") -> 0
AL21: 21 | AM21: =SUMIFS(L$37:L$2820,C$37:C$2820,"=21") -> 2187.5
AL22: 22 | AM22: =SUMIFS(L$37:L$2820,C$37:C$2820,"=22") -> 1375
AL23: 23 | AM23: =SUMIFS(L$37:L$2820,C$37:C$2820,"=23") -> 0
AL24: 24 | AM24: =SUMIFS(L$37:L$2820,C$37:C$2820,"=24") -> 0
AL25: 25 | AM25: =SUMIFS(L$37:L$2820,C$37:C$2820,"=25") -> 0
AL26: 26 | AM26: =SUMIFS(L$37:L$2820,C$37:C$2820,"=26") -> 0
AL27: 27 | AM27: =SUMIFS(L$37:L$2820,C$37:C$2820,"=27") -> 0
AL28: 28 | AM28: =SUMIFS(L$37:L$2820,C$37:C$2820,"=28") -> 0
AL29: 29 | AM29: =SUMIFS(L$37:L$2820,C$37:C$2820,"=29") -> 0
AL30: 30 | AM30: =SUMIFS(L$37:L$2820,C$37:C$2820,"=30") -> 0
AL31: 31 | AM31: =SUMIFS(L$37:L$2820,C$37:C$2820,"=31") -> 0
C32: * The functional height used in the volume equation is 95% of effective height. Effective height is 3 feet as shown in EW-403. | AL32: 32 | AM32: =SUMIFS(L$37:L$2820,C$37:C$2820,"=32") -> 0
C33: * Volume equation: (0.5*Length*(Width*Height+Width*(Height-Length*Avg%Slope)) | P33: =C32 -> * The functional height used in the volume equation is 95% of effective height. Effective height is 3 feet as shown in EW-403. | AL33: 33 | AM33: =SUMIFS(L$37:L$2820,C$37:C$2820,"=33") -> 0
C34: ="This Data Entry Sheet fills Tab "&P15&" effective "&TEXT(B17,"mm-dd-yy") -> This Data Entry Sheet fills Tab 100-14 effective Modified | P34: =C33 -> * Volume equation: (0.5*Length*(Width*Height+Width*(Height-Length*Avg%Slope)) | AL34: 34 | AM34: =SUMIFS(L$37:L$2820,C$37:C$2820,"=34") -> 0
C35: Basin No. | D35: Location | F35: Bid Items | H35: Stormwater Storage Volume Summary | M35: Subtotal | N35: Remarks | P35: =C35 -> Basin No. | Q35: =D35 -> Location | S35: =F35 -> Bid Items | U35: =H35 -> Stormwater Storage Volume Summary | Z35: =N35 -> Remarks | AL35: 35 | AM35: =SUMIFS(L$37:L$2820,C$37:C$2820,"=35") -> 0
D36: Station | E36: Side | F36: Installation | G36: Removal | H36: Basin Width | I36: Basin Length | J36: Height | K36: Avg. % Slope | L36: Volume* | Q36: =D36 -> Station | R36: =E36 -> Side | S36: =F36 -> Installation | T36: =G36 -> Removal | U36: =H36 -> Basin Width | V36: =I36 -> Basin Length | W36: =J36 -> Height | X36: =K36 -> Avg. % Slope | Y36: =L36 -> Volume* | AL36: 36 | AM36: =SUMIFS(L$37:L$2820,C$37:C$2820,"=36") -> 0
F37: EACH | G37: EACH | H37: FT | I37: FT | J37: FT | L37: CF | S37: =F37 -> EACH | T37: =G37 -> EACH | U37: =H37 -> FT | V37: =I37 -> FT | W37: =J37 -> FT | Y37: CF | AL37: 37 | AM37: =SUMIFS(L$37:L$2820,C$37:C$2820,"=37") -> 0
H38: =IF(D38<>"",10,"") ->  | I38: =IF(D38<>"",50,"") ->  | J38: =IF(D38<>"",3*0.95,"") ->  | AL38: 38 | AM38: =SUMIFS(L$37:L$2820,C$37:C$2820,"=38") -> 0
C39: 1 | D39: 128614.56 | E39: Lt. | F39: 2 | H39: 10 | I39: 50 | J39: 2.85 | K39: 0.021 | L39: =IF(D39<>"",IF(J39-I39*K39<=0,0.5*I39*H39*J39,0.5*I39*(H39*J39+(H39*(J39-I39*K39)))),"") -> 1162.5 | N39: Outlet | AL39: 39 | AM39: =SUMIFS(L$37:L$2820,C$37:C$2820,"=39") -> 0
H40: =IF(D40<>"",10,"") ->  | I40: =IF(D40<>"",50,"") ->  | J40: =IF(D40<>"",3*0.95,"") ->  | M40: 1162.5 | AL40: 40 | AM40: =SUMIFS(L$37:L$2820,C$37:C$2820,"=40") -> 0
C41: 2 | D41: 130288.33 | E41: Med. | F41: 1 | H41: 10 | I41: 50 | J41: 2.85 | K41: 0.0072 | L41: 1335 | N41: Inlet | AL41: 41 | AM41: =SUMIFS(L$37:L$2820,C$37:C$2820,"=41") -> 0
C42: 2 | D42: 130288.33 | E42: Lt. | F42: 2 | H42: 10 | I42: 50 | J42: 2.85 | K42: 0.014 | L42: 1250 | N42: Outlet | AL42: 42 | AM42: =SUMIFS(L$37:L$2820,C$37:C$2820,"=42") -> 0
C43: 2 | D43: 130650 | E43: Med. | F43: 1 | H43: 10 | I43: 50 | J43: 2.85 | K43: 0.0072 | L43: 1335 | N43: Inlet | AL43: 43 | AM43: =SUMIFS(L$37:L$2820,C$37:C$2820,"=43") -> 0
C44: 2 | D44: 130650 | E44: Lt. | F44: 1 | H44: 10 | I44: 50 | J44: 2.85 | K44: 0.008 | L44: 1325 | N44: Outlet | AL44: 44 | AM44: =SUMIFS(L$37:L$2820,C$37:C$2820,"=44") -> 0
M45: 5245 | AL45: 45 | AM45: =SUMIFS(L$37:L$2820,C$37:C$2820,"=45") -> 0
C46: 3 | D46: 131625 | E46: Med. | F46: 1 | H46: 10 | I46: 50 | J46: 2.85 | K46: 0.0072 | L46: 1335 | N46: Inlet | AL46: 46 | AM46: =SUMIFS(L$37:L$2820,C$37:C$2820,"=46") -> 0
C47: 3 | D47: 131625 | E47: Lt. | F47: 1 | H47: 10 | I47: 50 | J47: 2.85 | K47: 0.013 | L47: 1262.5 | N47: Outlet | AL47: 47 | AM47: =SUMIFS(L$37:L$2820,C$37:C$2820,"=47") -> 0
M48: 2597.5 | AL48: 48 | AM48: =SUMIFS(L$37:L$2820,C$37:C$2820,"=48") -> 0
C49: 5 | D49: 132075 | E49: Med. | F49: 1 | H49: 10 | I49: 50 | J49: 2.85 | K49: 0.005 | L49: 1362.5 | N49: Inlet | AL49: 49 | AM49: =SUMIFS(L$37:L$2820,C$37:C$2820,"=49") -> 0
C50: 5 | D50: 132075 | E50: Lt. | F50: 1 | H50: 10 | I50: 50 | J50: 2.85 | K50: 0.004 | L50: 1375 | N50: Outlet | AL50: 50 | AM50: =SUMIFS(L$37:L$2820,C$37:C$2820,"=50") -> 0
C51: 5 | D51: 132111.75 | E51: Lt. | F51: 2 | H51: 10 | I51: 50 | J51: 2.85 | K51: 0.0125 | L51: 1268.75 | N51: Outlet | AL51: 51 | AM51: =SUMIFS(L$37:L$2820,C$37:C$2820,"=51") -> 0
M52: 4006.25 | AL52: 52 | AM52: =SUMIFS(L$37:L$2820,C$37:C$2820,"=52") -> 0
C53: 6 | D53: 134323.48 | E53: Med. | F53: 1 | H53: 10 | I53: 50 | J53: 2.85 | K53: 0.011 | L53: 1287.5 | N53: Inlet | AL53: 53 | AM53: =SUMIFS(L$37:L$2820,C$37:C$2820,"=53") -> 0
C54: 6 | D54: 134350 | E54: Med. | F54: 1 | H54: 10 | I54: 50 | J54: 2.85 | K54: 0.011 | L54: 1287.5 | N54: Inlet | AL54: 54 | AM54: =SUMIFS(L$37:L$2820,C$37:C$2820,"=54") -> 0
C55: 6 | D55: 134350 | E55: Lt. | F55: 1 | H55: 10 | I55: 50 | J55: 2.85 | K55: 0.011 | L55: 1287.5 | N55: Outlet | AL55: 55 | AM55: =SUMIFS(L$37:L$2820,C$37:C$2820,"=55") -> 0
C56: 6 | D56: 135325 | E56: Lt. | F56: 2 | H56: 10 | I56: 50 | J56: 2.85 | K56: 0.009 | L56: 1312.5 | N56: Outlet | AL56: 56 | AM56: =SUMIFS(L$37:L$2820,C$37:C$2820,"=56") -> 0
C57: 6 | D57: 136050 | E57: Med. | F57: 1 | H57: 10 | I57: 50 | J57: 2.85 | K57: 0.002 | L57: 1400 | N57: Inlet
C58: 6 | D58: 136050 | E58: Lt. | F58: 1 | H58: 10 | I58: 50 | J58: 2.85 | K58: 0.007 | L58: 1337.5 | N58: Outlet
M59: 7912.5
C60: 7 | D60: 136998.08 | E60: Med. | F60: 1 | H60: 10 | I60: 50 | J60: 2.85 | K60: 0.002 | L60: 1400 | N60: Inlet
C61: 7 | D61: 137110 | E61: Lt. | F61: 1 | H61: 10 | I61: 50 | J61: 2.85 | K61: 0.0075 | L61: 1331.25 | N61: Inlet
M62: 1400
C63: 8 | D63: 137110 | E63: Lt. | F63: 1 | H63: 10 | I63: 50 | J63: 2.85 | K63: 0.0075 | L63: 1331.25 | N63: Outlet
C64: 10 | D64: 137428.85 | E64: Lt. | F64: 2 | H64: 10 | I64: 50 | J64: 2.85 | K64: 0 | L64: 1425 | N64: Outlet
C65: 10 | D65: 137898.57 | E65: Med. | F65: 1 | H65: 10 | I65: 50 | J65: 2.85 | K65: 0.0026 | L65: 1392.5 | N65: Inlet
C66: 10 | D66: 138548.05 | E66: Med. | F66: 1 | H66: 10 | I66: 50 | J66: 2.85 | K66: 0.018 | L66: 1200 | N66: Inlet
C67: 10 | D67: 139933.04 | E67: Med. | F67: 1 | H67: 10 | I67: 50 | J67: 2.85 | K67: 0.018 | L67: 1200 | N67: Outlet
C68: 10 | D68: 139933.04 | E68: Lt. | F68: 1 | H68: 10 | I68: 50 | J68: 2.85 | K68: 0.015 | L68: 1237.5 | N68: Inlet
C69: 10 | D69: 139933.21 | E69: Med. | F69: 1 | H69: 10 | I69: 50 | J69: 2.85 | K69: 0.018 | L69: 1200 | N69: Inlet
M70: 7655
C71: 11 | D71: 141311.37 | E71: Lt. | F71: 2 | H71: 10 | I71: 50 | J71: 2.85 | K71: 0.0115 | L71: 1281.25 | N71: Inlet
C72: 11 | D72: 141400 | E72: Med. | F72: 1 | H72: 10 | I72: 50 | J72: 2.85 | K72: 0.018 | L72: 1200 | N72: Inlet
C73: 11 | D73: 141400 | E73: Lt. | F73: 1 | H73: 10 | I73: 50 | J73: 2.85 | K73: 0.019 | L73: 1187.5 | N73: Outlet
M74: 3668.75
C75: 13 | D75: 142545.93 | E75: Med. | F75: 1 | H75: 10 | I75: 50 | J75: 2.85 | K75: 0.005 | L75: 1362.5 | N75: Inlet
M76: 1362.5
C77: 14 | D77: 143700 | E77: Med. | F77: 1 | H77: 10 | I77: 50 | J77: 2.85 | K77: 0.005 | L77: 1362.5 | N77: Inlet
C78: 14 | D78: 143700 | E78: Lt. | F78: 2 | H78: 10 | I78: 50 | J78: 2.85 | K78: 0.006 | L78: 1350 | N78: Outlet
M79: 2712.5
C80: 15 | D80: 144096.083 | E80: Med. | F80: 1 | H80: 10 | I80: 50 | J80: 2.85 | K80: 0.005 | L80: 1362.5 | N80: Inlet
M81: 1362.5
C82: 16 | D82: 146125 | E82: Med. | F82: 1 | H82: 10 | I82: 50 | J82: 2.85 | K82: 0.005 | L82: 1362.5 | N82: Inlet
C83: 16 | D83: 146125 | E83: Lt. | F83: 1 | H83: 10 | I83: 50 | J83: 2.85 | K83: 0.005 | L83: 1362.5 | N83: Outlet
C84: 16 | D84: 146215 | E84: Lt. | F84: 2 | H84: 10 | I84: 50 | J84: 2.85 | K84: 0.006 | L84: 1350 | N84: Inlet
C85: 16 | D85: 146652.24 | E85: Lt. | F85: 2 | H85: 10 | I85: 50 | J85: 2.85 | K85: 0.007 | L85: 1337.5 | N85: Inlet
C86: 16 | D86: 147775 | E86: Lt. | F86: 1 | H86: 10 | I86: 50 | J86: 2.85 | K86: 0.007 | L86: 1337.5 | N86: Inlet
M87: 5412.5
C88: 17 | D88: 148094.18 | E88: Med. | F88: 1 | H88: 10 | I88: 50 | J88: 2.85 | K88: 0.007 | L88: 1337.5 | N88: Inlet
C89: 17 | D89: 147775 | E89: Lt. | F89: 1 | H89: 10 | I89: 50 | J89: 2.85 | K89: 0.007 | L89: 1337.5 | N89: Outlet
M90: 1337.5
C91: 18 | D91: 150575 | E91: Med. | F91: 1 | H91: 10 | I91: 50 | J91: 2.85 | K91: 0.005 | L91: 1362.5 | N91: Inlet
C92: 18 | D92: 150575 | E92: Lt. | F92: 1 | H92: 10 | I92: 50 | J92: 2.85 | K92: 0.005 | L92: 1362.5 | N92: Outlet
C93: 18 | D93: 150704.33 | E93: Lt. | F93: 1 | H93: 10 | I93: 50 | J93: 2.85 | K93: 0.006 | L93: 1350 | N93: Inlet
M94: 2725
C95: 19 | D95: 152993.63 | E95: Med. | F95: 1 | H95: 10 | I95: 50 | J95: 2.85 | K95: 0.031 | L95: 1037.5 | N95: Inlet
M96: 1037.5
C97: 21 | D97: 154307.27 | E97: Lt. | F97: 2 | H97: 10 | I97: 50 | J97: 2.85 | K97: 0.033 | L97: 1012.5 | N97: Inlet
C98: 21 | D98: 154818.48 | E98: Med. | F98: 1 | H98: 10 | I98: 50 | J98: 2.85 | K98: 0.02 | L98: 1175 | N98: Inlet
M99: 2187.5
C100: 22 | D100: 155966.81 | E100: Lt. | F100: 1 | H100: 10 | I100: 50 | J100: 2.85 | K100: 0.004 | L100: 1375 | N100: Inlet
M101: 1375
E102: Totals: | F102: 56
E103: Bid Totals: | F103: 112
H104: =IF(D104<>"",10,"") ->  | I104: =IF(D104<>"",50,"") ->  | J104: =IF(D104<>"",3*0.95,"") ->  | L104: =IF(D104<>"",IF(J104-I104*K104<=0,0.5*I104*H104*J104,0.5*I104*(H104*J104+(H104*(J104-I104*K104)))),"") -> 
J167: =IF(D167<>"",3*0.95,"") ->  | L167: =IF(D167<>"",IF(J167-I167*K167<=0,0.5*I167*H167*J167,0.5*I167*(H167*J167+(H167*(J167-I167*K167)))),"") -> 
H168: =IF(D168<>"",10,"") ->  | I168: =IF(D168<>"",50,"") -> 
J231: =IF(D231<>"",3*0.95,"") ->  | L231: =IF(D231<>"",IF(J231-I231*K231<=0,0.5*I231*H231*J231,0.5*I231*(H231*J231+(H231*(J231-I231*K231)))),"") -> 
H232: =IF(D232<>"",10,"") ->  | I232: =IF(D232<>"",50,"") -> 
J295: =IF(D295<>"",3*0.95,"") ->  | L295: =IF(D295<>"",IF(J295-I295*K295<=0,0.5*I295*H295*J295,0.5*I295*(H295*J295+(H295*(J295-I295*K295)))),"") -> 
H296: =IF(D296<>"",10,"") ->  | I296: =IF(D296<>"",50,"") -> 
J359: =IF(D359<>"",3*0.95,"") ->  | L359: =IF(D359<>"",IF(J359-I359*K359<=0,0.5*I359*H359*J359,0.5*I359*(H359*J359+(H359*(J359-I359*K359)))),"") -> 
H360: =IF(D360<>"",10,"") ->  | I360: =IF(D360<>"",50,"") -> 
J423: =IF(D423<>"",3*0.95,"") ->  | L423: =IF(D423<>"",IF(J423-I423*K423<=0,0.5*I423*H423*J423,0.5*I423*(H423*J423+(H423*(J423-I423*K423)))),"") -> 
H424: =IF(D424<>"",10,"") ->  | I424: =IF(D424<>"",50,"") -> 
J487: =IF(D487<>"",3*0.95,"") ->  | L487: =IF(D487<>"",IF(J487-I487*K487<=0,0.5*I487*H487*J487,0.5*I487*(H487*J487+(H487*(J487-I487*K487)))),"") -> 
H488: =IF(D488<>"",10,"") ->  | I488: =IF(D488<>"",50,"") -> 
J551: =IF(D551<>"",3*0.95,"") ->  | L551: =IF(D551<>"",IF(J551-I551*K551<=0,0.5*I551*H551*J551,0.5*I551*(H551*J551+(H551*(J551-I551*K551)))),"") -> 
H552: =IF(D552<>"",10,"") ->  | I552: =IF(D552<>"",50,"") -> 
J615: =IF(D615<>"",3*0.95,"") ->  | L615: =IF(D615<>"",IF(J615-I615*K615<=0,0.5*I615*H615*J615,0.5*I615*(H615*J615+(H615*(J615-I615*K615)))),"") -> 
H616: =IF(D616<>"",10,"") ->  | I616: =IF(D616<>"",50,"") -> 
J679: =IF(D679<>"",3*0.95,"") ->  | L679: =IF(D679<>"",IF(J679-I679*K679<=0,0.5*I679*H679*J679,0.5*I679*(H679*J679+(H679*(J679-I679*K679)))),"") -> 
H680: =IF(D680<>"",10,"") ->  | I680: =IF(D680<>"",50,"") -> 
J743: =IF(D743<>"",3*0.95,"") ->  | L743: =IF(D743<>"",IF(J743-I743*K743<=0,0.5*I743*H743*J743,0.5*I743*(H743*J743+(H743*(J743-I743*K743)))),"") -> 
H744: =IF(D744<>"",10,"") ->  | I744: =IF(D744<>"",50,"") -> 
J807: =IF(D807<>"",3*0.95,"") ->  | L807: =IF(D807<>"",IF(J807-I807*K807<=0,0.5*I807*H807*J807,0.5*I807*(H807*J807+(H807*(J807-I807*K807)))),"") -> 
H808: =IF(D808<>"",10,"") ->  | I808: =IF(D808<>"",50,"") -> 
J871: =IF(D871<>"",3*0.95,"") ->  | L871: =IF(D871<>"",IF(J871-I871*K871<=0,0.5*I871*H871*J871,0.5*I871*(H871*J871+(H871*(J871-I871*K871)))),"") -> 
H872: =IF(D872<>"",10,"") ->  | I872: =IF(D872<>"",50,"") -> 
J935: =IF(D935<>"",3*0.95,"") ->  | L935: =IF(D935<>"",IF(J935-I935*K935<=0,0.5*I935*H935*J935,0.5*I935*(H935*J935+(H935*(J935-I935*K935)))),"") -> 
H936: =IF(D936<>"",10,"") ->  | I936: =IF(D936<>"",50,"") -> 
J999: =IF(D999<>"",3*0.95,"") ->  | L999: =IF(D999<>"",IF(J999-I999*K999<=0,0.5*I999*H999*J999,0.5*I999*(H999*J999+(H999*(J999-I999*K999)))),"") -> 
H1000: =IF(D1000<>"",10,"") ->  | I1000: =IF(D1000<>"",50,"") -> 
J1063: =IF(D1063<>"",3*0.95,"") ->  | L1063: =IF(D1063<>"",IF(J1063-I1063*K1063<=0,0.5*I1063*H1063*J1063,0.5*I1063*(H1063*J1063+(H1063*(J1063-I1063*K1063)))),"") -> 
H1064: =IF(D1064<>"",10,"") ->  | I1064: =IF(D1064<>"",50,"") -> 
J1127: =IF(D1127<>"",3*0.95,"") ->  | L1127: =IF(D1127<>"",IF(J1127-I1127*K1127<=0,0.5*I1127*H1127*J1127,0.5*I1127*(H1127*J1127+(H1127*(J1127-I1127*K1127)))),"") -> 
H1128: =IF(D1128<>"",10,"") ->  | I1128: =IF(D1128<>"",50,"") -> 
J1191: =IF(D1191<>"",3*0.95,"") ->  | L1191: =IF(D1191<>"",IF(J1191-I1191*K1191<=0,0.5*I1191*H1191*J1191,0.5*I1191*(H1191*J1191+(H1191*(J1191-I1191*K1191)))),"") -> 
H1192: =IF(D1192<>"",10,"") ->  | I1192: =IF(D1192<>"",50,"") -> 
J1255: =IF(D1255<>"",3*0.95,"") ->  | L1255: =IF(D1255<>"",IF(J1255-I1255*K1255<=0,0.5*I1255*H1255*J1255,0.5*I1255*(H1255*J1255+(H1255*(J1255-I1255*K1255)))),"") -> 
H1256: =IF(D1256<>"",10,"") ->  | I1256: =IF(D1256<>"",50,"") -> 
J1319: =IF(D1319<>"",3*0.95,"") ->  | L1319: =IF(D1319<>"",IF(J1319-I1319*K1319<=0,0.5*I1319*H1319*J1319,0.5*I1319*(H1319*J1319+(H1319*(J1319-I1319*K1319)))),"") -> 
H1320: =IF(D1320<>"",10,"") ->  | I1320: =IF(D1320<>"",50,"") -> 
J1383: =IF(D1383<>"",3*0.95,"") ->  | L1383: =IF(D1383<>"",IF(J1383-I1383*K1383<=0,0.5*I1383*H1383*J1383,0.5*I1383*(H1383*J1383+(H1383*(J1383-I1383*K1383)))),"") -> 
H1384: =IF(D1384<>"",10,"") ->  | I1384: =IF(D1384<>"",50,"") -> 
J1447: =IF(D1447<>"",3*0.95,"") ->  | L1447: =IF(D1447<>"",IF(J1447-I1447*K1447<=0,0.5*I1447*H1447*J1447,0.5*I1447*(H1447*J1447+(H1447*(J1447-I1447*K1447)))),"") -> 
H1448: =IF(D1448<>"",10,"") ->  | I1448: =IF(D1448<>"",50,"") -> 
J1511: =IF(D1511<>"",3*0.95,"") ->  | L1511: =IF(D1511<>"",IF(J1511-I1511*K1511<=0,0.5*I1511*H1511*J1511,0.5*I1511*(H1511*J1511+(H1511*(J1511-I1511*K1511)))),"") -> 
H1512: =IF(D1512<>"",10,"") ->  | I1512: =IF(D1512<>"",50,"") -> 
J1575: =IF(D1575<>"",3*0.95,"") ->  | L1575: =IF(D1575<>"",IF(J1575-I1575*K1575<=0,0.5*I1575*H1575*J1575,0.5*I1575*(H1575*J1575+(H1575*(J1575-I1575*K1575)))),"") -> 
H1576: =IF(D1576<>"",10,"") ->  | I1576: =IF(D1576<>"",50,"") -> 
J1639: =IF(D1639<>"",3*0.95,"") ->  | L1639: =IF(D1639<>"",IF(J1639-I1639*K1639<=0,0.5*I1639*H1639*J1639,0.5*I1639*(H1639*J1639+(H1639*(J1639-I1639*K1639)))),"") -> 
H1640: =IF(D1640<>"",10,"") ->  | I1640: =IF(D1640<>"",50,"") -> 
J1703: =IF(D1703<>"",3*0.95,"") ->  | L1703: =IF(D1703<>"",IF(J1703-I1703*K1703<=0,0.5*I1703*H1703*J1703,0.5*I1703*(H1703*J1703+(H1703*(J1703-I1703*K1703)))),"") -> 
H1704: =IF(D1704<>"",10,"") ->  | I1704: =IF(D1704<>"",50,"") -> 
J1767: =IF(D1767<>"",3*0.95,"") ->  | L1767: =IF(D1767<>"",IF(J1767-I1767*K1767<=0,0.5*I1767*H1767*J1767,0.5*I1767*(H1767*J1767+(H1767*(J1767-I1767*K1767)))),"") -> 
H1768: =IF(D1768<>"",10,"") ->  | I1768: =IF(D1768<>"",50,"") -> 
J1831: =IF(D1831<>"",3*0.95,"") ->  | L1831: =IF(D1831<>"",IF(J1831-I1831*K1831<=0,0.5*I1831*H1831*J1831,0.5*I1831*(H1831*J1831+(H1831*(J1831-I1831*K1831)))),"") -> 
H1832: =IF(D1832<>"",10,"") ->  | I1832: =IF(D1832<>"",50,"") -> 
J1895: =IF(D1895<>"",3*0.95,"") ->  | L1895: =IF(D1895<>"",IF(J1895-I1895*K1895<=0,0.5*I1895*H1895*J1895,0.5*I1895*(H1895*J1895+(H1895*(J1895-I1895*K1895)))),"") -> 
H1896: =IF(D1896<>"",10,"") ->  | I1896: =IF(D1896<>"",50,"") -> 
J1959: =IF(D1959<>"",3*0.95,"") ->  | L1959: =IF(D1959<>"",IF(J1959-I1959*K1959<=0,0.5*I1959*H1959*J1959,0.5*I1959*(H1959*J1959+(H1959*(J1959-I1959*K1959)))),"") -> 
H1960: =IF(D1960<>"",10,"") ->  | I1960: =IF(D1960<>"",50,"") -> 
J2023: =IF(D2023<>"",3*0.95,"") ->  | L2023: =IF(D2023<>"",IF(J2023-I2023*K2023<=0,0.5*I2023*H2023*J2023,0.5*I2023*(H2023*J2023+(H2023*(J2023-I2023*K2023)))),"") -> 
H2024: =IF(D2024<>"",10,"") ->  | I2024: =IF(D2024<>"",50,"") -> 
J2087: =IF(D2087<>"",3*0.95,"") ->  | L2087: =IF(D2087<>"",IF(J2087-I2087*K2087<=0,0.5*I2087*H2087*J2087,0.5*I2087*(H2087*J2087+(H2087*(J2087-I2087*K2087)))),"") -> 
H2088: =IF(D2088<>"",10,"") ->  | I2088: =IF(D2088<>"",50,"") -> 
J2151: =IF(D2151<>"",3*0.95,"") ->  | L2151: =IF(D2151<>"",IF(J2151-I2151*K2151<=0,0.5*I2151*H2151*J2151,0.5*I2151*(H2151*J2151+(H2151*(J2151-I2151*K2151)))),"") -> 
H2152: =IF(D2152<>"",10,"") ->  | I2152: =IF(D2152<>"",50,"") -> 
J2215: =IF(D2215<>"",3*0.95,"") ->  | L2215: =IF(D2215<>"",IF(J2215-I2215*K2215<=0,0.5*I2215*H2215*J2215,0.5*I2215*(H2215*J2215+(H2215*(J2215-I2215*K2215)))),"") -> 
H2216: =IF(D2216<>"",10,"") ->  | I2216: =IF(D2216<>"",50,"") -> 
J2279: =IF(D2279<>"",3*0.95,"") ->  | L2279: =IF(D2279<>"",IF(J2279-I2279*K2279<=0,0.5*I2279*H2279*J2279,0.5*I2279*(H2279*J2279+(H2279*(J2279-I2279*K2279)))),"") -> 
H2280: =IF(D2280<>"",10,"") ->  | I2280: =IF(D2280<>"",50,"") -> 
J2343: =IF(D2343<>"",3*0.95,"") ->  | L2343: =IF(D2343<>"",IF(J2343-I2343*K2343<=0,0.5*I2343*H2343*J2343,0.5*I2343*(H2343*J2343+(H2343*(J2343-I2343*K2343)))),"") -> 
H2344: =IF(D2344<>"",10,"") ->  | I2344: =IF(D2344<>"",50,"") -> 
J2407: =IF(D2407<>"",3*0.95,"") ->  | L2407: =IF(D2407<>"",IF(J2407-I2407*K2407<=0,0.5*I2407*H2407*J2407,0.5*I2407*(H2407*J2407+(H2407*(J2407-I2407*K2407)))),"") -> 
H2408: =IF(D2408<>"",10,"") ->  | I2408: =IF(D2408<>"",50,"") -> 
J2471: =IF(D2471<>"",3*0.95,"") ->  | L2471: =IF(D2471<>"",IF(J2471-I2471*K2471<=0,0.5*I2471*H2471*J2471,0.5*I2471*(H2471*J2471+(H2471*(J2471-I2471*K2471)))),"") -> 
H2472: =IF(D2472<>"",10,"") ->  | I2472: =IF(D2472<>"",50,"") -> 
J2535: =IF(D2535<>"",3*0.95,"") ->  | L2535: =IF(D2535<>"",IF(J2535-I2535*K2535<=0,0.5*I2535*H2535*J2535,0.5*I2535*(H2535*J2535+(H2535*(J2535-I2535*K2535)))),"") -> 
H2536: =IF(D2536<>"",10,"") ->  | I2536: =IF(D2536<>"",50,"") -> 
J2599: =IF(D2599<>"",3*0.95,"") ->  | L2599: =IF(D2599<>"",IF(J2599-I2599*K2599<=0,0.5*I2599*H2599*J2599,0.5*I2599*(H2599*J2599+(H2599*(J2599-I2599*K2599)))),"") -> 
H2600: =IF(D2600<>"",10,"") ->  | I2600: =IF(D2600<>"",50,"") -> 
J2663: =IF(D2663<>"",3*0.95,"") ->  | L2663: =IF(D2663<>"",IF(J2663-I2663*K2663<=0,0.5*I2663*H2663*J2663,0.5*I2663*(H2663*J2663+(H2663*(J2663-I2663*K2663)))),"") -> 
H2664: =IF(D2664<>"",10,"") ->  | I2664: =IF(D2664<>"",50,"") -> 
J2727: =IF(D2727<>"",3*0.95,"") ->  | L2727: =IF(D2727<>"",IF(J2727-I2727*K2727<=0,0.5*I2727*H2727*J2727,0.5*I2727*(H2727*J2727+(H2727*(J2727-I2727*K2727)))),"") -> 
H2728: =IF(D2728<>"",10,"") ->  | I2728: =IF(D2728<>"",50,"") -> 
J2791: =IF(D2791<>"",3*0.95,"") ->  | L2791: =IF(D2791<>"",IF(J2791-I2791*K2791<=0,0.5*I2791*H2791*J2791,0.5*I2791*(H2791*J2791+(H2791*(J2791-I2791*K2791)))),"") -> 
H2792: =IF(D2792<>"",10,"") ->  | I2792: =IF(D2792<>"",50,"") -> 
J2855: =IF(D2855<>"",3*0.95,"") ->  | L2855: =IF(D2855<>"",IF(J2855-I2855*K2855<=0,0.5*I2855*H2855*J2855,0.5*I2855*(H2855*J2855+(H2855*(J2855-I2855*K2855)))),"") -> 
H2856: =IF(D2856<>"",10,"") ->  | I2856: =IF(D2856<>"",50,"") -> 
J2919: =IF(D2919<>"",3*0.95,"") ->  | L2919: =IF(D2919<>"",IF(J2919-I2919*K2919<=0,0.5*I2919*H2919*J2919,0.5*I2919*(H2919*J2919+(H2919*(J2919-I2919*K2919)))),"") -> 
H2920: =IF(D2920<>"",10,"") ->  | I2920: =IF(D2920<>"",50,"") -> 
J2983: =IF(D2983<>"",3*0.95,"") ->  | L2983: =IF(D2983<>"",IF(J2983-I2983*K2983<=0,0.5*I2983*H2983*J2983,0.5*I2983*(H2983*J2983+(H2983*(J2983-I2983*K2983)))),"") -> 
H2984: =IF(D2984<>"",10,"") ->  | I2984: =IF(D2984<>"",50,"") -> 
J3047: =IF(D3047<>"",3*0.95,"") ->  | L3047: =IF(D3047<>"",IF(J3047-I3047*K3047<=0,0.5*I3047*H3047*J3047,0.5*I3047*(H3047*J3047+(H3047*(J3047-I3047*K3047)))),"") -> 
H3048: =IF(D3048<>"",10,"") ->  | I3048: =IF(D3048<>"",50,"") -> 
J3111: =IF(D3111<>"",3*0.95,"") ->  | L3111: =IF(D3111<>"",IF(J3111-I3111*K3111<=0,0.5*I3111*H3111*J3111,0.5*I3111*(H3111*J3111+(H3111*(J3111-I3111*K3111)))),"") -> 
H3112: =IF(D3112<>"",10,"") ->  | I3112: =IF(D3112<>"",50,"") -> 
J3175: =IF(D3175<>"",3*0.95,"") ->  | L3175: =IF(D3175<>"",IF(J3175-I3175*K3175<=0,0.5*I3175*H3175*J3175,0.5*I3175*(H3175*J3175+(H3175*(J3175-I3175*K3175)))),"") -> 
H3176: =IF(D3176<>"",10,"") ->  | I3176: =IF(D3176<>"",50,"") -> 
... 88 more rows

Sheet DE100_18
A1: TabTitle | B1: =C16 -> SILT FENCES FOR DITCH CHECKS | AL1: 1 | AM1: =SUMIFS(P$37:P$3284,C$37:C$3284,"=1") -> 14758.85363
A2: Number of Tab Columns | B2: 13 | AL2: 2 | AM2: =SUMIFS(P$37:P$3284,C$37:C$3284,"=2") -> 34099.7043
A3: DE Starter Row Number | B3: 37 | AL3: 3 | AM3: =SUMIFS(P$37:P$3284,C$37:C$3284,"=3") -> 15208.20143
A4: TabSheet Starter Row Number | B4: 23 | AL4: 4 | AM4: =SUMIFS(P$37:P$3284,C$37:C$3284,"=4") -> 3155.953311
A5: TabSheet Header Row Count | B5: 22 | AL5: 5 | AM5: =SUMIFS(P$37:P$3284,C$37:C$3284,"=5") -> 30289.41202
A6: Top Header Cell | B6: T15 | AL6: 6 | AM6: =SUMIFS(P$37:P$3284,C$37:C$3284,"=6") -> 54839.26985
A7: Bottom Header Cell | B7: AF36 | AL7: 7 | AM7: =SUMIFS(P$37:P$3284,C$37:C$3284,"=7") -> 19774.9346
A8: DESheet Row Count | B8: 532 | AL8: 8 | AM8: =SUMIFS(P$37:P$3284,C$37:C$3284,"=8") -> 3721.19868
A9: Fixed Empty Rows | B9: 10 | AL9: 9 | AM9: =SUMIFS(P$37:P$3284,C$37:C$3284,"=9") -> 3674.094899
A10: Usable Empty Rows | B10: 0 | AL10: 10 | AM10: =SUMIFS(P$37:P$3284,C$37:C$3284,"=10") -> 73022.56337
A11: Total Rows Placed | B11: 542 | C11: xlRight(1) | D11: xlRight(1) | E11: xlRight(1) | F11: xlLeft(1) | G11: xlRight(1) | H11: xlRight(1) | I11: xlRight(1) | J11: xlRight(1) | K11: xlRight(1) | L11: xlRight(1) | M11: xlRight(1) | P11: xlRight(1) | R11: xlLeft(1) | T11: =C11 -> xlRight(1) | U11: =D11 -> xlRight(1) | V11: =E11 -> xlRight(1) | W11: xlLeft(1) | X11: xlRight(1) | Y11: xlRight(1) | Z11: xlRight(1) | AA11: xlRight(1) | AB11: xlRight(1) | AC11: xlRight(1) | AD11: xlRight(1) | AE11: =P11 -> xlRight(1) | AF11: =R11 -> xlLeft(1) | AL11: 11 | AM11: =SUMIFS(P$37:P$3284,C$37:C$3284,"=11") -> 24115.7739
A12: Total Rows Needed | B12: =SUM(B8:B10) -> 542 | C12: 0 | D12: General | E12: #+00.00 | F12: General | G12: 0.0 | H12: 0.0 | I12: 0.0 | J12: 0.0 | K12: 0.0 | L12: 0.0 | M12: 0.0% | P12: 0.0 | R12: General | T12: =C12 -> 0 | U12: =D12 -> General | V12: #+00.00 | W12: General | X12: 0.0 | Y12: 0.0 | Z12: 0.0 | AA12: 0.0 | AB12: 0.0 | AC12: 0.0 | AD12: 0.0% | AE12: =P12 -> 0.0 | AF12: General | AL12: 12 | AM12: =SUMIFS(P$37:P$3284,C$37:C$3284,"=12") -> 1036.283177
A13: Last Tab DE Starter Row | B13: 513 | C13: =CELL("width",C13) -> 6 | D13: =CELL("width",D13) -> 6 | E13: =CELL("width",E13) -> 16 | F13: =CELL("width",F13) -> 8 | G13: =CELL("width",G13) -> 14 | H13: =CELL("width",H13) -> 14 | I13: 8 | J13: 12 | K13: 12 | L13: 16 | M13: 16 | P13: 12 | R13: =CELL("width",R13) -> 9 | T13: =CELL("width",T13) -> 0 | U13: =CELL("width",U13) -> 0 | V13: =CELL("width",V13) -> 0 | W13: =CELL("width",W13) -> 0 | X13: =CELL("width",X13) -> 0 | Y13: =CELL("width",Y13) -> 0 | Z13: 0 | AA13: 0 | AB13: 0 | AC13: 0 | AD13: 0 | AE13: 0 | AF13: =CELL("width",AF13) -> 0 | AL13: 13 | AM13: =SUMIFS(P$37:P$3284,C$37:C$3284,"=13") -> 23826.38461
A14: Last Tab Tabsheet Starter Row | B14: 653 | C14: A | D14: B | E14: C | F14: D | G14: E | H14: F | I14: G | J14: H | K14: I | L14: J | M14: K | P14: L | R14: M | T14: =LOWER(C14) -> a | U14: =LOWER(D14) -> b | V14: c | W14: d | X14: e | Y14: f | Z14: g | AA14: h | AB14: i | AC14: j | AD14: k | AE14: =LOWER(P14) -> l | AF14: =LOWER(R14) -> m | AL14: 14 | AM14: =SUMIFS(P$37:P$3284,C$37:C$3284,"=14") -> 13408.37029
A15: Last Copy Starter Row | B15: 631 | C15: Totals: | G15: =SUBTOTAL(9,G37:G6204) -> 47055.39587 | H15: =SUBTOTAL(9,H37:H6204) -> 1176.384897 | I15: =SUBTOTAL(9,I37:I6204) -> 11763.84897 | P15: =SUBTOTAL(9,P37:P6204) -> 576853.0852 | T15: 100-18 | AH15: Slope Range | AI15: Spacing | AJ15: =D34 -> Type | AL15: 15 | AM15: =SUMIFS(P$37:P$3284,C$37:C$3284,"=15") -> 11206.11073
A16: Tab Loop Number | B16: 9 | C16: SILT FENCES FOR DITCH CHECKS | T16: =B17 -> 2016-10-18 | AH16: 0 | AI16: 315 | AJ16: 1 | AL16: 16 | AM16: =SUMIFS(P$37:P$3284,C$37:C$3284,"=16") -> 64166.94621
A17: Revision Date | B17: 2016-10-18 | T17: =C16 -> SILT FENCES FOR DITCH CHECKS | AH17: 0.001 | AI17: 315 | AJ17: 2 | AL17: 17 | AM17: =SUMIFS(P$37:P$3284,C$37:C$3284,"=17") -> 33881.44236
A18: Tabulation Width | B18: 2 | AH18: 0.002 | AI18: 315 | AJ18: 3 | AL18: 18 | AM18: =SUMIFS(P$37:P$3284,C$37:C$3284,"=18") -> 50016.11507
A19: Horizontal Grid Lines | B19: Yes | C19: Possible Standard: EC-201 Possible Detail: 570-4 | AH19: 0.003 | AI19: 315 | AJ19: 4 | AL19: 19 | AM19: =SUMIFS(P$37:P$3284,C$37:C$3284,"=19") -> 23633.45842
T20: =C19 -> Possible Standard: EC-201 Possible Detail: 570-4 | AH20: 0.004 | AI20: 315 | AJ20: 5 | AL20: 20 | AM20: =SUMIFS(P$37:P$3284,C$37:C$3284,"=20") -> 7442.39736
AH21: 0.005 | AI21: 315 | AL21: 21 | AM21: =SUMIFS(P$37:P$3284,C$37:C$3284,"=21") -> 45916.43351
AH22: 0.006 | AI22: 155 | AL22: 22 | AM22: =SUMIFS(P$37:P$3284,C$37:C$3284,"=22") -> 5498.39645
AH23: 0.007 | AI23: 155 | AL23: 23 | AM23: =SUMIFS(P$37:P$3284,C$37:C$3284,"=23") -> 20160.78698
AH24: 0.008 | AI24: 155 | AL24: 24 | AM24: =SUMIFS(P$37:P$3284,C$37:C$3284,"=24") -> 0
AH25: 0.009 | AI25: 155 | AL25: 25 | AM25: =SUMIFS(P$37:P$3284,C$37:C$3284,"=25") -> 0
AH26: 0.01 | AI26: 155 | AL26: 26 | AM26: =SUMIFS(P$37:P$3284,C$37:C$3284,"=26") -> 0
AH27: 0.011 | AI27: 100 | AL27: 27 | AM27: =SUMIFS(P$37:P$3284,C$37:C$3284,"=27") -> 0
AH28: 0.012 | AI28: 100 | AL28: 28 | AM28: =SUMIFS(P$37:P$3284,C$37:C$3284,"=28") -> 0
AH29: 0.013 | AI29: 100 | AL29: 29 | AM29: =SUMIFS(P$37:P$3284,C$37:C$3284,"=29") -> 0
AH30: 0.014 | AI30: 100 | AL30: 30 | AM30: =SUMIFS(P$37:P$3284,C$37:C$3284,"=30") -> 0
C31: * The functional height used in the volume equation is 85% of effective height. Effective height is 1.58 feet as shown on EC-201. | AH31: 0.015 | AI31: 100 | AL31: 31 | AM31: =SUMIFS(P$37:P$3284,C$37:C$3284,"=31") -> 0
C32: * Volume equation: [0.5*Spacing*(0.5*H2*FS+DW*H+0.5*H2*BS)] | T32: =C31 -> * The functional height used in the volume equation is 85% of effective height. Effective height is 1.58 feet as shown on EC-201. | AH32: 0.016 | AI32: 75 | AL32: 32 | AM32: =SUMIFS(P$37:P$3284,C$37:C$3284,"=32") -> 0
C33: ="This Data Entry Sheet fills Tab "&T15&" effective "&TEXT(B17,"mm-dd-yy") -> This Data Entry Sheet fills Tab 100-18 effective 10-18-16 | T33: * Volume equation: [0.5*Spacing*(0.5*H2*FS+DW*H+0.5*H2*BS)] | AH33: 0.017 | AI33: 75 | AL33: 33 | AM33: =SUMIFS(P$37:P$3284,C$37:C$3284,"=33") -> 0
C34: Basin No. | D34: Type | E34: Location | G34: Bid Items | J34: Stormwater Storage Volume Summary | Q34: Subtotal | R34: Remarks | T34: =C34 -> Basin No. | U34: =D34 -> Type | V34: =E34 -> Location | X34: =G34 -> Bid Items | AA34: =J34 -> Stormwater Storage Volume Summary | AF34: =R34 -> Remarks | AH34: 0.018 | AI34: 75 | AL34: 34 | AM34: =SUMIFS(P$37:P$3284,C$37:C$3284,"=34") -> 0
E35: Station | F35: Side | G35: Installation | H35: Maintenance | I35: Removal | J35: Foreslope | K35: Backslope | L35: Ditch Width | M35: Avg. % Slope | N35: Spacing | O35: Down Stream | P35: Volume* | V35: =E35 -> Station | W35: =F35 -> Side | X35: =G35 -> Installation | Y35: =H35 -> Maintenance | Z35: =I35 -> Removal | AA35: =J35 -> Foreslope | AB35: =K35 -> Backslope | AC35: =L35 -> Ditch Width | AD35: =M35 -> Avg. % Slope | AE35: =P35 -> Volume* | AH35: 0.019 | AI35: 75 | AL35: 35 | AM35: =SUMIFS(P$37:P$3284,C$37:C$3284,"=35") -> 0
G36: LF | H36: LF | I36: LF | J36: FS:1 | K36: BS:1 | L36: FT | P36: CF | X36: =G36 -> LF | Y36: =H36 -> LF | Z36: =I36 -> LF | AA36: =J36 -> FS:1 | AB36: =K36 -> BS:1 | AC36: =L36 -> FT | AE36: =P36 -> CF | AH36: 0.02 | AI36: 75 | AL36: 36 | AM36: =SUMIFS(P$37:P$3284,C$37:C$3284,"=36") -> 0
N37: =IF(M37<>"",IF(M37<0.06,VLOOKUP(M37,$AH$16:$AI$75,2,TRUE),"XX"),"") ->  | O37: =IF(M37<>"",((0.5*1.343^2*J37)+(1.343*L37)+(0.5*1.343^2*K37)),"") ->  | P37: =IF(C37<>"",(0.5*N37*O37),"") ->  | AH37: 0.021 | AI37: 60 | AL37: 37 | AM37: =SUMIFS(P$37:P$3284,C$37:C$3284,"=37") -> 0
C38: 1 | D38: 1 | E38: =128300+N38 -> 128455 | F38: Lt. | G38: =(2*J38)+(2*K38)+L38 -> 23.00168519 | H38: =G38*0.1 -> 2.300168519 | I38: =G38 -> 23.00168519 | J38: 3.50021575 | K38: 3.000626844 | L38: 10 | M38: 0.01 | N38: =IF(M38<>"",IF(M38<0.06,VLOOKUP(M38,$AH$16:$AI$75,2,TRUE),"XX"),"") -> 155 | O38: =IF(M38<>"",((0.5*1.343^2*J38)+(1.343*L38)+(0.5*1.343^2*K38)),"") -> 19.29261912 | P38: =IF(C38<>"",(0.5*N38*O38),"") -> 1495.177982 | AH38: 0.022 | AI38: 60 | AL38: 38 | AM38: =SUMIFS(P$37:P$3284,C$37:C$3284,"=38") -> 0
C39: 1 | D39: 3 | E39: 128520 | F39: Lt. | G39: 23.00168519 | H39: 2.300168519 | I39: 23.00168519 | J39: 3.50021575 | K39: 3.000626844 | L39: 10 | M39: 0.01 | N39: =E39-E38 -> 65 | O39: =IF(M39<>"",((0.5*1.343^2*J39)+(1.343*L39)+(0.5*1.343^2*K39)),"") -> 19.29261912 | P39: =IF(C39<>"",(0.5*N39*O39),"") -> 627.0101214 | AH39: 0.023 | AI39: 60 | AL39: 39 | AM39: =SUMIFS(P$37:P$3284,C$37:C$3284,"=39") -> 0
C40: 1 | D40: 3 | E40: 128525 | F40: Lt. | G40: 23.00168519 | H40: 2.300168519 | I40: 23.00168519 | J40: 3.50021575 | K40: 3.000626844 | L40: 10 | M40: 0.032 | N40: =IF(M40<>"",IF(M40<0.06,VLOOKUP(M40,$AH$16:$AI$75,2,TRUE),"XX"),"") -> 45 | O40: =IF(M40<>"",((0.5*1.343^2*J40)+(1.343*L40)+(0.5*1.343^2*K40)),"") -> 19.29261912 | P40: 434.0839302 | AH40: 0.024 | AI40: 60 | AL40: 40 | AM40: =SUMIFS(P$37:P$3284,C$37:C$3284,"=40") -> 0
C41: 1 | D41: 5 | E41: =E40+N40 -> 128570 | F41: Lt. | G41: 23.00168519 | H41: 2.300168519 | I41: 23.00168519 | J41: 3.50021575 | K41: 3.000626844 | L41: 10 | M41: 0.032 | N41: 45 | O41: 19.29261912 | P41: 434.0839302 | AH41: 0.025 | AI41: 60 | AL41: 41 | AM41: =SUMIFS(P$37:P$3284,C$37:C$3284,"=41") -> 0
C42: 1 | D42: 5 | E42: 128615 | F42: Lt. | G42: 23.00168519 | H42: 2.300168519 | I42: 23.00168519 | J42: 3.50021575 | K42: 3.000626844 | L42: 10 | M42: 0.032 | N42: 45 | O42: 19.29261912 | P42: 434.0839302 | AH42: 0.026 | AI42: 50 | AL42: 42 | AM42: =SUMIFS(P$37:P$3284,C$37:C$3284,"=42") -> 0
C43: 1 | D43: 5 | E43: 128660 | F43: Lt. | G43: 23.00168519 | H43: 2.300168519 | I43: 23.00168519 | J43: 3.50021575 | K43: 3.000626844 | L43: 10 | M43: 0.032 | N43: 45 | O43: 19.29261912 | P43: 434.0839302 | AH43: 0.027 | AI43: 50 | AL43: 43 | AM43: =SUMIFS(P$37:P$3284,C$37:C$3284,"=43") -> 0
C44: 1 | D44: 5 | E44: 128705 | F44: Lt. | G44: 23.00168519 | H44: 2.300168519 | I44: 23.00168519 | J44: 3.50021575 | K44: 3.000626844 | L44: 10 | M44: 0.032 | N44: 45 | O44: 19.29261912 | P44: 434.0839302 | AH44: 0.028 | AI44: 50 | AL44: 44 | AM44: =SUMIFS(P$37:P$3284,C$37:C$3284,"=44") -> 0
C45: 1 | D45: 1 | E45: 128750 | F45: Lt. | G45: 23.00168519 | H45: 2.300168519 | I45: 23.00168519 | J45: 3.50021575 | K45: 3.000626844 | L45: 10 | M45: 0.032 | N45: 45 | O45: 19.29261912 | P45: 434.0839302 | AH45: 0.029 | AI45: 50 | AL45: 45 | AM45: =SUMIFS(P$37:P$3284,C$37:C$3284,"=45") -> 0
C46: 1 | D46: 1 | E46: 128795 | F46: Lt. | G46: 23.00168519 | H46: 2.300168519 | I46: 23.00168519 | J46: 3.50021575 | K46: 3.000626844 | L46: 10 | M46: 0.032 | N46: 45 | O46: 19.29261912 | P46: 434.0839302 | AH46: 0.03 | AI46: 50 | AL46: 46 | AM46: =SUMIFS(P$37:P$3284,C$37:C$3284,"=46") -> 0
C47: 1 | D47: 1 | E47: 128840 | F47: Lt. | G47: 23.00168519 | H47: 2.300168519 | I47: 23.00168519 | J47: 3.50021575 | K47: 3.000626844 | L47: 10 | M47: 0.032 | N47: 45 | O47: 19.29261912 | P47: 434.0839302 | AH47: 0.031 | AI47: 45 | AL47: 47 | AM47: =SUMIFS(P$37:P$3284,C$37:C$3284,"=47") -> 0
C48: 1 | D48: 1 | E48: 128885 | F48: Lt. | G48: 23.00168519 | H48: 2.300168519 | I48: 23.00168519 | J48: 3.50021575 | K48: 3.000626844 | L48: 10 | M48: 0.032 | N48: 15 | O48: 19.29261912 | P48: 144.6946434 | AH48: 0.032 | AI48: 45 | AL48: 48 | AM48: =SUMIFS(P$37:P$3284,C$37:C$3284,"=48") -> 0
C49: 1 | D49: 1 | E49: 128900 | F49: Lt. | G49: 23.00168519 | H49: 2.300168519 | I49: 23.00168519 | J49: 3.50021575 | K49: 3.000626844 | L49: 10 | M49: 0.016 | N49: 75 | O49: 19.29261912 | P49: 723.4732171 | AH49: 0.033 | AI49: 45 | AL49: 49 | AM49: =SUMIFS(P$37:P$3284,C$37:C$3284,"=49") -> 0
C50: 1 | D50: 1 | E50: =E49+N49 -> 128975 | F50: Lt. | G50: 23.00168519 | H50: 2.300168519 | I50: 23.00168519 | J50: 3.50021575 | K50: 3.000626844 | L50: 10 | M50: 0.016 | N50: 50 | O50: 19.29261912 | P50: 482.315478 | AH50: 0.034 | AI50: 45 | AL50: 50 | AM50: =SUMIFS(P$37:P$3284,C$37:C$3284,"=50") -> 0
C51: 2 | D51: 5 | E51: =129125+75 -> 129200 | F51: Lt. | G51: 23.00168519 | H51: 2.300168519 | I51: 23.00168519 | J51: 3.50021575 | K51: 3.000626844 | L51: 10 | M51: 0.016 | N51: 75 | O51: 19.29261912 | P51: 723.4732171 | AH51: 0.035 | AI51: 45 | AL51: 51 | AM51: =SUMIFS(P$37:P$3284,C$37:C$3284,"=51") -> 0
C52: 2 | D52: 5 | E52: =E51+N52 -> 129275 | F52: Lt. | G52: 23.00168519 | H52: 2.300168519 | I52: 23.00168519 | J52: 3.50021575 | K52: 3.000626844 | L52: 10 | M52: 0.016 | N52: 75 | O52: 19.29261912 | P52: 723.4732171 | AH52: 0.036 | AI52: 40 | AL52: 52 | AM52: =SUMIFS(P$37:P$3284,C$37:C$3284,"=52") -> 0
C53: 2 | D53: 5 | E53: 129300 | F53: Lt. | G53: 23.00168519 | H53: 2.300168519 | I53: 23.00168519 | J53: 3.50021575 | K53: 3.000626844 | L53: 10 | M53: 0.016 | N53: =E53-E52 -> 25 | O53: 19.29261912 | P53: 241.157739 | AH53: 0.037 | AI53: 40 | AL53: 53 | AM53: =SUMIFS(P$37:P$3284,C$37:C$3284,"=53") -> 0
C54: 2 | D54: 5 | E54: =E53+N54 -> 129455 | F54: Lt. | G54: 23.00168519 | H54: 2.300168519 | I54: 23.00168519 | J54: 3.50021575 | K54: 3.000626844 | L54: 10 | M54: 0.008 | N54: 155 | O54: 19.29261912 | P54: 1495.177982 | AH54: 0.038 | AI54: 40 | AL54: 54 | AM54: =SUMIFS(P$37:P$3284,C$37:C$3284,"=54") -> 0
C55: 2 | D55: 5 | E55: 129500 | F55: Lt. | G55: 23.00168519 | H55: 2.300168519 | I55: 23.00168519 | J55: 3.50021575 | K55: 3.000626844 | L55: 10 | M55: 0.008 | N55: =E55-E54 -> 45 | O55: 19.29261912 | P55: 434.0839302 | AH55: 0.039 | AI55: 40 | AL55: 55 | AM55: =SUMIFS(P$37:P$3284,C$37:C$3284,"=55") -> 0
C56: 2 | D56: 5 | E56: =E55+N56 -> 129560 | F56: Lt. | G56: 23.00168519 | H56: 2.300168519 | I56: 23.00168519 | J56: 3.50021575 | K56: 3.000626844 | L56: 10 | M56: 0.023 | N56: 60 | O56: 19.29261912 | P56: 578.7785736 | AH56: 0.04 | AI56: 40 | AL56: 56 | AM56: =SUMIFS(P$37:P$3284,C$37:C$3284,"=56") -> 0
C57: 2 | D57: 5 | E57: 129620 | F57: Lt. | G57: 23.00168519 | H57: 2.300168519 | I57: 23.00168519 | J57: 3.50021575 | K57: 3.000626844 | L57: 10 | M57: 0.023 | N57: 60 | O57: 19.29261912 | P57: 578.7785736 | AH57: 0.041 | AI57: 35
C58: 2 | D58: 5 | E58: 129680 | F58: Lt. | G58: 23.00168519 | H58: 2.300168519 | I58: 23.00168519 | J58: 3.50021575 | K58: 3.000626844 | L58: 10 | M58: 0.023 | N58: 60 | O58: 19.29261912 | P58: 578.7785736 | AH58: 0.042 | AI58: 35
C59: 2 | D59: 5 | E59: 129740 | F59: Lt. | G59: 23.00168519 | H59: 2.300168519 | I59: 23.00168519 | J59: 3.50021575 | K59: 3.000626844 | L59: 10 | M59: 0.023 | N59: 60 | O59: 19.29261912 | P59: 578.7785736 | AH59: 0.043 | AI59: 35
C60: 2 | D60: 5 | E60: 129800 | F60: Lt. | G60: 23.00168519 | H60: 2.300168519 | I60: 23.00168519 | J60: 3.50021575 | K60: 3.000626844 | L60: 10 | M60: 0.023 | N60: 60 | O60: 19.29261912 | P60: 578.7785736 | AH60: 0.044 | AI60: 35
C61: 2 | D61: 5 | E61: 129860 | F61: Lt. | G61: 23.00168519 | H61: 2.300168519 | I61: 23.00168519 | J61: 3.50021575 | K61: 3.000626844 | L61: 10 | M61: 0.023 | N61: 60 | O61: 19.29261912 | P61: 578.7785736 | AH61: 0.045 | AI61: 35
C62: 2 | D62: 5 | E62: 129900 | F62: Lt. | G62: 23.00168519 | H62: 2.300168519 | I62: 23.00168519 | J62: 3.50021575 | K62: 3.000626844 | L62: 10 | M62: 0.023 | N62: =E62-E61 -> 40 | O62: 19.29261912 | P62: 385.8523824 | AH62: 0.046 | AI62: 35
C63: 2 | D63: 5 | E63: =E62+N63 -> 129950 | F63: Lt. | G63: 23.00168519 | H63: 2.300168519 | I63: 23.00168519 | J63: 3.50021575 | K63: 3.000626844 | L63: 10 | M63: 0.027 | N63: 50 | O63: 19.29261912 | P63: 482.315478 | AH63: 0.047 | AI63: 35
C64: 2 | D64: 5 | E64: =E63+N64 -> 130000 | F64: Lt. | G64: 23.00168519 | H64: 2.300168519 | I64: 23.00168519 | J64: 3.50021575 | K64: 3.000626844 | L64: 10 | M64: 0.027 | N64: 50 | O64: 19.29261912 | P64: 482.315478 | AH64: 0.048 | AI64: 35
C65: 2 | D65: 5 | E65: =E64+N65 -> 130050 | F65: Lt. | G65: 23.00168519 | H65: 2.300168519 | I65: 23.00168519 | J65: 3.50021575 | K65: 3.000626844 | L65: 10 | M65: 0.027 | N65: 50 | O65: 19.29261912 | P65: 482.315478 | AH65: 0.049 | AI65: 35
C66: 2 | D66: 5 | E66: =130175+N66 -> 130250 | F66: Lt. | G66: 23.00168519 | H66: 2.300168519 | I66: 23.00168519 | J66: 3.50021575 | K66: 3.000626844 | L66: 10 | M66: 0.02 | N66: 75 | O66: 19.29261912 | P66: 723.4732171 | AH66: 0.05 | AI66: 35
C67: 2 | D67: 5 | E67: 130295 | F67: Lt. | G67: 23.00168519 | H67: 2.300168519 | I67: 23.00168519 | J67: 3.50021575 | K67: 3.000626844 | L67: 10 | M67: 0.02 | N67: =E67-E66 -> 45 | O67: 19.29261912 | P67: 434.0839302 | AH67: 0.051 | AI67: 30
C68: 2 | D68: 5 | E68: 130305 | F68: Lt. | G68: 23.00168519 | H68: 2.300168519 | I68: 23.00168519 | J68: 3.50021575 | K68: 3.000626844 | L68: 10 | M68: 0.008 | N68: 155 | O68: 19.29261912 | P68: 1495.177982 | AH68: 0.052 | AI68: 30
C69: 2 | D69: 5 | E69: =E68+N68 -> 130460 | F69: Lt. | G69: 23.00168519 | H69: 2.300168519 | I69: 23.00168519 | J69: 3.50021575 | K69: 3.000626844 | L69: 10 | M69: 0.008 | N69: 155 | O69: 19.29261912 | P69: 1495.177982 | AH69: 0.053 | AI69: 30
C70: 2 | D70: 5 | E70: =E69+N69 -> 130615 | F70: Lt. | G70: =(2*J70)+(2*K70)+L70 -> 23.00168519 | H70: =G70*0.1 -> 2.300168519 | I70: =G70 -> 23.00168519 | J70: 3.50021575 | K70: 3.000626844 | L70: 10 | M70: 0.008 | N70: 155 | O70: 19.29261912 | P70: 1495.177982 | AH70: 0.054 | AI70: 30
C71: 2 | D71: 1 | E71: =E70+N70 -> 130770 | F71: Lt. | G71: 23.00168519 | H71: 2.300168519 | I71: 23.00168519 | J71: 3.50021575 | K71: 3.000626844 | L71: 10 | M71: 0.008 | N71: 155 | O71: 19.29261912 | P71: 1495.177982 | AH71: 0.055 | AI71: 30
C72: 2 | D72: 1 | E72: =E71+N71 -> 130925 | F72: Lt. | G72: 23.00168519 | H72: 2.300168519 | I72: 23.00168519 | J72: 3.50021575 | K72: 3.000626844 | L72: 10 | M72: 0.008 | N72: 155 | O72: 19.29261912 | P72: 1495.177982 | AH72: 0.056 | AI72: 25
C73: 2 | D73: 1 | E73: =E72+N72 -> 131080 | F73: Lt. | G73: 23.00168519 | H73: 2.300168519 | I73: 23.00168519 | J73: 3.50021575 | K73: 3.000626844 | L73: 10 | M73: 0.008 | N73: =131225-E73 -> 145 | O73: 19.29261912 | P73: 1398.714886 | AH73: 0.057 | AI73: 25
C74: 3 | D74: 1 | E74: =131225+N74 -> 131325 | F74: Lt. | G74: 23.00168519 | H74: 2.300168519 | I74: 23.00168519 | J74: 3.50021575 | K74: 3.000626844 | L74: 10 | M74: 0.013 | N74: 100 | O74: 19.29261912 | P74: 964.6309561 | AH74: 0.058 | AI74: 25
C75: 3 | D75: 1 | E75: =E74+N75 -> 131425 | F75: Lt. | G75: 23.00168519 | H75: 2.300168519 | I75: 23.00168519 | J75: 3.50021575 | K75: 3.000626844 | L75: 10 | M75: 0.013 | N75: 100 | O75: 19.29261912 | P75: 964.6309561 | AH75: 0.059 | AI75: 25
C76: 3 | D76: 1 | E76: =E75+N76 -> 131525 | F76: Lt. | G76: 23.00168519 | H76: 2.300168519 | I76: 23.00168519 | J76: 3.50021575 | K76: 3.000626844 | L76: 10 | M76: 0.013 | N76: 100 | O76: 19.29261912 | P76: 964.6309561
C77: 3 | D77: 1 | E77: =E76+N77 -> 131625 | F77: Lt. | G77: 23.00168519 | H77: 2.300168519 | I77: 23.00168519 | J77: 3.50021575 | K77: 3.000626844 | L77: 10 | M77: 0.013 | N77: 100 | O77: 19.29261912 | P77: 964.6309561
C78: 3 | D78: 5 | E78: 131675 | F78: Lt. | G78: 23.00168519 | H78: 2.300168519 | I78: 23.00168519 | J78: 3.50021575 | K78: 3.000626844 | L78: 10 | M78: 0.013 | N78: =E78-E77 -> 50 | O78: 19.29261912 | P78: 482.315478
C79: 5 | D79: 1 | E79: =131800+N79 -> 131850 | F79: Lt. | G79: 23.00168519 | H79: 2.300168519 | I79: 23.00168519 | J79: 3.50021575 | K79: 3.000626844 | L79: 10 | M79: 0.03 | N79: 50 | O79: 19.29261912 | P79: 482.315478
C80: 5 | D80: 1 | E80: =E79+N80 -> 131900 | F80: Lt. | G80: 23.00168519 | H80: 2.300168519 | I80: 23.00168519 | J80: 3.50021575 | K80: 3.000626844 | L80: 10 | M80: 0.03 | N80: 50 | O80: 19.29261912 | P80: 482.315478
C81: 5 | D81: 1 | E81: =E80+N81 -> 131950 | F81: Lt. | G81: 23.00168519 | H81: 2.300168519 | I81: 23.00168519 | J81: 3.50021575 | K81: 3.000626844 | L81: 10 | M81: 0.03 | N81: 50 | O81: 19.29261912 | P81: 482.315478
C82: 5 | D82: 1 | E82: =E81+N82 -> 132000 | F82: Lt. | G82: 23.00168519 | H82: 2.300168519 | I82: 23.00168519 | J82: 3.50021575 | K82: 3.000626844 | L82: 10 | M82: 0.03 | N82: 50 | O82: 19.29261912 | P82: 482.315478
C83: 5 | D83: 3 | E83: 132120 | F83: Lt. | G83: 23.00168519 | H83: 2.300168519 | I83: 23.00168519 | J83: 3.50021575 | K83: 3.000626844 | L83: 10 | M83: 0.004 | N83: =E83-E82 -> 120 | O83: 19.29261912 | P83: 1157.557147
C84: 5 | D84: 3 | E84: 132130 | F84: Lt. | G84: 23.00168519 | H84: 2.300168519 | I84: 23.00168519 | J84: 3.50021575 | K84: 3.000626844 | L84: 10 | M84: 0.021 | N84: 60 | O84: 19.29261912 | P84: 578.7785736
C85: 5 | D85: 1 | E85: =E84+N85 -> 132190 | F85: Lt. | G85: 23.00168519 | H85: 2.300168519 | I85: 23.00168519 | J85: 3.50021575 | K85: 3.000626844 | L85: 10 | M85: 0.021 | N85: 60 | O85: 19.29261912 | P85: 578.7785736
C86: 5 | D86: 1 | E86: 132250 | F86: Lt. | G86: 23.00168519 | H86: 2.300168519 | I86: 23.00168519 | J86: 3.50021575 | K86: 3.000626844 | L86: 10 | M86: 0.021 | N86: 60 | O86: 19.29261912 | P86: 578.7785736
C87: 5 | D87: 1 | E87: 132310 | F87: Lt. | G87: 23.00168519 | H87: 2.300168519 | I87: 23.00168519 | J87: 3.50021575 | K87: 3.000626844 | L87: 10 | M87: 0.021 | N87: 60 | O87: 19.29261912 | P87: 578.7785736
C88: 5 | D88: 1 | E88: 132370 | F88: Lt. | G88: 23.00168519 | H88: 2.300168519 | I88: 23.00168519 | J88: 3.50021575 | K88: 3.000626844 | L88: 10 | M88: 0.021 | N88: 60 | O88: 19.29261912 | P88: 578.7785736
C89: 5 | D89: 1 | E89: 132430 | F89: Lt. | G89: 23.00168519 | H89: 2.300168519 | I89: 23.00168519 | J89: 3.50021575 | K89: 3.000626844 | L89: 10 | M89: 0.021 | N89: 60 | O89: 19.29261912 | P89: 578.7785736
C90: 5 | D90: 1 | E90: 132490 | F90: Lt. | G90: 23.00168519 | H90: 2.300168519 | I90: 23.00168519 | J90: 3.50021575 | K90: 3.000626844 | L90: 10 | M90: 0.021 | N90: 60 | O90: 19.29261912 | P90: 578.7785736
C91: 5 | D91: 1 | E91: 132550 | F91: Lt. | G91: 23.00168519 | H91: 2.300168519 | I91: 23.00168519 | J91: 3.50021575 | K91: 3.000626844 | L91: 10 | M91: 0.021 | N91: 60 | O91: 19.29261912 | P91: 578.7785736
C92: 5 | D92: 1 | E92: 132610 | F92: Lt. | G92: 23.00168519 | H92: 2.300168519 | I92: 23.00168519 | J92: 3.50021575 | K92: 3.000626844 | L92: 10 | M92: 0.021 | N92: 60 | O92: 19.29261912 | P92: 578.7785736
C93: 5 | D93: 1 | E93: 132670 | F93: Lt. | G93: 23.00168519 | H93: 2.300168519 | I93: 23.00168519 | J93: 3.50021575 | K93: 3.000626844 | L93: 10 | M93: 0.021 | N93: 60 | O93: 19.29261912 | P93: 578.7785736
C94: 5 | D94: 1 | E94: 132730 | F94: Lt. | G94: 23.00168519 | H94: 2.300168519 | I94: 23.00168519 | J94: 3.50021575 | K94: 3.000626844 | L94: 10 | M94: 0.021 | N94: 60 | O94: 19.29261912 | P94: 578.7785736
C95: 5 | D95: 1 | E95: =E94+N94 -> 132790 | F95: Lt. | G95: 23.00168519 | H95: 2.300168519 | I95: 23.00168519 | J95: 3.50021575 | K95: 3.000626844 | L95: 10 | M95: 0.021 | N95: 10 | O95: 19.29261912 | P95: 96.46309561
C96: 5 | D96: 1 | E96: 132800 | F96: Lt. | G96: 23.00168519 | H96: 2.300168519 | I96: 23.00168519 | J96: 3.50021575 | K96: 3.000626844 | L96: 10 | M96: 0.004 | N96: 315 | O96: 19.29261912 | P96: 3038.587512
C97: 5 | D97: 1 | E97: =E96+N96 -> 133115 | F97: Lt. | G97: 23.00168519 | H97: 2.300168519 | I97: 23.00168519 | J97: 3.50021575 | K97: 3.000626844 | L97: 10 | M97: 0.004 | N97: =133300-E97 -> 185 | O97: 19.29261912 | P97: 1784.567269
C98: 6 | D98: 1 | E98: =133300+N98 -> 133455 | F98: Lt. | G98: 23.00168519 | H98: 2.300168519 | I98: 23.00168519 | J98: 3.50021575 | K98: 3.000626844 | L98: 10 | M98: 0.008 | N98: 155 | O98: 19.29261912 | P98: 1495.177982
C99: 6 | D99: 1 | E99: =E98+N99 -> 133610 | F99: Lt. | G99: 23.00168519 | H99: 2.300168519 | I99: 23.00168519 | J99: 3.50021575 | K99: 3.000626844 | L99: 10 | M99: 0.008 | N99: 155 | O99: 19.29261912 | P99: 1495.177982
C100: 6 | D100: 1 | E100: 133700 | F100: Lt. | G100: 23.00168519 | H100: 2.300168519 | I100: 23.00168519 | J100: 3.50021575 | K100: 3.000626844 | L100: 10 | M100: 0.008 | N100: =E100-E99 -> 90 | O100: 19.29261912 | P100: 868.1678605
C101: 6 | D101: 1 | E101: =133700+N101 -> 133800 | F101: Lt. | G101: 23.00168519 | H101: 2.300168519 | I101: 23.00168519 | J101: 3.50021575 | K101: 3.000626844 | L101: 10 | M101: 0.015 | N101: 100 | O101: 19.29261912 | P101: =IF(C101<>"",(0.5*N101*O101),"") -> 964.6309561
C102: 6 | D102: 1 | E102: =E101+N102 -> 133900 | F102: Lt. | G102: =(2*J102)+(2*K102)+L102 -> 23.00168519 | H102: =G102*0.1 -> 2.300168519 | I102: =G102 -> 23.00168519 | J102: 3.50021575 | K102: 3.000626844 | L102: 10 | M102: 0.015 | N102: 100 | O102: 19.29261912 | P102: 964.6309561
C103: 6 | D103: 1 | E103: 134000 | F103: Lt. | G103: 23.00168519 | H103: 2.300168519 | I103: 23.00168519 | J103: 3.50021575 | K103: 3.000626844 | L103: 10 | M103: 0.015 | N103: =IF(M103<>"",IF(M103<0.06,VLOOKUP(M103,$AH$16:$AI$75,2,TRUE),"XX"),"") -> 100 | O103: =IF(M103<>"",((0.5*1.343^2*J103)+(1.343*L103)+(0.5*1.343^2*K103)),"") -> 19.29261912 | P103: 964.6309561
C104: 6 | D104: 1 | E104: 134100 | F104: Lt. | G104: 23.00168519 | H104: 2.300168519 | I104: 23.00168519 | J104: 3.50021575 | K104: 3.000626844 | L104: 10 | M104: 0.015 | N104: 100 | O104: 19.29261912 | P104: 964.6309561
C105: 6 | D105: 1 | E105: 134200 | F105: Lt. | G105: 23.00168519 | H105: 2.300168519 | I105: 23.00168519 | J105: 3.50021575 | K105: 3.000626844 | L105: 10 | M105: 0.015 | N105: 100 | O105: 19.29261912 | P105: 964.6309561
C106: 6 | D106: 1 | E106: 134300 | F106: Lt. | G106: 23.00168519 | H106: 2.300168519 | I106: 23.00168519 | J106: 3.50021575 | K106: 3.000626844 | L106: 10 | M106: 0.011 | N106: 100 | O106: 19.29261912 | P106: 964.6309561
C107: 6 | D107: 1 | E107: 134400 | F107: Lt. | G107: 23.00168519 | H107: 2.300168519 | I107: 23.00168519 | J107: 3.50021575 | K107: 3.000626844 | L107: 10 | M107: 0.011 | N107: 100 | O107: 19.29261912 | P107: 964.6309561
C108: 6 | D108: 1 | E108: 134500 | F108: Lt. | G108: 23.00168519 | H108: 2.300168519 | I108: 23.00168519 | J108: 3.50021575 | K108: 3.000626844 | L108: 10 | M108: 0.011 | N108: 100 | O108: 19.29261912 | P108: 964.6309561
C109: 6 | D109: 1 | E109: 134600 | F109: Lt. | G109: 23.00168519 | H109: 2.300168519 | I109: 23.00168519 | J109: 3.50021575 | K109: 3.000626844 | L109: 10 | M109: 0.011 | N109: 100 | O109: 19.29261912 | P109: 964.6309561
C110: 6 | D110: 1 | E110: 134700 | F110: Lt. | G110: 23.00168519 | H110: 2.300168519 | I110: 23.00168519 | J110: 3.50021575 | K110: 3.000626844 | L110: 10 | M110: 0.011 | N110: 100 | O110: 19.29261912 | P110: 964.6309561
C111: 6 | D111: 1 | E111: 134800 | F111: Lt. | G111: 23.00168519 | H111: 2.300168519 | I111: 23.00168519 | J111: 3.50021575 | K111: 3.000626844 | L111: 10 | M111: 0.011 | N111: 100 | O111: 19.29261912 | P111: 964.6309561
C112: 6 | D112: 1 | E112: 134900 | F112: Lt. | G112: 23.00168519 | H112: 2.300168519 | I112: 23.00168519 | J112: 3.50021575 | K112: 3.000626844 | L112: 10 | M112: 0.011 | N112: 100 | O112: 19.29261912 | P112: 964.6309561
C113: 6 | D113: 1 | E113: 135000 | F113: Lt. | G113: 23.00168519 | H113: 2.300168519 | I113: 23.00168519 | J113: 3.50021575 | K113: 3.000626844 | L113: 10 | M113: 0.011 | N113: 100 | O113: 19.29261912 | P113: 964.6309561
C114: 6 | D114: 1 | E114: 135100 | F114: Lt. | G114: 23.00168519 | H114: 2.300168519 | I114: 23.00168519 | J114: 3.50021575 | K114: 3.000626844 | L114: 10 | M114: 0.011 | N114: 100 | O114: 19.29261912 | P114: 964.6309561
C115: 6 | D115: 1 | E115: 135200 | F115: Lt. | G115: 23.00168519 | H115: 2.300168519 | I115: 23.00168519 | J115: 3.50021575 | K115: 3.000626844 | L115: 10 | M115: 0.011 | N115: 100 | O115: 19.29261912 | P115: 964.6309561
C116: 6 | D116: 1 | E116: 135300 | F116: Lt. | G116: 23.00168519 | H116: 2.300168519 | I116: 23.00168519 | J116: 3.50021575 | K116: 3.000626844 | L116: 10 | M116: 0.011 | N116: 100 | O116: 19.29261912 | P116: 964.6309561
C117: 6 | D117: 3 | E117: 135320 | F117: Lt. | G117: 23.00168519 | H117: 2.300168519 | I117: 23.00168519 | J117: 3.50021575 | K117: 3.000626844 | L117: 10 | M117: 0.011 | N117: 20 | O117: 19.29261912 | P117: 192.9261912
C118: 6 | D118: 3 | E118: 135330 | F118: Lt. | G118: 23.00168519 | H118: 2.300168519 | I118: 23.00168519 | J118: 3.50021575 | K118: 3.000626844 | L118: 10 | M118: 0.007 | N118: 155 | O118: 19.29261912 | P118: 1495.177982
C119: 6 | D119: 1 | E119: =E118+N118 -> 135485 | F119: Lt. | G119: 23.00168519 | H119: 2.300168519 | I119: 23.00168519 | J119: 3.50021575 | K119: 3.000626844 | L119: 10 | M119: 0.007 | N119: 155 | O119: 19.29261912 | P119: 1495.177982
C120: 6 | D120: 5 | E120: =E119+N119 -> 135640 | F120: Lt. | G120: 23.00168519 | H120: 2.300168519 | I120: 23.00168519 | J120: 3.50021575 | K120: 3.000626844 | L120: 10 | M120: 0.007 | N120: 155 | O120: 19.29261912 | P120: 1495.177982
C121: 6 | D121: 5 | E121: =E120+N120 -> 135795 | F121: Lt. | G121: 23.00168519 | H121: 2.300168519 | I121: 23.00168519 | J121: 3.50021575 | K121: 3.000626844 | L121: 10 | M121: 0.007 | N121: 155 | O121: 19.29261912 | P121: 1495.177982
C122: 6 | D122: 5 | E122: =E121+N121 -> 135950 | F122: Lt. | G122: 23.00168519 | H122: 2.300168519 | I122: 23.00168519 | J122: 3.50021575 | K122: 3.000626844 | L122: 10 | M122: 0.007 | N122: =136100-E122 -> 150 | O122: 19.29261912 | P122: 1446.946434
C123: 7 | D123: 5 | E123: =136100+N123 -> 136415 | F123: Lt. | G123: 23.00168519 | H123: 2.300168519 | I123: 23.00168519 | J123: 3.50021575 | K123: 3.000626844 | L123: 10 | M123: 0.005 | N123: 315 | O123: 19.29261912 | P123: 3038.587512
C124: 7 | D124: 5 | E124: =E123+N124 -> 136730 | F124: Lt. | G124: 23.00168519 | H124: 2.300168519 | I124: 23.00168519 | J124: 3.50021575 | K124: 3.000626844 | L124: 10 | M124: 0.005 | N124: 315 | O124: 19.29261912 | P124: 3038.587512
C125: 7 | D125: 5 | E125: =E124+N125 -> 137045 | F125: Lt. | G125: 23.00168519 | H125: 2.300168519 | I125: 23.00168519 | J125: 3.50021575 | K125: 3.000626844 | L125: 10 | M125: 0.005 | N125: 315 | O125: 19.29261912 | P125: 3038.587512
C126: 10 | D126: 1 | E126: =137150+N126 -> 137305 | F126: Lt. | G126: 23.00168519 | H126: 2.300168519 | I126: 23.00168519 | J126: 3.50021575 | K126: 3.000626844 | L126: 10 | M126: 0.01 | N126: 155 | O126: 19.29261912 | P126: 1495.177982
C127: 10 | D127: 1 | E127: 137375 | F127: Lt. | G127: 23.00168519 | H127: 2.300168519 | I127: 23.00168519 | J127: 3.50021575 | K127: 3.000626844 | L127: 10 | M127: 0.01 | N127: =E127-E126 -> 70 | O127: 19.29261912 | P127: 675.2416692
C128: 10 | D128: 1 | E128: 137475 | F128: Lt. | G128: 23.00168519 | H128: 2.300168519 | I128: 23.00168519 | J128: 3.50021575 | K128: 3.000626844 | L128: 10 | M128: 0.01 | N128: 155 | O128: 19.29261912 | P128: 1495.177982
C129: 10 | D129: 1 | E129: =E128+N128 -> 137630 | F129: Lt. | G129: 23.00168519 | H129: 2.300168519 | I129: 23.00168519 | J129: 3.50021575 | K129: 3.000626844 | L129: 10 | M129: 0.01 | N129: 155 | O129: 19.29261912 | P129: 1495.177982
C130: 10 | D130: 1 | E130: =E129+N129 -> 137785 | F130: Lt. | G130: 23.00168519 | H130: 2.300168519 | I130: 23.00168519 | J130: 3.50021575 | K130: 3.000626844 | L130: 10 | M130: 0.01 | N130: 155 | O130: 19.29261912 | P130: 1495.177982
C131: 10 | D131: 1 | E131: =E130+N130 -> 137940 | F131: Lt. | G131: 23.00168519 | H131: 2.300168519 | I131: 23.00168519 | J131: 3.50021575 | K131: 3.000626844 | L131: 10 | M131: 0.01 | N131: 155 | O131: 19.29261912 | P131: 1495.177982
C132: 10 | D132: 5 | E132: =E131+N131 -> 138095 | F132: Lt. | G132: 23.00168519 | H132: 2.300168519 | I132: 23.00168519 | J132: 3.50021575 | K132: 3.000626844 | L132: 10 | M132: 0.01 | N132: 155 | O132: 19.29261912 | P132: 1495.177982
C133: 10 | D133: 1 | E133: =E132+N132 -> 138250 | F133: Lt. | G133: 23.00168519 | H133: 2.300168519 | I133: 23.00168519 | J133: 3.50021575 | K133: 3.000626844 | L133: 10 | M133: 0.01 | N133: =E134-E133 -> 125 | O133: 19.29261912 | P133: 1205.788695
C134: 10 | D134: 1 | E134: 138375 | F134: Lt. | G134: =(2*J134)+(2*K134)+L134 -> 23.00168519 | H134: =G134*0.1 -> 2.300168519 | I134: =G134 -> 23.00168519 | J134: 3.50021575 | K134: 3.000626844 | L134: 10 | M134: 0.018 | N134: 75 | O134: 19.29261912 | P134: 723.4732171
C135: 10 | D135: 1 | E135: =E134+N134 -> 138450 | F135: Lt. | G135: 23.00168519 | H135: 2.300168519 | I135: 23.00168519 | J135: 3.50021575 | K135: 3.000626844 | L135: 10 | M135: 0.018 | N135: 75 | O135: 19.29261912 | P135: 723.4732171
C136: 10 | D136: 1 | E136: 138525 | F136: Lt. | G136: 23.00168519 | H136: 2.300168519 | I136: 23.00168519 | J136: 3.50021575 | K136: 3.000626844 | L136: 10 | M136: 0.018 | N136: 75 | O136: 19.29261912 | P136: 723.4732171
C137: 10 | D137: 5 | E137: 138600 | F137: Lt. | G137: 23.00168519 | H137: 2.300168519 | I137: 23.00168519 | J137: 3.50021575 | K137: 3.000626844 | L137: 10 | M137: 0.018 | N137: 75 | O137: 19.29261912 | P137: 723.4732171
C138: 10 | D138: 5 | E138: 138675 | F138: Lt. | G138: 23.00168519 | H138: 2.300168519 | I138: 23.00168519 | J138: 3.50021575 | K138: 3.000626844 | L138: 10 | M138: 0.018 | N138: 75 | O138: 19.29261912 | P138: 723.4732171
C139: 10 | D139: 5 | E139: 138750 | F139: Lt. | G139: 23.00168519 | H139: 2.300168519 | I139: 23.00168519 | J139: 3.50021575 | K139: 3.000626844 | L139: 10 | M139: 0.018 | N139: 75 | O139: 19.29261912 | P139: 723.4732171
C140: 10 | D140: 5 | E140: 138825 | F140: Lt. | G140: 23.00168519 | H140: 2.300168519 | I140: 23.00168519 | J140: 3.50021575 | K140: 3.000626844 | L140: 10 | M140: 0.018 | N140: 75 | O140: 19.29261912 | P140: 723.4732171
C141: 10 | D141: 5 | E141: 138900 | F141: Lt. | G141: 23.00168519 | H141: 2.300168519 | I141: 23.00168519 | J141: 3.50021575 | K141: 3.000626844 | L141: 10 | M141: 0.018 | N141: 75 | O141: 19.29261912 | P141: 723.4732171
C142: 10 | D142: 5 | E142: 138975 | F142: Lt. | G142: 23.00168519 | H142: 2.300168519 | I142: 23.00168519 | J142: 3.50021575 | K142: 3.000626844 | L142: 10 | M142: 0.018 | N142: 75 | O142: 19.29261912 | P142: 723.4732171
C143: 10 | D143: 1 | E143: 139050 | F143: Lt. | G143: 23.00168519 | H143: 2.300168519 | I143: 23.00168519 | J143: 3.50021575 | K143: 3.000626844 | L143: 10 | M143: 0.018 | N143: 75 | O143: 19.29261912 | P143: 723.4732171
C144: 10 | D144: 1 | E144: 139125 | F144: Lt. | G144: 23.00168519 | H144: 2.300168519 | I144: 23.00168519 | J144: 3.50021575 | K144: 3.000626844 | L144: 10 | M144: 0.018 | N144: 75 | O144: 19.29261912 | P144: 723.4732171
C145: 10 | D145: 1 | E145: 139200 | F145: Lt. | G145: 23.00168519 | H145: 2.300168519 | I145: 23.00168519 | J145: 3.50021575 | K145: 3.000626844 | L145: 10 | M145: 0.018 | N145: 75 | O145: 19.29261912 | P145: 723.4732171
C146: 10 | D146: 1 | E146: 139275 | F146: Lt. | G146: 23.00168519 | H146: 2.300168519 | I146: 23.00168519 | J146: 3.50021575 | K146: 3.000626844 | L146: 10 | M146: 0.018 | N146: 75 | O146: 19.29261912 | P146: 723.4732171
C147: 10 | D147: 1 | E147: 139350 | F147: Lt. | G147: 23.00168519 | H147: 2.300168519 | I147: 23.00168519 | J147: 3.50021575 | K147: 3.000626844 | L147: 10 | M147: 0.018 | N147: 75 | O147: 19.29261912 | P147: 723.4732171
C148: 10 | D148: 1 | E148: 139425 | F148: Lt. | G148: 23.00168519 | H148: 2.300168519 | I148: 23.00168519 | J148: 3.50021575 | K148: 3.000626844 | L148: 10 | M148: 0.018 | N148: 75 | O148: 19.29261912 | P148: 723.4732171
C149: 10 | D149: 1 | E149: 139500 | F149: Lt. | G149: 23.00168519 | H149: 2.300168519 | I149: 23.00168519 | J149: 3.50021575 | K149: 3.000626844 | L149: 10 | M149: 0.018 | N149: 75 | O149: 19.29261912 | P149: 723.4732171
C150: 10 | D150: 1 | E150: 139575 | F150: Lt. | G150: 23.00168519 | H150: 2.300168519 | I150: 23.00168519 | J150: 3.50021575 | K150: 3.000626844 | L150: 10 | M150: 0.018 | N150: 75 | O150: 19.29261912 | P150: 723.4732171
C151: 10 | D151: 1 | E151: 139650 | F151: Lt. | G151: 23.00168519 | H151: 2.300168519 | I151: 23.00168519 | J151: 3.50021575 | K151: 3.000626844 | L151: 10 | M151: 0.018 | N151: 75 | O151: 19.29261912 | P151: 723.4732171
C152: 10 | D152: 1 | E152: 139725 | F152: Lt. | G152: 23.00168519 | H152: 2.300168519 | I152: 23.00168519 | J152: 3.50021575 | K152: 3.000626844 | L152: 10 | M152: 0.018 | N152: 75 | O152: 19.29261912 | P152: 723.4732171
C153: 10 | D153: 1 | E153: 139800 | F153: Lt. | G153: 23.00168519 | H153: 2.300168519 | I153: 23.00168519 | J153: 3.50021575 | K153: 3.000626844 | L153: 10 | M153: 0.018 | N153: 75 | O153: 19.29261912 | P153: 723.4732171
C154: 10 | D154: 1 | E154: 139875 | F154: Lt. | G154: 23.00168519 | H154: 2.300168519 | I154: 23.00168519 | J154: 3.50021575 | K154: 3.000626844 | L154: 10 | M154: 0.018 | N154: =E155-E154 -> 50 | O154: 19.29261912 | P154: 482.315478
C155: 10 | D155: 1 | E155: 139925 | F155: Lt. | G155: 23.00168519 | H155: 2.300168519 | I155: 23.00168519 | J155: 3.50021575 | K155: 3.000626844 | L155: 10 | M155: 0.015 | N155: 100 | O155: 19.29261912 | P155: 964.6309561
C156: 10 | D156: 1 | E156: =E155+N155 -> 140025 | F156: Lt. | G156: 23.00168519 | H156: 2.300168519 | I156: 23.00168519 | J156: 3.50021575 | K156: 3.000626844 | L156: 10 | M156: 0.015 | N156: 100 | O156: 19.29261912 | P156: 964.6309561
C157: 10 | D157: 1 | E157: 140125 | F157: Lt. | G157: 23.00168519 | H157: 2.300168519 | I157: 23.00168519 | J157: 3.50021575 | K157: 3.000626844 | L157: 10 | M157: 0.015 | N157: 100 | O157: 19.29261912 | P157: 964.6309561
C158: 10 | D158: 1 | E158: 140225 | F158: Lt. | G158: 23.00168519 | H158: 2.300168519 | I158: 23.00168519 | J158: 3.50021575 | K158: 3.000626844 | L158: 10 | M158: 0.018 | N158: 75 | O158: 19.29261912 | P158: 723.4732171
C159: 10 | D159: 1 | E159: 140300 | F159: Lt. | G159: 23.00168519 | H159: 2.300168519 | I159: 23.00168519 | J159: 3.50021575 | K159: 3.000626844 | L159: 10 | M159: 0.018 | N159: 75 | O159: 19.29261912 | P159: 723.4732171
C160: 10 | D160: 1 | E160: 140375 | F160: Lt. | G160: 23.00168519 | H160: 2.300168519 | I160: 23.00168519 | J160: 3.50021575 | K160: 3.000626844 | L160: 10 | M160: 0.018 | N160: 75 | O160: 19.29261912 | P160: 723.4732171
C161: 10 | D161: 1 | E161: 140450 | F161: Lt. | G161: 23.00168519 | H161: 2.300168519 | I161: 23.00168519 | J161: 3.50021575 | K161: 3.000626844 | L161: 10 | M161: 0.018 | N161: 75 | O161: 19.29261912 | P161: 723.4732171
C162: 10 | D162: 1 | E162: 140525 | F162: Lt. | G162: 23.00168519 | H162: 2.300168519 | I162: 23.00168519 | J162: 3.50021575 | K162: 3.000626844 | L162: 10 | M162: 0.018 | N162: 75 | O162: 19.29261912 | P162: 723.4732171
C163: 10 | D163: 1 | E163: 140600 | F163: Lt. | G163: 23.00168519 | H163: 2.300168519 | I163: 23.00168519 | J163: 3.50021575 | K163: 3.000626844 | L163: 10 | M163: 0.018 | N163: 75 | O163: 19.29261912 | P163: 723.4732171
C164: 10 | D164: 1 | E164: 140675 | F164: Lt. | G164: 23.00168519 | H164: 2.300168519 | I164: 23.00168519 | J164: 3.50021575 | K164: 3.000626844 | L164: 10 | M164: 0.018 | N164: 75 | O164: 19.29261912 | P164: 723.4732171
C165: 10 | D165: 1 | E165: 140750 | F165: Lt. | G165: 23.00168519 | H165: 2.300168519 | I165: 23.00168519 | J165: 3.50021575 | K165: 3.000626844 | L165: 10 | M165: 0.018 | N165: 75 | O165: 19.29261912 | P165: =IF(C165<>"",(0.5*N165*O165),"") -> 723.4732171
C166: 11 | D166: 1 | E166: 140825 | F166: Lt. | G166: =(2*J166)+(2*K166)+L166 -> 23.00168519 | H166: =G166*0.1 -> 2.300168519 | I166: =G166 -> 23.00168519 | J166: 3.50021575 | K166: 3.000626844 | L166: 10 | M166: 0.018 | N166: 25 | O166: 19.29261912 | P166: 241.157739
C167: 11 | D167: 1 | E167: =140850+N167 -> 141165 | F167: Lt. | G167: 23.00168519 | H167: 2.300168519 | I167: 23.00168519 | J167: 3.50021575 | K167: 3.000626844 | L167: 10 | M167: 0.004 | N167: =IF(M167<>"",IF(M167<0.06,VLOOKUP(M167,$AH$16:$AI$75,2,TRUE),"XX"),"") -> 315 | O167: =IF(M167<>"",((0.5*1.343^2*J167)+(1.343*L167)+(0.5*1.343^2*K167)),"") -> 19.29261912 | P167: 3038.587512
C168: 11 | D168: 1 | E168: 141320 | F168: Lt. | G168: 23.00168519 | H168: 2.300168519 | I168: 23.00168519 | J168: 3.50021575 | K168: 3.000626844 | L168: 10 | M168: 0.004 | N168: =E168-E167 -> 155 | O168: 19.29261912 | P168: 1495.177982
C169: 11 | D169: 1 | E169: 141330 | F169: Lt. | G169: 23.00168519 | H169: 2.300168519 | I169: 23.00168519 | J169: 3.50021575 | K169: 3.000626844 | L169: 10 | M169: 0.019 | N169: 75 | O169: 19.29261912 | P169: 723.4732171
C170: 11 | D170: 1 | E170: =E169+N169 -> 141405 | F170: Lt. | G170: 23.00168519 | H170: 2.300168519 | I170: 23.00168519 | J170: 3.50021575 | K170: 3.000626844 | L170: 10 | M170: 0.019 | N170: 75 | O170: 19.29261912 | P170: 723.4732171
C171: 11 | D171: 1 | E171: =E170+N170 -> 141480 | F171: Lt. | G171: 23.00168519 | H171: 2.300168519 | I171: 23.00168519 | J171: 3.50021575 | K171: 3.000626844 | L171: 10 | M171: 0.019 | N171: 75 | O171: 19.29261912 | P171: 723.4732171
C172: 11 | D172: 1 | E172: 141555 | F172: Lt. | G172: 23.00168519 | H172: 2.300168519 | I172: 23.00168519 | J172: 3.50021575 | K172: 3.000626844 | L172: 10 | M172: 0.019 | N172: 75 | O172: 19.29261912 | P172: 723.4732171
C173: 11 | D173: 1 | E173: 141630 | F173: Lt. | G173: 23.00168519 | H173: 2.300168519 | I173: 23.00168519 | J173: 3.50021575 | K173: 3.000626844 | L173: 10 | M173: 0.019 | N173: 75 | O173: 19.29261912 | P173: 723.4732171
C174: 11 | D174: 5 | E174: 141705 | F174: Lt. | G174: 23.00168519 | H174: 2.300168519 | I174: 23.00168519 | J174: 3.50021575 | K174: 3.000626844 | L174: 10 | M174: 0.019 | N174: 75 | O174: 19.29261912 | P174: 723.4732171
C175: 11 | D175: 5 | E175: 141780 | F175: Lt. | G175: 23.00168519 | H175: 2.300168519 | I175: 23.00168519 | J175: 3.50021575 | K175: 3.000626844 | L175: 10 | M175: 0.019 | N175: 75 | O175: 19.29261912 | P175: 723.4732171
C176: 11 | D176: 1 | E176: 141855 | F176: Lt. | G176: 23.00168519 | H176: 2.300168519 | I176: 23.00168519 | J176: 3.50021575 | K176: 3.000626844 | L176: 10 | M176: 0.019 | N176: 75 | O176: 19.29261912 | P176: 723.4732171
C177: 11 | D177: 1 | E177: 141930 | F177: Lt. | G177: 23.00168519 | H177: 2.300168519 | I177: 23.00168519 | J177: 3.50021575 | K177: 3.000626844 | L177: 10 | M177: 0.019 | N177: 75 | O177: 19.29261912 | P177: 723.4732171
C178: 11 | D178: 1 | E178: 142005 | F178: Lt. | G178: 23.00168519 | H178: 2.300168519 | I178: 23.00168519 | J178: 3.50021575 | K178: 3.000626844 | L178: 10 | M178: 0.019 | N178: 75 | O178: 19.29261912 | P178: 723.4732171
C179: 11 | D179: 1 | E179: 142080 | F179: Lt. | G179: 23.00168519 | H179: 2.300168519 | I179: 23.00168519 | J179: 3.50021575 | K179: 3.000626844 | L179: 10 | M179: 0.019 | N179: 75 | O179: 19.29261912 | P179: 723.4732171
C180: 11 | D180: 1 | E180: 142155 | F180: Lt. | G180: 23.00168519 | H180: 2.300168519 | I180: 23.00168519 | J180: 3.50021575 | K180: 3.000626844 | L180: 10 | M180: 0.019 | N180: 75 | O180: 19.29261912 | P180: 723.4732171
C181: 11 | D181: 1 | E181: 142230 | F181: Lt. | G181: 23.00168519 | H181: 2.300168519 | I181: 23.00168519 | J181: 3.50021575 | K181: 3.000626844 | L181: 10 | M181: 0.019 | N181: 75 | O181: 19.29261912 | P181: 723.4732171
C182: 11 | D182: 1 | E182: 142305 | F182: Lt. | G182: 23.00168519 | H182: 2.300168519 | I182: 23.00168519 | J182: 3.50021575 | K182: 3.000626844 | L182: 10 | M182: 0.019 | N182: 20 | O182: 19.29261912 | P182: 192.9261912
C183: 13 | D183: 1 | E183: 142500 | F183: Lt. | G183: 23.00168519 | H183: 2.300168519 | I183: 23.00168519 | J183: 3.50021575 | K183: 3.000626844 | L183: 10 | M183: 0.0064 | N183: 155 | O183: 19.29261912 | P183: 1495.177982
C184: 13 | D184: 1 | E184: =E183+N183 -> 142655 | F184: Lt. | G184: 23.00168519 | H184: 2.300168519 | I184: 23.00168519 | J184: 3.50021575 | K184: 3.000626844 | L184: 10 | M184: 0.0064 | N184: 155 | O184: 19.29261912 | P184: 1495.177982
C185: 13 | D185: 5 | E185: =E184+N184 -> 142810 | F185: Lt. | G185: 23.00168519 | H185: 2.300168519 | I185: 23.00168519 | J185: 3.50021575 | K185: 3.000626844 | L185: 10 | M185: 0.0064 | N185: 155 | O185: 19.29261912 | P185: 1495.177982
C186: 13 | D186: 5 | E186: =E185+N185 -> 142965 | F186: Lt. | G186: 23.00168519 | H186: 2.300168519 | I186: 23.00168519 | J186: 3.50021575 | K186: 3.000626844 | L186: 10 | M186: 0.0064 | N186: 155 | O186: 19.29261912 | P186: 1495.177982
C187: 13 | D187: 5 | E187: =E186+N186 -> 143120 | F187: Lt. | G187: 23.00168519 | H187: 2.300168519 | I187: 23.00168519 | J187: 3.50021575 | K187: 3.000626844 | L187: 10 | M187: 0.0064 | N187: 155 | O187: 19.29261912 | P187: 1495.177982
C188: 13 | D188: 5 | E188: =E187+N187 -> 143275 | F188: Lt. | G188: 23.00168519 | H188: 2.300168519 | I188: 23.00168519 | J188: 3.50021575 | K188: 3.000626844 | L188: 10 | M188: 0.0064 | N188: =143400-E188 -> 125 | O188: 19.29261912 | P188: 1205.788695
C189: 14 | D189: 5 | E189: =143400+N189 -> 143555 | F189: Lt. | G189: 23.00168519 | H189: 2.300168519 | I189: 23.00168519 | J189: 3.50021575 | K189: 3.000626844 | L189: 10 | M189: 0.0092 | N189: 155 | O189: 19.29261912 | P189: 1495.177982
C190: 14 | D190: 5 | E190: 143695 | F190: Lt. | G190: 23.00168519 | H190: 2.300168519 | I190: 23.00168519 | J190: 3.50021575 | K190: 3.000626844 | L190: 10 | M190: 0.0092 | N190: =E190-E189 -> 140 | O190: 19.29261912 | P190: 1350.483338
C191: 14 | D191: 5 | E191: 143705 | F191: Lt. | G191: 23.00168519 | H191: 2.300168519 | I191: 23.00168519 | J191: 3.50021575 | K191: 3.000626844 | L191: 10 | M191: 0.003 | N191: 315 | O191: 19.29261912 | P191: 3038.587512
C192: 14 | D192: 5 | E192: =E191+N191 -> 144020 | F192: Lt. | G192: 23.00168519 | H192: 2.300168519 | I192: 23.00168519 | J192: 3.50021575 | K192: 3.000626844 | L192: 10 | M192: 0.003 | N192: =E193-E192 -> 29 | O192: 19.29261912 | P192: 279.7429773
C193: 14 | D193: 5 | E193: 144049 | F193: Lt. | G193: 23.00168519 | H193: 2.300168519 | I193: 23.00168519 | J193: 3.50021575 | K193: 3.000626844 | L193: 10 | M193: 0.004 | N193: 315 | O193: 19.29261912 | P193: 3038.587512
C194: 14 | D194: 5 | E194: =E193+N193 -> 144364 | F194: Lt. | G194: 23.00168519 | H194: 2.300168519 | I194: 23.00168519 | J194: 3.50021575 | K194: 3.000626844 | L194: 10 | M194: 0.004 | N194: =E195-E194 -> 236 | O194: 19.29261912 | P194: 2276.529056
C195: 14 | D195: 5 | E195: 144600 | F195: Lt. | G195: 23.00168519 | H195: 2.300168519 | I195: 23.00168519 | J195: 3.50021575 | K195: 3.000626844 | L195: 10 | M195: 0.0068 | N195: 155 | O195: 19.29261912 | P195: 1495.177982
C196: 14 | D196: 5 | E196: =E195+N195 -> 144755 | F196: Lt. | G196: 23.00168519 | H196: 2.300168519 | I196: 23.00168519 | J196: 3.50021575 | K196: 3.000626844 | L196: 10 | M196: 0.0068 | N196: =144800-E196 -> 45 | O196: 19.29261912 | P196: 434.0839302
C197: 16 | D197: 5 | E197: 145000 | F197: Lt. | G197: 23.00168519 | H197: 2.300168519 | I197: 23.00168519 | J197: 3.50021575 | K197: 3.000626844 | L197: 10 | M197: 0.0032 | N197: =E197-144800 -> 200 | O197: 19.29261912 | P197: 1929.261912
C198: 16 | D198: 5 | E198: =E197+N198 -> 145315 | F198: Lt. | G198: =(2*J198)+(2*K198)+L198 -> 23.00168519 | H198: 2.300168519 | I198: =G198 -> 23.00168519 | J198: 3.50021575 | K198: 3.000626844 | L198: 10 | M198: 0.005 | N198: 315 | O198: 19.29261912 | P198: 3038.587512
C199: 16 | D199: 1 | E199: =E198+N199 -> 145630 | F199: Lt. | G199: =(2*J199)+(2*K199)+L199 -> 23.00168519 | H199: 2.300168519 | I199: =G199 -> 23.00168519 | J199: 3.50021575 | K199: 3.000626844 | L199: 10 | M199: 0.005 | N199: 315 | O199: 19.29261912 | P199: 3038.587512
C200: 16 | D200: 1 | E200: =E199+N200 -> 145945 | F200: Lt. | G200: =(2*J200)+(2*K200)+L200 -> 23.00168519 | H200: 2.300168519 | I200: =G200 -> 23.00168519 | J200: 3.50021575 | K200: 3.000626844 | L200: 10 | M200: 0.00206 | N200: 315 | O200: 19.29261912 | P200: 3038.587512
... 485 more rows

Sheet DE100_19
A1: TabTitle | B1: =C16 -> PERIMETER AND SLOPE SEDIMENT CONTROL DEVICE
A2: Number of Tab Columns | B2: 7
A3: DE Starter Row Number | B3: 24
A4: TabSheet Starter Row Number | B4: 10
A5: TabSheet Header Row Count | B5: 9
A6: Top Header Cell | B6: K15
A7: Bottom Header Cell | B7: Q23
A8: DESheet Row Count | B8: 0
A9: Fixed Empty Rows | B9: 2
A10: Usable Empty Rows | B10: 0
A11: Total Rows Placed | B11: 0 | C11: xlRight(1) | D11: xlRight(1) | E11: xlLeft(1) | F11: xlRight(1) | G11: xlRight(1) | H11: xlRight(1) | I11: xlLeft(1) | K11: =C11 -> xlRight(1) | L11: xlRight(1) | M11: xlLeft(1) | N11: xlRight(1) | O11: xlRight(1) | P11: xlRight(1) | Q11: xlLeft(1)
A12: Total Rows Needed | B12: =SUM(B8:B10) -> 2 | C12: #+00.00 | D12: #+00.00 | E12: General | F12: 0.0 | G12: 0.0 | H12: 0.0 | I12: General | K12: #+00.00 | L12: #+00.00 | M12: General | N12: 0.0 | O12: 0.0 | P12: 0.0 | Q12: General
A13: Last Tab DE Starter Row | B13: 0 | C13: =CELL("width",C13) -> 17 | D13: 17 | E13: 6 | F13: 14 | G13: 14 | H13: 14 | I13: 71 | K13: =CELL("width",K13) -> 0 | L13: =CELL("width",L13) -> 0 | M13: =CELL("width",M13) -> 0 | N13: =CELL("width",N13) -> 0 | O13: 0 | P13: 0 | Q13: =CELL("width",Q13) -> 0
A14: Last Tab Tabsheet Starter Row | B14: 0 | C14: A | D14: B | E14: C | F14: D | G14: E | H14: F | I14: G | K14: =LOWER(C14) -> a | L14: =LOWER(D14) -> b | M14: =LOWER(E14) -> c | N14: =LOWER(F14) -> d | O14: e | P14: f | Q14: g
A15: Last Copy Starter Row | B15: 0 | E15: Totals: | F15: =SUBTOTAL(9,F24:F6000) -> 0 | G15: =SUBTOTAL(9,G24:G6000) -> 0 | H15: =SUBTOTAL(9,H24:H6000) -> 0 | K15: 100-19
A16: Tab Loop Number | B16: 1 | C16: PERIMETER AND SLOPE SEDIMENT CONTROL DEVICE | K16: =B17 -> 2016-04-19
A17: Revision Date | B17: 2016-04-19 | K17: =C16 -> PERIMETER AND SLOPE SEDIMENT CONTROL DEVICE
A18: Tabulation Width | B18: 2 | C18: Possible Standards: EC-204
A19: Horizontal Grid Lines | B19: Yes | C19: ="This Data Entry Sheet fills Tab "&K15&" effective "&TEXT(B17,"mm-dd-yy") -> This Data Entry Sheet fills Tab 100-19 effective 04-19-16 | K19: =C18 -> Possible Standards: EC-204
C20: Location | F20: Length of Installation | I20: Remarks | K20: =C20 -> Location | N20: =F20 -> Length of Installation | Q20: =I20 -> Remarks
C21: Begin Station | D21: End Station | E21: Side | F21: 9 inch Dia | G21: 12 inch Dia | H21: 20 inch Dia | K21: =C21 -> Begin Station | L21: =D21 -> End Station | M21: =E21 -> Side | N21: =F21 -> 9 inch Dia | O21: 12 inch Dia | P21: 20 inch Dia
F23: LF | G23: LF | H23: LF | N23: =F23 -> LF | O23: =G23 -> LF | P23: =H23 -> LF

Sheet DE100_24
A1: TabTitle | B1: =C16 -> PCC PAVEMENT
A2: Number of Tab Columns | B2: 21
A3: DE Starter Row Number | B3: 55
A4: TabSheet Starter Row Number | B4: 41
A5: TabSheet Header Row Count | B5: 40
A6: Top Header Cell | B6: Y15
A7: Bottom Header Cell | B7: AS54
A8: DESheet Row Count | B8: 11
A9: Fixed Empty Rows | B9: 2
A10: Usable Empty Rows | B10: 0
A11: Total Rows Placed | B11: 0 | C11: xlLeft(1) | D11: xlLeft(1) | E11: xlRight(1) | F11: xlRight(1) | G11: xlRight(1) | H11: xlRight(1) | I11: xlRight(1) | J11: xlRight(1) | K11: xlRight(1) | L11: xlRight(1) | M11: xlRight(1) | N11: xlRight(1) | O11: xlRight(1) | P11: xlRight(1) | Q11: xlRight(1) | R11: xlRight(1) | S11: xlRight(1) | T11: xlRight(1) | U11: xlRight(1) | V11: xlRight(1) | W11: xlLeft(1) | Y11: =C11 -> xlLeft(1) | Z11: xlLeft(1) | AA11: xlRight(1) | AB11: xlRight(1) | AC11: xlRight(1) | AD11: xlRight(1) | AE11: xlRight(1) | AF11: xlRight(1) | AG11: xlRight(1) | AH11: xlRight(1) | AI11: xlRight(1) | AJ11: xlRight(1) | AK11: xlRight(1) | AL11: xlRight(1) | AM11: xlRight(1) | AN11: xlRight(1) | AO11: =S11 -> xlRight(1) | AP11: xlRight(1) | AQ11: xlRight(1) | AR11: xlRight(1) | AS11: xlLeft(1)
A12: Total Rows Needed | B12: =SUM(B8:B10) -> 13 | C12: General | D12: General | E12: #+00.00 | F12: #+00.00 | G12: 0.0 | H12: 0.0 | I12: 0.0 | J12: 0.0 | K12: 0.0 | L12: 0.0 | M12: 0.0 | N12: 0.0 | O12: 0.0 | P12: 0.0 | Q12: 0.0 | R12: 0.0 | S12: 0.0 | T12: 0.0 | U12: 0.0 | V12: 0.0 | W12: General | Y12: General | Z12: General | AA12: #+00.00 | AB12: #+00.00 | AC12: 0.0 | AD12: 0.0 | AE12: 0.0 | AF12: 0.0 | AG12: 0.0 | AH12: 0.0 | AI12: 0.0 | AJ12: 0.0 | AK12: 0.0 | AL12: 0.0 | AM12: 0.0 | AN12: 0.0 | AO12: 0.0 | AP12: 0.0 | AQ12: 0.0 | AR12: 0.0 | AS12: General
A13: Last Tab DE Starter Row | B13: 0 | C13: =CELL("width",C13) -> 34 | D13: 11 | E13: 16 | F13: 16 | G13: 9 | H13: 9 | I13: 9 | J13: 10 | K13: 10 | L13: 10 | M13: 10 | N13: 10 | O13: 10 | P13: 10 | Q13: 10 | R13: 10 | S13: 10 | T13: 10 | U13: 10 | V13: 10 | W13: 76 | Y13: =CELL("width",Y13) -> 0 | Z13: 0 | AA13: 0 | AB13: 0 | AC13: 0 | AD13: 0 | AE13: 0 | AF13: 0 | AG13: 0 | AH13: 0 | AI13: 0 | AJ13: 0 | AK13: 0 | AL13: 0 | AM13: 0 | AN13: 0 | AO13: 0 | AP13: 0 | AQ13: 0 | AR13: 0 | AS13: 0
A14: Last Tab TabSheet Starter Row | B14: 0 | C14: A | D14: B | E14: C | F14: D | G14: E | H14: F | I14: G | J14: H | K14: I | L14: J | M14: K | N14: L | O14: M | P14: N | Q14: O | R14: P | S14: Q | T14: R | U14: S | V14: T | W14: U | Y14: =LOWER(C14) -> a | Z14: b | AA14: c | AB14: d | AC14: e | AD14: f | AE14: g | AF14: h | AG14: i | AH14: j | AI14: k | AJ14: l | AK14: m | AL14: n | AM14: o | AN14: p | AO14: q | AP14: r | AQ14: s | AR14: t | AS14: u
A15: Last Copy Starter Row | B15: 0 | R15: =SUBTOTAL(9,R55:R6000) -> 186778.1688 | S15: =SUBTOTAL(9,S55:S6000) -> 0 | U15: =SUBTOTAL(9,U54:U6000) -> 0 | V15: =SUBTOTAL(9,V54:V6000) -> 0 | Y15: 100-24
A16: Tab Loop Number | B16: 1 | C16: PCC PAVEMENT | Y16: =B17 -> 2015-04-21
A17: Revision Date | B17: 2015-04-21 | Y17: =C16 -> PCC PAVEMENT
A18: Tabulation Width | B18: 4 | C18: ="This Data Entry Sheet fills Tab "&Y15&" effective "&TEXT(B17,"mm-dd-yy") -> This Data Entry Sheet fills Tab 100-24 effective 04-21-15
A19: Horizontal Grid Lines | B19: Yes
W38: Does not include raised island area or curb. Refer to tabulation 112-4 for quantities. | AS38: =W38 -> Does not include raised island area or curb. Refer to tabulation 112-4 for quantities.
W41: Refer to PV-410, PV-411, PV-412, and PV-414. | AS41: =W41 -> Refer to PV-410, PV-411, PV-412, and PV-414.
W43: Quantity includes Pavement Header. | AS43: =W43 -> Quantity includes Pavement Header.
C49: Location | G49: Mainline | J49: Area | R49: Total Area By Pavement Thickness | T49: Special Backfill | U49: Modified Subbase | V49: Granular Subbase | W49: Remarks | Y49: =C49 -> Location | AC49: =G49 -> Mainline | AF49: =J49 -> Area | AN49: =R49 -> Total Area By Pavement Thickness | AP49: =T49 -> Special Backfill | AQ49: =U49 -> Modified Subbase | AR49: =V49 -> Granular Subbase | AS49: =W49 -> Remarks
C50: Road Identification | D50: Direction of Travel | E50: Station to Station | G50: Width | H50: Length | I50: Area | Y50: =C50 -> Road Identification | Z50: =D50 -> Direction of Travel | AA50: =E50 -> Station to Station | AC50: =G50 -> Width | AD50: =H50 -> Length | AE50: =I50 -> Area
R53: SY | AN53: =R53 -> SY
G54: FT | H54: FT | I54: SY | J54: SY | K54: SY | L54: SY | M54: SY | N54: SY | O54: SY | P54: SY | Q54: SY | R54: 10 IN | S54: 10½ IN | T54: TONS | U54: CY | V54: SY | AC54: =G54 -> FT | AD54: FT | AE54: SY | AF54: SY | AG54: SY | AH54: SY | AI54: SY | AJ54: SY | AK54: SY | AL54: SY | AM54: SY | AN54: =R54 -> 10 IN | AO54: =S54 -> 10½ IN | AP54: =T54 -> TONS | AQ54: =U54 -> CY | AR54: =V54 -> SY
E55: 128300 | F55: 137302.4 | G55: 26 | H55: =IF(AND($E55<>"",$F55<>""),$F55-$E55,"") -> 9002.4 | I55: =IF(AND($G55<>"",$H55<>""),$G55*$H55/9,"") -> 26006.93333 | R55: =SUM(I55:Q55) -> 26006.93333
E56: 137549.65 | F56: 156825 | G56: 26 | H56: 19275.35 | I56: 55684.34444 | R56: =SUM(I56:Q56) -> 55684.34444
C57: Prairie Chapel Rd | N57: 1249.9914 | R57: 1249.9914
C58: Austin Rd | N58: 1448.454444 | R58: 1448.454444
C59: Indian Bridge Rd | N59: 1272.7924 | R59: 1272.7924
C60: Turner Rd | N60: 885.7407 | R60: 885.7407
C61: Burnett Station Rd | E61: 6147200 | F61: 6147779.24 | G61: 24 | H61: 579.24 | I61: 1544.64 | J61: 348.6451778 | K61: 369.0572444 | N61: 1307.0342 | R61: 3569.376622
C62: Scotland Rd | N62: 1237.191322 | R62: 1237.191322
C63: Round Grove Rd | N63: 2034.259722 | R63: 2034.259722
R65: =SUM(R55:R64) -> 93389.08439
H119: =IF(AND($E119<>"",$F119<>""),$F119-$E119,"") ->  | I119: =IF(AND($G119<>"",$H119<>""),$G119*$H119/9,"") -> 
H183: =IF(AND($E183<>"",$F183<>""),$F183-$E183,"") ->  | I183: =IF(AND($G183<>"",$H183<>""),$G183*$H183/9,"") -> 
H247: =IF(AND($E247<>"",$F247<>""),$F247-$E247,"") ->  | I247: =IF(AND($G247<>"",$H247<>""),$G247*$H247/9,"") -> 
H311: =IF(AND($E311<>"",$F311<>""),$F311-$E311,"") ->  | I311: =IF(AND($G311<>"",$H311<>""),$G311*$H311/9,"") -> 
H375: =IF(AND($E375<>"",$F375<>""),$F375-$E375,"") ->  | I375: =IF(AND($G375<>"",$H375<>""),$G375*$H375/9,"") -> 
H439: =IF(AND($E439<>"",$F439<>""),$F439-$E439,"") ->  | I439: =IF(AND($G439<>"",$H439<>""),$G439*$H439/9,"") -> 
H503: =IF(AND($E503<>"",$F503<>""),$F503-$E503,"") ->  | I503: =IF(AND($G503<>"",$H503<>""),$G503*$H503/9,"") -> 
H567: =IF(AND($E567<>"",$F567<>""),$F567-$E567,"") ->  | I567: =IF(AND($G567<>"",$H567<>""),$G567*$H567/9,"") -> 
H631: =IF(AND($E631<>"",$F631<>""),$F631-$E631,"") ->  | I631: =IF(AND($G631<>"",$H631<>""),$G631*$H631/9,"") -> 
H695: =IF(AND($E695<>"",$F695<>""),$F695-$E695,"") ->  | I695: =IF(AND($G695<>"",$H695<>""),$G695*$H695/9,"") -> 
H759: =IF(AND($E759<>"",$F759<>""),$F759-$E759,"") ->  | I759: =IF(AND($G759<>"",$H759<>""),$G759*$H759/9,"") -> 
H823: =IF(AND($E823<>"",$F823<>""),$F823-$E823,"") ->  | I823: =IF(AND($G823<>"",$H823<>""),$G823*$H823/9,"") -> 
H887: =IF(AND($E887<>"",$F887<>""),$F887-$E887,"") ->  | I887: =IF(AND($G887<>"",$H887<>""),$G887*$H887/9,"") -> 
H951: =IF(AND($E951<>"",$F951<>""),$F951-$E951,"") ->  | I951: =IF(AND($G951<>"",$H951<>""),$G951*$H951/9,"") -> 
H1015: =IF(AND($E1015<>"",$F1015<>""),$F1015-$E1015,"") ->  | I1015: =IF(AND($G1015<>"",$H1015<>""),$G1015*$H1015/9,"") -> 
H1079: =IF(AND($E1079<>"",$F1079<>""),$F1079-$E1079,"") ->  | I1079: =IF(AND($G1079<>"",$H1079<>""),$G1079*$H1079/9,"") -> 
H1143: =IF(AND($E1143<>"",$F1143<>""),$F1143-$E1143,"") ->  | I1143: =IF(AND($G1143<>"",$H1143<>""),$G1143*$H1143/9,"") -> 
H1207: =IF(AND($E1207<>"",$F1207<>""),$F1207-$E1207,"") ->  | I1207: =IF(AND($G1207<>"",$H1207<>""),$G1207*$H1207/9,"") -> 
H1271: =IF(AND($E1271<>"",$F1271<>""),$F1271-$E1271,"") ->  | I1271: =IF(AND($G1271<>"",$H1271<>""),$G1271*$H1271/9,"") -> 
H1335: =IF(AND($E1335<>"",$F1335<>""),$F1335-$E1335,"") ->  | I1335: =IF(AND($G1335<>"",$H1335<>""),$G1335*$H1335/9,"") -> 
H1399: =IF(AND($E1399<>"",$F1399<>""),$F1399-$E1399,"") ->  | I1399: =IF(AND($G1399<>"",$H1399<>""),$G1399*$H1399/9,"") -> 
H1463: =IF(AND($E1463<>"",$F1463<>""),$F1463-$E1463,"") ->  | I1463: =IF(AND($G1463<>"",$H1463<>""),$G1463*$H1463/9,"") -> 
H1527: =IF(AND($E1527<>"",$F1527<>""),$F1527-$E1527,"") ->  | I1527: =IF(AND($G1527<>"",$H1527<>""),$G1527*$H1527/9,"") -> 
H1591: =IF(AND($E1591<>"",$F1591<>""),$F1591-$E1591,"") ->  | I1591: =IF(AND($G1591<>"",$H1591<>""),$G1591*$H1591/9,"") -> 
H1655: =IF(AND($E1655<>"",$F1655<>""),$F1655-$E1655,"") ->  | I1655: =IF(AND($G1655<>"",$H1655<>""),$G1655*$H1655/9,"") -> 
H1719: =IF(AND($E1719<>"",$F1719<>""),$F1719-$E1719,"") ->  | I1719: =IF(AND($G1719<>"",$H1719<>""),$G1719*$H1719/9,"") -> 
H1783: =IF(AND($E1783<>"",$F1783<>""),$F1783-$E1783,"") ->  | I1783: =IF(AND($G1783<>"",$H1783<>""),$G1783*$H1783/9,"") -> 
H1847: =IF(AND($E1847<>"",$F1847<>""),$F1847-$E1847,"") ->  | I1847: =IF(AND($G1847<>"",$H1847<>""),$G1847*$H1847/9,"") -> 
H1911: =IF(AND($E1911<>"",$F1911<>""),$F1911-$E1911,"") ->  | I1911: =IF(AND($G1911<>"",$H1911<>""),$G1911*$H1911/9,"") -> 
H1975: =IF(AND($E1975<>"",$F1975<>""),$F1975-$E1975,"") ->  | I1975: =IF(AND($G1975<>"",$H1975<>""),$G1975*$H1975/9,"") -> 
H2039: =IF(AND($E2039<>"",$F2039<>""),$F2039-$E2039,"") ->  | I2039: =IF(AND($G2039<>"",$H2039<>""),$G2039*$H2039/9,"") -> 
H2103: =IF(AND($E2103<>"",$F2103<>""),$F2103-$E2103,"") ->  | I2103: =IF(AND($G2103<>"",$H2103<>""),$G2103*$H2103/9,"") -> 
H2167: =IF(AND($E2167<>"",$F2167<>""),$F2167-$E2167,"") ->  | I2167: =IF(AND($G2167<>"",$H2167<>""),$G2167*$H2167/9,"") -> 
H2231: =IF(AND($E2231<>"",$F2231<>""),$F2231-$E2231,"") ->  | I2231: =IF(AND($G2231<>"",$H2231<>""),$G2231*$H2231/9,"") -> 
H2295: =IF(AND($E2295<>"",$F2295<>""),$F2295-$E2295,"") ->  | I2295: =IF(AND($G2295<>"",$H2295<>""),$G2295*$H2295/9,"") -> 
H2359: =IF(AND($E2359<>"",$F2359<>""),$F2359-$E2359,"") ->  | I2359: =IF(AND($G2359<>"",$H2359<>""),$G2359*$H2359/9,"") -> 
H2423: =IF(AND($E2423<>"",$F2423<>""),$F2423-$E2423,"") ->  | I2423: =IF(AND($G2423<>"",$H2423<>""),$G2423*$H2423/9,"") -> 
H2487: =IF(AND($E2487<>"",$F2487<>""),$F2487-$E2487,"") ->  | I2487: =IF(AND($G2487<>"",$H2487<>""),$G2487*$H2487/9,"") -> 
H2551: =IF(AND($E2551<>"",$F2551<>""),$F2551-$E2551,"") ->  | I2551: =IF(AND($G2551<>"",$H2551<>""),$G2551*$H2551/9,"") -> 
H2615: =IF(AND($E2615<>"",$F2615<>""),$F2615-$E2615,"") ->  | I2615: =IF(AND($G2615<>"",$H2615<>""),$G2615*$H2615/9,"") -> 
H2679: =IF(AND($E2679<>"",$F2679<>""),$F2679-$E2679,"") ->  | I2679: =IF(AND($G2679<>"",$H2679<>""),$G2679*$H2679/9,"") -> 
H2743: =IF(AND($E2743<>"",$F2743<>""),$F2743-$E2743,"") ->  | I2743: =IF(AND($G2743<>"",$H2743<>""),$G2743*$H2743/9,"") -> 
H2807: =IF(AND($E2807<>"",$F2807<>""),$F2807-$E2807,"") ->  | I2807: =IF(AND($G2807<>"",$H2807<>""),$G2807*$H2807/9,"") -> 
H2871: =IF(AND($E2871<>"",$F2871<>""),$F2871-$E2871,"") ->  | I2871: =IF(AND($G2871<>"",$H2871<>""),$G2871*$H2871/9,"") -> 
H2935: =IF(AND($E2935<>"",$F2935<>""),$F2935-$E2935,"") ->  | I2935: =IF(AND($G2935<>"",$H2935<>""),$G2935*$H2935/9,"") -> 
H2999: =IF(AND($E2999<>"",$F2999<>""),$F2999-$E2999,"") ->  | I2999: =IF(AND($G2999<>"",$H2999<>""),$G2999*$H2999/9,"") -> 
H3063: =IF(AND($E3063<>"",$F3063<>""),$F3063-$E3063,"") ->  | I3063: =IF(AND($G3063<>"",$H3063<>""),$G3063*$H3063/9,"") -> 
H3127: =IF(AND($E3127<>"",$F3127<>""),$F3127-$E3127,"") ->  | I3127: =IF(AND($G3127<>"",$H3127<>""),$G3127*$H3127/9,"") -> 
H3191: =IF(AND($E3191<>"",$F3191<>""),$F3191-$E3191,"") ->  | I3191: =IF(AND($G3191<>"",$H3191<>""),$G3191*$H3191/9,"") -> 
H3255: =IF(AND($E3255<>"",$F3255<>""),$F3255-$E3255,"") ->  | I3255: =IF(AND($G3255<>"",$H3255<>""),$G3255*$H3255/9,"") -> 
H3319: =IF(AND($E3319<>"",$F3319<>""),$F3319-$E3319,"") ->  | I3319: =IF(AND($G3319<>"",$H3319<>""),$G3319*$H3319/9,"") -> 
H3383: =IF(AND($E3383<>"",$F3383<>""),$F3383-$E3383,"") ->  | I3383: =IF(AND($G3383<>"",$H3383<>""),$G3383*$H3383/9,"") -> 
H3447: =IF(AND($E3447<>"",$F3447<>""),$F3447-$E3447,"") ->  | I3447: =IF(AND($G3447<>"",$H3447<>""),$G3447*$H3447/9,"") -> 
H3511: =IF(AND($E3511<>"",$F3511<>""),$F3511-$E3511,"") ->  | I3511: =IF(AND($G3511<>"",$H3511<>""),$G3511*$H3511/9,"") -> 
H3575: =IF(AND($E3575<>"",$F3575<>""),$F3575-$E3575,"") ->  | I3575: =IF(AND($G3575<>"",$H3575<>""),$G3575*$H3575/9,"") -> 
H3639: =IF(AND($E3639<>"",$F3639<>""),$F3639-$E3639,"") ->  | I3639: =IF(AND($G3639<>"",$H3639<>""),$G3639*$H3639/9,"") -> 
H3703: =IF(AND($E3703<>"",$F3703<>""),$F3703-$E3703,"") ->  | I3703: =IF(AND($G3703<>"",$H3703<>""),$G3703*$H3703/9,"") -> 
H3767: =IF(AND($E3767<>"",$F3767<>""),$F3767-$E3767,"") ->  | I3767: =IF(AND($G3767<>"",$H3767<>""),$G3767*$H3767/9,"") -> 
H3831: =IF(AND($E3831<>"",$F3831<>""),$F3831-$E3831,"") ->  | I3831: =IF(AND($G3831<>"",$H3831<>""),$G3831*$H3831/9,"") -> 
H3895: =IF(AND($E3895<>"",$F3895<>""),$F3895-$E3895,"") ->  | I3895: =IF(AND($G3895<>"",$H3895<>""),$G3895*$H3895/9,"") -> 
H3959: =IF(AND($E3959<>"",$F3959<>""),$F3959-$E3959,"") ->  | I3959: =IF(AND($G3959<>"",$H3959<>""),$G3959*$H3959/9,"") -> 
H4023: =IF(AND($E4023<>"",$F4023<>""),$F4023-$E4023,"") ->  | I4023: =IF(AND($G4023<>"",$H4023<>""),$G4023*$H4023/9,"") -> 
H4087: =IF(AND($E4087<>"",$F4087<>""),$F4087-$E4087,"") ->  | I4087: =IF(AND($G4087<>"",$H4087<>""),$G4087*$H4087/9,"") -> 
H4151: =IF(AND($E4151<>"",$F4151<>""),$F4151-$E4151,"") ->  | I4151: =IF(AND($G4151<>"",$H4151<>""),$G4151*$H4151/9,"") -> 
H4215: =IF(AND($E4215<>"",$F4215<>""),$F4215-$E4215,"") ->  | I4215: =IF(AND($G4215<>"",$H4215<>""),$G4215*$H4215/9,"") -> 
H4279: =IF(AND($E4279<>"",$F4279<>""),$F4279-$E4279,"") ->  | I4279: =IF(AND($G4279<>"",$H4279<>""),$G4279*$H4279/9,"") -> 
H4343: =IF(AND($E4343<>"",$F4343<>""),$F4343-$E4343,"") ->  | I4343: =IF(AND($G4343<>"",$H4343<>""),$G4343*$H4343/9,"") -> 
H4407: =IF(AND($E4407<>"",$F4407<>""),$F4407-$E4407,"") ->  | I4407: =IF(AND($G4407<>"",$H4407<>""),$G4407*$H4407/9,"") -> 
H4471: =IF(AND($E4471<>"",$F4471<>""),$F4471-$E4471,"") ->  | I4471: =IF(AND($G4471<>"",$H4471<>""),$G4471*$H4471/9,"") -> 
H4535: =IF(AND($E4535<>"",$F4535<>""),$F4535-$E4535,"") ->  | I4535: =IF(AND($G4535<>"",$H4535<>""),$G4535*$H4535/9,"") -> 
H4599: =IF(AND($E4599<>"",$F4599<>""),$F4599-$E4599,"") ->  | I4599: =IF(AND($G4599<>"",$H4599<>""),$G4599*$H4599/9,"") -> 
H4663: =IF(AND($E4663<>"",$F4663<>""),$F4663-$E4663,"") ->  | I4663: =IF(AND($G4663<>"",$H4663<>""),$G4663*$H4663/9,"") -> 
H4727: =IF(AND($E4727<>"",$F4727<>""),$F4727-$E4727,"") ->  | I4727: =IF(AND($G4727<>"",$H4727<>""),$G4727*$H4727/9,"") -> 
H4791: =IF(AND($E4791<>"",$F4791<>""),$F4791-$E4791,"") ->  | I4791: =IF(AND($G4791<>"",$H4791<>""),$G4791*$H4791/9,"") -> 
H4855: =IF(AND($E4855<>"",$F4855<>""),$F4855-$E4855,"") ->  | I4855: =IF(AND($G4855<>"",$H4855<>""),$G4855*$H4855/9,"") -> 
H4919: =IF(AND($E4919<>"",$F4919<>""),$F4919-$E4919,"") ->  | I4919: =IF(AND($G4919<>"",$H4919<>""),$G4919*$H4919/9,"") -> 
H4983: =IF(AND($E4983<>"",$F4983<>""),$F4983-$E4983,"") ->  | I4983: =IF(AND($G4983<>"",$H4983<>""),$G4983*$H4983/9,"") -> 
H5047: =IF(AND($E5047<>"",$F5047<>""),$F5047-$E5047,"") ->  | I5047: =IF(AND($G5047<>"",$H5047<>""),$G5047*$H5047/9,"") -> 
H5111: =IF(AND($E5111<>"",$F5111<>""),$F5111-$E5111,"") ->  | I5111: =IF(AND($G5111<>"",$H5111<>""),$G5111*$H5111/9,"") -> 
H5175: =IF(AND($E5175<>"",$F5175<>""),$F5175-$E5175,"") ->  | I5175: =IF(AND($G5175<>"",$H5175<>""),$G5175*$H5175/9,"") -> 
H5239: =IF(AND($E5239<>"",$F5239<>""),$F5239-$E5239,"") ->  | I5239: =IF(AND($G5239<>"",$H5239<>""),$G5239*$H5239/9,"") -> 
H5303: =IF(AND($E5303<>"",$F5303<>""),$F5303-$E5303,"") ->  | I5303: =IF(AND($G5303<>"",$H5303<>""),$G5303*$H5303/9,"") -> 
H5367: =IF(AND($E5367<>"",$F5367<>""),$F5367-$E5367,"") ->  | I5367: =IF(AND($G5367<>"",$H5367<>""),$G5367*$H5367/9,"") -> 
H5431: =IF(AND($E5431<>"",$F5431<>""),$F5431-$E5431,"") ->  | I5431: =IF(AND($G5431<>"",$H5431<>""),$G5431*$H5431/9,"") -> 
H5495: =IF(AND($E5495<>"",$F5495<>""),$F5495-$E5495,"") ->  | I5495: =IF(AND($G5495<>"",$H5495<>""),$G5495*$H5495/9,"") -> 
H5559: =IF(AND($E5559<>"",$F5559<>""),$F5559-$E5559,"") ->  | I5559: =IF(AND($G5559<>"",$H5559<>""),$G5559*$H5559/9,"") -> 
H5623: =IF(AND($E5623<>"",$F5623<>""),$F5623-$E5623,"") ->  | I5623: =IF(AND($G5623<>"",$H5623<>""),$G5623*$H5623/9,"") -> 
H5687: =IF(AND($E5687<>"",$F5687<>""),$F5687-$E5687,"") ->  | I5687: =IF(AND($G5687<>"",$H5687<>""),$G5687*$H5687/9,"") -> 
H5751: =IF(AND($E5751<>"",$F5751<>""),$F5751-$E5751,"") ->  | I5751: =IF(AND($G5751<>"",$H5751<>""),$G5751*$H5751/9,"") -> 
H5815: =IF(AND($E5815<>"",$F5815<>""),$F5815-$E5815,"") ->  | I5815: =IF(AND($G5815<>"",$H5815<>""),$G5815*$H5815/9,"") -> 
H5879: =IF(AND($E5879<>"",$F5879<>""),$F5879-$E5879,"") ->  | I5879: =IF(AND($G5879<>"",$H5879<>""),$G5879*$H5879/9,"") -> 
H5943: =IF(AND($E5943<>"",$F5943<>""),$F5943-$E5943,"") ->  | I5943: =IF(AND($G5943<>"",$H5943<>""),$G5943*$H5943/9,"") -> 

Sheet DE100_26
A1: TabTitle | B1: =C15 -> INCIDENTAL ITEMS
A2: Number of Tab Columns | B2: 7
A3: DE Starter Row Number | B3: 22
A4: TabSheet Starter Row Number | B4: 10
A5: TabSheet Header Row Count | B5: 9
A6: Top Header Cell | B6: K15
A7: Bottom Header Cell | B7: Q23
A8: DESheet Row Count | B8: 0
A9: Fixed Empty Rows | B9: 2
A10: Usable Empty Rows | B10: 0
A11: Total Rows Placed | B11: 0 | C11: xlRight(1) | D11: xlLeft(1) | E11: xlLeft(1) | F11: xlRight(1) | G11: xlCenter | H11: xlLeft(1) | I11: xlLeft(1) | K11: =C11 -> xlRight(1) | L11: xlLeft(1) | M11: xlLeft(1) | N11: xlRight(1) | O11: xlCenter | P11: xlLeft(1) | Q11: xlLeft(1)
A12: Total Rows Needed | B12: =SUM(B8:B10) -> 2 | C12: General | D12: General | E12: General | F12: General | G12: General | H12: General | I12: General | K12: General | L12: General | M12: General | N12: General | O12: General | P12: General | Q12: General
A13: Last Tab DE Starter Row | B13: 0 | C13: =CELL("width",C13) -> 6 | D13: 49 | E13: 10 | F13: 10 | G13: 18 | H13: 49 | I13: 12 | K13: =CELL("width",K13) -> 0 | L13: 0 | M13: 0 | N13: 0 | O13: 0 | P13: 0 | Q13: 0
A14: Last Tab Tabsheet Starter Row | B14: 0 | C14: A | D14: B | E14: C | F14: D | G14: E | H14: F | I14: G | K14: =LOWER(C14) -> a | L14: b | M14: c | N14: d | O14: e | P14: f | Q14: g
A15: Last Copy Starter Row | B15: 0 | C15: INCIDENTAL ITEMS | K15: 100-26
A16: Tab Loop Number | B16: 1 | K16: =B17 -> 2013-10-15
A17: Revision Date | B17: 2013-10-15 | C17: Special or unique items where method of measurement / basis of payment is not indicated in the specifications or other contract documents. | K17: =C15 -> INCIDENTAL ITEMS
A18: Tabulation Width | B18: 2
A19: Horizontal Grid Lines | B19: Yes | C19: ="This Data Entry Sheet fills Tab "&K15&" effective "&TEXT(B17,"mm-dd-yy") -> This Data Entry Sheet fills Tab 100-26 effective 10-15-13 | K19: =C17 -> Special or unique items where method of measurement / basis of payment is not indicated in the specifications or other contract documents.
C20: No. | D20: Incidental Item | E20: Unit | F20: Quantity | G20: Incidental To | I20: Remarks
G21: Item Code | H21: Item
K22: =C20 -> No. | L22: =D20 -> Incidental Item | M22: =E20 -> Unit | N22: =F20 -> Quantity | O22: =G20 -> Incidental To | Q22: =I20 -> Remarks
O23: =G21 -> Item Code | P23: =H21 -> Item

Sheet DE100_27
A1: TabTitle | B1: =C15 -> PAVEMENT SMOOTHNESS + PCC TEXTURE
A2: Number of Tab Columns | B2: 7
A3: DE Starter Row Number | B3: 21
A4: TabSheet Starter Row Number | B4: 8
A5: TabSheet Header Row Count | B5: 7
A6: Top Header Cell | B6: K15
A7: Bottom Header Cell | B7: Q21
A8: DESheet Row Count | B8: 0
A9: Fixed Empty Rows | B9: 2
A10: Usable Empty Rows | B10: 0
A11: Total Rows Placed | B11: 0 | C11: xlLeft(1) | D11: xlRight(1) | E11: xlRight(1) | F11: xlLeft(1) | G11: xlLeft(1) | H11: xlLeft(1) | I11: xlLeft(1) | K11: =C11 -> xlLeft(1) | L11: xlRight(1) | M11: xlRight(1) | N11: xlLeft(1) | O11: xlLeft(1) | P11: xlLeft(1) | Q11: xlLeft(1)
A12: Total Rows Needed | B12: =SUM(B8:B10) -> 2 | C12: General | D12: #+00.00 | E12: #+00.00 | F12: General | G12: General | H12: General | I12: General | K12: General | L12: #+00.00 | M12: #+00.00 | N12: General | O12: General | P12: General | Q12: General
A13: Last Tab DE Starter Row | B13: 0 | C13: =CELL("width",C13) -> 30 | D13: 16 | E13: 16 | F13: 14 | G13: 14 | H13: 14 | I13: 50 | K13: =CELL("width",K13) -> 0 | L13: 0 | M13: 0 | N13: 0 | O13: 0 | P13: 0 | Q13: 0
A14: Last Tab Tabsheet Starter Row | B14: 0 | C14: A | D14: B | E14: C | F14: D | G14: E | H14: F | I14: G | K14: =LOWER(C14) -> a | L14: b | M14: c | N14: d | O14: e | P14: f | Q14: g
A15: Last Copy Starter Row | B15: 0 | C15: PAVEMENT SMOOTHNESS + PCC TEXTURE | K15: 100-27
A16: Tab Loop Number | B16: 1 | K16: =B17 -> 2009-10-20
A17: Revision Date | B17: 2009-10-20 | C17: ="This Data Entry Sheet fills Tab "&K15&" effective "&TEXT(B17,"mm-dd-yy") -> This Data Entry Sheet fills Tab 100-27 effective 10-20-09 | K17: =C15 -> PAVEMENT SMOOTHNESS + PCC TEXTURE
A18: Tabulation Width | B18: 2 | C18: Road Identification | D18: Begin Station | E18: End Station | F18: Proposed Posted Speed | I18: Remarks
A19: Horizontal Grid Lines | B19: Yes | K19: =C18 -> Road Identification | L19: =D18 -> Begin Station | M19: =E18 -> End Station | N19: =F18 -> Proposed Posted Speed | Q19: =I18 -> Remarks
F20: 35 or less | G20: 40 - 45 | H20: over 45
N21: =F20 -> 35 or less | O21: =G20 -> 40 - 45 | P21: =H20 -> over 45

Sheet DE100_28
A1: TabTitle | B1: =C16 -> LONGITUDINAL GROOVING
A2: Number of Tab Columns | B2: 3 | O2: Possible Contract Items
A3: DE Starter Row Number | B3: 22 | N3: 2412-0000100 | O3: LONGITUDINAL GROOVING IN CONCRETE | P3: =G15 -> 0
A4: TabSheet Starter Row Number | B4: 8
A5: TabSheet Header Row Count | B5: 7
A6: Top Header Cell | B6: J15
A7: Bottom Header Cell | B7: L21
A8: DESheet Row Count | B8: 0
A9: Fixed Empty Rows | B9: 2
A10: Usable Empty Rows | B10: 0
A11: Total Rows Placed | B11: 0 | C11: xlRight(1) | G11: xlRight(1) | H11: xlLeft(1) | J11: =C11 -> xlRight(1) | K11: =G11 -> xlRight(1) | L11: =H11 -> xlLeft(1)
A12: Total Rows Needed | B12: =SUM(B8:B10) -> 2 | C12: #+00.00 | G12: 0.0 | H12: General | J12: =C12 -> #+00.00 | K12: =G12 -> 0.0 | L12: =H12 -> General
A13: Last Tab DE Starter Row | B13: 0 | C13: =CELL("width",C13) -> 16 | G13: =CELL("width",G13) -> 12 | H13: =CELL("width",H13) -> 47 | J13: =CELL("width",J13) -> 0 | K13: =CELL("width",K13) -> 0 | L13: =CELL("width",L13) -> 0
A14: Last Tab Tabsheet Starter Row | B14: 0 | C14: A | G14: B | H14: C | J14: =LOWER(C14) -> a | K14: =LOWER(G14) -> b | L14: =LOWER(H14) -> c
A15: Last Copy Starter Row | B15: 0 | F15: Totals: | G15: =SUBTOTAL(9,G22:G6000) -> 0 | J15: 100-28
A16: Tab Loop Number | B16: 1 | C16: LONGITUDINAL GROOVING | J16: =B17 -> 2010-10-19
A17: Revision Date | B17: 2010-10-19 | J17: =C16 -> LONGITUDINAL GROOVING
A18: Tabulation Width | B18: 1 | C18: ="This Data Entry Sheet fills Tab "&J15&" effective "&TEXT(B17,"mm-dd-yy") -> This Data Entry Sheet fills Tab 100-28 effective 10-19-10
A19: Horizontal Grid Lines | B19: Yes | C19: Location | D19: Length | E19: Width | F19: Area | G19: Total | H19: Remarks | J19: =C19 -> Location | K19: =G19 -> Total | L19: =H19 -> Remarks
D21: FT | E21: FT | F21: SF | G21: SY | K21: =G21 -> SY
F22: =IF(D22<>"",D22*E22,"") ->  | G22: =IF(F22<>"",F22/9,"") -> 
F86: =IF(D86<>"",D86*E86,"") ->  | G86: =IF(F86<>"",F86/9,"") -> 
F150: =IF(D150<>"",D150*E150,"") ->  | G150: =IF(F150<>"",F150/9,"") -> 
F214: =IF(D214<>"",D214*E214,"") ->  | G214: =IF(F214<>"",F214/9,"") -> 
F278: =IF(D278<>"",D278*E278,"") ->  | G278: =IF(F278<>"",F278/9,"") -> 
F342: =IF(D342<>"",D342*E342,"") ->  | G342: =IF(F342<>"",F342/9,"") -> 
F406: =IF(D406<>"",D406*E406,"") ->  | G406: =IF(F406<>"",F406/9,"") -> 
F470: =IF(D470<>"",D470*E470,"") ->  | G470: =IF(F470<>"",F470/9,"") -> 
F534: =IF(D534<>"",D534*E534,"") ->  | G534: =IF(F534<>"",F534/9,"") -> 
F598: =IF(D598<>"",D598*E598,"") ->  | G598: =IF(F598<>"",F598/9,"") -> 
F662: =IF(D662<>"",D662*E662,"") ->  | G662: =IF(F662<>"",F662/9,"") -> 
F726: =IF(D726<>"",D726*E726,"") ->  | G726: =IF(F726<>"",F726/9,"") -> 
F790: =IF(D790<>"",D790*E790,"") ->  | G790: =IF(F790<>"",F790/9,"") -> 
F854: =IF(D854<>"",D854*E854,"") ->  | G854: =IF(F854<>"",F854/9,"") -> 
F918: =IF(D918<>"",D918*E918,"") ->  | G918: =IF(F918<>"",F918/9,"") -> 
F982: =IF(D982<>"",D982*E982,"") ->  | G982: =IF(F982<>"",F982/9,"") -> 
F1046: =IF(D1046<>"",D1046*E1046,"") ->  | G1046: =IF(F1046<>"",F1046/9,"") -> 
F1110: =IF(D1110<>"",D1110*E1110,"") ->  | G1110: =IF(F1110<>"",F1110/9,"") -> 
F1174: =IF(D1174<>"",D1174*E1174,"") ->  | G1174: =IF(F1174<>"",F1174/9,"") -> 
F1238: =IF(D1238<>"",D1238*E1238,"") ->  | G1238: =IF(F1238<>"",F1238/9,"") -> 
F1302: =IF(D1302<>"",D1302*E1302,"") ->  | G1302: =IF(F1302<>"",F1302/9,"") -> 
F1366: =IF(D1366<>"",D1366*E1366,"") ->  | G1366: =IF(F1366<>"",F1366/9,"") -> 
F1430: =IF(D1430<>"",D1430*E1430,"") ->  | G1430: =IF(F1430<>"",F1430/9,"") -> 
F1494: =IF(D1494<>"",D1494*E1494,"") ->  | G1494: =IF(F1494<>"",F1494/9,"") -> 
F1558: =IF(D1558<>"",D1558*E1558,"") ->  | G1558: =IF(F1558<>"",F1558/9,"") -> 
F1622: =IF(D1622<>"",D1622*E1622,"") ->  | G1622: =IF(F1622<>"",F1622/9,"") -> 
F1686: =IF(D1686<>"",D1686*E1686,"") ->  | G1686: =IF(F1686<>"",F1686/9,"") -> 
F1750: =IF(D1750<>"",D1750*E1750,"") ->  | G1750: =IF(F1750<>"",F1750/9,"") -> 
F1814: =IF(D1814<>"",D1814*E1814,"") ->  | G1814: =IF(F1814<>"",F1814/9,"") -> 
F1878: =IF(D1878<>"",D1878*E1878,"") ->  | G1878: =IF(F1878<>"",F1878/9,"") -> 
F1942: =IF(D1942<>"",D1942*E1942,"") ->  | G1942: =IF(F1942<>"",F1942/9,"") -> 
F2006: =IF(D2006<>"",D2006*E2006,"") ->  | G2006: =IF(F2006<>"",F2006/9,"") -> 
F2070: =IF(D2070<>"",D2070*E2070,"") ->  | G2070: =IF(F2070<>"",F2070/9,"") -> 
F2134: =IF(D2134<>"",D2134*E2134,"") ->  | G2134: =IF(F2134<>"",F2134/9,"") -> 
F2198: =IF(D2198<>"",D2198*E2198,"") ->  | G2198: =IF(F2198<>"",F2198/9,"") -> 
F2262: =IF(D2262<>"",D2262*E2262,"") ->  | G2262: =IF(F2262<>"",F2262/9,"") -> 
F2326: =IF(D2326<>"",D2326*E2326,"") ->  | G2326: =IF(F2326<>"",F2326/9,"") -> 
F2390: =IF(D2390<>"",D2390*E2390,"") ->  | G2390: =IF(F2390<>"",F2390/9,"") -> 
F2454: =IF(D2454<>"",D2454*E2454,"") ->  | G2454: =IF(F2454<>"",F2454/9,"") -> 
F2518: =IF(D2518<>"",D2518*E2518,"") ->  | G2518: =IF(F2518<>"",F2518/9,"") -> 
F2582: =IF(D2582<>"",D2582*E2582,"") ->  | G2582: =IF(F2582<>"",F2582/9,"") -> 
F2646: =IF(D2646<>"",D2646*E2646,"") ->  | G2646: =IF(F2646<>"",F2646/9,"") -> 
F2710: =IF(D2710<>"",D2710*E2710,"") ->  | G2710: =IF(F2710<>"",F2710/9,"") -> 
F2774: =IF(D2774<>"",D2774*E2774,"") ->  | G2774: =IF(F2774<>"",F2774/9,"") -> 
F2838: =IF(D2838<>"",D2838*E2838,"") ->  | G2838: =IF(F2838<>"",F2838/9,"") -> 
F2902: =IF(D2902<>"",D2902*E2902,"") ->  | G2902: =IF(F2902<>"",F2902/9,"") -> 
F2966: =IF(D2966<>"",D2966*E2966,"") ->  | G2966: =IF(F2966<>"",F2966/9,"") -> 
F3030: =IF(D3030<>"",D3030*E3030,"") ->  | G3030: =IF(F3030<>"",F3030/9,"") -> 
F3094: =IF(D3094<>"",D3094*E3094,"") ->  | G3094: =IF(F3094<>"",F3094/9,"") -> 
F3158: =IF(D3158<>"",D3158*E3158,"") ->  | G3158: =IF(F3158<>"",F3158/9,"") -> 
F3222: =IF(D3222<>"",D3222*E3222,"") ->  | G3222: =IF(F3222<>"",F3222/9,"") -> 
F3286: =IF(D3286<>"",D3286*E3286,"") ->  | G3286: =IF(F3286<>"",F3286/9,"") -> 
F3350: =IF(D3350<>"",D3350*E3350,"") ->  | G3350: =IF(F3350<>"",F3350/9,"") -> 
F3414: =IF(D3414<>"",D3414*E3414,"") ->  | G3414: =IF(F3414<>"",F3414/9,"") -> 
F3478: =IF(D3478<>"",D3478*E3478,"") ->  | G3478: =IF(F3478<>"",F3478/9,"") -> 
F3542: =IF(D3542<>"",D3542*E3542,"") ->  | G3542: =IF(F3542<>"",F3542/9,"") -> 
F3606: =IF(D3606<>"",D3606*E3606,"") ->  | G3606: =IF(F3606<>"",F3606/9,"") -> 
F3670: =IF(D3670<>"",D3670*E3670,"") ->  | G3670: =IF(F3670<>"",F3670/9,"") -> 
F3734: =IF(D3734<>"",D3734*E3734,"") ->  | G3734: =IF(F3734<>"",F3734/9,"") -> 
F3798: =IF(D3798<>"",D3798*E3798,"") ->  | G3798: =IF(F3798<>"",F3798/9,"") -> 
F3862: =IF(D3862<>"",D3862*E3862,"") ->  | G3862: =IF(F3862<>"",F3862/9,"") -> 
F3926: =IF(D3926<>"",D3926*E3926,"") ->  | G3926: =IF(F3926<>"",F3926/9,"") -> 
F3990: =IF(D3990<>"",D3990*E3990,"") ->  | G3990: =IF(F3990<>"",F3990/9,"") -> 
F4054: =IF(D4054<>"",D4054*E4054,"") ->  | G4054: =IF(F4054<>"",F4054/9,"") -> 
F4118: =IF(D4118<>"",D4118*E4118,"") ->  | G4118: =IF(F4118<>"",F4118/9,"") -> 
F4182: =IF(D4182<>"",D4182*E4182,"") ->  | G4182: =IF(F4182<>"",F4182/9,"") -> 
F4246: =IF(D4246<>"",D4246*E4246,"") ->  | G4246: =IF(F4246<>"",F4246/9,"") -> 
F4310: =IF(D4310<>"",D4310*E4310,"") ->  | G4310: =IF(F4310<>"",F4310/9,"") -> 
F4374: =IF(D4374<>"",D4374*E4374,"") ->  | G4374: =IF(F4374<>"",F4374/9,"") -> 
F4438: =IF(D4438<>"",D4438*E4438,"") ->  | G4438: =IF(F4438<>"",F4438/9,"") -> 
F4502: =IF(D4502<>"",D4502*E4502,"") ->  | G4502: =IF(F4502<>"",F4502/9,"") -> 
F4566: =IF(D4566<>"",D4566*E4566,"") ->  | G4566: =IF(F4566<>"",F4566/9,"") -> 
F4630: =IF(D4630<>"",D4630*E4630,"") ->  | G4630: =IF(F4630<>"",F4630/9,"") -> 
F4694: =IF(D4694<>"",D4694*E4694,"") ->  | G4694: =IF(F4694<>"",F4694/9,"") -> 
F4758: =IF(D4758<>"",D4758*E4758,"") ->  | G4758: =IF(F4758<>"",F4758/9,"") -> 
F4822: =IF(D4822<>"",D4822*E4822,"") ->  | G4822: =IF(F4822<>"",F4822/9,"") -> 
F4886: =IF(D4886<>"",D4886*E4886,"") ->  | G4886: =IF(F4886<>"",F4886/9,"") -> 
F4950: =IF(D4950<>"",D4950*E4950,"") ->  | G4950: =IF(F4950<>"",F4950/9,"") -> 
F5014: =IF(D5014<>"",D5014*E5014,"") ->  | G5014: =IF(F5014<>"",F5014/9,"") -> 
F5078: =IF(D5078<>"",D5078*E5078,"") ->  | G5078: =IF(F5078<>"",F5078/9,"") -> 
F5142: =IF(D5142<>"",D5142*E5142,"") ->  | G5142: =IF(F5142<>"",F5142/9,"") -> 
F5206: =IF(D5206<>"",D5206*E5206,"") ->  | G5206: =IF(F5206<>"",F5206/9,"") -> 
F5270: =IF(D5270<>"",D5270*E5270,"") ->  | G5270: =IF(F5270<>"",F5270/9,"") -> 
F5334: =IF(D5334<>"",D5334*E5334,"") ->  | G5334: =IF(F5334<>"",F5334/9,"") -> 
F5398: =IF(D5398<>"",D5398*E5398,"") ->  | G5398: =IF(F5398<>"",F5398/9,"") -> 
F5462: =IF(D5462<>"",D5462*E5462,"") ->  | G5462: =IF(F5462<>"",F5462/9,"") -> 
F5526: =IF(D5526<>"",D5526*E5526,"") ->  | G5526: =IF(F5526<>"",F5526/9,"") -> 
F5590: =IF(D5590<>"",D5590*E5590,"") ->  | G5590: =IF(F5590<>"",F5590/9,"") -> 
F5654: =IF(D5654<>"",D5654*E5654,"") ->  | G5654: =IF(F5654<>"",F5654/9,"") -> 
F5718: =IF(D5718<>"",D5718*E5718,"") ->  | G5718: =IF(F5718<>"",F5718/9,"") -> 
F5782: =IF(D5782<>"",D5782*E5782,"") ->  | G5782: =IF(F5782<>"",F5782/9,"") -> 
F5846: =IF(D5846<>"",D5846*E5846,"") ->  | G5846: =IF(F5846<>"",F5846/9,"") -> 
F5910: =IF(D5910<>"",D5910*E5910,"") ->  | G5910: =IF(F5910<>"",F5910/9,"") -> 
F5974: =IF(D5974<>"",D5974*E5974,"") ->  | G5974: =IF(F5974<>"",F5974/9,"") -> 

Sheet DE100_34
A1: TabTitle | B1: =C16 -> STORMWATER DRAINAGE BASIN
A2: Number of Tab Columns | B2: 9
A3: DE Starter Row Number | B3: 24
A4: TabSheet Starter Row Number | B4: 10
A5: TabSheet Header Row Count | B5: 9
A6: Top Header Cell | B6: M15
A7: Bottom Header Cell | B7: U23
A8: DESheet Row Count | B8: 23
A9: Fixed Empty Rows | B9: 2
A10: Usable Empty Rows | B10: 0
A11: Total Rows Placed | B11: 25 | C11: xlRight(1) | D11: xlRight(1) | E11: xlRight(1) | F11: xlRight(1) | G11: xlRight(1) | H11: xlRight(1) | I11: xlRight(1) | J11: xlRight(1) | K11: xlLeft(1) | M11: =C11 -> xlRight(1) | N11: =D11 -> xlRight(1) | O11: =E11 -> xlRight(1) | P11: =F11 -> xlRight(1) | Q11: =G11 -> xlRight(1) | R11: xlRight(1) | S11: xlRight(1) | T11: xlRight(1) | U11: xlLeft(1)
A12: Total Rows Needed | B12: =SUM(B8:B10) -> 25 | C12: General | D12: #+00.00 | E12: #+00.00 | F12: General | G12: 0.0 | H12: #+00.00 | I12: General | J12: 0.0 | K12: General | M12: General | N12: =D12 -> #+00.00 | O12: =E12 -> #+00.00 | P12: =F12 -> General | Q12: 0.0 | R12: #+00.00 | S12: General | T12: 0.0 | U12: General
A13: Last Tab DE Starter Row | B13: 24 | C13: =CELL("width",C13) -> 6 | D13: 16 | E13: 16 | F13: 8 | G13: 12 | H13: 16 | I13: 16 | J13: 16 | K13: 48 | M13: =CELL("width",M13) -> 0 | N13: 0 | O13: 0 | P13: 0 | Q13: 0 | R13: 0 | S13: 0 | T13: 0 | U13: 0
A14: Last Tab Tabsheet Starter Row | B14: 10 | C14: A | D14: B | E14: C | F14: D | G14: E | H14: F | I14: G | J14: H | K14: I | M14: =LOWER(C14) -> a | N14: =LOWER(D14) -> b | O14: =LOWER(E14) -> c | P14: =LOWER(F14) -> d | Q14: =LOWER(G14) -> e | R14: f | S14: g | T14: h | U14: i
A15: Last Copy Starter Row | B15: 1 | C15: Totals: | G15: =SUBTOTAL(9,G24:G6001) -> 102.0889 | J15: =SUBTOTAL(9,J24:J6001) -> 367520.04 | M15: 100-34
A16: Tab Loop Number | B16: 2 | C16: STORMWATER DRAINAGE BASIN | M16: =B17 -> 2016-04-19
A17: Revision Date | B17: 2016-04-19 | M17: =C16 -> STORMWATER DRAINAGE BASIN
A18: Tabulation Width | B18: 2
A19: Horizontal Grid Lines | B19: Yes
C20: ="This Data Entry Sheet fills Tab "&M15&" effective "&TEXT(B17,"mm-dd-yy") -> This Data Entry Sheet fills Tab 100-34 effective 04-19-16
C21: Basin No. | D21: Station to Station | F21: Side | G21: Disturbed Area | H21: Discharge Point | J21: Required Storage Volume | K21: Remarks | M21: =C21 -> Basin No. | N21: =D21 -> Station to Station | P21: =F21 -> Side | Q21: =G21 -> Disturbed Area | R21: =H21 -> Discharge Point | T21: =J21 -> Required Storage Volume | U21: =K21 -> Remarks
H22: Station | I22: Side | R22: =H22 -> Station | S22: =I22 -> Side
G23: Acres | J23: CF | Q23: =G23 -> Acres | T23: =J23 -> CF
C24: 1 | D24: 128300 | E24: 129086 | F24: Lt,Med | G24: 2.71 | H24: 128300 | I24: Lt. | J24: =IF(G24<>"",(G24*3600),"") -> 9756
C25: =C24+1 -> 2 | D25: 129086 | E25: 131280 | F25: Lt,Med | G25: 6.56 | H25: 130300 | I25: Lt. | J25: =IF(G25<>"",(G25*3600),"") -> 23616
C26: =C25+1 -> 3 | D26: 130692 | E26: 131745 | F26: Lt,Med | G26: 2.72 | H26: 131700 | I26: Lt. | J26: 9792
C27: 4 | D27: 131745 | E27: 131800 | F27: Lt. | G27: 0.45 | H27: 131775 | I27: Lt. | J27: 1620
C28: 5 | D28: 131745 | E28: 133202.85 | F28: Lt,Med | G28: 5.57 | H28: 132125 | I28: Lt. | J28: 20052
C29: 6 | D29: 133200 | E29: 136102.75 | F29: Lt,Med | G29: 10.06 | H29: 135325 | I29: Lt. | J29: 36216
C30: 7 | D30: 136102.75 | E30: 137110.8 | F30: Lt,Med | G30: 3.787 | H30: 136998.08 | I30: Med. | J30: 13633.2
C31: 8 | D31: 137060 | E31: 137112.7 | F31: Lt. | G31: 0.3869 | H31: 137100 | I31: Lt. | J31: 1392.84
C32: 9 | D32: 137112.7 | E32: 137165 | F32: Lt. | G32: 0.35 | H32: 137150 | I32: Lt. | J32: 1260
C33: 10 | D33: 137110.8 | E33: 141379.3 | F33: Lt,Med | G33: 14.29 | H33: 137400 | I33: Lt. | J33: 51444
C34: 11 | D34: 140825 | E34: 142430.75 | F34: Lt,Med | G34: 4.99 | H34: 141400 | I34: Lt. | J34: 17964
C35: 12 | D35: 142379.5 | E35: 142481.75 | F35: Lt. | G35: 0.879 | H35: 142400 | I35: Lt. | J35: 3164.4
C36: 13 | D36: 142430.75 | E36: 143770.4 | F36: Lt,Med | G36: 3.47 | H36: 142545.93 | I36: Med. | J36: 12492
C37: 14 | D37: 143400 | E37: 144800 | F37: Lt. | G37: 2.1 | H37: 143700 | I37: Lt. | J37: 7560
C38: 15 | D38: 143770.4 | E38: 145095.6 | F38: Lt,Med | G38: 2.64 | H38: 145067.75 | I38: Lt. | J38: 9504
C39: 16 | D39: 145095.6 | E39: 147776.3 | F39: Lt,Med | G39: 8.98 | H39: 146650 | I39: Med. | J39: 32328
C40: 17 | D40: 147776.3 | E40: 149200 | F40: Lt,Med | G40: 5.02 | H40: 147800 | I40: Lt. | J40: 18072
C41: 18 | D41: 149200 | E41: 151743 | F41: Lt,Med | G41: 7.89 | H41: 150700 | I41: Med. | J41: 28404
C42: 19 | D42: 151743 | E42: 153091.25 | F42: Lt,Med | G42: 4.44 | H42: 152993.63 | I42: Med. | J42: 15984
C43: 20 | D43: 153050 | E43: 153150 | F43: Lt. | G43: 0.916 | H43: 153075 | I43: Lt. | J43: 3297.6
C44: 21 | D44: 153091.25 | E44: 155500 | F44: Lt,Med | G44: 8.96 | H44: 154307.27 | I44: Lt. | J44: 32256
C45: 22 | D45: 155500 | E45: 156100 | F45: Lt. | G45: 1.65 | H45: 155966.81 | I45: Lt. | J45: 5940
C46: 23 | D46: 155500 | E46: 156825 | F46: Lt,Med | G46: 3.27 | H46: 156825 | I46: Lt. | J46: 11772
J89: =IF(G89<>"",(G89*3600),"") -> 
J153: =IF(G153<>"",(G153*3600),"") -> 
J217: =IF(G217<>"",(G217*3600),"") -> 
J281: =IF(G281<>"",(G281*3600),"") -> 
J345: =IF(G345<>"",(G345*3600),"") -> 
J409: =IF(G409<>"",(G409*3600),"") -> 
J473: =IF(G473<>"",(G473*3600),"") -> 
J537: =IF(G537<>"",(G537*3600),"") -> 
J601: =IF(G601<>"",(G601*3600),"") -> 
J665: =IF(G665<>"",(G665*3600),"") -> 
J729: =IF(G729<>"",(G729*3600),"") -> 
J793: =IF(G793<>"",(G793*3600),"") -> 
J857: =IF(G857<>"",(G857*3600),"") -> 
J921: =IF(G921<>"",(G921*3600),"") -> 
J985: =IF(G985<>"",(G985*3600),"") -> 
J1049: =IF(G1049<>"",(G1049*3600),"") -> 
J1113: =IF(G1113<>"",(G1113*3600),"") -> 
J1177: =IF(G1177<>"",(G1177*3600),"") -> 
J1241: =IF(G1241<>"",(G1241*3600),"") -> 
J1305: =IF(G1305<>"",(G1305*3600),"") -> 
J1369: =IF(G1369<>"",(G1369*3600),"") -> 
J1433: =IF(G1433<>"",(G1433*3600),"") -> 
J1497: =IF(G1497<>"",(G1497*3600),"") -> 
J1561: =IF(G1561<>"",(G1561*3600),"") -> 
J1625: =IF(G1625<>"",(G1625*3600),"") -> 
J1689: =IF(G1689<>"",(G1689*3600),"") -> 
J1753: =IF(G1753<>"",(G1753*3600),"") -> 
J1817: =IF(G1817<>"",(G1817*3600),"") -> 
J1881: =IF(G1881<>"",(G1881*3600),"") -> 
J1945: =IF(G1945<>"",(G1945*3600),"") -> 
J2009: =IF(G2009<>"",(G2009*3600),"") -> 
J2073: =IF(G2073<>"",(G2073*3600),"") -> 
J2137: =IF(G2137<>"",(G2137*3600),"") -> 
J2201: =IF(G2201<>"",(G2201*3600),"") -> 
J2265: =IF(G2265<>"",(G2265*3600),"") -> 
J2329: =IF(G2329<>"",(G2329*3600),"") -> 
J2393: =IF(G2393<>"",(G2393*3600),"") -> 
J2457: =IF(G2457<>"",(G2457*3600),"") -> 
J2521: =IF(G2521<>"",(G2521*3600),"") -> 
J2585: =IF(G2585<>"",(G2585*3600),"") -> 
J2649: =IF(G2649<>"",(G2649*3600),"") -> 
J2713: =IF(G2713<>"",(G2713*3600),"") -> 
J2777: =IF(G2777<>"",(G2777*3600),"") -> 
J2841: =IF(G2841<>"",(G2841*3600),"") -> 
J2905: =IF(G2905<>"",(G2905*3600),"") -> 
J2969: =IF(G2969<>"",(G2969*3600),"") -> 
J3033: =IF(G3033<>"",(G3033*3600),"") -> 
J3097: =IF(G3097<>"",(G3097*3600),"") -> 
J3161: =IF(G3161<>"",(G3161*3600),"") -> 
J3225: =IF(G3225<>"",(G3225*3600),"") -> 
J3289: =IF(G3289<>"",(G3289*3600),"") -> 
J3353: =IF(G3353<>"",(G3353*3600),"") -> 
J3417: =IF(G3417<>"",(G3417*3600),"") -> 
J3481: =IF(G3481<>"",(G3481*3600),"") -> 
J3545: =IF(G3545<>"",(G3545*3600),"") -> 
J3609: =IF(G3609<>"",(G3609*3600),"") -> 
J3673: =IF(G3673<>"",(G3673*3600),"") -> 
J3737: =IF(G3737<>"",(G3737*3600),"") -> 
J3801: =IF(G3801<>"",(G3801*3600),"") -> 
J3865: =IF(G3865<>"",(G3865*3600),"") -> 
J3929: =IF(G3929<>"",(G3929*3600),"") -> 
J3993: =IF(G3993<>"",(G3993*3600),"") -> 
J4057: =IF(G4057<>"",(G4057*3600),"") -> 
J4121: =IF(G4121<>"",(G4121*3600),"") -> 
J4185: =IF(G4185<>"",(G4185*3600),"") -> 
J4249: =IF(G4249<>"",(G4249*3600),"") -> 
J4313: =IF(G4313<>"",(G4313*3600),"") -> 
J4377: =IF(G4377<>"",(G4377*3600),"") -> 
J4441: =IF(G4441<>"",(G4441*3600),"") -> 
J4505: =IF(G4505<>"",(G4505*3600),"") -> 
J4569: =IF(G4569<>"",(G4569*3600),"") -> 
J4633: =IF(G4633<>"",(G4633*3600),"") -> 
J4697: =IF(G4697<>"",(G4697*3600),"") -> 
J4761: =IF(G4761<>"",(G4761*3600),"") -> 
J4825: =IF(G4825<>"",(G4825*3600),"") -> 
J4889: =IF(G4889<>"",(G4889*3600),"") -> 
J4953: =IF(G4953<>"",(G4953*3600),"") -> 
J5017: =IF(G5017<>"",(G5017*3600),"") -> 
J5081: =IF(G5081<>"",(G5081*3600),"") -> 
J5145: =IF(G5145<>"",(G5145*3600),"") -> 
J5209: =IF(G5209<>"",(G5209*3600),"") -> 
J5273: =IF(G5273<>"",(G5273*3600),"") -> 
J5337: =IF(G5337<>"",(G5337*3600),"") -> 
J5401: =IF(G5401<>"",(G5401*3600),"") -> 
J5465: =IF(G5465<>"",(G5465*3600),"") -> 
J5529: =IF(G5529<>"",(G5529*3600),"") -> 
J5593: =IF(G5593<>"",(G5593*3600),"") -> 
J5657: =IF(G5657<>"",(G5657*3600),"") -> 
J5721: =IF(G5721<>"",(G5721*3600),"") -> 
J5785: =IF(G5785<>"",(G5785*3600),"") -> 
J5849: =IF(G5849<>"",(G5849*3600),"") -> 
J5913: =IF(G5913<>"",(G5913*3600),"") -> 
J5977: =IF(G5977<>"",(G5977*3600),"") -> 

Sheet DE100_35
A1: TabTitle | B1: =C16 -> SUMMARY OF STORMWATER STORAGE
A2: Number of Tab Columns | B2: 5
A3: DE Starter Row Number | B3: 25
A4: TabSheet Starter Row Number | B4: 11
A5: TabSheet Header Row Count | B5: 10
A6: Top Header Cell | B6: I15
A7: Bottom Header Cell | B7: M24
A8: DESheet Row Count | B8: 114
A9: Fixed Empty Rows | B9: 8
A10: Usable Empty Rows | B10: 0
A11: Total Rows Placed | B11: 122 | C11: xlLeft(1) | D11: xlLeft(1) | E11: xlRight(1) | F11: xlRight(1) | G11: xlLeft(1) | I11: =C11 -> xlLeft(1) | J11: xlLeft(1) | K11: xlRight(1) | L11: xlRight(1) | M11: xlLeft(1)
A12: Total Rows Needed | B12: =SUM(B8:B10) -> 122 | C12: General | D12: General | E12: 0.0 | F12: 0.0 | G12: General | I12: General | J12: General | K12: 0.0 | L12: 0.0 | M12: General
A13: Last Tab DE Starter Row | B13: 105 | C13: =CELL("width",C13) -> 6 | D13: 77 | E13: 20 | F13: 20 | G13: 32 | I13: =CELL("width",I13) -> 0 | J13: 0 | K13: 0 | L13: 0 | M13: 0
A14: Last Tab Tabsheet Starter Row | B14: 101 | C14: A | D14: B | E14: C | F14: D | G14: E | I14: =LOWER(C14) -> a | J14: =LOWER(D14) -> b | K14: =LOWER(E14) -> c | L14: =LOWER(F14) -> d | M14: e
A15: Last Copy Starter Row | B15: 91 | E15: =SUBTOTAL(9,E25:E5950) -> 1273401.17 | F15: =SUBTOTAL(9,F25:F5950) -> 367520.04 | I15: 100-35
A16: Tab Loop Number | B16: 3 | C16: SUMMARY OF STORMWATER STORAGE | I16: =B17 -> 2016-04-19
A17: Revision Date | B17: 2016-04-19 | I17: =C16 -> SUMMARY OF STORMWATER STORAGE
A18: Tabulation Width | B18: 2
A19: Horizontal Grid Lines | B19: Yes | C19: Refer to EC Standards and 570s Details.
C20: ="This Data Entry Sheet fills Tab "&I15&" effective "&TEXT(B17,"mm-dd-yy") -> This Data Entry Sheet fills Tab 100-35 effective 04-19-16
C21: Basin No. | D21: Item | E21: Total Storage Volume Provided | F21: Total Storage Volume Required | G21: Remarks | I21: =C21 -> Basin No. | J21: =D21 -> Item | K21: =E21 -> Total Storage Volume Provided | L21: =F21 -> Total Storage Volume Required | M21: Remarks
E24: CF | F24: CF | K24: =E24 -> CF | L24: =F24 -> CF
C25: 1 | D25: Silt Fence for Ditch Checks | E25: =DE100_18!AM1 -> 14758.85363
D26: Silt Basins | E26: =DE100_14!AM1 -> 1162.5
D28: Totals: | E28: =SUM(E25:E26) -> 15921.35363 | F28: =DE100_34!J24 -> 9756 | G28: OK
C30: 2 | D30: Silt Fence for Ditch Checks | E30: =DE100_18!AM2 -> 34099.7043
D31: Silt Basins | E31: =DE100_14!AM2 -> 5245
D33: Totals: | E33: =SUM(E30:E31) -> 39344.7043 | F33: =DE100_34!J25 -> 23616 | G33: OK
C35: 3 | D35: Silt Fence for Ditch Checks | E35: =DE100_18!AM3 -> 15208.20143
D36: Silt Basins | E36: =DE100_14!AM3 -> 2597.5
D38: Totals: | E38: =SUM(E35:E36) -> 17805.70143 | F38: =DE100_34!J26 -> 9792 | G38: OK
C40: 4 | D40: Silt Fence for Ditch Checks | E40: =DE100_18!AM4 -> 3155.953311
D41: Silt Basins | E41: =DE100_14!AM4 -> 0
D43: Totals: | E43: =SUM(E40:E41) -> 3155.953311 | F43: =DE100_34!J27 -> 1620 | G43: OK
C45: 5 | D45: Silt Fence for Ditch Checks | E45: =DE100_18!AM5 -> 30289.41202
D46: Silt Basins | E46: =DE100_14!AM5 -> 4006.25
D48: Totals: | E48: =SUM(E45:E46) -> 34295.66202 | F48: =DE100_34!J28 -> 20052 | G48: OK
C50: 6 | D50: Silt Fence for Ditch Checks | E50: =DE100_18!AM6 -> 54839.26985
D51: Silt Basins | E51: =DE100_14!AM6 -> 7912.5
D53: Totals: | E53: =SUM(E50:E51) -> 62751.76985 | F53: =DE100_34!J29 -> 36216 | G53: OK
C55: 7 | D55: Silt Fence for Ditch Checks | E55: =DE100_18!AM7 -> 19774.9346
D56: Silt Basins | E56: =DE100_14!AM7 -> 2731.25
D58: Totals: | E58: =SUM(E55:E56) -> 22506.1846 | F58: =DE100_34!J30 -> 13633.2 | G58: OK
C60: 8 | D60: Silt Fence for Ditch Checks | E60: =DE100_18!AM8 -> 3721.19868
D61: Silt Basins | E61: =DE100_14!AM8 -> 1331.25
D63: Totals: | E63: =SUM(E60:E61) -> 5052.44868 | F63: =DE100_34!J31 -> 1392.84 | G63: OK
C65: 9 | D65: Silt Fence for Ditch Checks | E65: =DE100_18!AM9 -> 3674.094899
D66: Silt Basins | E66: =DE100_14!AM9 -> 0
D68: Totals: | E68: =SUM(E65:E66) -> 3674.094899 | F68: =DE100_34!J32 -> 1260 | G68: OK
C70: 10 | D70: Silt Fence for Ditch Checks | E70: =DE100_18!AM10 -> 73022.56337
D71: Silt Basins | E71: =DE100_14!AM10 -> 7655
D73: Totals: | E73: =SUM(E70:E71) -> 80677.56337 | F73: =DE100_34!J33 -> 51444 | G73: OK
C75: 11 | D75: Silt Fence for Ditch Checks | E75: =DE100_18!AM11 -> 24115.7739
D76: Silt Basins | E76: =DE100_14!AM11 -> 3668.75
D78: Totals: | E78: =SUM(E75:E76) -> 27784.5239 | F78: =DE100_34!J34 -> 17964 | G78: OK
C80: 12 | D80: Silt Fence for Ditch Checks | E80: =DE100_18!AM12 -> 1036.283177
D81: Silt Basins | E81: =DE100_14!AM12 -> 0
D83: Totals: | E83: =SUM(E80:E81) -> 1036.283177 | F83: =DE100_34!J35 -> 3164.4 | G83: OK
C85: 13 | D85: Silt Fence for Ditch Checks | E85: =DE100_18!AM13 -> 23826.38461
D86: Silt Basins | E86: =DE100_14!AM13 -> 1362.5
D88: Totals: | E88: =SUM(E85:E86) -> 25188.88461 | F88: =DE100_34!J36 -> 12492 | G88: OK
C90: 14 | D90: Silt Fence for Ditch Checks | E90: =DE100_18!AM14 -> 13408.37029
D91: Silt Basins | E91: =DE100_14!AM14 -> 2712.5
D93: Totals: | E93: =SUM(E90:E91) -> 16120.87029 | F93: =DE100_34!J37 -> 7560 | G93: OK
C95: 15 | D95: Silt Fence for Ditch Checks | E95: =DE100_18!AM15 -> 11206.11073
D96: Silt Basins | E96: =DE100_14!AM15 -> 1362.5
D98: Totals: | E98: =SUM(E95:E96) -> 12568.61073 | F98: =DE100_34!J38 -> 9504 | G98: OK
C100: 16 | D100: Silt Fence for Ditch Checks | E100: =DE100_18!AM16 -> 64166.94621
D101: Silt Basins | E101: =DE100_14!AM16 -> 6750
D103: Totals: | E103: =SUM(E100:E101) -> 70916.94621 | F103: =DE100_34!J39 -> 32328 | G103: OK
C105: 17 | D105: Silt Fence for Ditch Checks | E105: =DE100_18!AM17 -> 33881.44236
D106: Silt Basins | E106: =DE100_14!AM17 -> 2675
D108: Totals: | E108: =SUM(E105:E106) -> 36556.44236 | F108: =DE100_34!J40 -> 18072 | G108: OK
C110: 18 | D110: Silt Fence for Ditch Checks | E110: =DE100_18!AM18 -> 50016.11507
D111: Silt Basins | E111: =DE100_14!AM18 -> 4075
D113: Totals: | E113: =SUM(E110:E111) -> 54091.11507 | F113: =DE100_34!J41 -> 28404 | G113: OK
C115: 19 | D115: Silt Fence for Ditch Checks | E115: =DE100_18!AM19 -> 23633.45842
D116: Silt Basins | E116: =DE100_14!AM19 -> 1037.5
D118: Totals: | E118: =SUM(E115:E116) -> 24670.95842 | F118: =DE100_34!J42 -> 15984 | G118: OK
C120: 20 | D120: Silt Fence for Ditch Checks | E120: =DE100_18!AM20 -> 7442.39736
D121: Silt Basins | E121: =DE100_14!AM20 -> 0
D123: Totals: | E123: =SUM(E120:E121) -> 7442.39736 | F123: =DE100_34!J43 -> 3297.6 | G123: OK
C125: 21 | D125: Silt Fence for Ditch Checks | E125: =DE100_18!AM21 -> 45916.43351
D126: Silt Basins | E126: =DE100_14!AM21 -> 2187.5
D128: Totals: | E128: =SUM(E125:E126) -> 48103.93351 | F128: =DE100_34!J44 -> 32256 | G128: OK
C130: 22 | D130: Silt Fence for Ditch Checks | E130: =DE100_18!AM22 -> 5498.39645
D131: Silt Basins | E131: =DE100_14!AM22 -> 1375
D133: Totals: | E133: =SUM(E130:E131) -> 6873.39645 | F133: =DE100_34!J45 -> 5940 | G133: OK
C135: 23 | D135: Silt Fence for Ditch Checks | E135: =DE100_18!AM23 -> 20160.78698
D136: Silt Basins | E136: =DE100_14!AM23 -> 0
D138: Totals: | E138: =SUM(E135:E136) -> 20160.78698 | F138: =DE100_34!J46 -> 11772 | G138: OK

Sheet DE102_3
A1: TabTitle | B1: =C16 -> ACCESS POINTS AND SAFETY RAMPS
A2: Number of Tab Columns | B2: 19
A3: DE Starter Row Number | B3: 33
A4: TabSheet Starter Row Number | B4: 19
A5: TabSheet Header Row Count | B5: 18
A6: Top Header Cell | B6: Y15
A7: Bottom Header Cell | B7: AQ32
A8: DESheet Row Count | B8: 0
A9: Fixed Empty Rows | B9: 2
A10: Usable Empty Rows | B10: 0
A11: Total Rows Placed | B11: 2 | C11: xlRight(1) | D11: xlLeft(1) | E11: xlLeft(1) | F11: xlLeft(1) | G11: xlRight(1) | H11: xlRight(1) | I11: xlRight(1) | J11: xlRight(1) | K11: xlRight(1) | L11: xlRight(1) | M11: xlRight(1) | N11: xlRight(1) | O11: xlRight(1) | P11: xlRight(1) | Q11: xlRight(1) | S11: xlRight(1) | U11: xlRight(1) | V11: xlRight(1) | W11: xlLeft(1) | Y11: =C11 -> xlRight(1) | Z11: xlLeft(1) | AA11: xlLeft(1) | AB11: xlLeft(1) | AC11: xlRight(1) | AD11: xlRight(1) | AE11: xlRight(1) | AF11: xlRight(1) | AG11: xlRight(1) | AH11: xlRight(1) | AI11: xlRight(1) | AJ11: xlRight(1) | AK11: xlRight(1) | AL11: xlRight(1) | AM11: xlRight(1) | AN11: =S11 -> xlRight(1) | AO11: =U11 -> xlRight(1) | AP11: xlRight(1) | AQ11: xlLeft(1)
A12: Total Rows Needed | B12: =SUM(B8:B10) -> 2 | C12: #+00.00 | D12: General | E12: General | F12: General | G12: 0.0 | H12: 0.0 | I12: 0.0 | J12: 0.0 | K12: 0.0 | L12: 0.0 | M12: 0.0 | N12: 0.0 | O12: 0.0 | P12: 0.0 | Q12: 0 | S12: 0.0 | U12: 0.0 | V12: 0.000 | W12: General | Y12: #+00.00 | Z12: General | AA12: General | AB12: General | AC12: 0.0 | AD12: 0.0 | AE12: 0.0 | AF12: 0.0 | AG12: 0.0 | AH12: 0.0 | AI12: 0.0 | AJ12: 0.0 | AK12: 0.0 | AL12: 0.0 | AM12: 0 | AN12: =S12 -> 0.0 | AO12: 0.0 | AP12: 0.000 | AQ12: General
A13: Last Tab DE Starter Row | B13: 33 | C13: =CELL("width",C13) -> 16 | D13: 6 | E13: 20 | F13: 12 | G13: 12 | H13: 12 | I13: 8 | J13: 8 | K13: 8 | L13: 8 | M13: 10 | N13: 10 | O13: 10 | P13: 10 | Q13: 10 | S13: =CELL("width",S13) -> 10 | U13: =CELL("width",U13) -> 10 | V13: =CELL("width",V13) -> 12 | W13: =CELL("width",W13) -> 34 | Y13: =CELL("width",Y13) -> 0 | Z13: 0 | AA13: 0 | AB13: 0 | AC13: 0 | AD13: 0 | AE13: 0 | AF13: 0 | AG13: 0 | AH13: 0 | AI13: 0 | AJ13: 0 | AK13: 0 | AL13: 0 | AM13: 0 | AN13: 0 | AO13: 0 | AP13: 0 | AQ13: 0
A14: Last Tab Tabsheet Starter Row | B14: 19 | C14: A | D14: B | E14: C | F14: D | G14: E | H14: F | I14: G | J14: H | K14: I | L14: J | M14: K | N14: L | O14: M | P14: N | Q14: O | S14: P | U14: Q | V14: R | W14: S | Y14: =LOWER(C14) -> a | Z14: b | AA14: c | AB14: d | AC14: e | AD14: f | AE14: g | AF14: h | AG14: i | AH14: j | AI14: k | AJ14: l | AK14: m | AL14: n | AM14: o | AN14: =LOWER(S14) -> p | AO14: =LOWER(U14) -> q | AP14: =LOWER(V14) -> r | AQ14: =LOWER(W14) -> s
A15: Last Copy Starter Row | B15: 1 | M15: Totals: | N15: =SUBTOTAL(9,N33:N6000) -> 0 | Q15: =SUBTOTAL(9,Q33:Q6000) -> 0 | S15: =SUBTOTAL(9,S33:S6000) -> 0 | U15: =SUBTOTAL(9,U33:U6000) -> 0 | V15: =SUBTOTAL(9,V33:V6000) -> 0 | Y15: 102-3 | AS15: Pipe Type | AT15: =E26 -> Type
A16: Tab Loop Number | B16: 2 | C16: ACCESS POINTS AND SAFETY RAMPS | Y16: =B17 -> 2013-10-15 | AS16: Reinforced Concrete Pipe. | AT16: A
A17: Revision Date | B17: 2013-10-15 | Y17: =C16 -> ACCESS POINTS AND SAFETY RAMPS | AS17: Corrugated Metal Pipe. | AT17: B
A18: Tabulation Width | B18: 3 | AT18: C
A19: Horizontal Grid Lines | B19: Yes | C19: Refer to Cross-Sections | AT19: Safety Ramp
C20: Length of unclassified pipe calculated is based on using | H20: Reinforced Concrete Pipe. | Y20: =C19 -> Refer to Cross-Sections | AT20: Predetermined
C21: Refer to MI-210 | Y21: =C20&H20 -> Length of unclassified pipe calculated is based on using Reinforced Concrete Pipe.
C22: Refer to EW-501. | Y22: =C21 -> Refer to MI-210
C23: Refer to EW-501 or EW-502. | Y23: =C22 -> Refer to EW-501.
C24: *Predetermined for access point not constructed with this project. | Y24: =C23 -> Refer to EW-501 or EW-502.
C25: ="This Data Entry Sheet fills Tab "&Y15&" effective "&TEXT(B17,"mm-dd-yy") -> This Data Entry Sheet fills Tab 102-3 effective 10-15-13 | Y25: =C24 -> *Predetermined for access point not constructed with this project.
C26: Location | E26: Type | F26: Length of Opening | L26: Pipe Culvert | Q26: Aprons | R26: Driveway Surface Area | V26: Driveway Surfacing Material | W26: Remarks | Y26: =C26 -> Location | AA26: =E26 -> Type | AB26: =F26 -> Length of Opening | AE26: =I26 ->  | AF26: =J26 ->  | AG26: =K26 ->  | AH26: =L26 -> Pipe Culvert | AM26: Aprons | AN26: =R26 -> Driveway Surface Area | AP26: =V26 -> Driveway Surfacing Material | AQ26: =W26 -> Remarks
C28: Station | D28: Side | E28: A, B, C, Safety Ramp, or Predetermined* | F28: Case | G28: 1½" Dropped Curb | H28: 3" Dropped Curb | R28: HMA Sq. Ft. from Microstation | S28: HMA | T28: PCC Sq. Ft. from Microstation | U28: PCC | Y28: =C28 -> Station | Z28: Side | AA28: A, B, C, Safety Ramp, or Predetermined* | AB28: Case | AC28: 1½" Dropped Curb | AD28: 3" Dropped Curb
M29: Size | N29: Pipe Length | O29: Lt. | P29: Rt. | AH29: =L28 -> 0 | AI29: =M29 -> Size | AJ29: =N29 -> Pipe Length | AK29: =O29 -> Lt. | AL29: =P29 -> Rt. | AN29: =S28 -> HMA | AO29: =U28 -> PCC
F32: 1 or 2 | G32: LF | H32: LF | I32: FT | J32: FT | K32: FT | L32: FT | M32: IN | N32: LF | O32: LF | P32: LF | Q32: No. | R32: SF | S32: SY | T32: SF | U32: SY | V32: TON | AB32: =F32 -> 1 or 2 | AC32: LF | AD32: LF | AE32: FT | AF32: FT | AG32: FT | AH32: FT | AI32: IN | AJ32: LF | AK32: LF | AL32: LF | AM32: No. | AN32: =S32 -> SY | AO32: =U32 -> SY | AP32: =V32 -> TON
Q33: =IF(M33<>"",2,"") ->  | S33: =IF(R33<>"",R33/9,"") ->  | U33: =IF(T33<>"",T33/9,"") -> 
Q97: =IF(M97<>"",2,"") ->  | S97: =IF(R97<>"",R97/9,"") ->  | U97: =IF(T97<>"",T97/9,"") -> 
Q161: =IF(M161<>"",2,"") ->  | S161: =IF(R161<>"",R161/9,"") ->  | U161: =IF(T161<>"",T161/9,"") -> 
Q225: =IF(M225<>"",2,"") ->  | S225: =IF(R225<>"",R225/9,"") ->  | U225: =IF(T225<>"",T225/9,"") -> 
Q289: =IF(M289<>"",2,"") ->  | S289: =IF(R289<>"",R289/9,"") ->  | U289: =IF(T289<>"",T289/9,"") -> 
Q353: =IF(M353<>"",2,"") ->  | S353: =IF(R353<>"",R353/9,"") ->  | U353: =IF(T353<>"",T353/9,"") -> 
Q417: =IF(M417<>"",2,"") ->  | S417: =IF(R417<>"",R417/9,"") ->  | U417: =IF(T417<>"",T417/9,"") -> 
Q481: =IF(M481<>"",2,"") ->  | S481: =IF(R481<>"",R481/9,"") ->  | U481: =IF(T481<>"",T481/9,"") -> 
Q545: =IF(M545<>"",2,"") ->  | S545: =IF(R545<>"",R545/9,"") ->  | U545: =IF(T545<>"",T545/9,"") -> 
Q609: =IF(M609<>"",2,"") ->  | S609: =IF(R609<>"",R609/9,"") ->  | U609: =IF(T609<>"",T609/9,"") -> 
Q673: =IF(M673<>"",2,"") ->  | S673: =IF(R673<>"",R673/9,"") ->  | U673: =IF(T673<>"",T673/9,"") -> 
Q737: =IF(M737<>"",2,"") ->  | S737: =IF(R737<>"",R737/9,"") ->  | U737: =IF(T737<>"",T737/9,"") -> 
Q801: =IF(M801<>"",2,"") ->  | S801: =IF(R801<>"",R801/9,"") ->  | U801: =IF(T801<>"",T801/9,"") -> 
Q865: =IF(M865<>"",2,"") ->  | S865: =IF(R865<>"",R865/9,"") ->  | U865: =IF(T865<>"",T865/9,"") -> 
Q929: =IF(M929<>"",2,"") ->  | S929: =IF(R929<>"",R929/9,"") ->  | U929: =IF(T929<>"",T929/9,"") -> 
Q993: =IF(M993<>"",2,"") ->  | S993: =IF(R993<>"",R993/9,"") ->  | U993: =IF(T993<>"",T993/9,"") -> 
Q1057: =IF(M1057<>"",2,"") ->  | S1057: =IF(R1057<>"",R1057/9,"") ->  | U1057: =IF(T1057<>"",T1057/9,"") -> 
Q1121: =IF(M1121<>"",2,"") ->  | S1121: =IF(R1121<>"",R1121/9,"") ->  | U1121: =IF(T1121<>"",T1121/9,"") -> 
Q1185: =IF(M1185<>"",2,"") ->  | S1185: =IF(R1185<>"",R1185/9,"") ->  | U1185: =IF(T1185<>"",T1185/9,"") -> 
Q1249: =IF(M1249<>"",2,"") ->  | S1249: =IF(R1249<>"",R1249/9,"") ->  | U1249: =IF(T1249<>"",T1249/9,"") -> 
Q1313: =IF(M1313<>"",2,"") ->  | S1313: =IF(R1313<>"",R1313/9,"") ->  | U1313: =IF(T1313<>"",T1313/9,"") -> 
Q1377: =IF(M1377<>"",2,"") ->  | S1377: =IF(R1377<>"",R1377/9,"") ->  | U1377: =IF(T1377<>"",T1377/9,"") -> 
Q1441: =IF(M1441<>"",2,"") ->  | S1441: =IF(R1441<>"",R1441/9,"") ->  | U1441: =IF(T1441<>"",T1441/9,"") -> 
Q1505: =IF(M1505<>"",2,"") ->  | S1505: =IF(R1505<>"",R1505/9,"") ->  | U1505: =IF(T1505<>"",T1505/9,"") -> 
Q1569: =IF(M1569<>"",2,"") ->  | S1569: =IF(R1569<>"",R1569/9,"") ->  | U1569: =IF(T1569<>"",T1569/9,"") -> 
Q1633: =IF(M1633<>"",2,"") ->  | S1633: =IF(R1633<>"",R1633/9,"") ->  | U1633: =IF(T1633<>"",T1633/9,"") -> 
Q1697: =IF(M1697<>"",2,"") ->  | S1697: =IF(R1697<>"",R1697/9,"") ->  | U1697: =IF(T1697<>"",T1697/9,"") -> 
Q1761: =IF(M1761<>"",2,"") ->  | S1761: =IF(R1761<>"",R1761/9,"") ->  | U1761: =IF(T1761<>"",T1761/9,"") -> 
Q1825: =IF(M1825<>"",2,"") ->  | S1825: =IF(R1825<>"",R1825/9,"") ->  | U1825: =IF(T1825<>"",T1825/9,"") -> 
Q1889: =IF(M1889<>"",2,"") ->  | S1889: =IF(R1889<>"",R1889/9,"") ->  | U1889: =IF(T1889<>"",T1889/9,"") -> 
Q1953: =IF(M1953<>"",2,"") ->  | S1953: =IF(R1953<>"",R1953/9,"") ->  | U1953: =IF(T1953<>"",T1953/9,"") -> 
... 39 more rows

Sheet DE102_5
A1: TabTitle | B1: =C15 -> EXISTING PAVEMENT
A2: Number of Tab Columns | B2: 22
A3: DE Starter Row Number | B3: 23
A4: TabSheet Starter Row Number | B4: 10
A5: TabSheet Header Row Count | B5: 9
A6: Top Header Cell | B6: Z15
A7: Bottom Header Cell | B7: AU23
A8: DESheet Row Count | B8: 0
A9: Fixed Empty Rows | B9: 2
A10: Usable Empty Rows | B10: 0
A11: Total Rows Placed | B11: 2 | C11: xlRight(1) | D11: xlRight(1) | E11: xlRight(1) | F11: xlRight(1) | G11: xlRight(1) | H11: xlRight(1) | I11: xlRight(1) | J11: xlRight(1) | K11: xlLeft(1) | L11: xlLeft(1) | M11: xlRight(1) | N11: xlLeft(1) | O11: xlRight(1) | P11: xlLeft(1) | Q11: xlRight(1) | R11: xlLeft(1) | S11: xlRight(1) | T11: xlLeft(1) | U11: xlLeft(1) | V11: xlRight(1) | W11: xlRight(1) | X11: xlLeft(1) | Z11: =C11 -> xlRight(1) | AA11: xlRight(1) | AB11: xlRight(1) | AC11: xlRight(1) | AD11: xlRight(1) | AE11: xlRight(1) | AF11: xlRight(1) | AG11: xlRight(1) | AH11: xlLeft(1) | AI11: xlLeft(1) | AJ11: xlRight(1) | AK11: xlLeft(1) | AL11: xlRight(1) | AM11: xlLeft(1) | AN11: xlRight(1) | AO11: xlLeft(1) | AP11: =S11 -> xlRight(1) | AQ11: xlLeft(1) | AR11: xlLeft(1) | AS11: xlRight(1) | AT11: xlRight(1) | AU11: xlLeft(1)
A12: Total Rows Needed | B12: =SUM(B8:B10) -> 2 | C12: General | D12: General | E12: General | F12: General | G12: General | H12: General | I12: General | J12: General | K12: General | L12: General | M12: General | N12: General | O12: General | P12: General | Q12: General | R12: General | S12: General | T12: General | U12: General | V12: General | W12: General | X12: General | Z12: General | AA12: General | AB12: General | AC12: General | AD12: General | AE12: General | AF12: General | AG12: General | AH12: General | AI12: General | AJ12: General | AK12: General | AL12: General | AM12: General | AN12: General | AO12: General | AP12: General | AQ12: General | AR12: General | AS12: General | AT12: General | AU12: General
A13: Last Tab DE Starter Row | B13: 23 | C13: =CELL("width",C13) -> 8 | D13: 10 | E13: 10 | F13: 10 | G13: 11 | H13: 11 | I13: 10 | J13: 9 | K13: 30 | L13: 10 | M13: 10 | N13: 10 | O13: 10 | P13: 10 | Q13: 10 | R13: 10 | S13: 10 | T13: 35 | U13: 12 | V13: 12 | W13: 16 | X13: 44 | Z13: =CELL("width",Z13) -> 0 | AA13: 0 | AB13: 0 | AC13: 0 | AD13: 0 | AE13: 0 | AF13: 0 | AG13: 0 | AH13: 0 | AI13: 0 | AJ13: 0 | AK13: 0 | AL13: 0 | AM13: 0 | AN13: 0 | AO13: 0 | AP13: 0 | AQ13: 0 | AR13: 0 | AS13: 0 | AT13: 0 | AU13: 0
A14: Last Tab Tabsheet Starter Row | B14: 10 | C14: A | D14: B | E14: C | F14: D | G14: E | H14: F | I14: G | J14: H | K14: I | L14: J | M14: K | N14: L | O14: M | P14: N | Q14: O | R14: P | S14: Q | T14: R | U14: S | V14: T | W14: U | X14: V | Z14: =LOWER(C14) -> a | AA14: b | AB14: c | AC14: d | AD14: e | AE14: f | AF14: g | AG14: h | AH14: =LOWER(J14) -> h | AI14: i | AJ14: j | AK14: k | AL14: l | AM14: m | AN14: n | AO14: o | AP14: p | AQ14: q | AR14: r | AS14: s | AT14: t | AU14: u | AV14: =LOWER(Y14) -> 
A15: Last Copy Starter Row | B15: 1 | C15: EXISTING PAVEMENT | Z15: 102-5
A16: Tab Loop Number | B16: 2 | Z16: =B17 -> 2012-10-16
A17: Revision Date | B17: 2012-10-16 | C17: ="This Data Entry Sheet fills Tab "&Z15&" effective "&TEXT(B17,"mm-dd-yy") -> This Data Entry Sheet fills Tab 102-5 effective 10-16-12 | Z17: =C15 -> EXISTING PAVEMENT
A18: Tabulation Width | B18: 4 | C18: No. | D18: Location | I18: Year | J18: Type | K18: Project Number | L18: Surface | N18: Base | P18: Subbase | R18: Removal | T18: Coarse Aggregate | W18: Reinforcement | X18: Remarks
A19: Horizontal Grid Lines | B19: Yes | Z19: =C18 -> No. | AA19: =D18 -> Location | AF19: =I18 -> Year | AG19: =J18 -> Type | AH19: =K18 -> Project Number | AI19: =L18 -> Surface | AK19: =N18 -> Base | AM19: =P18 -> Subbase | AO19: =R18 -> Removal | AQ19: =T18 -> Coarse Aggregate | AT19: =W18 -> Reinforcement | AU19: =X18 -> Remarks
D20: County | E20: Route | F20: Dir. of Travel | G20: Begin Milepost | H20: End Milepost | L20: Type | M20: Depth | N20: Type | O20: Depth | P20: Type | Q20: Depth | R20: Type | S20: Depth | T20: Source | U20: Type | V20: Durability Class | W20: Type
AA21: =D20 -> County | AB21: =E20 -> Route | AC21: =F20 -> Dir. of Travel | AD21: =G20 -> Begin Milepost | AE21: =H20 -> End Milepost | AI21: =L20 -> Type | AJ21: Depth | AK21: Type | AL21: Depth | AM21: Type | AN21: Depth | AO21: Type | AP21: Depth | AQ21: Source | AR21: Type | AS21: Durability Class | AT21: =W20 -> Type
M22: IN | O22: IN | Q22: IN | S22: IN
AJ23: =M22 -> IN | AL23: =O22 -> IN | AN23: =Q22 -> IN | AP23: =S22 -> IN

Sheet DE103_4
A1: TabTitle | B1: =C15 -> TABULATION OF SPREADING TOPSOIL
A2: Number of Tab Columns | B2: 13
A3: DE Starter Row Number | B3: 35
A4: TabSheet Starter Row Number | B4: 21
A5: TabSheet Header Row Count | B5: 20
A6: Top Header Cell | B6: U15
A7: Bottom Header Cell | B7: AG34
A8: DESheet Row Count | B8: 0
A9: Fixed Empty Rows | B9: 2
A10: Usable Empty Rows | B10: 0
A11: Total Rows Placed | B11: 2 | C11: xlRight(1) | H11: xlRight(1) | I11: xlRight(1) | J11: xlRight(1) | K11: xlCenter | L11: xlCenter | M11: xlRight(1) | N11: xlRight(1) | O11: xlCenter | P11: xlRight(1) | Q11: xlRight(1) | R11: xlRight(1) | S11: xlLeft(1) | U11: =C11 -> xlRight(1) | V11: =H11 -> xlRight(1) | W11: xlRight(1) | X11: xlRight(1) | Y11: xlCenter | Z11: xlCenter | AA11: xlRight(1) | AB11: xlRight(1) | AC11: xlCenter | AD11: =P11 -> xlRight(1) | AE11: xlRight(1) | AF11: xlRight(1) | AG11: xlLeft(1)
A12: Total Rows Needed | B12: =SUM(B8:B10) -> 2 | C12: General | H12: 0.0 | I12: #+00.00 | J12: #+00.00 | K12: General | L12: General | M12: 0.0 | N12: General | O12: General | P12: 0.0 | Q12: #+00.00 | R12: #+00.00 | S12: General | U12: =C12 -> General | V12: 0.0 | W12: #+00.00 | X12: #+00.00 | Y12: General | Z12: General | AA12: 0.0 | AB12: General | AC12: General | AD12: 0.0 | AE12: #+00.00 | AF12: #+00.00 | AG12: General
A13: Last Tab DE Starter Row | B13: 35 | C13: =CELL("width",C13) -> 7 | H13: =CELL("width",H13) -> 13 | I13: 16 | J13: 16 | K13: 10 | L13: 10 | M13: 10 | N13: 52 | O13: 3 | P13: 11 | Q13: 16 | R13: 16 | S13: 52 | U13: =CELL("width",U13) -> 0 | V13: 0 | W13: 0 | X13: 0 | Y13: 0 | Z13: 0 | AA13: 0 | AB13: 0 | AC13: 0 | AD13: 0 | AE13: 0 | AF13: 0 | AG13: 0
A14: Last Tab Tabsheet Starter Row | B14: 21 | C14: A | H14: B | I14: C | J14: D | K14: E | L14: F | M14: G | N14: H | O14: I | P14: J | Q14: K | R14: L | S14: M | U14: =LOWER(C14) -> a | V14: =LOWER(H14) -> b | W14: c | X14: d | Y14: e | Z14: f | AA14: g | AB14: h | AC14: i | AD14: j | AE14: k | AF14: l | AG14: m
A15: Last Copy Starter Row | B15: 1 | C15: TABULATION OF SPREADING TOPSOIL | U15: 103-4
A16: Tab Loop Number | B16: 2 | U16: =B17 -> 2011-04-19
A17: Revision Date | B17: 2011-04-19 | C17: ="This Data Entry Sheet fills Tab "&U15&" effective "&TEXT(B17,"mm-dd-yy") -> This Data Entry Sheet fills Tab 103-4 effective 04-19-11 | U17: =C15 -> TABULATION OF SPREADING TOPSOIL
A18: Tabulation Width | B18: 3 | Q18: Perform this work according to Section 2105. Prior to placing topsoil on any cohesive soil, scarify the area to be covered to a minimum depth of 3 inches. Appropriate adjustments have been made in the template quantities to reflect the placement of topsoil on foreslope, backslope and ditch bottom as detailed hereon.
A19: Horizontal Grid Lines | B19: Yes | AE19: =Q18 -> Perform this work according to Section 2105. Prior to placing topsoil on any cohesive soil, scarify the area to be covered to a minimum depth of 3 inches. Appropriate adjustments have been made in the template quantities to reflect the placement of topsoil on foreslope, backslope and ditch bottom as detailed hereon.
G29: Totals: | H29: =SUBTOTAL(9,H35:H6000) -> 0
C30: Placement Description | N30: Remarks | P30: Topsoil Excavation Available From | S30: Remarks | U30: =C30 -> Placement Description | AB30: =N30 -> Remarks | AD30: =P30 -> Topsoil Excavation Available From | AG30: =S30 -> Remarks
C31: Area | D31: Length | E31: Width | F31: Depth | G31: Volume | H31: Quantity | I31: Location | K31: Side | L31: Slope | P31: Amount Reserved | Q31: Station to Station | U31: =C31 -> Area | V31: =H31 -> Quantity | W31: =I31 -> Location | Y31: =K31 -> Side | Z31: =L31 -> Slope | AD31: =P31 -> Amount Reserved | AE31: =Q31 -> Station to Station
C34: No. | D34: FT | E34: FT | F34: FT | G34: CF | H34: CY | I34: Station to Station | K34: L. or R. | L34: B. or F. | M34: IN | P34: CY | U34: =C34 -> No. | V34: =H34 -> CY | W34: =I34 -> Station to Station | Y34: =K34 -> L. or R. | Z34: =L34 -> B. or F. | AA34: =M34 -> IN | AD34: =P34 -> CY
D35: =ABS(ABS(J35-I35)) -> 0 | G35: =D35*E35*F35 -> 0 | H35: =IF(G35<>0,G35/27,"") -> 
D36: 0 | G36: 0
D37: 0 | G37: 0
D38: 0 | G38: 0
D39: 0 | G39: 0
D40: 0 | G40: 0
D41: 0 | G41: 0
D42: 0 | G42: 0
D43: 0 | G43: 0
D44: 0 | G44: 0
D45: 0 | G45: 0
D46: 0 | G46: 0
D47: 0 | G47: 0
D48: 0 | G48: 0
D49: 0 | G49: 0
D50: 0 | G50: 0
D51: 0 | G51: 0
D52: 0 | G52: 0
D53: 0 | G53: 0
D54: 0 | G54: 0
D55: 0 | G55: 0
D56: 0 | G56: 0
D57: 0 | G57: 0
D58: 0 | G58: 0
D59: 0 | G59: 0
D60: 0 | G60: 0
D61: 0 | G61: 0
D62: 0 | G62: 0
D63: 0 | G63: 0
D64: 0 | G64: 0
D65: 0 | G65: 0
D66: 0 | G66: 0
D67: 0 | G67: 0
D68: 0 | G68: 0
D69: 0 | G69: 0
D70: 0 | G70: 0
D71: 0 | G71: 0
D72: 0 | G72: 0
D73: 0 | G73: 0
D74: 0 | G74: 0
D75: 0 | G75: 0
D76: 0 | G76: 0
D77: 0 | G77: 0
D78: 0 | G78: 0
D79: 0 | G79: 0
D80: 0 | G80: 0
D81: 0 | G81: 0
D82: 0 | G82: 0
D83: 0 | G83: 0
D84: 0 | G84: 0
D85: 0 | G85: 0
D86: 0 | G86: 0
D87: 0 | G87: 0
D88: 0 | G88: 0
D89: 0 | G89: 0
D90: 0 | G90: 0
D91: 0 | G91: 0
D92: 0 | G92: 0
D93: 0 | G93: 0
D94: 0 | G94: 0
D95: 0 | G95: 0
D96: 0 | G96: 0
D97: 0 | G97: 0
D98: 0 | G98: 0
D99: =ABS(ABS(J99-I99)) -> 0 | G99: =D99*E99*F99 -> 0 | H99: =IF(G99<>0,G99/27,"") -> 
D100: 0 | G100: 0
D101: 0 | G101: 0
D102: 0 | G102: 0
D103: 0 | G103: 0
D104: 0 | G104: 0
D105: 0 | G105: 0
D106: 0 | G106: 0
D107: 0 | G107: 0
D108: 0 | G108: 0
D109: 0 | G109: 0
D110: 0 | G110: 0
D111: 0 | G111: 0
D112: 0 | G112: 0
D113: 0 | G113: 0
D114: 0 | G114: 0
D115: 0 | G115: 0
D116: 0 | G116: 0
D117: 0 | G117: 0
D118: 0 | G118: 0
D119: 0 | G119: 0
D120: 0 | G120: 0
D121: 0 | G121: 0
D122: 0 | G122: 0
D123: 0 | G123: 0
D124: 0 | G124: 0
D125: 0 | G125: 0
D126: 0 | G126: 0
D127: 0 | G127: 0
D128: 0 | G128: 0
D129: 0 | G129: 0
D130: 0 | G130: 0
D131: 0 | G131: 0
D132: 0 | G132: 0
D133: 0 | G133: 0
D134: 0 | G134: 0
D135: 0 | G135: 0
D136: 0 | G136: 0
D137: 0 | G137: 0
D138: 0 | G138: 0
D139: 0 | G139: 0
D140: 0 | G140: 0
D141: 0 | G141: 0
D142: 0 | G142: 0
D143: 0 | G143: 0
D144: 0 | G144: 0
D145: 0 | G145: 0
D146: 0 | G146: 0
D147: 0 | G147: 0
D148: 0 | G148: 0
D149: 0 | G149: 0
D150: 0 | G150: 0
D151: 0 | G151: 0
D152: 0 | G152: 0
D153: 0 | G153: 0
D154: 0 | G154: 0
D155: 0 | G155: 0
D156: 0 | G156: 0
D157: 0 | G157: 0
D158: 0 | G158: 0
D159: 0 | G159: 0
D160: 0 | G160: 0
D161: 0 | G161: 0
D162: 0 | G162: 0
D163: =ABS(ABS(J163-I163)) -> 0 | G163: =D163*E163*F163 -> 0 | H163: =IF(G163<>0,G163/27,"") -> 
D164: 0 | G164: 0
D165: 0 | G165: 0
D166: 0 | G166: 0
D167: 0 | G167: 0
D168: 0 | G168: 0
D169: 0 | G169: 0
D170: 0 | G170: 0
D171: 0 | G171: 0
D172: 0 | G172: 0
D173: 0 | G173: 0
D174: 0 | G174: 0
D175: 0 | G175: 0
D176: 0 | G176: 0
D177: 0 | G177: 0
D178: 0 | G178: 0
D179: 0 | G179: 0
D180: 0 | G180: 0
D181: 0 | G181: 0
D182: 0 | G182: 0
D183: 0 | G183: 0
D184: 0 | G184: 0
D185: 0 | G185: 0
D186: 0 | G186: 0
D187: 0 | G187: 0
D188: 0 | G188: 0
D189: 0 | G189: 0
D190: 0 | G190: 0
D191: 0 | G191: 0
D192: 0 | G192: 0
D193: 0 | G193: 0
D194: 0 | G194: 0
D195: 0 | G195: 0
D196: 0 | G196: 0
D197: 0 | G197: 0
D198: 0 | G198: 0
D199: 0 | G199: 0
D200: 0 | G200: 0
D201: 0 | G201: 0
D202: 0 | G202: 0
D203: 0 | G203: 0
D204: 0 | G204: 0
D205: 0 | G205: 0
D206: 0 | G206: 0
D207: 0 | G207: 0
D208: 0 | G208: 0
D209: 0 | G209: 0
D210: 0 | G210: 0
D211: 0 | G211: 0
... 5789 more rows

Sheet DE104_3
A1: TabTitle | B1: =C16 -> DRAINAGE STRUCTURE BY ROAD CONTRACTOR
A2: Number of Tab Columns | B2: 41
A3: DE Starter Row Number | B3: 34
A4: TabSheet Starter Row Number | B4: 20
A5: TabSheet Header Row Count | B5: 19
A6: Top Header Cell | B6: AS15
A7: Bottom Header Cell | B7: CG33
A8: DESheet Row Count | B8: 17
A9: Fixed Empty Rows | B9: 2
A10: Usable Empty Rows | B10: 0
A11: Total Rows Placed | B11: 2 | C11: xlRight | D11: xlRight | E11: xlRight | F11: xlRight | G11: xlRight | H11: xlRight | I11: xlRight | J11: xlRight | K11: xlRight | L11: xlRight | M11: xlRight | N11: xlRight | O11: xlRight | P11: xlRight | Q11: xlRight | R11: xlRight | S11: xlRight | T11: xlLeft | U11: xlRight | V11: xlLeft | W11: xlRight | X11: xlRight | Y11: xlRight | Z11: xlRight | AA11: xlRight | AB11: xlRight | AC11: xlRight | AD11: xlRight | AE11: xlRight | AF11: xlRight | AG11: xlRight | AH11: xlCenter | AI11: xlRight | AJ11: xlRight | AK11: xlRight | AL11: xlRight | AM11: xlRight | AN11: xlRight | AO11: xlRight | AP11: xlRight | AQ11: xlLeft | AS11: =C11 -> xlRight | AT11: xlRight | AU11: xlRight | AV11: xlRight | AW11: xlRight | AX11: xlRight | AY11: xlRight | AZ11: xlRight | BA11: xlRight | BB11: xlRight | BC11: xlRight | BD11: xlRight | BE11: xlRight | BF11: xlRight | BG11: xlRight | BH11: xlRight | BI11: =S11 -> xlRight | BJ11: xlLeft | BK11: xlRight | BL11: xlLeft | BM11: xlRight | BN11: xlRight | BO11: xlRight | BP11: xlRight | BQ11: xlRight | BR11: xlRight | BS11: xlRight | BT11: xlRight | BU11: xlRight | BV11: xlRight | BW11: xlRight | BX11: xlCenter | BY11: =AI11 -> xlRight | BZ11: xlRight | CA11: xlRight | CB11: xlRight | CC11: xlRight | CD11: xlRight | CE11: xlRight | CF11: xlRight | CG11: xlLeft
A12: Total Rows Needed | B12: =SUM(B8:B10) -> 19 | C12: 0.0 | D12: #+00.00 | E12: General | F12: 0 | G12: General | H12: 0 | I12: General | J12: 0.0 | K12: 0.00 | L12: General | M12: General | N12: 0 | O12: 0 | P12: 0 | Q12: 0 | R12: 0 | S12: 0 | T12: General | U12: 0 | V12: General | W12: 0 | X12: 0.00 | Y12: 0.00 | Z12: 0.00 | AA12: 0.00 | AB12: 0.0 | AC12: 0.0 | AD12: 0.0 | AE12: 0.0 | AF12: 0 | AG12: 0 | AH12: General | AI12: #+00.00 | AJ12: 0.00 | AK12: General | AL12: 0.0 | AM12: 0.0 | AN12: 0.0 | AO12: 0.0 | AP12: 0.0 | AQ12: General | AS12: 0.0 | AT12: #+00.00 | AU12: General | AV12: 0 | AW12: General | AX12: 0 | AY12: General | AZ12: 0.0 | BA12: 0.00 | BB12: General | BC12: General | BD12: 0 | BE12: 0 | BF12: 0 | BG12: 0 | BH12: 0 | BI12: 0 | BJ12: General | BK12: 0 | BL12: General | BM12: 0 | BN12: 0.00 | BO12: 0.00 | BP12: 0.00 | BQ12: 0.00 | BR12: 0.0 | BS12: 0.0 | BT12: 0.0 | BU12: 0.0 | BV12: 0 | BW12: 0 | BX12: General | BY12: #+00.00 | BZ12: 0.00 | CA12: General | CB12: 0.0 | CC12: 0.0 | CD12: 0.0 | CE12: 0.0 | CF12: 0.0 | CG12: General
A13: Last Tab DE Starter Row | B13: 34 | C13: =CELL("width",C13) -> 6 | D13: 16 | E13: 8 | F13: 5 | G13: 6 | H13: 6 | I13: 5 | J13: 6 | K13: 6 | L13: 5 | M13: 5 | N13: 5 | O13: 5 | P13: 5 | Q13: 5 | R13: 5 | S13: 5 | T13: 6 | U13: 5 | V13: 8 | W13: 7 | X13: 10 | Y13: 10 | Z13: 10 | AA13: 10 | AB13: 7 | AC13: 7 | AD13: 7 | AE13: 7 | AF13: 5 | AG13: 5 | AH13: 5 | AI13: 16 | AJ13: 12 | AK13: 5 | AL13: 7 | AM13: 7 | AN13: 7 | AO13: 7 | AP13: 7 | AQ13: 14 | AS13: =CELL("width",AS13) -> 0 | AT13: 0 | AU13: 0 | AV13: 0 | AW13: 0 | AX13: 0 | AY13: 0 | AZ13: 0 | BA13: 0 | BB13: 0 | BC13: 0 | BD13: 0 | BE13: 0 | BF13: 0 | BG13: 0 | BH13: 0 | BI13: 0 | BJ13: 0 | BK13: 0 | BL13: 0 | BM13: 0 | BN13: 0 | BO13: 0 | BP13: 0 | BQ13: 0 | BR13: 0 | BS13: 0 | BT13: 0 | BU13: 0 | BV13: 0 | BW13: 0 | BX13: 0 | BY13: 0 | BZ13: 0 | CA13: 0 | CB13: 0 | CC13: 0 | CD13: 0 | CE13: 0 | CF13: 0 | CG13: 0
A14: Last Tab Tabsheet Starter Row | B14: 20 | C14: A | D14: B | E14: C | F14: D | G14: E | H14: F | I14: G | J14: H | K14: I | L14: J | M14: K | N14: L | O14: M | P14: N | Q14: O | R14: P | S14: Q | T14: R | U14: S | V14: T | W14: U | X14: V | Y14: W | Z14: X | AA14: Y | AB14: Z | AC14: AA | AD14: AB | AE14: AC | AF14: AD | AG14: AE | AH14: AF | AI14: AG | AJ14: AH | AK14: AI | AL14: AJ | AM14: AK | AN14: AL | AO14: AM | AP14: AN | AQ14: AO | AS14: =LOWER(C14) -> a | AT14: b | AU14: c | AV14: d | AW14: e | AX14: f | AY14: g | AZ14: h | BA14: i | BB14: j | BC14: k | BD14: l | BE14: m | BF14: n | BG14: o | BH14: p | BI14: q | BJ14: r | BK14: s | BL14: t | BM14: u | BN14: v | BO14: w | BP14: x | BQ14: y | BR14: z | BS14: aa | BT14: ab | BU14: ac | BV14: ad | BW14: ae | BX14: af | BY14: ag | BZ14: ah | CA14: ai | CB14: aj | CC14: ak | CD14: al | CE14: am | CF14: an | CG14: ao
A15: Last Copy Starter Row | B15: 1 | AK15: Totals: | AL15: =SUBTOTAL(9,AL34:AL6000) -> 1060 | AM15: =SUBTOTAL(9,AM34:AM6000) -> 113 | AN15: =SUBTOTAL(9,AN34:AN6000) -> 617 | AO15: =SUBTOTAL(9,AO34:AO6000) -> 95 | AP15: =SUBTOTAL(9,AP34:AP6000) -> 712 | AS15: 104-3 | CI15: =G24 -> Kind Of Pipe | CJ15: Pipe Type | CK15: =T24 -> Type 'C' Connections* (DR-122) | CL15: =V24 -> Connected Pipe Joint* (DR-121)
A16: Tab Loop Number | B16: 2 | C16: DRAINAGE STRUCTURE BY ROAD CONTRACTOR | AS16: =B17 -> 2015-04-21 | CI16: CMP | CJ16: Reinforced Concrete Pipe. | CK16: C-1 | CL16: Type 1
A17: Revision Date | B17: 2015-04-21 | AS17: =C16 -> DRAINAGE STRUCTURE BY ROAD CONTRACTOR | CI17: LCP | CJ17: Corrugated Metal Pipe. | CK17: C-2 | CL17: Type 2
A18: Tabulation Width | B18: 4 | CI18: RCP | CK18: C-3 | CL18: Type 3
A19: Horizontal Grid Lines | B19: Yes | C19: Length of unclassified pipe calculated is based on using | L19: Reinforced Concrete Pipe. | CI19: SARC | CK19: C-4
C20: * Not a bid item | AS20: =C19 -> Length of unclassified pipe calculated is based on using | BB20: =L19 -> Reinforced Concrete Pipe. | CI20: UNCL
C21: Diameter or equivalent diameter | AS21: =C20 -> * Not a bid item
C22: UNCL = Unclassified Pipe CMP = Corrugated Metal Pipe RCP = Reinforced Concrete Pipe LCP = Arch or Elliptical Low Clearance Pipe SARC = Steel Arch Pipe | AS22: =C21 -> Diameter or equivalent diameter
C23: ="This Data Entry Sheet fills Tab "&AS15&" effective "&TEXT(B17,"mm-dd-yy") -> This Data Entry Sheet fills Tab 104-3 effective 04-21-15 | AS23: =C22 -> UNCL = Unclassified Pipe CMP = Corrugated Metal Pipe RCP = Reinforced Concrete Pipe LCP = Arch or Elliptical Low Clearance Pipe SARC = Steel Arch Pipe
C24: Drainage Area | D24: Location | E24: Type | F24: Size | G24: Kind Of Pipe | H24: Length New Const. | I24: Bedding Class | J24: Design Cover (H) | K24: Camber* (DR-102) | L24: Apron No. | N24: Apron Guard* (DR-213) | O24: Elbow* (DR-141) | P24: Diaphragm* (DR-501) | Q24: Tee Section* (DR-142) | R24: "D" Section* (DR-141) | S24: Reducer* | T24: Type 'C' Connections* (DR-122) | V24: Connected Pipe Joint* (DR-121) | W24: 4" Perforated Subdrain* | X24: Flow Line Elevations | AB24: Dimensions Lin. Ft. | AF24: Skew Ahead Degrees | AH24: Dike | AL24: Class 20 | AM24: Flowable Mortar | AN24: Floodable* Backfill | AO24: Porous* Backfill | AP24: Flooded Backfill | AQ24: Remarks | AS24: =C24 -> Drainage Area | AT24: Location | AU24: Type | AV24: Size | AW24: Kind Of Pipe | AX24: Length New Const. | AY24: Bedding Class | AZ24: Design Cover (H) | BA24: Camber* (DR-102) | BB24: Apron No. | BD24: =N24 -> Apron Guard* (DR-213) | BE24: Elbow* (DR-141) | BF24: Diaphragm* (DR-501) | BG24: Tee Section* (DR-142) | BH24: "D" Section* (DR-141) | BI24: Reducer* | BJ24: Type 'C' Connections* (DR-122) | BL24: =V24 -> Connected Pipe Joint* (DR-121) | BM24: =W24 -> 4" Perforated Subdrain* | BN24: =X24 -> Flow Line Elevations | BR24: =AB24 -> Dimensions Lin. Ft. | BV24: =AF24 -> Skew Ahead Degrees | BX24: =AH24 -> Dike | CB24: =AL24 -> Class 20 | CC24: Flowable Mortar | CD24: Floodable* Backfill | CE24: Porous* Backfill | CF24: Flooded Backfill | CG24: Remarks
AH31: Rt. | AI31: Location Station | AJ31: Top Elevation | AK31: Type | BX31: =AH31 -> Rt. | BY31: =AI31 -> Location Station | BZ31: =AJ31 -> Top Elevation | CA31: =AK31 -> Type
AB32: Total | AD32: Extensions | AN32: (A) | AO32: (B) | AP32: (A+B) | BR32: =AB32 -> Total | BT32: =AD32 -> Extensions | CD32: =AN32 -> (A) | CE32: (B) | CF32: (A+B)
C33: ACRE | F33: IN | H33: LF | J33: FT | K33: FT | L33: IN | M33: OUT | N33: No. | O33: No. | P33: No. | Q33: No. | R33: No. | S33: No. | T33: Type | U33: No. | V33: Type | W33: FT | X33: Lt. | Y33: Rt. | Z33: Other | AA33: Other | AB33: Lt. | AC33: Rt. | AD33: Lt. | AE33: Rt. | AF33: Lt. | AG33: Rt. | AH33: Lt. | AL33: CY | AM33: CY | AN33: CY | AO33: CY | AP33: CY | AS33: =C33 -> ACRE | AV33: =F33 -> IN | AX33: =H33 -> LF | AZ33: =J33 -> FT | BA33: FT | BB33: IN | BC33: OUT | BD33: No. | BE33: No. | BF33: No. | BG33: No. | BH33: No. | BI33: No. | BJ33: Type | BK33: No. | BL33: Type | BM33: FT | BN33: Lt. | BO33: Rt. | BP33: Other | BQ33: Other | BR33: =AB33 -> Lt. | BS33: =AC33 -> Rt. | BT33: =AD33 -> Lt. | BU33: =AE33 -> Rt. | BV33: =AF33 -> Lt. | BW33: =AG33 -> Rt. | BX33: =AH33 -> Lt. | CB33: =AL33 -> CY | CC33: =AM33 -> CY | CD33: CY | CE33: CY | CF33: CY
D34: 1285+93.26 | F34: 36 | G34: RCP | H34: 6 | M34: 1 | X34: 869.71 | Y34: UAC | AL34: 32 | AO34: 2 | AP34: 2
D35: 1306+50.00 | F35: 24 | G35: RCP | H35: 60 | J35: 2 | L35: 1 | Y35: 872.87 | AL35: 116 | AM35: 10 | AN35: 30 | AO35: 10 | AP35: 40
G36: CMP | H36: 45 | M36: 1 | X36: 862.8 | Z36: 871.66 | AA36: 863.14
D37: 1316+25.00 | F37: 24 | G37: RCP | H37: 52 | J37: 2.8 | L37: 1 | M37: 1 | X37: 862.2 | Y37: 866.46 | Z37: 865.45 | AL37: 51 | AM37: 12 | AN37: 53 | AO37: 8 | AP37: 61
D38: 1320+75.00 | F38: 24 | G38: RCP | H38: 64 | J38: 2 | L38: 1 | Y38: 864.63 | AL38: 57 | AM38: 11 | AN38: 35 | AO38: 11 | AP38: 46
G39: CMP | H39: 56 | M39: 1 | X39: 851.1 | Z39: 863.19 | AA39: 851.55
D40: 1343+50.00 | F40: 24 | G40: RCP | H40: 84 | J40: 2.9 | L40: 1 | M40: 1 | X40: 851.44 | Y40: 856.41 | AL40: 60 | AM40: 12 | AN40: 53 | AO40: 8 | AP40: 61
D41: 1360+50.00 | F41: 24 | G41: RCP | H41: 34 | J41: 2 | L41: 1 | M41: 1 | X41: 849.09 | Y41: 849.82 | AB41: 41.9 | AC41: 34.36 | AL41: 105 | AM41: 10 | AN41: 30 | AO41: 6 | AP41: 36
D42: 1385+48.05 | F42: 24 | G42: RCP | H42: 4 | L42: 1 | X42: 855.72 | Y42: 852.12 | Z42: 853.51 | AL42: 11 | AO42: 1 | AP42: 1
D43: 1413+33.65 | F43: 36 | G43: RCP | H43: 108 | J43: 11.3 | X43: 896.94 | Y43: 892.98 | Z43: 894.76 | AF43: 15 | AL43: 198 | AN43: 184 | AO43: 11 | AP43: 195
D44: 1414+00.00 | F44: 24 | G44: RCP | H44: 98 | J44: 3.6 | L44: 1 | M44: 1 | X44: 898.67 | Y44: 906.95 | AB44: 73.39 | AC44: 36.49 | AI44: 1413+80 | AJ44: 908.95 | AK44: M | AL44: 15 | AM44: 14 | AN44: 77 | AO44: 9 | AP44: 86
D45: 1461+25.00 | F45: 24 | G45: RCP | H45: 62 | J45: 1.6 | L45: 1 | M45: 1 | X45: 919.04 | Y45: 920.65 | AL45: 94 | AM45: 9 | AN45: 22 | AO45: 6 | AP45: 28
D46: 1462+11.25 | F46: 24 | G46: RCP | H46: 80 | J46: 2.9 | L46: 1 | X46: 919.1 | Y46: 917.34 | Z46: 918.63 | AL46: 118 | AM46: 11 | AN46: 42 | AO46: 7 | AP46: 49
D47: 1466+51.06 | F47: 36 | G47: RCP | H47: 80 | J47: 3.1 | L47: 1 | X47: 920.19 | Y47: 917.78 | Z47: 919.07 | AL47: 113 | AM47: 14 | AN47: 62 | AO47: 8 | AP47: 70
D48: 1480+94.18 | F48: 24 | G48: RCP | H48: 4 | L48: 1 | X48: 932.74 | Y48: 929.8 | Z48: 930.54 | AB48: 48.74 | AC48: 124.11 | AL48: 13 | AO48: 1 | AP48: 1
D49: 1505+75.00 | F49: 24 | G49: RCP | H49: 64 | J49: 1.8 | L49: 1 | M49: 1 | X49: 933.13 | Y49: 934.41 | AL49: 63 | AM49: 10 | AN49: 29 | AO49: 6 | AP49: 35
D50: 1529+93.63 | F50: 24 | G50: RCP | H50: 4 | L50: 1 | X50: 930.08 | Y50: 927.45 | Z50: 928.27 | AB50: 45.97 | AC50: 135.25 | AL50: 14 | AO50: 1 | AP50: 1

Sheet DE104_4
A1: TabTitle | B1: =D16 -> DRAINAGE STRUCTURES BY CULVERT CONTRACTOR
A2: Number of Tab Columns | B2: 26
A3: DE Starter Row Number | B3: 25
A4: TabSheet Starter Row Number | B4: 11
A5: TabSheet Header Row Count | B5: 10
A6: Top Header Cell | B6: AD15
A7: Bottom Header Cell | B7: BC24
A8: DESheet Row Count | B8: 5
A9: Fixed Empty Rows | B9: 2
A10: Usable Empty Rows | B10: 0
A11: Total Rows Placed | B11: 2 | C11: xlRight(1) | D11: xlRight(1) | E11: xlRight(1) | F11: xlCenter | G11: xlRight(1) | H11: xlRight(1) | I11: xlRight(1) | J11: xlRight(1) | K11: xlRight(1) | L11: xlRight(1) | M11: xlRight(1) | N11: xlRight(1) | O11: xlRight(1) | P11: xlRight(1) | Q11: xlRight(1) | R11: xlRight(1) | S11: xlCenter | T11: xlCenter | U11: xlRight(1) | V11: xlRight(1) | W11: xlCenter | X11: xlRight(1) | Y11: xlRight(1) | Z11: xlRight(1) | AA11: xlRight(1) | AB11: xlLeft(1) | AD11: =C11 -> xlRight(1) | AE11: =D11 -> xlRight(1) | AF11: xlRight(1) | AG11: xlCenter | AH11: xlRight(1) | AI11: xlRight(1) | AJ11: xlRight(1) | AK11: xlRight(1) | AL11: xlRight(1) | AM11: xlRight(1) | AN11: xlRight(1) | AO11: xlRight(1) | AP11: xlRight(1) | AQ11: xlRight(1) | AR11: xlRight(1) | AS11: xlRight(1) | AT11: xlCenter | AU11: xlCenter | AV11: xlRight(1) | AW11: xlRight(1) | AX11: xlCenter | AY11: xlRight(1) | AZ11: xlRight(1) | BA11: xlRight(1) | BB11: xlRight(1) | BC11: xlLeft(1)
A12: Total Rows Needed | B12: =SUM(B8:B10) -> 7 | C12: #+00.00 | D12: General | E12: 0.0 | F12: General | G12: 0 | H12: 0 | I12: 0.00 | J12: 0.00 | K12: 0.00 | L12: 0.00 | M12: 0 | N12: 0 | O12: 0 | P12: 0 | Q12: 0 | R12: 0 | S12: General | T12: General | U12: #+00.0 | V12: 0.00 | W12: General | X12: 0.0 | Y12: 0.0 | Z12: 0.0 | AA12: 0.0 | AB12: General | AD12: =IF(C12<>"",C12,"") -> #+00.00 | AE12: =IF(D12<>"",D12,"") -> General | AF12: 0.0 | AG12: General | AH12: 0 | AI12: 0 | AJ12: 0.00 | AK12: 0.00 | AL12: 0.00 | AM12: 0.00 | AN12: 0 | AO12: 0 | AP12: 0 | AQ12: 0 | AR12: 0 | AS12: 0 | AT12: General | AU12: General | AV12: #+00.0 | AW12: 0.00 | AX12: General | AY12: 0.0 | AZ12: 0.0 | BA12: 0.0 | BB12: 0.0 | BC12: General
A13: Last Tab DE Starter Row | B13: 25 | C13: =CELL("width",C13) -> 16 | D13: =CELL("width",D13) -> 13 | E13: 6 | F13: 10 | G13: 10 | H13: 9 | I13: 10 | J13: 10 | K13: 10 | L13: 10 | M13: 9 | N13: 9 | O13: 9 | P13: 9 | Q13: 9 | R13: 9 | S13: 5 | T13: 5 | U13: 16 | V13: 11 | W13: 6 | X13: 12 | Y13: 14 | Z13: 12 | AA13: =CELL("width",AA13) -> 11 | AB13: =CELL("width",AB13) -> 54 | AD13: =CELL("width",AD13) -> 0 | AE13: =CELL("width",AE13) -> 0 | AF13: 0 | AG13: 0 | AH13: 0 | AI13: 0 | AJ13: 0 | AK13: 0 | AL13: 0 | AM13: 0 | AN13: 0 | AO13: 0 | AP13: 0 | AQ13: 0 | AR13: 0 | AS13: 0 | AT13: 0 | AU13: 0 | AV13: 0 | AW13: 0 | AX13: 0 | AY13: 0 | AZ13: 0 | BA13: 0 | BB13: 0 | BC13: 0
A14: Last Tab Tabsheet Starter Row | B14: 11 | C14: A | D14: B | E14: C | F14: D | G14: E | H14: F | I14: G | J14: H | K14: I | L14: J | M14: K | N14: L | O14: M | P14: N | Q14: O | R14: P | S14: Q | T14: R | U14: S | V14: T | W14: U | X14: V | Y14: W | Z14: X | AA14: Y | AB14: Z | AD14: =LOWER(C14) -> a | AE14: b | AF14: c | AG14: d | AH14: e | AI14: f | AJ14: g | AK14: h | AL14: i | AM14: j | AN14: k | AO14: l | AP14: m | AQ14: n | AR14: o | AS14: p | AT14: q | AU14: r | AV14: s | AW14: t | AX14: u | AY14: v | AZ14: w | BA14: x | BB14: y | BC14: z
A15: Last Copy Starter Row | B15: 1 | W15: Totals: | X15: =SUBTOTAL(9,X25:X6000) -> 0 | AD15: 104-4
A16: Tab Loop Number | B16: 2 | D16: DRAINAGE STRUCTURES BY CULVERT CONTRACTOR | AB16: * Not a Bid Item | AD16: =B17 -> 2009-10-20
A17: Revision Date | B17: 2009-10-20 | AE17: =D16 -> DRAINAGE STRUCTURES BY CULVERT CONTRACTOR | BC17: =AB16 -> * Not a Bid Item
A18: Tabulation Width | B18: 4 | C18: ="This Data Entry Sheet fills Tab "&AD15&" effective "&TEXT(B17,"mm-dd-yy") -> This Data Entry Sheet fills Tab 104-4 effective 10-20-09
A19: Horizontal Grid Lines | B19: Yes | C19: Location | D19: Design Number | E19: Size | F19: Kind | G19: Lgth. New Const. | H19: No. of Aprons | I19: Flow Line Elevation | M19: Dimensions - Lin. Ft. | Q19: Skew Ahead | S19: By Road Contractor | Y19: Floodable* Backfill | Z19: Porous* Backfill | AA19: Flooded Backfill | AB19: Remarks | AD19: =C19 -> Location | AE19: =D19 -> Design Number | AF19: Size | AG19: Kind | AH19: Lgth. New Const. | AI19: No. of Aprons | AJ19: Flow Line Elevation | AN19: =M19 -> Dimensions - Lin. Ft. | AR19: =Q19 -> Skew Ahead | AT19: =S19 -> By Road Contractor | AZ19: =Y19 -> Floodable* Backfill | BA19: =Z19 -> Porous* Backfill | BB19: =AA19 -> Flooded Backfill | BC19: =AB19 -> Remarks
S20: Dike | X20: Comp. Backfill | AT20: =S20 -> Dike | AY20: =X20 -> Comp. Backfill
M21: Total | O21: Extensions | Q21: Degrees | AN21: =M21 -> Total | AP21: =O21 -> Extensions | AR21: =Q21 -> Degrees
T22: Rt. | U22: Location Station | V22: Top. Elev. | W22: Type | AT22: =S22 ->  | AU22: =T22 -> Rt. | AV22: Location Station | AW22: Top. Elev. | AX22: =W22 -> Type
Y23: (A) | Z23: (B) | AA23: (A+B) | AZ23: =Y23 -> (A) | BA23: (B) | BB23: (A+B)
E24: Ft. | G24: Lin. Ft. | I24: Left | J24: Right | K24: Other | L24: Other | M24: Left | N24: Right | O24: Left | P24: Right | Q24: Left | R24: Right | S24: Lt. | X24: Cu. Yds. | Y24: Cu. Yds. | Z24: Cu. Yds. | AA24: Cu. Yds. | AF24: =E24 -> Ft. | AH24: =G24 -> Lin. Ft. | AJ24: =I24 -> Left | AK24: Right | AL24: Other | AM24: Other | AN24: Left | AO24: Right | AP24: Left | AQ24: Right | AR24: Left | AS24: Right | AT24: Lt. | AY24: =X24 -> Cu. Yds. | AZ24: Cu. Yds. | BA24: Cu. Yds. | BB24: Cu. Yds.
C25: 1302+88.33 | E25: 42 | F25: RCB | G25: 120 | Y25: 61 | Z25: 3 | AA25: 64
C26: 1321+08.26 | E26: 6 | F26: RCB | G26: 108 | Y26: 61 | Z26: 3 | AA26: 64
C27: 1353+18.14 | E27: 6 | F27: RCB | G27: 100 | Y27: 61 | Z27: 3 | AA27: 64
C28: 1542+86.86 | E28: 78 | F28: RCB | G28: 32 | Z28: 1 | AA28: 1
C29: 1559+65.51 | E29: 30 | F29: RCB | G29: 76 | Z29: 2 | AA29: 2

Sheet DE104_8
A1: TabTitle | B1: =C15 -> BRIDGE END DRAINS
A2: Number of Tab Columns | B2: 14
A3: DE Starter Row Number | B3: 25
A4: TabSheet Starter Row Number | B4: 12
A5: TabSheet Header Row Count | B5: 11
A6: Top Header Cell | B6: R15
A7: Bottom Header Cell | B7: AE25
A8: DESheet Row Count | B8: 0
A9: Fixed Empty Rows | B9: 2
A10: Usable Empty Rows | B10: 0
A11: Total Rows Placed | B11: 2 | C11: xlRight(1) | D11: xlCenter | E11: xlRight(1) | F11: xlCenter | G11: xlRight(1) | H11: xlRight(1) | I11: xlRight(1) | J11: xlRight(1) | K11: xlRight(1) | L11: xlRight(1) | M11: xlRight(1) | N11: xlRight(1) | O11: xlRight(1) | P11: xlLeft(1) | R11: =C11 -> xlRight(1) | S11: xlCenter | T11: xlRight(1) | U11: xlCenter | V11: xlRight(1) | W11: xlRight(1) | X11: xlRight(1) | Y11: xlRight(1) | Z11: xlRight(1) | AA11: xlRight(1) | AB11: xlRight(1) | AC11: xlRight(1) | AD11: xlRight(1) | AE11: xlLeft(1)
A12: Total Rows Needed | B12: =SUM(B8:B10) -> 2 | C12: #+00.00 | D12: General | E12: 0.0 | F12: General | G12: 0.0 | H12: 0.0 | I12: 0.0 | J12: 0.0 | K12: 0.0 | L12: 0.0 | M12: 0.0 | N12: 0.0 | O12: 0.000 | P12: General | R12: #+00.00 | S12: General | T12: 0.0 | U12: General | V12: 0.0 | W12: 0.0 | X12: 0.0 | Y12: 0.0 | Z12: 0.0 | AA12: 0.0 | AB12: 0.0 | AC12: 0.0 | AD12: 0.000 | AE12: General
A13: Last Tab DE Starter Row | B13: 25 | C13: =CELL("width",C13) -> 16 | D13: 9 | E13: 12 | F13: 13 | G13: 10 | H13: 11 | I13: 9 | J13: 9 | K13: 9 | L13: 9 | M13: 9 | N13: 9 | O13: 11 | P13: 12 | R13: =CELL("width",R13) -> 0 | S13: 0 | T13: 0 | U13: 0 | V13: 0 | W13: 0 | X13: 0 | Y13: 0 | Z13: 0 | AA13: 0 | AB13: 0 | AC13: 0 | AD13: 0 | AE13: 0
A14: Last Tab TabSheet Starter Row | B14: 12 | C14: A | D14: B | E14: C | F14: D | G14: E | H14: F | I14: G | J14: H | K14: I | L14: J | M14: K | N14: L | O14: M | P14: N | R14: =LOWER(C14) -> a | S14: b | T14: c | U14: d | V14: e | W14: f | X14: g | Y14: h | Z14: i | AA14: j | AB14: k | AC14: l | AD14: m | AE14: n
A15: Last Copy Starter Row | B15: 1 | C15: BRIDGE END DRAINS | R15: 104-8
A16: Tab Loop Number | B16: 2 | R16: =B17 -> 2015-04-21
A17: Revision Date | B17: 2015-04-21 | C17: Refer to Standard Road Plan SW-538 | R17: BRIDGE END DRAINS
A18: Tabulation Width | B18: 2 | C18: Not a Bid Item
A19: Horizontal Grid Lines | B19: Yes | C19: ="This Data Entry Sheet fills Tab "&R15&" effective "&TEXT(B17,"mm-dd-yy") -> This Data Entry Sheet fills Tab 104-8 effective 04-21-15 | R19: =C17 -> Refer to Standard Road Plan SW-538
C20: Location | F20: Shoulder | H20: Polymer Grid | I20: Installation Information | O20: Modified Subbase | P20: Remarks | R20: =C18 -> Not a Bid Item
C21: Bridge Station | D21: Bridge Corner | E21: Distance DI-1 or DI-2 | F21: Panels Required | G21: PCC | I21: Elevation | M21: Length | R21: =C20 -> Location | U21: =F20 -> Shoulder | W21: =H20 -> Polymer Grid | X21: =I20 -> Installation Information | AD21: =O20 -> Modified Subbase | AE21: =P20 -> Remarks
I22: Form Grade | R22: =C21 -> Bridge Station | S22: =D21 -> Bridge Corner | T22: =E21 -> Distance DI-1 or DI-2 | U22: =F21 -> Panels Required | V22: =G21 -> PCC | X22: =I21 -> Elevation | AB22: =M21 -> Length
X23: =I22 -> Form Grade | Y23: =J22 -> 0 | Z23: =K22 -> 0 | AA23: =L22 -> 0 | AB23: =M22 -> 0 | AC23: =N22 -> 0
F24: A B C or D | G24: Sq.Yds. | H24: Sq.Yds. | O24: Tons
U25: =F24 -> A B C or D | V25: =G24 -> Sq.Yds. | W25: =H24 -> Sq.Yds. | AD25: =O24 -> Tons

Sheet DE105_4
A1: TabTitle | B1: =C15 -> STANDARD ROAD PLANS
A2: Number of Tab Columns | B2: 3
A3: DE Starter Row Number | B3: 20
A4: TabSheet Starter Row Number | B4: 7
A5: TabSheet Header Row Count | B5: 6
A6: Top Header Cell | B6: G15
A7: Bottom Header Cell | B7: I20
A8: DESheet Row Count | B8: 1
A9: Fixed Empty Rows | B9: 10
A10: Usable Empty Rows | B10: 0
A11: Total Rows Placed | B11: 0 | C11: xlLeft | D11: xlCenter | E11: xlLeft | G11: =C11 -> xlLeft | H11: =D11 -> xlCenter | I11: =E11 -> xlLeft
A12: Total Rows Needed | B12: =SUM(B8:B10) -> 11 | C12: General | D12: Text | E12: General | G12: =C12 -> General | H12: =D12 -> Text | I12: General
A13: Last Tab DE Starter Row | B13: 0 | C13: =CELL("width",C13) -> 12 | D13: =CELL("width",D13) -> 12 | E13: 134 | G13: =CELL("width",G13) -> 0 | H13: =CELL("width",H13) -> 0 | I13: 0
A14: Last Tab Tabsheet Starter Row | B14: 0 | C14: A | D14: B | E14: C | G14: =LOWER(C14) -> a | H14: =LOWER(D14) -> b | I14: c
A15: Last Copy Starter Row | B15: 0 | C15: STANDARD ROAD PLANS | G15: 105-4
A16: Tab Loop Number | B16: 0 | G16: =B17 -> 2011-10-18
A17: Revision Date | B17: 2011-10-18 | C17: The following Standard Road Plans apply to construction work on this project. | G17: =C15 -> STANDARD ROAD PLANS
A18: Tabulation Width | B18: 2 | C18: ="This Data Entry Sheet fills Tab "&G15&" effective "&TEXT(B17,"mm-dd-yy") -> This Data Entry Sheet fills Tab 105-4 effective 10-18-11
A19: Horizontal Grid Lines | B19: Yes | C19: Number | D19: Date | E19: Title | G19: =C17 -> The following Standard Road Plans apply to construction work on this project.
C20: TC-1 | E20: Work Not Affecting Traffic (Two-Lane or Multi-Lane) | G20: =C19 -> Number | H20: =D19 -> Date | I20: =E19 -> Title

Sheet DE107_23
A1: TabTitle | B1: =C16 -> GRADING FOR GUARDRAIL INSTALLATIONS
A2: Number of Tab Columns | B2: 17
A3: DE Starter Row Number | B3: 29
A4: TabSheet Starter Row Number | B4: 15
A5: TabSheet Header Row Count | B5: 14
A6: Top Header Cell | B6: U15
A7: Bottom Header Cell | B7: AK28
A8: DESheet Row Count | B8: 0
A9: Fixed Empty Rows | B9: 2
A10: Usable Empty Rows | B10: 0
A11: Total Rows Placed | B11: 2 | C11: xlRight(1) | D11: xlCenter | E11: xlRight(1) | F11: xlCenter | G11: xlRight(1) | H11: xlRight(1) | I11: xlRight(1) | J11: xlRight(1) | K11: xlRight(1) | L11: xlRight(1) | M11: xlRight(1) | N11: xlRight(1) | O11: xlRight(1) | P11: xlRight(1) | Q11: xlRight(1) | R11: xlRight(1) | S11: xlLeft(1) | U11: =C11 -> xlRight(1) | V11: xlCenter | W11: xlRight(1) | X11: xlCenter | Y11: xlRight(1) | Z11: xlRight(1) | AA11: xlRight(1) | AB11: xlRight(1) | AC11: xlRight(1) | AD11: xlRight(1) | AE11: xlRight(1) | AF11: xlRight(1) | AG11: xlRight(1) | AH11: xlRight(1) | AI11: xlRight(1) | AJ11: xlRight(1) | AK11: =S11 -> xlLeft(1)
A12: Total Rows Needed | B12: =SUM(B8:B10) -> 2 | C12: General | D12: General | E12: #+00.00 | F12: General | G12: General | H12: 0.0 | I12: 0.0 | J12: 0.0 | K12: 0.0 | L12: 0.0 | M12: 0.0 | N12: 0.0 | O12: 0.0 | P12: 0.0 | Q12: 0.0 | R12: 0.0 | S12: General | U12: General | V12: General | W12: #+00.00 | X12: General | Y12: General | Z12: 0.0 | AA12: 0.0 | AB12: 0.0 | AC12: 0.0 | AD12: 0.0 | AE12: 0.0 | AF12: 0.0 | AG12: 0.0 | AH12: 0.0 | AI12: 0.0 | AJ12: 0.0 | AK12: General
A13: Last Tab DE Starter Row | B13: 29 | C13: =CELL("width",C13) -> 7 | D13: 7 | E13: 18 | F13: 7 | G13: 15 | H13: 9 | I13: 9 | J13: 9 | K13: 9 | L13: 9 | M13: 9 | N13: 9 | O13: 9 | P13: 9 | Q13: 16 | R13: 16 | S13: 60 | U13: =CELL("width",U13) -> 0 | V13: 0 | W13: 0 | X13: 0 | Y13: 0 | Z13: 0 | AA13: 0 | AB13: 0 | AC13: 0 | AD13: 0 | AE13: 0 | AF13: 0 | AG13: 0 | AH13: 0 | AI13: 0 | AJ13: 0 | AK13: 0
A14: Last Tab Tabsheet Starter Row | B14: 15 | C14: A | D14: B | E14: C | F14: D | G14: E | H14: F | I14: G | J14: H | K14: I | L14: J | M14: K | N14: L | O14: M | P14: N | Q14: O | R14: P | S14: Q | U14: =LOWER(C14) -> a | V14: b | W14: c | X14: d | Y14: e | Z14: f | AA14: g | AB14: h | AC14: i | AD14: j | AE14: k | AF14: l | AG14: m | AH14: n | AI14: o | AJ14: p | AK14: q
A15: Last Copy Starter Row | B15: 1 | O15: Totals: | Q15: =SUBTOTAL(9,Q29:Q6000) -> 0 | R15: =SUBTOTAL(9,R29:R6000) -> 0 | U15: 107-23
A16: Tab Loop Number | B16: 2 | C16: GRADING FOR GUARDRAIL INSTALLATIONS | U16: =B17 -> 2011-10-18
A17: Revision Date | B17: 2011-10-18 | U17: =C16 -> GRADING FOR GUARDRAIL INSTALLATIONS
A18: Tabulation Width | B18: 3 | D18: Lane(s) to which the installation is adjacent. | K18: Refer to EW-301
A19: Horizontal Grid Lines | B19: Yes | C19: ="This Data Entry Sheet fills Tab "&U15&" effective "&TEXT(B17,"mm-dd-yy") -> This Data Entry Sheet fills Tab 107-23 effective 10-18-11 | V19: =D18 -> Lane(s) to which the installation is adjacent. | AC19: =K18 -> Refer to EW-301
C20: Location | G20: Foreslope at Guardrail | H20: Dimensions (Feet) | Q20: Earthwork | S20: Remarks | U20: =C20 -> Location | Y20: =G20 -> Foreslope at Guardrail | Z20: =H20 -> Dimensions (Feet) | AI20: =Q20 -> Earthwork | AK20: =S20 -> Remarks
C22: No. | D22: Direction of Traffic | E22: Station | F22: Side | Q22: Excavation Class 10 | R22: Embankment In Place | U22: =C22 -> No. | V22: =D22 -> Direction of Traffic | W22: =E22 -> Station | X22: =F22 -> Side | AI22: =Q22 -> Excavation Class 10 | AJ22: =R22 -> Embankment In Place
Q28: CY | R28: CY | AI28: =Q28 -> CY | AJ28: =R28 -> CY

Sheet DE107_31
A1: TabTitle | B1: =C15 -> PLOWING AND SHAPING
A2: Number of Tab Columns | B2: 4
A3: DE Starter Row Number | B3: 22
A4: TabSheet Starter Row Number | B4: 9
A5: TabSheet Header Row Count | B5: 8
A6: Top Header Cell | B6: H15
A7: Bottom Header Cell | B7: K22
A8: DESheet Row Count | B8: 0
A9: Fixed Empty Rows | B9: 2
A10: Usable Empty Rows | B10: 0
A11: Total Rows Placed | B11: 2 | C11: xlRight(1) | D11: xlRight(1) | E11: xlRight(1) | F11: xlLeft(1) | H11: =C11 -> xlRight(1) | I11: xlRight(1) | J11: xlRight(1) | K11: xlLeft(1)
A12: Total Rows Needed | B12: =SUM(B8:B10) -> 2 | C12: #+00.00 | D12: #+00.00 | E12: 0.0 | F12: General | H12: #+00.00 | I12: #+00.00 | J12: 0.0 | K12: General
A13: Last Tab DE Starter Row | B13: 22 | C13: =CELL("width",C13) -> 16 | D13: =CELL("width",D13) -> 16 | E13: =CELL("width",E13) -> 10 | F13: =CELL("width",F13) -> 33 | H13: =CELL("width",H13) -> 0 | I13: =CELL("width",I13) -> 0 | J13: =CELL("width",J13) -> 0 | K13: =CELL("width",K13) -> 0
A14: Last Tab Tabsheet Starter Row | B14: 9 | C14: A | D14: B | E14: C | F14: D | H14: =LOWER(C14) -> a | I14: =LOWER(D14) -> b | J14: =LOWER(E14) -> c | K14: =LOWER(F14) -> d | L14: =LOWER(G14) -> 
A15: Last Copy Starter Row | B15: 1 | C15: PLOWING AND SHAPING | H15: 107-31
A16: Tab Loop Number | B16: 2 | H16: =B17 -> 2011-04-19
A17: Revision Date | B17: 2011-04-19 | C17: Refer to Standard Road Plan EW-101 | H17: =C15 -> PLOWING AND SHAPING
A18: Tabulation Width | B18: 1 | C18: ="This Data Entry Sheet fills Tab "&H15&" effective "&TEXT(B17,"mm-dd-yy") -> This Data Entry Sheet fills Tab 107-31 effective 04-19-11
A19: Horizontal Grid Lines | B19: Yes | C19: Station to Station | E19: D | F19: Remarks | H19: =C17 -> Refer to Standard Road Plan EW-101
H20: =C19 -> Station to Station | J20: =E19 -> D | K20: =F19 -> Remarks
E21: FT
J22: =E21 -> FT

Sheet DE108_8A
A1: TabTitle | B1: =C16 -> STEEL BEAM GUARDRAIL AT CONCRETE BARRIER OR BRIDGE RAIL END SECTION
A2: Number of Tab Columns | B2: 24
A3: DE Starter Row Number | B3: 30
A4: TabSheet Starter Row Number | B4: 16
A5: TabSheet Header Row Count | B5: 15
A6: Top Header Cell | B6: AC15
A7: Bottom Header Cell | B7: AZ29
A8: DESheet Row Count | B8: 0
A9: Fixed Empty Rows | B9: 2
A10: Usable Empty Rows | B10: 0
A11: Total Rows Placed | B11: 2 | C11: xlRight(1) | D11: xlLeft(1) | E11: xlLeft(1) | F11: xlRight(1) | G11: xlRight(1) | H11: xlRight(1) | I11: xlRight(1) | J11: xlRight(1) | K11: xlRight(1) | M11: xlRight(1) | N11: xlRight(1) | O11: xlRight(1) | P11: xlRight(1) | Q11: xlRight(1) | R11: xlRight(1) | S11: xlRight(1) | T11: xlRight(1) | U11: xlRight(1) | V11: xlRight(1) | W11: xlRight(1) | X11: xlRight(1) | Y11: xlRight(1) | Z11: xlRight(1) | AA11: xlLeft(1) | AC11: =C11 -> xlRight(1) | AD11: xlLeft(1) | AE11: xlLeft(1) | AF11: xlRight(1) | AG11: xlRight(1) | AH11: xlRight(1) | AI11: xlRight(1) | AJ11: xlRight(1) | AK11: xlRight(1) | AL11: =M11 -> xlRight(1) | AM11: xlRight(1) | AN11: xlRight(1) | AO11: xlRight(1) | AP11: xlRight(1) | AQ11: xlRight(1) | AR11: xlRight(1) | AS11: xlRight(1) | AT11: xlRight(1) | AU11: xlRight(1) | AV11: xlRight(1) | AW11: xlRight(1) | AX11: xlRight(1) | AY11: xlRight(1) | AZ11: xlLeft(1)
A12: Total Rows Needed | B12: =SUM(B8:B10) -> 2 | C12: General | D12: General | E12: General | F12: #+00.00 | G12: 0.0 | H12: 0.000 | I12: 0.00 | J12: 0.00 | K12: 0.0 | M12: #+00.00 | N12: General | O12: General | P12: 0 | Q12: 0 | R12: 0 | S12: 0 | T12: General | U12: 0 | V12: 0 | W12: 0.0 | X12: General | Y12: 0 | Z12: 0 | AA12: General | AC12: General | AD12: General | AE12: General | AF12: #+00.00 | AG12: 0.0 | AH12: 0.000 | AI12: 0.00 | AJ12: 0.00 | AK12: 0.0 | AL12: #+00.00 | AM12: General | AN12: General | AO12: 0 | AP12: 0 | AQ12: 0 | AR12: 0 | AS12: General | AT12: 0 | AU12: 0 | AV12: 0.0 | AW12: General | AX12: 0 | AY12: 0 | AZ12: General
A13: Last Tab DE Starter Row | B13: 30 | C13: =CELL("width",C13) -> 6 | D13: 6 | E13: 6 | F13: 16 | G13: 10 | H13: 10 | I13: 10 | J13: 10 | K13: 11 | M13: 16 | N13: 9 | O13: 9 | P13: 12 | Q13: 9 | R13: 9 | S13: 9 | T13: 7 | U13: 7 | V13: 14 | W13: 12 | X13: 12 | Y13: 12 | Z13: 12 | AA13: 74 | AC13: =CELL("width",AC13) -> 0 | AD13: 0 | AE13: 0 | AF13: 0 | AG13: 0 | AH13: 0 | AI13: 0 | AJ13: 0 | AK13: 0 | AL13: 0 | AM13: 0 | AN13: 0 | AO13: 0 | AP13: 0 | AQ13: 0 | AR13: 0 | AS13: 0 | AT13: 0 | AU13: 0 | AV13: 0 | AW13: 0 | AX13: 0 | AY13: 0 | AZ13: 0
A14: Last Tab TabSheet Starter Row | B14: 16 | C14: A | D14: B | E14: C | F14: D | G14: E | H14: F | I14: G | J14: H | K14: I | M14: J | N14: K | O14: L | P14: M | Q14: N | R14: O | S14: P | T14: Q | U14: R | V14: S | W14: T | X14: U | Y14: V | Z14: W | AA14: X | AC14: =LOWER(C14) -> a | AD14: b | AE14: c | AF14: d | AG14: e | AH14: f | AI14: g | AJ14: h | AK14: i | AL14: =LOWER(M14) -> j | AM14: k | AN14: l | AO14: m | AP14: n | AQ14: o | AR14: p | AS14: q | AT14: r | AU14: s | AV14: t | AW14: u | AX14: v | AY14: w | AZ14: x
A15: Last Copy Starter Row | B15: 1 | O15: Totals: | P15: =SUBTOTAL(9,P30:P6000) -> 0 | Q15: =SUBTOTAL(9,Q30:Q6000) -> 0 | R15: =SUBTOTAL(9,R30:R6000) -> 0 | S15: =SUBTOTAL(9,S30:S6000) -> 0 | U15: =SUBTOTAL(9,U30:U6000) -> 0 | V15: 0 | W15: 0 | Z15: 0 | AC15: 108-8A | BB15: =M27 -> BA-211 | BC15: =O23 -> SI-211 | BD15: =T23 -> Bolted End Anchor | BE15: =X23 -> End Terminal
A16: Tab Loop Number | B16: 2 | C16: STEEL BEAM GUARDRAIL AT CONCRETE BARRIER OR BRIDGE RAIL END SECTION | AC16: =B17 -> 2016-04-19 | BB16: 1 | BC16: 1 | BD16: A | BE16: BA-205
A17: Revision Date | B17: 2016-04-19 | AC17: =C16 -> STEEL BEAM GUARDRAIL AT CONCRETE BARRIER OR BRIDGE RAIL END SECTION | BB17: 2 | BC17: 2 | BD17: B | BE17: BA-206
A18: Tabulation Width | B18: 4 | C18: Possible Standards: BA-200, BA-201, BA-202, BA-205, BA-206, BA-210, BA-211, BA-250, LS-625, LS-626, LS-630, SI-172, SI-173 and SI-211. | BB18: 3 | BC18: 3 | BD18: C | BE18: LS-625
A19: Horizontal Grid Lines | B19: Yes | C19: Lane(s) to which the obstacle is adjacent. | AC19: =C18 -> Possible Standards: BA-200, BA-201, BA-202, BA-205, BA-206, BA-210, BA-211, BA-250, LS-625, LS-626, LS-630, SI-172, SI-173 and SI-211. | BC19: 4 | BE19: LS-626
C20: ="This Data Entry Sheet fills Tab "&AC15&" effective "&TEXT(B17,"mm-dd-yy") -> This Data Entry Sheet fills Tab 108-8A effective 04-19-16 | AC20: =C19 -> Lane(s) to which the obstacle is adjacent. | BC20: 5
C21: Location | H21: Layout Lengths | M21: Long-Span System | O21: Delineators and Object Markers | T21: Bid Items | AA21: Remarks | AC21: =C21 -> Location | AH21: =H21 -> Layout Lengths | AL21: =M21 -> Long-Span System | AN21: =O21 -> Delineators and Object Markers | AS21: =T21 -> Bid Items | AZ21: =AA21 -> Remarks | BC21: 6
C22: No. | D22: Direction of Traffic | E22: Side | F22: Station | G22: Offset | AC22: =C22 -> No. | AD22: =D22 -> Direction of Traffic | AE22: =E22 -> Side | AF22: =F22 -> Station | AG22: =G22 -> Offset | BC22: 7
E23: O = Outside M = Median | H23: BA-250 or LS-630 | O23: SI-211 | P23: Delineator | Q23: Object Marker | T23: Bolted End Anchor | V23: Barrier Transition Section | W23: Steel Beam Guardrail | X23: End Terminal | Z23: Post Adapter | AE23: =E23 -> O = Outside M = Median | AH23: =H23 -> BA-250 or LS-630 | AN23: =O23 -> SI-211 | AO23: =P23 -> Delineator | AP23: =Q23 -> Object Marker | AS23: =T23 -> Bolted End Anchor | AU23: =V23 -> Barrier Transition Section | AV23: =W23 -> Steel Beam Guardrail | AW23: =X23 -> End Terminal | AY23: =Z23 -> Post Adapter | BC23: 8
L24: If VF<>0 then check if VT1 > 53.125 | X24: Standard | Y24: Count | AW24: =X24 -> Standard | AX24: =Y24 -> Count
P25: SI-172 | Q25: SI-173 | AO25: =P25 -> SI-172 | AP25: =Q25 -> SI-173
P26: Type 1 | Q26: Type 2 | R26: Type 3 | AO26: =P26 -> Type 1 | AP26: =Q26 -> Type 2 | AQ26: =R26 -> Type 3
M27: BA-211 | AL27: =M27 -> BA-211
P28: White | Q28: OM2-2 | R28: OM3-L | S28: OM3-R | T28: BA-202 | V28: BA-201 | W28: BA-200 | Z28: BA-210 | AO28: =P28 -> White | AP28: OM2-2 | AQ28: OM3-L | AR28: OM3-R | AS28: BA-202 | AU28: =V28 -> BA-201 | AV28: BA-200 | AY28: BA-210
G29: FT | H29: LF | I29: LF | J29: LF | K29: LF | M29: STATION | N29: TYPE | O29: TYPE | P29: EACH | Q29: EACH | R29: EACH | S29: EACH | T29: TYPE | U29: EACH | V29: EACH | W29: LF | Y29: EACH | Z29: EACH | AG29: =G29 -> FT | AH29: =H29 -> LF | AI29: =I29 -> LF | AJ29: =J29 -> LF | AK29: =K29 -> LF | AL29: =M29 -> STATION | AM29: TYPE | AN29: TYPE | AO29: EACH | AP29: EACH | AQ29: EACH | AR29: EACH | AS29: TYPE | AT29: =U29 -> EACH | AU29: EACH | AV29: LF | AX29: EACH | AY29: EACH
L30: =IF(I30<>"",IF(H30>=53.125,"Meets min VT1","VT1 Too short"),"") ->  | W30: =IF($H30<>"",IF((SUM($H30:$J30)-40.625)/12.5=INT((SUM($H30:$J30)-40.625)/12.5),SUM($H30:$J30)-40.625,"Error"),"") -> 
L31: =IF(I31<>"",IF(H31>=53.125,"Meets min VT1","VT1 Too short"),"") ->  | W31: =IF($H31<>"",IF((SUM($H31:$J31)-40.625)/12.5=INT((SUM($H31:$J31)-40.625)/12.5),SUM($H31:$J31)-40.625,"Error"),"") -> 
L32: =IF(I32<>"",IF(H32>=53.125,"Meets min VT1","VT1 Too short"),"") ->  | W32: =IF($H32<>"",IF((SUM($H32:$J32)-40.625)/12.5=INT((SUM($H32:$J32)-40.625)/12.5),SUM($H32:$J32)-40.625,"Error"),"") -> 
L96: =IF(I96<>"",IF(H96>=53.125,"Meets min VT1","VT1 Too short"),"") ->  | W96: =IF($H96<>"",IF((SUM($H96:$J96)-40.625)/12.5=INT((SUM($H96:$J96)-40.625)/12.5),SUM($H96:$J96)-40.625,"Error"),"") -> 
L160: =IF(I160<>"",IF(H160>=53.125,"Meets min VT1","VT1 Too short"),"") ->  | W160: =IF($H160<>"",IF((SUM($H160:$J160)-40.625)/12.5=INT((SUM($H160:$J160)-40.625)/12.5),SUM($H160:$J160)-40.625,"Error"),"") -> 
L224: =IF(I224<>"",IF(H224>=53.125,"Meets min VT1","VT1 Too short"),"") ->  | W224: =IF($H224<>"",IF((SUM($H224:$J224)-40.625)/12.5=INT((SUM($H224:$J224)-40.625)/12.5),SUM($H224:$J224)-40.625,"Error"),"") -> 
L288: =IF(I288<>"",IF(H288>=53.125,"Meets min VT1","VT1 Too short"),"") ->  | W288: =IF($H288<>"",IF((SUM($H288:$J288)-40.625)/12.5=INT((SUM($H288:$J288)-40.625)/12.5),SUM($H288:$J288)-40.625,"Error"),"") -> 
L352: =IF(I352<>"",IF(H352>=53.125,"Meets min VT1","VT1 Too short"),"") ->  | W352: =IF($H352<>"",IF((SUM($H352:$J352)-40.625)/12.5=INT((SUM($H352:$J352)-40.625)/12.5),SUM($H352:$J352)-40.625,"Error"),"") -> 
L416: =IF(I416<>"",IF(H416>=53.125,"Meets min VT1","VT1 Too short"),"") ->  | W416: =IF($H416<>"",IF((SUM($H416:$J416)-40.625)/12.5=INT((SUM($H416:$J416)-40.625)/12.5),SUM($H416:$J416)-40.625,"Error"),"") -> 
L480: =IF(I480<>"",IF(H480>=53.125,"Meets min VT1","VT1 Too short"),"") ->  | W480: =IF($H480<>"",IF((SUM($H480:$J480)-40.625)/12.5=INT((SUM($H480:$J480)-40.625)/12.5),SUM($H480:$J480)-40.625,"Error"),"") -> 
L544: =IF(I544<>"",IF(H544>=53.125,"Meets min VT1","VT1 Too short"),"") ->  | W544: =IF($H544<>"",IF((SUM($H544:$J544)-40.625)/12.5=INT((SUM($H544:$J544)-40.625)/12.5),SUM($H544:$J544)-40.625,"Error"),"") -> 
L608: =IF(I608<>"",IF(H608>=53.125,"Meets min VT1","VT1 Too short"),"") ->  | W608: =IF($H608<>"",IF((SUM($H608:$J608)-40.625)/12.5=INT((SUM($H608:$J608)-40.625)/12.5),SUM($H608:$J608)-40.625,"Error"),"") -> 
L672: =IF(I672<>"",IF(H672>=53.125,"Meets min VT1","VT1 Too short"),"") ->  | W672: =IF($H672<>"",IF((SUM($H672:$J672)-40.625)/12.5=INT((SUM($H672:$J672)-40.625)/12.5),SUM($H672:$J672)-40.625,"Error"),"") -> 
L736: =IF(I736<>"",IF(H736>=53.125,"Meets min VT1","VT1 Too short"),"") ->  | W736: =IF($H736<>"",IF((SUM($H736:$J736)-40.625)/12.5=INT((SUM($H736:$J736)-40.625)/12.5),SUM($H736:$J736)-40.625,"Error"),"") -> 
L800: =IF(I800<>"",IF(H800>=53.125,"Meets min VT1","VT1 Too short"),"") ->  | W800: =IF($H800<>"",IF((SUM($H800:$J800)-40.625)/12.5=INT((SUM($H800:$J800)-40.625)/12.5),SUM($H800:$J800)-40.625,"Error"),"") -> 
L864: =IF(I864<>"",IF(H864>=53.125,"Meets min VT1","VT1 Too short"),"") ->  | W864: =IF($H864<>"",IF((SUM($H864:$J864)-40.625)/12.5=INT((SUM($H864:$J864)-40.625)/12.5),SUM($H864:$J864)-40.625,"Error"),"") -> 
L928: =IF(I928<>"",IF(H928>=53.125,"Meets min VT1","VT1 Too short"),"") ->  | W928: =IF($H928<>"",IF((SUM($H928:$J928)-40.625)/12.5=INT((SUM($H928:$J928)-40.625)/12.5),SUM($H928:$J928)-40.625,"Error"),"") -> 
L992: =IF(I992<>"",IF(H992>=53.125,"Meets min VT1","VT1 Too short"),"") ->  | W992: =IF($H992<>"",IF((SUM($H992:$J992)-40.625)/12.5=INT((SUM($H992:$J992)-40.625)/12.5),SUM($H992:$J992)-40.625,"Error"),"") -> 
... 21 more rows

Sheet DE108_13A
A1: TabTitle | B1: =C16 -> SAFETY CLOSURES
A2: Number of Tab Columns | B2: 4
A3: DE Starter Row Number | B3: 22
A4: TabSheet Starter Row Number | B4: 8
A5: TabSheet Header Row Count | B5: 7
A6: Top Header Cell | B6: H15
A7: Bottom Header Cell | B7: K21
A8: DESheet Row Count | B8: 0
A9: Fixed Empty Rows | B9: 2
A10: Usable Empty Rows | B10: 0
A11: Total Rows Placed | B11: 2 | C11: xlRight(1) | D11: xlRight(1) | E11: xlRight(1) | F11: xlLeft(1) | H11: =C11 -> xlRight(1) | I11: =D11 -> xlRight(1) | J11: xlRight(1) | K11: xlLeft(1)
A12: Total Rows Needed | B12: =SUM(B8:B10) -> 2 | C12: #+00.00 | D12: General | E12: General | F12: General | H12: =C12 -> #+00.00 | I12: General | J12: General | K12: General
A13: Last Tab DE Starter Row | B13: 22 | C13: =CELL("width",C13) -> 16 | D13: =CELL("width",D13) -> 14 | E13: =CELL("width",E13) -> 14 | F13: =CELL("width",F13) -> 31 | H13: =CELL("width",H13) -> 0 | I13: =CELL("width",I13) -> 0 | J13: =CELL("width",J13) -> 0 | K13: =CELL("width",K13) -> 0
A14: Last Tab Tabsheet Starter Row | B14: 8 | C14: A | D14: B | E14: C | F14: D | H14: =LOWER(C14) -> a | I14: =LOWER(D14) -> b | J14: =LOWER(E14) -> c | K14: =LOWER(F14) -> d
A15: Last Copy Starter Row | B15: 1 | D15: =SUBTOTAL(9,D22:D6000) -> 0 | E15: =SUBTOTAL(9,E22:E6000) -> 0 | H15: 108-13A
A16: Tab Loop Number | B16: 2 | C16: SAFETY CLOSURES | H16: =B17 -> 2008-08-01
A17: Revision Date | B17: 2008-08-01 | H17: =C16 -> SAFETY CLOSURES
A18: Tabulation Width | B18: 1 | C18: Refer to Section 2518 of the Standard Specifications
A19: Horizontal Grid Lines | B19: Yes | C19: ="This Data Entry Sheet fills Tab "&H15&" effective "&TEXT(B17,"mm-dd-yy") -> This Data Entry Sheet fills Tab 108-13A effective 08-01-08 | H19: =C18 -> Refer to Section 2518 of the Standard Specifications
C20: Station | D20: Closure Type | F20: Remarks | H20: =C20 -> Station | I20: =D20 -> Closure Type | K20: =F20 -> Remarks
D21: Road Qty. | E21: Hazard Qty. | I21: =D21 -> Road Qty. | J21: =E21 -> Hazard Qty.

Sheet DE108_22
A1: TabTitle | B1: =C44 -> PAVEMENT MARKING LINE TYPES
A2: Number of Tab Columns | B2: 24 | BB2: Old 9001 | BC2: Line Types (See PM-110) | BG2: Marking Type | BH2: =L54 -> BCY4* | BI2: DCY4 | BJ2: NPY4** | BK2: BLW4 | BL2: ELW4 | BM2: ELY4 | BN2: 0 | BO2: 0 | BP2: 0 | BQ2: 0 | BR2: 0 | BS2: 0 | BT2: 0 | BU2: 0 | BV2: 0 | BX2: Direction of Travel
A3: DE Starter Row Number | B3: 57 | BB3: Detail Number | BC3: Key | BD3: Description | BE3: Factor | BG3: Waterborne/Solvent Paint | BX3: NB
A4: TabSheet Starter Row Number | B4: 15 | BB4: 2 | BC4: BCY4* | BD4: BCY4: Broken Centerline (Yellow) @ 0.25 | BE4: 0.25 | BG4: Highbuild Waterborne Paint | BX4: EB
A5: TabSheet Header Row Count | B5: 14 | BB5: 6 | BC5: BLW4 | BD5: BLW4: Broken Lane Line (White) @ 0.25 | BE5: 0.25 | BG5: Durable Paint | BX5: SB
A6: Top Header Cell | B6: AC15 | BB6: new | BC6: CBW6 | BD6: CBW6: Crosswalk Bar (White) @ 15.00 | BE6: 15 | BG6: Permanent Regular Tape | BX6: WB
A7: Bottom Header Cell | B7: AZ28 | BB7: 11 | BC7: CHW8 | BD7: CHW8: Channelizing Line (White) @ 2.00 | BE7: 2 | BG7: Permanent Preform Polymer Tape | BX7: BOTH
A8: DESheet Row Count | B8: 0 | BB8: 12 | BC8: CHY8 | BD8: CHY8: Channelizing Line (Yellow) @ 2.00 | BE8: 2 | BG8: Permanent Profiled Tape
A9: Fixed Empty Rows | B9: 2 | BB9: 14 | BC9: CLW6 | BD9: CLW6: Crosswalk Line (White) @ 3.00 | BE9: 3 | BG9: Permanent Intersection Tape
A10: Usable Empty Rows | B10: 0 | BB10: 3 | BC10: DCY4 | BD10: DCY4: Double Centerline (Yellow) @ 2.00 | BE10: 2 | BG10: Grooves Cut for Pavement Markings
A11: Total Rows Placed | B11: 2 | C11: xlLeft(1) | D11: xlRight(1) | E11: xlRight(1) | G11: xlCenter | H11: xlCenter | I11: xlCenter | J11: xlCenter | K11: xlCenter | L11: xlRight(1) | M11: xlRight(1) | N11: xlRight(1) | O11: xlRight(1) | P11: xlRight(1) | Q11: xlRight(1) | R11: xlRight(1) | S11: xlRight(1) | T11: xlRight(1) | U11: xlRight(1) | V11: xlRight(1) | W11: xlRight(1) | X11: xlRight(1) | Y11: xlRight(1) | Z11: xlRight(1) | AA11: xlLeft(1) | AC11: =C11 -> xlLeft(1) | AD11: xlRight(1) | AE11: xlRight(1) | AF11: =G11 -> xlCenter | AG11: xlCenter | AH11: xlCenter | AI11: xlCenter | AJ11: xlCenter | AK11: xlRight(1) | AL11: xlRight(1) | AM11: xlRight(1) | AN11: xlRight(1) | AO11: xlRight(1) | AP11: xlRight(1) | AQ11: xlRight(1) | AR11: xlRight(1) | AS11: xlRight(1) | AT11: xlRight(1) | AU11: xlRight(1) | AV11: =W11 -> xlRight(1) | AW11: xlRight(1) | AX11: xlRight(1) | AY11: xlRight(1) | AZ11: xlLeft(1) | BB11: 18 | BC11: DDY4 | BD11: DDY4: Double Dotted Line (Yellow) @ 0.67 | BE11: =2/3 -> 0.6666666667 | BG11: Wet Retroreflective Removable Tape
A12: Total Rows Needed | B12: =SUM(B8:B10) -> 2 | C12: General | D12: #+00.00 | E12: #+00.00 | G12: General | H12: General | I12: General | J12: General | K12: General | L12: 0.00 | M12: 0.00 | N12: 0.00 | O12: 0.00 | P12: 0.00 | Q12: 0.00 | R12: 0.00 | S12: 0.00 | T12: 0.00 | U12: 0.00 | V12: 0.00 | W12: 0.00 | X12: 0.00 | Y12: 0.00 | Z12: 0.00 | AA12: General | AC12: General | AD12: #+00.00 | AE12: #+00.00 | AF12: General | AG12: General | AH12: General | AI12: General | AJ12: General | AK12: 0.00 | AL12: 0.00 | AM12: 0.00 | AN12: 0.00 | AO12: 0.00 | AP12: 0.00 | AQ12: 0.00 | AR12: 0.00 | AS12: 0.00 | AT12: 0.00 | AU12: 0.00 | AV12: 0.00 | AW12: 0.00 | AX12: 0.00 | AY12: 0.00 | AZ12: General | BB12: 9 | BC12: DLW4 | BD12: DLW4: Dotted Line (White) @ 0.33 | BE12: =1/3 -> 0.3333333333 | BG12: Nonreflective, Preformed Removable Tape
A13: Last Tab DE Starter Row | B13: 57 | C13: =CELL("width",C13) -> 15 | D13: =CELL("width",D13) -> 16 | E13: =CELL("width",E13) -> 16 | G13: =CELL("width",G13) -> 10 | H13: 54 | I13: 4 | J13: 4 | K13: 4 | L13: 10 | M13: 10 | N13: 10 | O13: 10 | P13: 10 | Q13: 10 | R13: 10 | S13: 10 | T13: 10 | U13: 10 | V13: 10 | W13: 10 | X13: 10 | Y13: 10 | Z13: 10 | AA13: 34 | AC13: =CELL("width",AC13) -> 0 | AD13: 0 | AE13: 0 | AF13: 0 | AG13: 0 | AH13: 0 | AI13: 0 | AJ13: 0 | AK13: 0 | AL13: 0 | AM13: 0 | AN13: 0 | AO13: 0 | AP13: 0 | AQ13: 0 | AR13: 0 | AS13: 0 | AT13: 0 | AU13: 0 | AV13: 0 | AW13: 0 | AX13: 0 | AY13: 0 | AZ13: 0 | BB13: new | BC13: DLY4 | BD13: DLY4: Dotted Line (Yellow) @ 0.33 | BE13: =1/3 -> 0.3333333333 | BG13: Removal of Paint
A14: Last Tab TabSheet Starter Row | B14: 15 | C14: A | D14: B | E14: C | G14: D | H14: E | I14: F | J14: G | K14: H | L14: I | M14: J | N14: K | O14: L | P14: M | Q14: N | R14: O | S14: P | T14: Q | U14: R | V14: S | W14: T | X14: U | Y14: V | Z14: W | AA14: X | AC14: =LOWER(C14) -> a | AD14: =LOWER(D14) -> b | AE14: =LOWER(E14) -> c | AF14: =LOWER(G14) -> d | AG14: e | AH14: f | AI14: g | AJ14: h | AK14: i | AL14: j | AM14: k | AN14: l | AO14: m | AP14: n | AQ14: o | AR14: p | AS14: q | AT14: r | AU14: s | AV14: t | AW14: u | AX14: v | AY14: w | AZ14: x | BB14: 7 | BC14: ELW4 | BD14: ELW4: Edge Line Right (White) @ 1.00 | BE14: 1 | BG14: Removal of Permanent Tape
A15: Last Copy Starter Row | B15: 1 | F15: =BB2 -> Old 9001 | H15: =BC2 -> Line Types (See PM-110) | AC15: 108-22 | BB15: 8 | BC15: ELY4 | BD15: ELY4: Edge Line Left (Yellow) @ 1.00 | BE15: 1 | BG15: Removal of Removable Tape
A16: Tab Loop Number | B16: 2 | F16: Detail Number | G16: Key | H16: Description | I16: Factor | J16: 0 | AC16: =B17 -> 2013-04-16 | BB16: new | BC16: LDW8 | BD16: LDW8: Lane Drop (White) @ 0.50 | BE16: 0.5 | BG16: ="Factored Total: "&BG3 -> Factored Total: Waterborne/Solvent Paint | BH16: =SUMIF($H$57:$H$2000,$BG3,L$57:L$2000)*L$43 -> 0 | BI16: 0 | BJ16: 0 | BK16: 0 | BL16: 0 | BM16: 0 | BN16: 0 | BO16: 0 | BP16: 0 | BQ16: 0 | BR16: 0 | BS16: 0 | BT16: 0 | BU16: 0 | BV16: 0
A17: Revision Date | B17: 2013-04-16 | F17: 2 | G17: BCY4* | H17: BCY4: Broken Centerline (Yellow) @ 0.25 | I17: 0.25 | J17: 0 | AC17: =C44 -> PAVEMENT MARKING LINE TYPES | BB17: new | BC17: MNY4*** | BD17: MNY4: Median Nose (Yellow) @ 1.00 | BE17: 1 | BG17: Factored Total: Highbuild Waterborne Paint | BH17: 0 | BI17: 0 | BJ17: 0 | BK17: 0 | BL17: 0 | BM17: 0 | BN17: 0 | BO17: 0 | BP17: 0 | BQ17: 0 | BR17: 0 | BS17: 0 | BT17: 0 | BU17: 0 | BV17: 0
A18: Tabulation Width | B18: 4 | F18: 6 | G18: BLW4 | H18: BLW4: Broken Lane Line (White) @ 0.25 | I18: 0.25 | J18: 0 | BB18: 5 | BC18: NPY4** | BD18: NPY4: No Passing Zone Line (Yellow) @ 1.25 | BE18: 1.25 | BG18: Factored Total: Durable Paint | BH18: 0 | BI18: 0 | BJ18: 0 | BK18: 0 | BL18: 0 | BM18: 0 | BN18: 0 | BO18: 0 | BP18: 0 | BQ18: 0 | BR18: 0 | BS18: 0 | BT18: 0 | BU18: 0 | BV18: 0
A19: Horizontal Grid Lines | B19: Yes | F19: new | G19: CBW6 | H19: CBW6: Crosswalk Bar (White) @ 15.00 | I19: 15 | J19: 0 | AC19: =C46 -> See PM-110 | BB19: new | BC19: RLW4 | BD19: RLW4: Ramp Edge Line Right (White) @ 1.00 | BE19: 1 | BG19: Factored Total: Permanent Regular Tape | BH19: 0 | BI19: 0 | BJ19: 0 | BK19: 0 | BL19: 0 | BM19: 0 | BN19: 0 | BO19: 0 | BP19: 0 | BQ19: 0 | BR19: 0 | BS19: 0 | BT19: 0 | BU19: 0 | BV19: 0
F20: 11 | G20: CHW8 | H20: CHW8: Channelizing Line (White) @ 2.00 | I20: 2 | J20: 0 | AC20: =C47 -> *BCY4 - Place on the same side of the roadway to match existing markings near the project. | AH20: =I47 -> ***MNY4 - Factor of 1.00 as value includes number of 4-inch passes to cover median nose area. | BB20: new | BC20: RLY4 | BD20: RLY4: Ramp Edge Line Left (Yellow) @ 1.00 | BE20: 1 | BG20: Factored Total: Permanent Preform Polymer Tape | BH20: 0 | BI20: 0 | BJ20: 0 | BK20: 0 | BL20: 0 | BM20: 0 | BN20: 0 | BO20: 0 | BP20: 0 | BQ20: 0 | BR20: 0 | BS20: 0 | BT20: 0 | BU20: 0 | BV20: 0
F21: 12 | G21: CHY8 | H21: CHY8: Channelizing Line (Yellow) @ 2.00 | I21: 2 | J21: 0 | AC21: =C48 -> **NPY4 - For estimating purposes only. No Passing Zone Lines will be located in the field. | BB21: 13 | BC21: SLW2 | BD21: SLW2: Stop Line (White) @ 6.00 | BE21: 6 | BG21: Factored Total: Permanent Profiled Tape | BH21: 0 | BI21: 0 | BJ21: 0 | BK21: 0 | BL21: 0 | BM21: 0 | BN21: 0 | BO21: 0 | BP21: 0 | BQ21: 0 | BR21: 0 | BS21: 0 | BT21: 0 | BU21: 0 | BV21: 0
F22: 14 | G22: CLW6 | H22: CLW6: Crosswalk Line (White) @ 3.00 | I22: 3 | J22: 0 | AC22: =C50 -> BCY4: Broken Centerline (Yellow) @ 0.25 | AG22: =H50 -> DCY4: Double Centerline (Yellow) @ 2.00 | AL22: =L50 -> NPY4: No Passing Zone Line (Yellow) @ 1.25 | AR22: =R50 -> BLW4: Broken Lane Line (White) @ 0.25 | AX22: =X50 -> ELW4: Edge Line Right (White) @ 1.00 | BB22: 13 | BC22: SLW4 | BD22: SLW4: Solid Lane Line (White) @ 1.00 | BE22: 1 | BG22: Factored Total: Permanent Intersection Tape | BH22: 0 | BI22: 0 | BJ22: 0 | BK22: 0 | BL22: 0 | BM22: 0 | BN22: 0 | BO22: 0 | BP22: 0 | BQ22: 0 | BR22: 0 | BS22: 0 | BT22: 0 | BU22: 0 | BV22: 0
F23: 3 | G23: DCY4 | H23: DCY4: Double Centerline (Yellow) @ 2.00 | I23: 2 | J23: 0 | AC23: =C51 -> ELY4: Edge Line Left (Yellow) @ 1.00 | AG23: =H51 ->  | AL23: =L51 ->  | AR23: =R51 ->  | AX23: =X51 ->  | BB23: new | BC23: SPW4 | BD23: SPW4: Sloped Curb 4" (White) @ 3.23 | BE23: 3.23 | BG23: Factored Total: Grooves Cut for Pavement Markings | BH23: 0 | BI23: 0 | BJ23: 0 | BK23: 0 | BL23: 0 | BM23: 0 | BN23: 0 | BO23: 0 | BP23: 0 | BQ23: 0 | BR23: 0 | BS23: 0 | BT23: 0 | BU23: 0 | BV23: 0
F24: 18 | G24: DDY4 | H24: DDY4: Double Dotted Line (Yellow) @ 0.67 | I24: 0.6666666667 | J24: 0 | AC24: =C52 ->  | AG24: =H52 ->  | AL24: =L52 ->  | AR24: =R52 ->  | AX24: =X52 ->  | BB24: 16B | BC24: SPW6 | BD24: SPW6: Sloped Curb 6" (White) @ 3.40 | BE24: 3.4 | BG24: Factored Total: Wet Retroreflective Removable Tape | BH24: 0 | BI24: 0 | BJ24: 0 | BK24: 0 | BL24: 0 | BM24: 0 | BN24: 0 | BO24: 0 | BP24: 0 | BQ24: 0 | BR24: 0 | BS24: 0 | BT24: 0 | BU24: 0 | BV24: 0
F25: 9 | G25: DLW4 | H25: DLW4: Dotted Line (White) @ 0.33 | I25: 0.3333333333 | J25: 0 | AC25: =C53 -> Location | AK25: =L53 -> Length by Line Type (Unfactored) | AZ25: =AA53 -> Remarks | BB25: new | BC25: SPY4 | BD25: SPY4: Sloped Curb 4" (Yellow) @ 3.23 | BE25: 3.23 | BG25: Factored Total: Nonreflective, Preformed Removable Tape | BH25: 0 | BI25: 0 | BJ25: 0 | BK25: 0 | BL25: 0 | BM25: 0 | BN25: 0 | BO25: 0 | BP25: 0 | BQ25: 0 | BR25: 0 | BS25: 0 | BT25: 0 | BU25: 0 | BV25: 0
F26: new | G26: DLY4 | H26: DLY4: Dotted Line (Yellow) @ 0.33 | I26: 0.3333333333 | J26: 0 | AC26: =C54 -> Road ID | AD26: =D54 -> Station to Station | AF26: =G54 -> Dir. of Travel | AG26: =H54 -> Marking Type | AH26: =I54 -> Side | AK26: =IF(L54<>"",L54,"") -> BCY4* | AL26: DCY4 | AM26: NPY4** | AN26: BLW4 | AO26: ELW4 | AP26: ELY4 | BB26: 15B | BC26: SPY6 | BD26: SPY6: Sloped Curb 6" (Yellow) @ 3.40 | BE26: 3.4 | BG26: Factored Total: Removal of Paint | BH26: 0 | BI26: 0 | BJ26: 0 | BK26: 0 | BL26: 0 | BM26: 0 | BN26: 0 | BO26: 0 | BP26: 0 | BQ26: 0 | BR26: 0 | BS26: 0 | BT26: 0 | BU26: 0 | BV26: 0
F27: 7 | G27: ELW4 | H27: ELW4: Edge Line Right (White) @ 1.00 | I27: 1 | J27: 0 | BB27: 16A | BC27: STW6 | BD27: STW6: Standard Curb 6" (White) @ 3.03 | BE27: 3.03 | BG27: Factored Total: Removal of Permanent Tape | BH27: 0 | BI27: 0 | BJ27: 0 | BK27: 0 | BL27: 0 | BM27: 0 | BN27: 0 | BO27: 0 | BP27: 0 | BQ27: 0 | BR27: 0 | BS27: 0 | BT27: 0 | BU27: 0 | BV27: 0
F28: 8 | G28: ELY4 | H28: ELY4: Edge Line Left (Yellow) @ 1.00 | I28: 1 | J28: 0 | AH28: =I56 -> L | AI28: C | AJ28: R | AK28: STA | AL28: STA | AM28: STA | AN28: STA | AO28: STA | AP28: STA | AQ28: STA | AR28: STA | AS28: STA | AT28: STA | AU28: STA | AV28: STA | AW28: STA | AX28: STA | AY28: STA | BB28: 15A | BC28: STY6 | BD28: STY6: Standard Curb 6" (Yellow) @ 3.03 | BE28: 3.03 | BG28: Factored Total: Removal of Removable Tape | BH28: 0 | BI28: 0 | BJ28: 0 | BK28: 0 | BL28: 0 | BM28: 0 | BN28: 0 | BO28: 0 | BP28: 0 | BQ28: 0 | BR28: 0 | BS28: 0 | BT28: 0 | BU28: 0 | BV28: 0
F29: new | G29: LDW8 | H29: LDW8: Lane Drop (White) @ 0.50 | I29: 0.5 | J29: 0 | BB29: 17 | BC29: YLW2 | BD29: YLW2: Yield Line (White) @ 1.71 | BE29: 1.71 | BG29: Bid Quantity: Painted Pavement Markings, Waterborne or Solvent-Based | BH29: =SUMIF(BH16:BV16,">0",BH16:BV16) -> 0
F30: new | G30: MNY4*** | H30: MNY4: Median Nose (Yellow) @ 1.00 | I30: 1 | J30: 0 | BG30: Bid Quantity: Painted Pavement Markings, Highbuild Waterborne | BH30: 0
F31: 5 | G31: NPY4** | H31: NPY4: No Passing Zone Line (Yellow) @ 1.25 | I31: 1.25 | J31: 0 | BG31: Bid Quantity: Painted Pavement Markings, Durable | BH31: 0
F32: new | G32: RLW4 | H32: RLW4: Ramp Edge Line Right (White) @ 1.00 | I32: 1 | J32: 0 | BG32: Bid Quantity: Permanent Tape Markings, Regular Marking Tape | BH32: 0
F33: new | G33: RLY4 | H33: RLY4: Ramp Edge Line Left (Yellow) @ 1.00 | I33: 1 | J33: 0 | BG33: Bid Quantity: Permanent Tape Markings, Preformed Polymer Marking Material | BH33: 0
F34: 13 | G34: SLW2 | H34: SLW2: Stop Line (White) @ 6.00 | I34: 6 | J34: 0 | BG34: Bid Quantity: Permanent Tape Markings, Profiled Pavement Marking Tape | BH34: 0
F35: 13 | G35: SLW4 | H35: SLW4: Solid Lane Line (White) @ 1.00 | I35: 1 | J35: 0 | BG35: Bid Quantity: Permanent Tape Markings, Intersection Marking Tape | BH35: 0
F36: new | G36: SPW4 | H36: SPW4: Sloped Curb 4" (White) @ 3.23 | I36: 3.23 | J36: 0 | BG36: Bid Quantity: Grooves Cut for Pavement Markings | BH36: 0
F37: 16B | G37: SPW6 | H37: SPW6: Sloped Curb 6" (White) @ 3.40 | I37: 3.4 | J37: 0 | BG37: Bid Quantity: Wet Retroreflective Removable Tape Markings | BH37: 0
F38: new | G38: SPY4 | H38: SPY4: Sloped Curb 4" (Yellow) @ 3.23 | I38: 3.23 | J38: 0 | BG38: Bid Quantity: Removable, Nonreflective, Preformed Tape | BH38: 0
F39: 15B | G39: SPY6 | H39: SPY6: Sloped Curb 6" (Yellow) @ 3.40 | I39: 3.4 | J39: 0 | BG39: Bid Quantity: Pavement Markings Removed | BH39: =SUMIF(BH26:BV26,">0",BH26:BV26)+SUMIF(BH27:BV27,">0",BH27:BV27) -> 0
F40: 16A | G40: STW6 | H40: STW6: Standard Curb 6" (White) @ 3.03 | I40: 3.03 | J40: 0 | BG40: Incidental Removal of Removable Tape | BH40: =SUMIF(BH28:BV28,">0",BH28:BV28) -> 0
F41: 15A | G41: STY6 | H41: STY6: Standard Curb 6" (Yellow) @ 3.03 | I41: 3.03 | J41: 0
F42: 17 | G42: YLW2 | H42: YLW2: Yield Line (White) @ 1.71 | I42: 1.71 | J42: 0
K43: Factors: | L43: =IF(L$54<>"",VLOOKUP(L$54,$BC$4:$BE$29,3,FALSE),0) -> 0.25 | M43: 2 | N43: 1.25 | O43: 0.25 | P43: 1 | Q43: 1 | R43: 0 | S43: 0 | T43: 0 | U43: 0 | V43: 0 | W43: 0 | X43: 0 | Y43: 0 | Z43: 0
C44: PAVEMENT MARKING LINE TYPES
C46: See PM-110
C47: *BCY4 - Place on the same side of the roadway to match existing markings near the project. | I47: ***MNY4 - Factor of 1.00 as value includes number of 4-inch passes to cover median nose area.
C48: **NPY4 - For estimating purposes only. No Passing Zone Lines will be located in the field.
C49: ="This Data Entry Sheet fills Tab "&AC15&" effective "&TEXT(B17,"mm-dd-yy") -> This Data Entry Sheet fills Tab 108-22 effective 04-16-13
C50: =IF(L54<>"",VLOOKUP(L54,BC4:BE29,2,FALSE),"") -> BCY4: Broken Centerline (Yellow) @ 0.25 | H50: =IF(M54<>"",VLOOKUP(M54,BC4:BE29,2,FALSE),"") -> DCY4: Double Centerline (Yellow) @ 2.00 | L50: =IF(N54<>"",VLOOKUP(N54,BC4:BE29,2,FALSE),"") -> NPY4: No Passing Zone Line (Yellow) @ 1.25 | R50: =IF(O54<>"",VLOOKUP(O54,BC4:BE29,2,FALSE),"") -> BLW4: Broken Lane Line (White) @ 0.25 | X50: =IF(P54<>"",VLOOKUP(P54,BC4:BE29,2,FALSE),"") -> ELW4: Edge Line Right (White) @ 1.00
C51: =IF(Q54<>"",VLOOKUP(Q54,BC4:BE29,2,FALSE),"") -> ELY4: Edge Line Left (Yellow) @ 1.00 | H51: =IF(R54<>"",VLOOKUP(R54,BC4:BE29,2,FALSE),"") ->  | L51: =IF(S54<>"",VLOOKUP(S54,BC4:BE29,2,FALSE),"") ->  | R51: =IF(T54<>"",VLOOKUP(T54,BC4:BE29,2,FALSE),"") ->  | X51: =IF(U54<>"",VLOOKUP(U54,BC4:BE29,2,FALSE),"") -> 
C52: =IF(V54<>"",VLOOKUP(V54,BC4:BE29,2,FALSE),"") ->  | H52: =IF(W54<>"",VLOOKUP(W54,BC4:BE29,2,FALSE),"") ->  | L52: =IF(X54<>"",VLOOKUP(X54,BC4:BE29,2,FALSE),"") ->  | R52: =IF(Y54<>"",VLOOKUP(Y54,BC4:BE29,2,FALSE),"") ->  | X52: =IF(Z54<>"",VLOOKUP(Z54,BC4:BE29,2,FALSE),"") -> 
C53: Location | L53: Length by Line Type (Unfactored) | AA53: Remarks
C54: Road ID | D54: Station to Station | F54: Length (STA) | G54: Dir. of Travel | H54: Marking Type | I54: Side | L54: BCY4* | M54: DCY4 | N54: NPY4** | O54: BLW4 | P54: ELW4 | Q54: ELY4
I56: L | J56: C | K56: R | L56: STA | M56: STA | N56: STA | O56: STA | P56: STA | Q56: STA | R56: STA | S56: STA | T56: STA | U56: STA | V56: STA | W56: STA | X56: STA | Y56: STA | Z56: STA
F57: =(ABS(E57-D57))/100 -> 0
F58: 0
F59: 0
F60: 0
F61: 0
F62: 0
F63: 0
F64: 0
F65: 0
F66: 0
F67: 0
F68: 0
F69: 0
F70: 0
F71: 0
F72: 0
F73: 0
F74: 0
F75: 0
F76: 0
F77: 0
F78: 0
F79: 0
F80: 0
F81: 0
F82: 0
F83: 0
F84: 0
F85: 0
F86: 0
F87: 0
F88: 0
F89: 0
F90: 0
F91: 0
F92: 0
F93: 0
F94: 0
F95: 0
F96: 0
F97: 0
F98: 0
F99: 0
F100: 0
F101: 0
F102: 0
F103: 0
F104: 0
F105: 0
F106: 0
F107: 0
F108: 0
F109: 0
F110: 0
F111: 0
F112: 0
F113: 0
F114: 0
F115: 0
F116: 0
F117: 0
F118: 0
F119: 0
F120: 0
F121: =(ABS(E121-D121))/100 -> 0
F122: 0
F123: 0
F124: 0
F125: 0
F126: 0
F127: 0
F128: 0
F129: 0
F130: 0
F131: 0
F132: 0
F133: 0
F134: 0
F135: 0
F136: 0
F137: 0
F138: 0
F139: 0
F140: 0
F141: 0
F142: 0
F143: 0
F144: 0
F145: 0
F146: 0
F147: 0
F148: 0
F149: 0
F150: 0
F151: 0
F152: 0
F153: 0
F154: 0
F155: 0
F156: 0
F157: 0
F158: 0
F159: 0
F160: 0
F161: 0
F162: 0
F163: 0
F164: 0
F165: 0
F166: 0
F167: 0
F168: 0
F169: 0
F170: 0
F171: 0
F172: 0
F173: 0
F174: 0
F175: 0
F176: 0
F177: 0
F178: 0
F179: 0
F180: 0
F181: 0
F182: 0
F183: 0
F184: 0
F185: =(ABS(E185-D185))/100 -> 0
F186: 0
F187: 0
F188: 0
F189: 0
F190: 0
F191: 0
F192: 0
F193: 0
F194: 0
F195: 0
F196: 0
F197: 0
F198: 0
F199: 0
F200: 0
F201: 0
F202: 0
... 5798 more rows

Sheet DE108_27
A1: TabTitle | B1: =C16 -> TEMPORARY FLOODLIGHTING LUMINAIRES
A2: Number of Tab Columns | B2: 5
A3: DE Starter Row Number | B3: 22
A4: TabSheet Starter Row Number | B4: 8
A5: TabSheet Header Row Count | B5: 7
A6: Top Header Cell | B6: I15
A7: Bottom Header Cell | B7: M22
A8: DESheet Row Count | B8: 0
A9: Fixed Empty Rows | B9: 2
A10: Usable Empty Rows | B10: 0
A11: Total Rows Placed | B11: 2 | C11: xlRight(1) | D11: xlRight(1) | E11: xlRight(1) | F11: xlRight(1) | G11: xlLeft(1) | I11: =C11 -> xlRight(1) | J11: xlRight(1) | K11: xlRight(1) | L11: xlRight(1) | M11: xlLeft(1)
A12: Total Rows Needed | B12: =SUM(B8:B10) -> 2 | C12: General | D12: #+00.00 | E12: General | F12: 0 | G12: General | I12: General | J12: #+00.00 | K12: General | L12: 0 | M12: General
A13: Last Tab DE Starter Row | B13: 22 | C13: =CELL("width",C13) -> 5 | D13: =CELL("width",D13) -> 16 | E13: =CELL("width",E13) -> 10 | F13: =CELL("width",F13) -> 8 | G13: =CELL("width",G13) -> 35 | I13: =CELL("width",I13) -> 0 | J13: =CELL("width",J13) -> 0 | K13: =CELL("width",K13) -> 0 | L13: =CELL("width",L13) -> 0 | M13: =CELL("width",M13) -> 0
A14: Last Tab Tabsheet Starter Row | B14: 8 | C14: A | D14: B | E14: C | F14: D | G14: E | I14: =LOWER(C14) -> a | J14: =LOWER(D14) -> b | K14: =LOWER(E14) -> c | L14: =LOWER(F14) -> d | M14: =LOWER(G14) -> e
A15: Last Copy Starter Row | B15: 1 | F15: =SUBTOTAL(9,F22:F6000) -> 0 | I15: 108-27
A16: Tab Loop Number | B16: 2 | C16: TEMPORARY FLOODLIGHTING LUMINAIRES | I16: =B17 -> 2012-10-16
A17: Revision Date | B17: 2012-10-16 | I17: =C16 -> TEMPORARY FLOODLIGHTING LUMINAIRES
A18: Tabulation Width | B18: 1 | C18: ="This Data Entry Sheet fills Tab "&I15&" effective "&TEXT(B17,"mm-dd-yy") -> This Data Entry Sheet fills Tab 108-27 effective 10-16-12
A19: Horizontal Grid Lines | B19: Yes | C19: No. | D19: Location Station | E19: Offset | F19: Number Lumin. | G19: Remarks | I19: =C19 -> No. | J19: =D19 -> Location Station | K19: =E19 -> Offset | L19: =F19 -> Number Lumin. | M19: =G19 -> Remarks

Sheet DE108_29
A1: TabTitle | B1: =C16 -> PAVEMENT MARKING SYMBOLS AND LEGENDS
A2: Number of Tab Columns | B2: 27
A3: DE Starter Row Number | B3: 25
A4: TabSheet Starter Row Number | B4: 11
A5: TabSheet Header Row Count | B5: 10
A6: Top Header Cell | B6: AE15
A7: Bottom Header Cell | B7: BE24
A8: DESheet Row Count | B8: 0
A9: Fixed Empty Rows | B9: 2
A10: Usable Empty Rows | B10: 0
A11: Total Rows Placed | B11: 2 | C11: xlLeft(1) | D11: xlRight(1) | E11: xlRight(1) | F11: xlRight(1) | G11: xlRight(1) | H11: xlRight(1) | I11: xlRight(1) | J11: xlRight(1) | K11: xlRight(1) | L11: xlRight(1) | M11: xlRight(1) | N11: xlRight(1) | O11: xlRight(1) | P11: xlRight(1) | Q11: xlRight(1) | R11: xlRight(1) | S11: xlRight(1) | T11: xlRight(1) | U11: xlRight(1) | V11: xlRight(1) | W11: xlRight(1) | X11: xlRight(1) | Y11: xlRight(1) | Z11: xlRight(1) | AA11: xlRight(1) | AB11: xlRight(1) | AC11: xlLeft(1) | AE11: =C11 -> xlLeft(1) | AF11: xlRight(1) | AG11: xlRight(1) | AH11: xlRight(1) | AI11: xlRight(1) | AJ11: xlRight(1) | AK11: xlRight(1) | AL11: xlRight(1) | AM11: xlRight(1) | AN11: xlRight(1) | AO11: xlRight(1) | AP11: xlRight(1) | AQ11: =G11 -> xlRight(1) | AR11: =K11 -> xlRight(1) | AS11: xlRight(1) | AT11: xlRight(1) | AU11: xlRight(1) | AV11: xlRight(1) | AW11: xlRight(1) | AX11: xlRight(1) | AY11: xlRight(1) | AZ11: =X11 -> xlRight(1) | BA11: xlRight(1) | BB11: xlRight(1) | BC11: xlRight(1) | BD11: xlRight(1) | BE11: xlLeft(1)
A12: Total Rows Needed | B12: =SUM(B8:B10) -> 2 | C12: General | D12: #+00.00 | E12: General | F12: 0 | G12: 0 | H12: 0 | I12: 0 | J12: 0 | K12: 0 | L12: 0 | M12: 0 | N12: 0 | O12: 0 | P12: 0 | Q12: 0 | R12: 0 | S12: 0 | T12: 0 | U12: 0 | V12: 0 | W12: 0 | X12: 0 | Y12: 0 | Z12: 0 | AA12: 0 | AB12: 0 | AC12: General | AE12: General | AF12: #+00.00 | AG12: General | AH12: 0 | AI12: 0 | AJ12: 0 | AK12: 0 | AL12: 0 | AM12: 0 | AN12: 0 | AO12: 0 | AP12: 0 | AQ12: =G12 -> 0 | AR12: 0 | AS12: 0 | AT12: 0 | AU12: 0 | AV12: 0 | AW12: 0 | AX12: 0 | AY12: 0 | AZ12: 0 | BA12: 0 | BB12: 0 | BC12: 0 | BD12: 0 | BE12: General
A13: Last Tab DE Starter Row | B13: 25 | C13: =CELL("width", C13) -> 21 | D13: 16 | E13: 5 | F13: 10 | G13: 10 | H13: 10 | I13: 10 | J13: 10 | K13: 10 | L13: 10 | M13: 10 | N13: 10 | O13: 10 | P13: 10 | Q13: 10 | R13: 10 | S13: 10 | T13: 10 | U13: 10 | V13: 10 | W13: 10 | X13: 10 | Y13: 10 | Z13: 10 | AA13: 10 | AB13: 10 | AC13: 33 | AE13: =CELL("width", AE13) -> 0 | AF13: 0 | AG13: 0 | AH13: 0 | AI13: 0 | AJ13: 0 | AK13: 0 | AL13: 0 | AM13: 0 | AN13: 0 | AO13: 0 | AP13: 0 | AQ13: 0 | AR13: 0 | AS13: 0 | AT13: 0 | AU13: 0 | AV13: 0 | AW13: 0 | AX13: 0 | AY13: 0 | AZ13: 0 | BA13: 0 | BB13: 0 | BC13: 0 | BD13: 0 | BE13: 0
A14: Last Tab Tabsheet Starter Row | B14: 11 | C14: A | D14: B | E14: C | F14: D | G14: E | H14: F | I14: G | J14: H | K14: I | L14: J | M14: K | N14: L | O14: M | P14: N | Q14: O | R14: P | S14: Q | T14: R | U14: S | V14: T | W14: U | X14: V | Y14: W | Z14: X | AA14: Y | AB14: Z | AC14: AA | AE14: =LOWER(C14) -> a | AF14: b | AG14: c | AH14: d | AI14: e | AJ14: f | AK14: g | AL14: h | AM14: i | AN14: j | AO14: k | AP14: l | AQ14: m | AR14: n | AS14: o | AT14: p | AU14: q | AV14: r | AW14: s | AX14: t | AY14: u | AZ14: v | BA14: w | BB14: x | BC14: y | BD14: z | BE14: aa
A15: Last Copy Starter Row | B15: 1 | E15: Totals: | F15: =SUBTOTAL(9,F25:F600) -> 0 | G15: =SUBTOTAL(9,G25:G600) -> 0 | H15: 0 | I15: 0 | J15: 0 | K15: 0 | L15: 0 | M15: 0 | N15: 0 | O15: 0 | P15: 0 | Q15: 0 | R15: 0 | S15: 0 | T15: 0 | U15: 0 | V15: 0 | W15: 0 | X15: 0 | Y15: 0 | Z15: 0 | AA15: 0 | AB15: 0 | AE15: 108-29
A16: Tab Loop Number | B16: 2 | C16: PAVEMENT MARKING SYMBOLS AND LEGENDS | AE16: =B17 -> 2015-04-21
A17: Revision Date | B17: 2015-04-21 | AE17: =$C$16 -> PAVEMENT MARKING SYMBOLS AND LEGENDS
A18: Tabulation Width | B18: 4 | C18: Refer to PM-111
A19: Horizontal Grid Lines | B19: Yes | C19: ="This Data Entry Sheet fills Tab "&AE15&" effective "&TEXT(B17,"mm-dd-yy") -> This Data Entry Sheet fills Tab 108-29 effective 04-21-15 | AE19: =C18 -> Refer to PM-111
C20: Road Identification | D20: Location | AB20: Groove Cuts | AC20: Remarks | AE20: =C20 -> Road Identification | AF20: =D20 -> Location | BD20: =AB20 -> Groove Cuts | BE20: =$AC$20 -> Remarks
D21: Station | E21: Side | AF21: =D21 -> Station | AG21: =E21 -> Side
F24: STAW | G24: RTAW | H24: LTAW | I24: CSRW | J24: CSLW | K24: CSTW | L24: CRLW | M24: FERW | N24: LLRW | O24: RLRW | P24: RRCW | Q24: BLSW | R24: WCSW | S24: WPSB | T24: SCLW | U24: XNGW | V24: STPW | W24: AHDW | X24: ONLW | Y24: BIKW | Z24: LANW | AA24: XITW | AB24: EACH | AH24: =F24 -> STAW | AI24: RTAW | AJ24: LTAW | AK24: CSRW | AL24: CSLW | AM24: CSTW | AN24: CRLW | AO24: FERW | AP24: LLRW | AQ24: RLRW | AR24: RRCW | AS24: BLSW | AT24: WCSW | AU24: WPSB | AV24: SCLW | AW24: XNGW | AX24: STPW | AY24: AHDW | AZ24: ONLW | BA24: BIKW | BB24: LANW | BC24: XITW | BD24: EACH

Sheet DE108_30
A1: TabTitle | B1: =C16 -> CRASH CUSHIONS
A2: Number of Tab Columns | B2: 21
A3: DE Starter Row Number | B3: 32
A4: TabSheet Starter Row Number | B4: 18
A5: TabSheet Header Row Count | B5: 17
A6: Top Header Cell | B6: Y15
A7: Bottom Header Cell | B7: AS31
A8: DESheet Row Count | B8: 0
A9: Fixed Empty Rows | B9: 2
A10: Usable Empty Rows | B10: 0
A11: Total Rows Placed | B11: 2 | C11: xlRight(1) | D11: xlCenter | E11: xlRight(1) | F11: xlCenter | G11: xlRight(1) | H11: xlCenter | I11: xlCenter | J11: xlCenter | K11: xlCenter | L11: xlCenter | M11: xlRight(1) | N11: xlRight(1) | O11: xlRight(1) | P11: xlRight(1) | Q11: xlRight(1) | R11: xlRight(1) | S11: xlRight(1) | T11: xlRight(1) | U11: xlRight(1) | V11: xlLeft(1) | W11: xlLeft(1) | Y11: =C11 -> xlRight(1) | Z11: xlCenter | AA11: xlRight(1) | AB11: xlCenter | AC11: xlRight(1) | AD11: xlCenter | AE11: xlCenter | AF11: xlCenter | AG11: xlCenter | AH11: xlCenter | AI11: xlRight(1) | AJ11: xlRight(1) | AK11: xlRight(1) | AL11: xlRight(1) | AM11: xlRight(1) | AN11: xlRight(1) | AO11: =S11 -> xlRight(1) | AP11: xlRight(1) | AQ11: xlRight(1) | AR11: xlLeft(1) | AS11: xlLeft(1)
A12: Total Rows Needed | B12: =SUM(B8:B10) -> 2 | C12: General | D12: General | E12: #+00.00 | F12: General | G12: 0.00 | H12: General | I12: General | J12: General | K12: General | L12: General | M12: 0.00 | N12: 0.00 | O12: 0.00 | P12: 0.00 | Q12: 0.00 | R12: 0.0 | S12: 0.0 | T12: 0 | U12: 0 | V12: General | W12: General | Y12: General | Z12: General | AA12: #+00.00 | AB12: General | AC12: 0.00 | AD12: General | AE12: General | AF12: General | AG12: General | AH12: General | AI12: 0.00 | AJ12: 0.00 | AK12: 0.00 | AL12: 0.00 | AM12: 0.00 | AN12: 0.0 | AO12: 0.0 | AP12: 0 | AQ12: 0 | AR12: General | AS12: General
A13: Last Tab DE Starter Row | B13: 32 | C13: =CELL("width", C13) -> 6 | D13: 6 | E13: 18 | F13: 6 | G13: 9 | H13: 9 | I13: 9 | J13: 9 | K13: 9 | L13: 9 | M13: 9 | N13: 9 | O13: 9 | P13: 9 | Q13: 9 | R13: 9 | S13: 9 | T13: 9 | U13: 9 | V13: 40 | W13: 13 | Y13: =CELL("width", Y13) -> 0 | Z13: 0 | AA13: 0 | AB13: 0 | AC13: 0 | AD13: 0 | AE13: 0 | AF13: 0 | AG13: 0 | AH13: 0 | AI13: 0 | AJ13: 0 | AK13: 0 | AL13: 0 | AM13: 0 | AN13: 0 | AO13: 0 | AP13: 0 | AQ13: 0 | AR13: 0 | AS13: 0
A14: Last Tab Tabsheet Starter Row | B14: 18 | C14: A | D14: B | E14: C | F14: D | G14: E | H14: F | I14: G | J14: H | K14: I | L14: J | M14: K | N14: L | O14: M | P14: N | Q14: O | R14: P | S14: Q | T14: R | U14: S | V14: T | W14: U | Y14: =LOWER(C14) -> a | Z14: b | AA14: c | AB14: d | AC14: e | AD14: f | AE14: g | AF14: h | AG14: i | AH14: j | AI14: k | AJ14: l | AK14: m | AL14: n | AM14: o | AN14: p | AO14: q | AP14: r | AQ14: s | AR14: t | AS14: u
A15: Last Copy Starter Row | B15: 1 | G15: Totals: | H15: =COUNTA(H32:H6000) -> 0 | I15: =COUNTA(I32:I6000) -> 0 | J15: =COUNTA(J32:J6000) -> 0 | K15: =COUNTA(K32:K6000) -> 0 | L15: =COUNTA(L32:L6000) -> 0 | R15: =SUBTOTAL(9,R31:R6000) -> 0 | S15: =SUBTOTAL(9,S31:S6000) -> 0 | T15: =SUBTOTAL(9,T31:T6000,U31:U6000) -> 0 | Y15: 108-30
A16: Tab Loop Number | B16: 2 | C16: CRASH CUSHIONS | Y16: =B17 -> 2013-04-16
A17: Revision Date | B17: 2013-04-16 | Y17: =C16 -> CRASH CUSHIONS
A18: Tabulation Width | B18: 3
A19: Horizontal Grid Lines | B19: Yes | C19: * Bid Item
C20: Lane(s) to which the installation is adjacent. | Y20: =C19 -> * Bid Item
C21: Complete this section when using the Temporary Crash Cushion bid item and Earthwork is needed for Sand Barrel placement. Refer to BA-500 | Y21: =C20 -> Lane(s) to which the installation is adjacent.
C22: ="This Data Entry Sheet fills Tab "&Y15&" effective "&TEXT(B17,"mm-dd-yy") -> This Data Entry Sheet fills Tab 108-30 effective 04-16-13 | Y22: =C21 -> Complete this section when using the Temporary Crash Cushion bid item and Earthwork is needed for Sand Barrel placement. Refer to BA-500
C23: No. | D23: Direction of Traffic | E23: Location Station | F23: Side | G23: Obstacle Width | H23: Crash Cushion (Select One)* | M23: Sand Barrel Details | R23: Earthwork* | T23: Spare Parts Kit (Select One)* | V23: Obstacle Description | W23: Remarks | Y23: =C23 -> No. | Z23: Direction of Traffic | AA23: Location Station | AB23: Side | AC23: Obstacle Width | AD23: Crash Cushion (Select One)* | AI23: =M23 -> Sand Barrel Details | AN23: =R23 -> Earthwork* | AP23: =T23 -> Spare Parts Kit (Select One)* | AR23: =V23 -> Obstacle Description | AS23: =W23 -> Remarks
H25: Temporary | I25: Temporary Redirective | J25: Temporary Severe Use | K25: Permanent | L25: Permanent Severe Use | R25: Excavation Class 10 | S25: Embankment in Place | AD25: =H25 -> Temporary | AE25: =I25 -> Temporary Redirective | AF25: =J25 -> Temporary Severe Use | AG25: =K25 -> Permanent | AH25: =L25 -> Permanent Severe Use | AN25: =R25 -> Excavation Class 10 | AO25: =S25 -> Embankment in Place
T26: Permanent | U26: Permanent Severe Use | AP26: =T26 -> Permanent | AQ26: =U26 -> Permanent Severe Use
M28: Length | N28: Length | O28: Length | P28: Length | Q28: Length | AI28: =M28 -> Length | AJ28: =N28 -> Length | AK28: =O28 -> Length | AL28: =P28 -> Length | AM28: =Q28 -> Length
G31: FT | H31: EACH | I31: EACH | J31: EACH | K31: EACH | L31: EACH | M31: FT | N31: FT | O31: FT | P31: FT | Q31: FT | R31: CY | S31: CY | T31: EACH | U31: EACH | AC31: =G31 -> FT | AI31: =M31 -> FT | AJ31: FT | AK31: FT | AL31: FT | AM31: FT | AN31: CY | AO31: CY | AP31: EACH | AQ31: EACH
N32: =IF(AND(G32<>"",H32<>""),IF(G32<=3.5,24.25,IF(AND(G32>3.5,G32<=10.58),25,IF(AND(G32>10.58,G32<=17.75),25.75,26.6))),"") ->  | O32: =IF(N32<>"",IF(N32=24.25,M32+5.25,IF(N32=25,M32+12.25,IF(N32=25.75,M32+19.25,M32+26.25))),"") ->  | P32: =IF(N32<>"",IF(N32=24.25,M32+3.25,IF(N32=25,M32+10,IF(N32=25.75,M32+17,M32+24))),"") ->  | Q32: =IF(N32<>"",IF(N32=24.25,(3.73*M32)+12,IF(N32=25,(3.73*M32)+38,IF(N32=25.75,(3.73*M32)+64,(3.73*M32)+89))),"") -> 
N96: =IF(AND(G96<>"",H96<>""),IF(G96<=3.5,24.25,IF(AND(G96>3.5,G96<=10.58),25,IF(AND(G96>10.58,G96<=17.75),25.75,26.6))),"") ->  | O96: =IF(N96<>"",IF(N96=24.25,M96+5.25,IF(N96=25,M96+12.25,IF(N96=25.75,M96+19.25,M96+26.25))),"") ->  | P96: =IF(N96<>"",IF(N96=24.25,M96+3.25,IF(N96=25,M96+10,IF(N96=25.75,M96+17,M96+24))),"") ->  | Q96: =IF(N96<>"",IF(N96=24.25,(3.73*M96)+12,IF(N96=25,(3.73*M96)+38,IF(N96=25.75,(3.73*M96)+64,(3.73*M96)+89))),"") -> 
N160: =IF(AND(G160<>"",H160<>""),IF(G160<=3.5,24.25,IF(AND(G160>3.5,G160<=10.58),25,IF(AND(G160>10.58,G160<=17.75),25.75,26.6))),"") ->  | O160: =IF(N160<>"",IF(N160=24.25,M160+5.25,IF(N160=25,M160+12.25,IF(N160=25.75,M160+19.25,M160+26.25))),"") ->  | P160: =IF(N160<>"",IF(N160=24.25,M160+3.25,IF(N160=25,M160+10,IF(N160=25.75,M160+17,M160+24))),"") ->  | Q160: =IF(N160<>"",IF(N160=24.25,(3.73*M160)+12,IF(N160=25,(3.73*M160)+38,IF(N160=25.75,(3.73*M160)+64,(3.73*M160)+89))),"") -> 
N224: =IF(AND(G224<>"",H224<>""),IF(G224<=3.5,24.25,IF(AND(G224>3.5,G224<=10.58),25,IF(AND(G224>10.58,G224<=17.75),25.75,26.6))),"") ->  | O224: =IF(N224<>"",IF(N224=24.25,M224+5.25,IF(N224=25,M224+12.25,IF(N224=25.75,M224+19.25,M224+26.25))),"") ->  | P224: =IF(N224<>"",IF(N224=24.25,M224+3.25,IF(N224=25,M224+10,IF(N224=25.75,M224+17,M224+24))),"") ->  | Q224: =IF(N224<>"",IF(N224=24.25,(3.73*M224)+12,IF(N224=25,(3.73*M224)+38,IF(N224=25.75,(3.73*M224)+64,(3.73*M224)+89))),"") -> 
N288: =IF(AND(G288<>"",H288<>""),IF(G288<=3.5,24.25,IF(AND(G288>3.5,G288<=10.58),25,IF(AND(G288>10.58,G288<=17.75),25.75,26.6))),"") ->  | O288: =IF(N288<>"",IF(N288=24.25,M288+5.25,IF(N288=25,M288+12.25,IF(N288=25.75,M288+19.25,M288+26.25))),"") ->  | P288: =IF(N288<>"",IF(N288=24.25,M288+3.25,IF(N288=25,M288+10,IF(N288=25.75,M288+17,M288+24))),"") ->  | Q288: =IF(N288<>"",IF(N288=24.25,(3.73*M288)+12,IF(N288=25,(3.73*M288)+38,IF(N288=25.75,(3.73*M288)+64,(3.73*M288)+89))),"") -> 
N352: =IF(AND(G352<>"",H352<>""),IF(G352<=3.5,24.25,IF(AND(G352>3.5,G352<=10.58),25,IF(AND(G352>10.58,G352<=17.75),25.75,26.6))),"") ->  | O352: =IF(N352<>"",IF(N352=24.25,M352+5.25,IF(N352=25,M352+12.25,IF(N352=25.75,M352+19.25,M352+26.25))),"") ->  | P352: =IF(N352<>"",IF(N352=24.25,M352+3.25,IF(N352=25,M352+10,IF(N352=25.75,M352+17,M352+24))),"") ->  | Q352: =IF(N352<>"",IF(N352=24.25,(3.73*M352)+12,IF(N352=25,(3.73*M352)+38,IF(N352=25.75,(3.73*M352)+64,(3.73*M352)+89))),"") -> 
N416: =IF(AND(G416<>"",H416<>""),IF(G416<=3.5,24.25,IF(AND(G416>3.5,G416<=10.58),25,IF(AND(G416>10.58,G416<=17.75),25.75,26.6))),"") ->  | O416: =IF(N416<>"",IF(N416=24.25,M416+5.25,IF(N416=25,M416+12.25,IF(N416=25.75,M416+19.25,M416+26.25))),"") ->  | P416: =IF(N416<>"",IF(N416=24.25,M416+3.25,IF(N416=25,M416+10,IF(N416=25.75,M416+17,M416+24))),"") ->  | Q416: =IF(N416<>"",IF(N416=24.25,(3.73*M416)+12,IF(N416=25,(3.73*M416)+38,IF(N416=25.75,(3.73*M416)+64,(3.73*M416)+89))),"") -> 
N480: =IF(AND(G480<>"",H480<>""),IF(G480<=3.5,24.25,IF(AND(G480>3.5,G480<=10.58),25,IF(AND(G480>10.58,G480<=17.75),25.75,26.6))),"") ->  | O480: =IF(N480<>"",IF(N480=24.25,M480+5.25,IF(N480=25,M480+12.25,IF(N480=25.75,M480+19.25,M480+26.25))),"") ->  | P480: =IF(N480<>"",IF(N480=24.25,M480+3.25,IF(N480=25,M480+10,IF(N480=25.75,M480+17,M480+24))),"") ->  | Q480: =IF(N480<>"",IF(N480=24.25,(3.73*M480)+12,IF(N480=25,(3.73*M480)+38,IF(N480=25.75,(3.73*M480)+64,(3.73*M480)+89))),"") -> 
N544: =IF(AND(G544<>"",H544<>""),IF(G544<=3.5,24.25,IF(AND(G544>3.5,G544<=10.58),25,IF(AND(G544>10.58,G544<=17.75),25.75,26.6))),"") ->  | O544: =IF(N544<>"",IF(N544=24.25,M544+5.25,IF(N544=25,M544+12.25,IF(N544=25.75,M544+19.25,M544+26.25))),"") ->  | P544: =IF(N544<>"",IF(N544=24.25,M544+3.25,IF(N544=25,M544+10,IF(N544=25.75,M544+17,M544+24))),"") ->  | Q544: =IF(N544<>"",IF(N544=24.25,(3.73*M544)+12,IF(N544=25,(3.73*M544)+38,IF(N544=25.75,(3.73*M544)+64,(3.73*M544)+89))),"") -> 
N608: =IF(AND(G608<>"",H608<>""),IF(G608<=3.5,24.25,IF(AND(G608>3.5,G608<=10.58),25,IF(AND(G608>10.58,G608<=17.75),25.75,26.6))),"") ->  | O608: =IF(N608<>"",IF(N608=24.25,M608+5.25,IF(N608=25,M608+12.25,IF(N608=25.75,M608+19.25,M608+26.25))),"") ->  | P608: =IF(N608<>"",IF(N608=24.25,M608+3.25,IF(N608=25,M608+10,IF(N608=25.75,M608+17,M608+24))),"") ->  | Q608: =IF(N608<>"",IF(N608=24.25,(3.73*M608)+12,IF(N608=25,(3.73*M608)+38,IF(N608=25.75,(3.73*M608)+64,(3.73*M608)+89))),"") -> 
N672: =IF(AND(G672<>"",H672<>""),IF(G672<=3.5,24.25,IF(AND(G672>3.5,G672<=10.58),25,IF(AND(G672>10.58,G672<=17.75),25.75,26.6))),"") ->  | O672: =IF(N672<>"",IF(N672=24.25,M672+5.25,IF(N672=25,M672+12.25,IF(N672=25.75,M672+19.25,M672+26.25))),"") ->  | P672: =IF(N672<>"",IF(N672=24.25,M672+3.25,IF(N672=25,M672+10,IF(N672=25.75,M672+17,M672+24))),"") ->  | Q672: =IF(N672<>"",IF(N672=24.25,(3.73*M672)+12,IF(N672=25,(3.73*M672)+38,IF(N672=25.75,(3.73*M672)+64,(3.73*M672)+89))),"") -> 
N736: =IF(AND(G736<>"",H736<>""),IF(G736<=3.5,24.25,IF(AND(G736>3.5,G736<=10.58),25,IF(AND(G736>10.58,G736<=17.75),25.75,26.6))),"") ->  | O736: =IF(N736<>"",IF(N736=24.25,M736+5.25,IF(N736=25,M736+12.25,IF(N736=25.75,M736+19.25,M736+26.25))),"") ->  | P736: =IF(N736<>"",IF(N736=24.25,M736+3.25,IF(N736=25,M736+10,IF(N736=25.75,M736+17,M736+24))),"") ->  | Q736: =IF(N736<>"",IF(N736=24.25,(3.73*M736)+12,IF(N736=25,(3.73*M736)+38,IF(N736=25.75,(3.73*M736)+64,(3.73*M736)+89))),"") -> 
N800: =IF(AND(G800<>"",H800<>""),IF(G800<=3.5,24.25,IF(AND(G800>3.5,G800<=10.58),25,IF(AND(G800>10.58,G800<=17.75),25.75,26.6))),"") ->  | O800: =IF(N800<>"",IF(N800=24.25,M800+5.25,IF(N800=25,M800+12.25,IF(N800=25.75,M800+19.25,M800+26.25))),"") ->  | P800: =IF(N800<>"",IF(N800=24.25,M800+3.25,IF(N800=25,M800+10,IF(N800=25.75,M800+17,M800+24))),"") ->  | Q800: =IF(N800<>"",IF(N800=24.25,(3.73*M800)+12,IF(N800=25,(3.73*M800)+38,IF(N800=25.75,(3.73*M800)+64,(3.73*M800)+89))),"") -> 
N864: =IF(AND(G864<>"",H864<>""),IF(G864<=3.5,24.25,IF(AND(G864>3.5,G864<=10.58),25,IF(AND(G864>10.58,G864<=17.75),25.75,26.6))),"") ->  | O864: =IF(N864<>"",IF(N864=24.25,M864+5.25,IF(N864=25,M864+12.25,IF(N864=25.75,M864+19.25,M864+26.25))),"") ->  | P864: =IF(N864<>"",IF(N864=24.25,M864+3.25,IF(N864=25,M864+10,IF(N864=25.75,M864+17,M864+24))),"") ->  | Q864: =IF(N864<>"",IF(N864=24.25,(3.73*M864)+12,IF(N864=25,(3.73*M864)+38,IF(N864=25.75,(3.73*M864)+64,(3.73*M864)+89))),"") -> 
N928: =IF(AND(G928<>"",H928<>""),IF(G928<=3.5,24.25,IF(AND(G928>3.5,G928<=10.58),25,IF(AND(G928>10.58,G928<=17.75),25.75,26.6))),"") ->  | O928: =IF(N928<>"",IF(N928=24.25,M928+5.25,IF(N928=25,M928+12.25,IF(N928=25.75,M928+19.25,M928+26.25))),"") ->  | P928: =IF(N928<>"",IF(N928=24.25,M928+3.25,IF(N928=25,M928+10,IF(N928=25.75,M928+17,M928+24))),"") ->  | Q928: =IF(N928<>"",IF(N928=24.25,(3.73*M928)+12,IF(N928=25,(3.73*M928)+38,IF(N928=25.75,(3.73*M928)+64,(3.73*M928)+89))),"") -> 
N992: =IF(AND(G992<>"",H992<>""),IF(G992<=3.5,24.25,IF(AND(G992>3.5,G992<=10.58),25,IF(AND(G992>10.58,G992<=17.75),25.75,26.6))),"") ->  | O992: =IF(N992<>"",IF(N992=24.25,M992+5.25,IF(N992=25,M992+12.25,IF(N992=25.75,M992+19.25,M992+26.25))),"") ->  | P992: =IF(N992<>"",IF(N992=24.25,M992+3.25,IF(N992=25,M992+10,IF(N992=25.75,M992+17,M992+24))),"") ->  | Q992: =IF(N992<>"",IF(N992=24.25,(3.73*M992)+12,IF(N992=25,(3.73*M992)+38,IF(N992=25.75,(3.73*M992)+64,(3.73*M992)+89))),"") -> 
N1056: =IF(AND(G1056<>"",H1056<>""),IF(G1056<=3.5,24.25,IF(AND(G1056>3.5,G1056<=10.58),25,IF(AND(G1056>10.58,G1056<=17.75),25.75,26.6))),"") ->  | O1056: =IF(N1056<>"",IF(N1056=24.25,M1056+5.25,IF(N1056=25,M1056+12.25,IF(N1056=25.75,M1056+19.25,M1056+26.25))),"") ->  | P1056: =IF(N1056<>"",IF(N1056=24.25,M1056+3.25,IF(N1056=25,M1056+10,IF(N1056=25.75,M1056+17,M1056+24))),"") ->  | Q1056: =IF(N1056<>"",IF(N1056=24.25,(3.73*M1056)+12,IF(N1056=25,(3.73*M1056)+38,IF(N1056=25.75,(3.73*M1056)+64,(3.73*M1056)+89))),"") -> 
N1120: =IF(AND(G1120<>"",H1120<>""),IF(G1120<=3.5,24.25,IF(AND(G1120>3.5,G1120<=10.58),25,IF(AND(G1120>10.58,G1120<=17.75),25.75,26.6))),"") ->  | O1120: =IF(N1120<>"",IF(N1120=24.25,M1120+5.25,IF(N1120=25,M1120+12.25,IF(N1120=25.75,M1120+19.25,M1120+26.25))),"") ->  | P1120: =IF(N1120<>"",IF(N1120=24.25,M1120+3.25,IF(N1120=25,M1120+10,IF(N1120=25.75,M1120+17,M1120+24))),"") ->  | Q1120: =IF(N1120<>"",IF(N1120=24.25,(3.73*M1120)+12,IF(N1120=25,(3.73*M1120)+38,IF(N1120=25.75,(3.73*M1120)+64,(3.73*M1120)+89))),"") -> 
N1184: =IF(AND(G1184<>"",H1184<>""),IF(G1184<=3.5,24.25,IF(AND(G1184>3.5,G1184<=10.58),25,IF(AND(G1184>10.58,G1184<=17.75),25.75,26.6))),"") ->  | O1184: =IF(N1184<>"",IF(N1184=24.25,M1184+5.25,IF(N1184=25,M1184+12.25,IF(N1184=25.75,M1184+19.25,M1184+26.25))),"") ->  | P1184: =IF(N1184<>"",IF(N1184=24.25,M1184+3.25,IF(N1184=25,M1184+10,IF(N1184=25.75,M1184+17,M1184+24))),"") ->  | Q1184: =IF(N1184<>"",IF(N1184=24.25,(3.73*M1184)+12,IF(N1184=25,(3.73*M1184)+38,IF(N1184=25.75,(3.73*M1184)+64,(3.73*M1184)+89))),"") -> 
N1248: =IF(AND(G1248<>"",H1248<>""),IF(G1248<=3.5,24.25,IF(AND(G1248>3.5,G1248<=10.58),25,IF(AND(G1248>10.58,G1248<=17.75),25.75,26.6))),"") ->  | O1248: =IF(N1248<>"",IF(N1248=24.25,M1248+5.25,IF(N1248=25,M1248+12.25,IF(N1248=25.75,M1248+19.25,M1248+26.25))),"") ->  | P1248: =IF(N1248<>"",IF(N1248=24.25,M1248+3.25,IF(N1248=25,M1248+10,IF(N1248=25.75,M1248+17,M1248+24))),"") ->  | Q1248: =IF(N1248<>"",IF(N1248=24.25,(3.73*M1248)+12,IF(N1248=25,(3.73*M1248)+38,IF(N1248=25.75,(3.73*M1248)+64,(3.73*M1248)+89))),"") -> 
N1312: =IF(AND(G1312<>"",H1312<>""),IF(G1312<=3.5,24.25,IF(AND(G1312>3.5,G1312<=10.58),25,IF(AND(G1312>10.58,G1312<=17.75),25.75,26.6))),"") ->  | O1312: =IF(N1312<>"",IF(N1312=24.25,M1312+5.25,IF(N1312=25,M1312+12.25,IF(N1312=25.75,M1312+19.25,M1312+26.25))),"") ->  | P1312: =IF(N1312<>"",IF(N1312=24.25,M1312+3.25,IF(N1312=25,M1312+10,IF(N1312=25.75,M1312+17,M1312+24))),"") ->  | Q1312: =IF(N1312<>"",IF(N1312=24.25,(3.73*M1312)+12,IF(N1312=25,(3.73*M1312)+38,IF(N1312=25.75,(3.73*M1312)+64,(3.73*M1312)+89))),"") -> 
N1376: =IF(AND(G1376<>"",H1376<>""),IF(G1376<=3.5,24.25,IF(AND(G1376>3.5,G1376<=10.58),25,IF(AND(G1376>10.58,G1376<=17.75),25.75,26.6))),"") ->  | O1376: =IF(N1376<>"",IF(N1376=24.25,M1376+5.25,IF(N1376=25,M1376+12.25,IF(N1376=25.75,M1376+19.25,M1376+26.25))),"") ->  | P1376: =IF(N1376<>"",IF(N1376=24.25,M1376+3.25,IF(N1376=25,M1376+10,IF(N1376=25.75,M1376+17,M1376+24))),"") ->  | Q1376: =IF(N1376<>"",IF(N1376=24.25,(3.73*M1376)+12,IF(N1376=25,(3.73*M1376)+38,IF(N1376=25.75,(3.73*M1376)+64,(3.73*M1376)+89))),"") -> 
N1440: =IF(AND(G1440<>"",H1440<>""),IF(G1440<=3.5,24.25,IF(AND(G1440>3.5,G1440<=10.58),25,IF(AND(G1440>10.58,G1440<=17.75),25.75,26.6))),"") ->  | O1440: =IF(N1440<>"",IF(N1440=24.25,M1440+5.25,IF(N1440=25,M1440+12.25,IF(N1440=25.75,M1440+19.25,M1440+26.25))),"") ->  | P1440: =IF(N1440<>"",IF(N1440=24.25,M1440+3.25,IF(N1440=25,M1440+10,IF(N1440=25.75,M1440+17,M1440+24))),"") ->  | Q1440: =IF(N1440<>"",IF(N1440=24.25,(3.73*M1440)+12,IF(N1440=25,(3.73*M1440)+38,IF(N1440=25.75,(3.73*M1440)+64,(3.73*M1440)+89))),"") -> 
N1504: =IF(AND(G1504<>"",H1504<>""),IF(G1504<=3.5,24.25,IF(AND(G1504>3.5,G1504<=10.58),25,IF(AND(G1504>10.58,G1504<=17.75),25.75,26.6))),"") ->  | O1504: =IF(N1504<>"",IF(N1504=24.25,M1504+5.25,IF(N1504=25,M1504+12.25,IF(N1504=25.75,M1504+19.25,M1504+26.25))),"") ->  | P1504: =IF(N1504<>"",IF(N1504=24.25,M1504+3.25,IF(N1504=25,M1504+10,IF(N1504=25.75,M1504+17,M1504+24))),"") ->  | Q1504: =IF(N1504<>"",IF(N1504=24.25,(3.73*M1504)+12,IF(N1504=25,(3.73*M1504)+38,IF(N1504=25.75,(3.73*M1504)+64,(3.73*M1504)+89))),"") -> 
N1568: =IF(AND(G1568<>"",H1568<>""),IF(G1568<=3.5,24.25,IF(AND(G1568>3.5,G1568<=10.58),25,IF(AND(G1568>10.58,G1568<=17.75),25.75,26.6))),"") ->  | O1568: =IF(N1568<>"",IF(N1568=24.25,M1568+5.25,IF(N1568=25,M1568+12.25,IF(N1568=25.75,M1568+19.25,M1568+26.25))),"") ->  | P1568: =IF(N1568<>"",IF(N1568=24.25,M1568+3.25,IF(N1568=25,M1568+10,IF(N1568=25.75,M1568+17,M1568+24))),"") ->  | Q1568: =IF(N1568<>"",IF(N1568=24.25,(3.73*M1568)+12,IF(N1568=25,(3.73*M1568)+38,IF(N1568=25.75,(3.73*M1568)+64,(3.73*M1568)+89))),"") -> 
N1632: =IF(AND(G1632<>"",H1632<>""),IF(G1632<=3.5,24.25,IF(AND(G1632>3.5,G1632<=10.58),25,IF(AND(G1632>10.58,G1632<=17.75),25.75,26.6))),"") ->  | O1632: =IF(N1632<>"",IF(N1632=24.25,M1632+5.25,IF(N1632=25,M1632+12.25,IF(N1632=25.75,M1632+19.25,M1632+26.25))),"") ->  | P1632: =IF(N1632<>"",IF(N1632=24.25,M1632+3.25,IF(N1632=25,M1632+10,IF(N1632=25.75,M1632+17,M1632+24))),"") ->  | Q1632: =IF(N1632<>"",IF(N1632=24.25,(3.73*M1632)+12,IF(N1632=25,(3.73*M1632)+38,IF(N1632=25.75,(3.73*M1632)+64,(3.73*M1632)+89))),"") -> 
N1696: =IF(AND(G1696<>"",H1696<>""),IF(G1696<=3.5,24.25,IF(AND(G1696>3.5,G1696<=10.58),25,IF(AND(G1696>10.58,G1696<=17.75),25.75,26.6))),"") ->  | O1696: =IF(N1696<>"",IF(N1696=24.25,M1696+5.25,IF(N1696=25,M1696+12.25,IF(N1696=25.75,M1696+19.25,M1696+26.25))),"") ->  | P1696: =IF(N1696<>"",IF(N1696=24.25,M1696+3.25,IF(N1696=25,M1696+10,IF(N1696=25.75,M1696+17,M1696+24))),"") ->  | Q1696: =IF(N1696<>"",IF(N1696=24.25,(3.73*M1696)+12,IF(N1696=25,(3.73*M1696)+38,IF(N1696=25.75,(3.73*M1696)+64,(3.73*M1696)+89))),"") -> 
N1760: =IF(AND(G1760<>"",H1760<>""),IF(G1760<=3.5,24.25,IF(AND(G1760>3.5,G1760<=10.58),25,IF(AND(G1760>10.58,G1760<=17.75),25.75,26.6))),"") ->  | O1760: =IF(N1760<>"",IF(N1760=24.25,M1760+5.25,IF(N1760=25,M1760+12.25,IF(N1760=25.75,M1760+19.25,M1760+26.25))),"") ->  | P1760: =IF(N1760<>"",IF(N1760=24.25,M1760+3.25,IF(N1760=25,M1760+10,IF(N1760=25.75,M1760+17,M1760+24))),"") ->  | Q1760: =IF(N1760<>"",IF(N1760=24.25,(3.73*M1760)+12,IF(N1760=25,(3.73*M1760)+38,IF(N1760=25.75,(3.73*M1760)+64,(3.73*M1760)+89))),"") -> 
N1824: =IF(AND(G1824<>"",H1824<>""),IF(G1824<=3.5,24.25,IF(AND(G1824>3.5,G1824<=10.58),25,IF(AND(G1824>10.58,G1824<=17.75),25.75,26.6))),"") ->  | O1824: =IF(N1824<>"",IF(N1824=24.25,M1824+5.25,IF(N1824=25,M1824+12.25,IF(N1824=25.75,M1824+19.25,M1824+26.25))),"") ->  | P1824: =IF(N1824<>"",IF(N1824=24.25,M1824+3.25,IF(N1824=25,M1824+10,IF(N1824=25.75,M1824+17,M1824+24))),"") ->  | Q1824: =IF(N1824<>"",IF(N1824=24.25,(3.73*M1824)+12,IF(N1824=25,(3.73*M1824)+38,IF(N1824=25.75,(3.73*M1824)+64,(3.73*M1824)+89))),"") -> 
N1888: =IF(AND(G1888<>"",H1888<>""),IF(G1888<=3.5,24.25,IF(AND(G1888>3.5,G1888<=10.58),25,IF(AND(G1888>10.58,G1888<=17.75),25.75,26.6))),"") ->  | O1888: =IF(N1888<>"",IF(N1888=24.25,M1888+5.25,IF(N1888=25,M1888+12.25,IF(N1888=25.75,M1888+19.25,M1888+26.25))),"") ->  | P1888: =IF(N1888<>"",IF(N1888=24.25,M1888+3.25,IF(N1888=25,M1888+10,IF(N1888=25.75,M1888+17,M1888+24))),"") ->  | Q1888: =IF(N1888<>"",IF(N1888=24.25,(3.73*M1888)+12,IF(N1888=25,(3.73*M1888)+38,IF(N1888=25.75,(3.73*M1888)+64,(3.73*M1888)+89))),"") -> 
N1952: =IF(AND(G1952<>"",H1952<>""),IF(G1952<=3.5,24.25,IF(AND(G1952>3.5,G1952<=10.58),25,IF(AND(G1952>10.58,G1952<=17.75),25.75,26.6))),"") ->  | O1952: =IF(N1952<>"",IF(N1952=24.25,M1952+5.25,IF(N1952=25,M1952+12.25,IF(N1952=25.75,M1952+19.25,M1952+26.25))),"") ->  | P1952: =IF(N1952<>"",IF(N1952=24.25,M1952+3.25,IF(N1952=25,M1952+10,IF(N1952=25.75,M1952+17,M1952+24))),"") ->  | Q1952: =IF(N1952<>"",IF(N1952=24.25,(3.73*M1952)+12,IF(N1952=25,(3.73*M1952)+38,IF(N1952=25.75,(3.73*M1952)+64,(3.73*M1952)+89))),"") -> 
... 39 more rows

Sheet DE108_33
A1: TabTitle | B1: =C16 -> TEMPORARY BARRIER RAIL
A2: Number of Tab Columns | B2: 9
A3: DE Starter Row Number | B3: 26
A4: TabSheet Starter Row Number | B4: 12
A5: TabSheet Header Row Count | B5: 11
A6: Top Header Cell | B6: M15
A7: Bottom Header Cell | B7: U25
A8: DESheet Row Count | B8: 0
A9: Fixed Empty Rows | B9: 2
A10: Usable Empty Rows | B10: 0
A11: Total Rows Placed | B11: 2 | C11: xlRight(1) | D11: xlRight(1) | E11: xlRight(1) | F11: xlRight(1) | G11: xlRight(1) | H11: xlRight(1) | I11: xlRight(1) | J11: xlRight(1) | K11: xlLeft(1) | M11: =C11 -> xlRight(1) | N11: xlRight(1) | O11: xlRight(1) | P11: xlRight(1) | Q11: xlRight(1) | R11: xlRight(1) | S11: xlRight(1) | T11: xlRight(1) | U11: xlLeft(1)
A12: Total Rows Needed | B12: =SUM(B8:B10) -> 2 | C12: General | D12: #+00.00 | E12: #+00.00 | F12: 0.0 | G12: General | H12: General | I12: General | J12: General | K12: General | M12: General | N12: #+00.00 | O12: #+00.00 | P12: 0.0 | Q12: General | R12: General | S12: General | T12: General | U12: General
A13: Last Tab DE Starter Row | B13: 26 | C13: =CELL("width", C13) -> 6 | D13: 16 | E13: 16 | F13: 12 | G13: 12 | H13: 12 | I13: 14 | J13: 16 | K13: 48 | M13: =CELL("width", M13) -> 0 | N13: 0 | O13: 0 | P13: 0 | Q13: 0 | R13: 0 | S13: 0 | T13: 0 | U13: 0
A14: Last Tab Tabsheet Starter Row | B14: 12 | C14: A | D14: B | E14: C | F14: D | G14: E | H14: F | I14: G | J14: H | K14: I | M14: =LOWER(C14) -> a | N14: b | O14: c | P14: d | Q14: e | R14: f | S14: g | T14: h | U14: i
A15: Last Copy Starter Row | B15: 1 | F15: Totals: | G15: =SUMIF(G26:G6000,">""",F26:F6000) -> 0 | H15: =SUMIF(H26:H6000,">""",F26:F6000) -> 0 | M15: 108-33 | W15: =I23 -> Anchored*
A16: Tab Loop Number | B16: 2 | C16: TEMPORARY BARRIER RAIL | M16: =B17 -> 2016-04-19 | W16: Yes
A17: Revision Date | B17: 2016-04-19 | M17: =C16 -> TEMPORARY BARRIER RAIL | W17: No
A18: Tabulation Width | B18: 2 | C18: Possible Standards: BA-400, BA-401
A19: Horizontal Grid Lines | B19: Yes | C19: * Not a bid item. Anchorage requirements are based on TBR locations shown in the plans. TBR alignments that vary from what is shown in the plans may result in additional TBR sections requiring anchorage. | M19: =C18 -> Possible Standards: BA-400, BA-401
M20: =C19 -> * Not a bid item. Anchorage requirements are based on TBR locations shown in the plans. TBR alignments that vary from what is shown in the plans may result in additional TBR sections requiring anchorage.
C22: ="This Data Entry Sheet fills Tab "&M15&" effective "&TEXT(B17,"mm-dd-yy") -> This Data Entry Sheet fills Tab 108-33 effective 04-19-16
C23: No. | D23: Station to Station | F23: Length | G23: (Select One) | I23: Anchored* | J23: Modular Glare Screen System | K23: Remarks | M23: =C23 -> No. | N23: =D23 -> Station to Station | P23: =F23 -> Length | Q23: =G23 -> (Select One) | S23: =I23 -> Anchored* | T23: =J23 -> Modular Glare Screen System | U23: =K23 -> Remarks
G24: Steel BA-400 | H24: Concrete BA-401 | Q24: =G24 -> Steel BA-400 | R24: =H24 -> Concrete BA-401
F25: LF | I25: (Y/N) | J25: (Y/N) | P25: =F25 -> LF | S25: =I25 -> (Y/N) | T25: =J25 -> (Y/N)

Sheet DE108_35
A1: TabTitle | B1: =C16 -> TEMPORARY LANE SEPARATOR SYSTEM
A2: Number of Tab Columns | B2: 4
A3: DE Starter Row Number | B3: 22
A4: TabSheet Starter Row Number | B4: 8
A5: TabSheet Header Row Count | B5: 7
A6: Top Header Cell | B6: H15
A7: Bottom Header Cell | B7: K21
A8: DESheet Row Count | B8: 0
A9: Fixed Empty Rows | B9: 2
A10: Usable Empty Rows | B10: 0
A11: Total Rows Placed | B11: 0 | C11: xlRight(1) | D11: xlRight(1) | E11: xlRight(1) | F11: xlLeft(1) | H11: =C11 -> xlRight(1) | I11: xlRight(1) | J11: xlRight(1) | K11: xlLeft(1)
A12: Total Rows Needed | B12: =SUM(B8:B10) -> 2 | C12: #+00.00 | D12: #+00.00 | E12: 0 | F12: General | H12: #+00.00 | I12: #+00.00 | J12: 0 | K12: General
A13: Last Tab DE Starter Row | B13: 22 | C13: =CELL("width",C13) -> 16 | D13: 16 | E13: 12 | F13: 31 | H13: =CELL("width",H13) -> 0 | I13: 0 | J13: 0 | K13: 0
A14: Last Tab Tabsheet Starter Row | B14: 8 | C14: A | D14: B | E14: C | F14: D | H14: =LOWER(C14) -> a | I14: =LOWER(D14) -> b | J14: =LOWER(E14) -> c | K14: =LOWER(F14) -> d
A15: Last Copy Starter Row | B15: 1 | D15: Total: | E15: =SUBTOTAL(9,E22:E6000) -> 0 | H15: 108-35
A16: Tab Loop Number | B16: 1 | C16: TEMPORARY LANE SEPARATOR SYSTEM | H16: =B17 -> 2012-04-17
A17: Revision Date | B17: 2012-04-17 | H17: =C16 -> TEMPORARY LANE SEPARATOR SYSTEM
A18: Tabulation Width | B18: 1 | C18: See TC-61
A19: Horizontal Grid Lines | B19: Yes | C19: ="This Data Entry Sheet fills Tab "&H15&" effective "&TEXT(B17,"mm-dd-yy") -> This Data Entry Sheet fills Tab 108-35 effective 04-17-12 | H19: =C18 -> See TC-61
C20: Station to Station | E20: Length | F20: Remarks | H20: =C20 -> Station to Station | J20: =E20 -> Length | K20: =F20 -> Remarks
E21: LF | J21: =E21 -> LF

Sheet DE110_1
A1: TabTitle | B1: =C16 -> REMOVAL OF PAVEMENT
A2: Number of Tab Columns | B2: 7
A3: DE Starter Row Number | B3: 26
A4: TabSheet Starter Row Number | B4: 12
A5: TabSheet Header Row Count | B5: 11
A6: Top Header Cell | B6: N15
A7: Bottom Header Cell | B7: T25
A8: DESheet Row Count | B8: 0
A9: Fixed Empty Rows | B9: 2
A10: Usable Empty Rows | B10: 0
A11: Total Rows Placed | B11: 2 | C11: xlRight(1) | D11: xlRight(1) | E11: xlCenter | F11: xlCenter | J11: xlRight(1) | K11: xlRight(1) | L11: xlLeft(1) | N11: =C11 -> xlRight(1) | O11: xlRight(1) | P11: xlCenter | Q11: xlCenter | R11: =J11 -> xlRight(1) | S11: xlRight(1) | T11: xlLeft(1)
A12: Total Rows Needed | B12: =SUM(B8:B10) -> 2 | C12: #+00.00 | D12: #+00.00 | E12: General | F12: General | J12: 0.0 | K12: 0.0 | L12: General | N12: #+00.00 | O12: #+00.00 | P12: General | Q12: General | R12: 0.0 | S12: 0.0 | T12: General
A13: Last Tab DE Starter Row | B13: 26 | C13: =CELL("width",C13) -> 16 | D13: =CELL("width",D13) -> 16 | E13: =CELL("width",E13) -> 14 | F13: =CELL("width",F13) -> 14 | J13: =CELL("width",J13) -> 14 | K13: =CELL("width",K13) -> 14 | L13: =CELL("width",L13) -> 65 | N13: =CELL("width",N13) -> 0 | O13: 0 | P13: 0 | Q13: 0 | R13: 0 | S13: 0 | T13: 0
A14: Last Tab Tabsheet Starter Row | B14: 12 | C14: A | D14: B | E14: C | F14: D | J14: E | K14: F | L14: G | N14: =LOWER(C14) -> a | O14: =LOWER(D14) -> b | P14: =LOWER(E14) -> c | Q14: =LOWER(F14) -> d | R14: =LOWER(J14) -> e | S14: =LOWER(K14) -> f | T14: =LOWER(L14) -> g
A15: Last Copy Starter Row | B15: 1 | I15: Totals: | J15: =SUBTOTAL(9,J26:J6000) -> 0 | N15: 110-1
A16: Tab Loop Number | B16: 2 | C16: REMOVAL OF PAVEMENT | N16: =B17 -> 2013-04-16
A17: Revision Date | B17: 2013-04-16 | N17: =C16 -> REMOVAL OF PAVEMENT
A18: Tabulation Width | B18: 2 | C18: Refer to Tabulation 102-5
A19: Horizontal Grid Lines | B19: Yes | C19: * Not a Bid Item | N19: =C18 -> Refer to Tabulation 102-5
C20: ="This Data Entry Sheet fills Tab "&N15&" effective "&TEXT(B17,"mm-dd-yy") -> This Data Entry Sheet fills Tab 110-1 effective 04-16-13 | N20: =C19 -> * Not a Bid Item
C21: Begin Station | D21: End Station | E21: Side | F21: Pavement Type | G21: Length | H21: Width | I21: Area | J21: Area | K21: Saw Cut* | L21: Remarks | N21: =C21 -> Begin Station | O21: =D21 -> End Station | P21: =E21 -> Side | Q21: =F21 -> Pavement Type | R21: =J21 -> Area | S21: =K21 -> Saw Cut* | T21: =L21 -> Remarks
G25: FT | H25: FT | I25: FT | J25: SY | K25: LF | R25: =J25 -> SY | S25: =K25 -> LF
G26: =ABS(D26-C26) -> 0 | I26: =G26*H26 -> 0 | J26: =IF(I26<>0,I26/9,"") -> 
G27: 0 | I27: 0
G28: 0 | I28: 0
G29: 0 | I29: 0
G30: 0 | I30: 0
G31: 0 | I31: 0
G32: 0 | I32: 0
G33: 0 | I33: 0
G34: 0 | I34: 0
G35: 0 | I35: 0
G36: 0 | I36: 0
G37: 0 | I37: 0
G38: 0 | I38: 0
G39: 0 | I39: 0
G40: 0 | I40: 0
G41: 0 | I41: 0
G42: 0 | I42: 0
G43: 0 | I43: 0
G44: 0 | I44: 0
G45: 0 | I45: 0
G46: 0 | I46: 0
G47: 0 | I47: 0
G48: 0 | I48: 0
G49: 0 | I49: 0
G50: 0 | I50: 0
G51: 0 | I51: 0
G52: 0 | I52: 0
G53: 0 | I53: 0
G54: 0 | I54: 0
G55: 0 | I55: 0
G56: 0 | I56: 0
G57: 0 | I57: 0
G58: 0 | I58: 0
G59: 0 | I59: 0
G60: 0 | I60: 0
G61: 0 | I61: 0
G62: 0 | I62: 0
G63: 0 | I63: 0
G64: 0 | I64: 0
G65: 0 | I65: 0
G66: 0 | I66: 0
G67: 0 | I67: 0
G68: 0 | I68: 0
G69: 0 | I69: 0
G70: 0 | I70: 0
G71: 0 | I71: 0
G72: 0 | I72: 0
G73: 0 | I73: 0
G74: 0 | I74: 0
G75: 0 | I75: 0
G76: 0 | I76: 0
G77: 0 | I77: 0
G78: 0 | I78: 0
G79: 0 | I79: 0
G80: 0 | I80: 0
G81: 0 | I81: 0
G82: 0 | I82: 0
G83: 0 | I83: 0
G84: 0 | I84: 0
G85: 0 | I85: 0
G86: 0 | I86: 0
G87: 0 | I87: 0
G88: 0 | I88: 0
G89: 0 | I89: 0
G90: =ABS(D90-C90) -> 0 | I90: =G90*H90 -> 0 | J90: =IF(I90<>0,I90/9,"") -> 
G91: 0 | I91: 0
G92: 0 | I92: 0
G93: 0 | I93: 0
G94: 0 | I94: 0
G95: 0 | I95: 0
G96: 0 | I96: 0
G97: 0 | I97: 0
G98: 0 | I98: 0
G99: 0 | I99: 0
G100: 0 | I100: 0
G101: 0 | I101: 0
G102: 0 | I102: 0
G103: 0 | I103: 0
G104: 0 | I104: 0
G105: 0 | I105: 0
G106: 0 | I106: 0
G107: 0 | I107: 0
G108: 0 | I108: 0
G109: 0 | I109: 0
G110: 0 | I110: 0
G111: 0 | I111: 0
G112: 0 | I112: 0
G113: 0 | I113: 0
G114: 0 | I114: 0
G115: 0 | I115: 0
G116: 0 | I116: 0
G117: 0 | I117: 0
G118: 0 | I118: 0
G119: 0 | I119: 0
G120: 0 | I120: 0
G121: 0 | I121: 0
G122: 0 | I122: 0
G123: 0 | I123: 0
G124: 0 | I124: 0
G125: 0 | I125: 0
G126: 0 | I126: 0
G127: 0 | I127: 0
G128: 0 | I128: 0
G129: 0 | I129: 0
G130: 0 | I130: 0
G131: 0 | I131: 0
G132: 0 | I132: 0
G133: 0 | I133: 0
G134: 0 | I134: 0
G135: 0 | I135: 0
G136: 0 | I136: 0
G137: 0 | I137: 0
G138: 0 | I138: 0
G139: 0 | I139: 0
G140: 0 | I140: 0
G141: 0 | I141: 0
G142: 0 | I142: 0
G143: 0 | I143: 0
G144: 0 | I144: 0
G145: 0 | I145: 0
G146: 0 | I146: 0
G147: 0 | I147: 0
G148: 0 | I148: 0
G149: 0 | I149: 0
G150: 0 | I150: 0
G151: 0 | I151: 0
G152: 0 | I152: 0
G153: 0 | I153: 0
G154: =ABS(D154-C154) -> 0 | I154: =G154*H154 -> 0 | J154: =IF(I154<>0,I154/9,"") -> 
G155: 0 | I155: 0
G156: 0 | I156: 0
G157: 0 | I157: 0
G158: 0 | I158: 0
G159: 0 | I159: 0
G160: 0 | I160: 0
G161: 0 | I161: 0
G162: 0 | I162: 0
G163: 0 | I163: 0
G164: 0 | I164: 0
G165: 0 | I165: 0
G166: 0 | I166: 0
G167: 0 | I167: 0
G168: 0 | I168: 0
G169: 0 | I169: 0
G170: 0 | I170: 0
G171: 0 | I171: 0
G172: 0 | I172: 0
G173: 0 | I173: 0
G174: 0 | I174: 0
G175: 0 | I175: 0
G176: 0 | I176: 0
G177: 0 | I177: 0
G178: 0 | I178: 0
G179: 0 | I179: 0
G180: 0 | I180: 0
G181: 0 | I181: 0
G182: 0 | I182: 0
G183: 0 | I183: 0
G184: 0 | I184: 0
G185: 0 | I185: 0
G186: 0 | I186: 0
G187: 0 | I187: 0
G188: 0 | I188: 0
G189: 0 | I189: 0
G190: 0 | I190: 0
G191: 0 | I191: 0
G192: 0 | I192: 0
G193: 0 | I193: 0
G194: 0 | I194: 0
G195: 0 | I195: 0
G196: 0 | I196: 0
G197: 0 | I197: 0
G198: 0 | I198: 0
G199: 0 | I199: 0
G200: 0 | I200: 0
G201: 0 | I201: 0
G202: 0 | I202: 0
G203: 0 | I203: 0
... 5797 more rows

Sheet DE110_7A
A1: TabTitle | B1: =C16 -> REMOVAL OF STEEL BEAM GUARDRAIL
A2: Number of Tab Columns | B2: 6
A3: DE Starter Row Number | B3: 29
A4: TabSheet Starter Row Number | B4: 15
A5: TabSheet Header Row Count | B5: 14
A6: Top Header Cell | B6: J15
A7: Bottom Header Cell | B7: O28
A8: DESheet Row Count | B8: 0
A9: Fixed Empty Rows | B9: 2
A10: Usable Empty Rows | B10: 0
A11: Total Rows Placed | B11: 2 | C11: xlCenter | D11: xlCenter | E11: xlRight(1) | F11: xlRight(1) | G11: xlCenter | H11: xlRight(1) | J11: =C11 -> xlCenter | K11: xlCenter | L11: xlRight(1) | M11: xlRight(1) | N11: xlCenter | O11: xlRight(1)
A12: Total Rows Needed | B12: =SUM(B8:B10) -> 2 | C12: General | D12: General | E12: #+00.00 | F12: #+00.00 | G12: General | H12: 0.0 | J12: General | K12: General | L12: #+00.00 | M12: #+00.00 | N12: General | O12: 0.0
A13: Last Tab DE Starter Row | B13: 29 | C13: =CELL("width",C13) -> 6 | D13: 7 | E13: 16 | F13: 16 | G13: 7 | H13: 21 | J13: =CELL("width",J13) -> 0 | K13: 0 | L13: 0 | M13: 0 | N13: 0 | O13: 0
A14: Last Tab Tabsheet Starter Row | B14: 15 | C14: A | D14: B | E14: C | F14: D | G14: E | H14: F | J14: =LOWER(C14) -> a | K14: b | L14: c | M14: d | N14: e | O14: f
A15: Last Copy Starter Row | B15: 1 | G15: Totals: | H15: =SUBTOTAL(9,H29:H6000) -> 0 | J15: 110-7A
A16: Tab Loop Number | B16: 2 | C16: REMOVAL OF STEEL BEAM GUARDRAIL | J16: =B17 -> 2012-04-17
A17: Revision Date | B17: 2012-04-17 | J17: =C16 -> REMOVAL OF STEEL BEAM GUARDRAIL
A18: Tabulation Width | B18: 1
A19: Horizontal Grid Lines | B19: Yes | C19: Lane(s) to which the installation is adjacent.
C20: Includes length of End Terminals and End Anchors. | J20: =C19 -> Lane(s) to which the installation is adjacent.
C21: ="This Data Entry Sheet fills Tab "&J15&" effective "&TEXT(B17,"mm-dd-yy") -> This Data Entry Sheet fills Tab 110-7A effective 04-17-12 | J21: =C20 -> Includes length of End Terminals and End Anchors.
C22: Location | H22: Removal of Guardrail | J22: =C22 -> Location | O22: =H22 -> Removal of Guardrail
C23: No. | D23: Direction of Traffic | E23: Station to Station | G23: Side | J23: =C23 -> No. | K23: =D23 -> Direction of Traffic | L23: =E23 -> Station to Station | N23: =G23 -> Side
H28: LF | O28: =H28 -> LF

Sheet DE110_9
A1: TabTitle | B1: =C16 -> CULVERT ABANDONMENT
A2: Number of Tab Columns | B2: 6
A3: DE Starter Row Number | B3: 26
A4: TabSheet Starter Row Number | B4: 12
A5: TabSheet Header Row Count | B5: 11
A6: Top Header Cell | B6: J15
A7: Bottom Header Cell | B7: O25
A8: DESheet Row Count | B8: 0
A9: Fixed Empty Rows | B9: 2
A10: Usable Empty Rows | B10: 0
A11: Total Rows Placed | B11: 2 | C11: xlRight(1) | D11: xlLeft(1) | E11: xlRight(1) | F11: xlRight(1) | G11: xlRight(1) | H11: xlLeft(1) | J11: =C11 -> xlRight(1) | K11: =D11 -> xlLeft(1) | L11: xlRight(1) | M11: xlRight(1) | N11: xlRight(1) | O11: xlLeft(1)
A12: Total Rows Needed | B12: =SUM(B8:B10) -> 2 | C12: #+00.00 | D12: General | E12: 0.0 | F12: 0.0 | G12: 0.0 | H12: General | J12: =C12 -> #+00.00 | K12: General | L12: 0.0 | M12: 0.0 | N12: 0.0 | O12: General
A13: Last Tab DE Starter Row | B13: 26 | C13: =CELL("Width",C13) -> 16 | D13: 30 | E13: 17 | F13: 20 | G13: 14 | H13: 58 | J13: =CELL("Width",J13) -> 0 | K13: 0 | L13: 0 | M13: 0 | N13: 0 | O13: 0
A14: Last Tab TabSheet Starter Row | B14: 12 | C14: A | D14: B | E14: C | F14: D | G14: E | H14: F | J14: a | K14: b | L14: c | M14: d | N14: e | O14: f
A15: Last Copy Starter Row | B15: 1 | D15: Totals: | E15: =SUBTOTAL(9,E26:E6000) -> 0 | F15: =SUBTOTAL(9,F26:F6000) -> 0 | G15: =SUBTOTAL(9,G26:G6000) -> 0 | J15: 110-9
A16: Tab Loop Number | B16: 2 | C16: CULVERT ABANDONMENT | J16: =B17 -> 2011-10-18
A17: Revision Date | B17: 2011-10-18 | J17: =C16 -> CULVERT ABANDONMENT
A18: Tabulation Width | B18: 2 | C18: Refer to Details 4315 and 4316
A19: Horizontal Grid Lines | B19: Yes | C19: * Not a bid item | J19: =C18 -> Refer to Details 4315 and 4316
C20: ="This Data Entry Sheet fills Tab "&J15&" effective "&TEXT(B17,"mm-dd-yy") -> This Data Entry Sheet fills Tab 110-9 effective 10-18-11 | J20: =C19 -> * Not a bid item
C21: Location Station | D21: Description | E21: Fill Material | G21: 4" Perforated Subdrain* | H21: Remarks | J21: =C21 -> Location Station | K21: =D21 -> Description | L21: =E21 -> Fill Material | N21: =G21 -> 4" Perforated Subdrain* | O21: =H21 -> Remarks
E22: Flowable Mortar | F22: Granular Backfill* | L22: =E22 -> Flowable Mortar | M22: =F22 -> Granular Backfill*
E25: CY | F25: TON | G25: LF | L25: =E25 -> CY | M25: =F25 -> TON | N25: =G25 -> LF

Sheet DE110_12A
A1: TabTitle | B1: =C15 -> POLLUTION PREVENTION PLAN
A2: Number of Tab Columns | B2: 1 | K2: Click to Choose Soil Associations | M2: Click to Choose Hydrologic Soil Group
A3: DE Starter Row Number | B3: 18 | K3: Moody - Trent | L3: B - B | M3: A
A4: TabSheet Starter Row Number | B4: 5 | K4: Galva - Primghar | L4: B - B | M4: B
A5: TabSheet Header Row Count | B5: 4 | K5: Everly - Wilmonton - Letri | L5: B - B - B/D | M5: C
A6: Top Header Cell | B6: I15 | K6: Clarion - Nicollet - Webster | L6: B - B - B/D | M6: D
A7: Bottom Header Cell | B7: I18 | K7: Marna - Kossuth - Bode | L7: C/D - B/D - B
A8: DESheet Row Count | B8: 198 | K8: Kenyon - Clyde - Floyd | L8: B - B/D - B
A9: Fixed Empty Rows | B9: 2 | K9: Rockton | L9: B
A10: Usable Empty Rows | B10: 0 | K10: Downs - Fayette - Nordness | L10: B - B - B
A11: Total Rows Placed | B11: 200 | C11: xlLeft(1) | I11: xlLeft(1) | K11: Dinsdale - Klinger | L11: B - B
A12: Total Rows Needed | B12: =SUM(B8:B10) -> 200 | C12: General | I12: General | K12: Tama - Muscatine - Downs | L12: B - B - B
A13: Last Tab DE Starter Row | B13: 190 | C13: =CELL("width",C13) -> 159 | I13: =CELL("width",C13) -> 159 | K13: Mashall - Shelby | L13: B - B
A14: Last Tab TabSheet Starter Row | B14: 185 | C14: A | I14: =LOWER(C14) -> a | K14: Monona - Ida - Napier | L14: B - B - B
A15: Last Copy Starter Row | B15: 181 | C15: POLLUTION PREVENTION PLAN | E15: Instructions: | I15: 110-12A | K15: Ida - Hamburg | L15: B - B
A16: Tab Loop Number | B16: 4 | E16: 1. Choose your Soil Association(s) | I16: =B17 -> Modified | K16: Albaton - Luton - Onawa | L16: D - D - D
A17: Revision Date | B17: Modified | C17: ="This Data Entry Sheet fills Tab "&I15&" effective "&TEXT(B17,"mm-dd-yy") -> This Data Entry Sheet fills Tab 110-12A effective Modified | E17: 2. Determine which Hydrologic Soil Group to use and then select the group for Runoff Coefficient Number. | I17: =C15 -> POLLUTION PREVENTION PLAN | K17: Sharpsburg - Shelby - Adair | L17: B - B - C
A18: Tabulation Width | B18: 2 | C18: This project is regulated by the requirements of the Iowa Department of Natural Resources (DNR) National Pollutant Discharge Elimination | E18: 3. Enter the total acres of the project and all surface areas pertaining to your project. | K18: Pershing - Gosport - Gara | L18: C - C - C
A19: Horizontal Grid Lines | B19: No | C19: System (NPDES) General Permit No. 2 OR an Iowa Department of Natural Resources (DNR) National Pollutant Discharge Elimination System | E19: 4. The rest of the calculations will be automatically populated. | K19: Otley - Ladoga | L19: B - B
C20: (NPDES) individual storm water permit. The Contractor shall carry out the terms and conditions of this permit and the Pollution | K20: Sparta - Chelsea - Dickinson | L20: A - A - B
C21: Prevention Plan (PPP). | E21: Select a Soil Association: | F21: Click to Choose Soil Associations | K21: Fayette | L21: B
F22: =IF(F21<>"Choose Soil Associations",INDEX($L$3:$L$24,MATCH(F21,$K$3:$K$24,FALSE),1),"") ->  | K22: Colo - Cheguest - Titus | L22: B/D - C - B/D
C23: This Base PPP includes information on Roles and Responsibilities, Project Site Description, Controls, Maintenance Procedures, Inspection | K23: Grundy - Haig - Arispe - Gara | L23: C - C/D - C - C
C24: Requirements, Non-Storm Water Controls, Potential Sources of Off Right-of-Way Pollution, and Definitions. This plan references other | E24: Select a second Soil Association if needed: | F24: Click to Choose Soil Associations | K24: Seymour - Edina - Clarinda | L24: C - D - D
C25: documents rather than repeating the information contained in the documents. A copy of this Base Pollution Prevention Plan, amended as | F25: =IF(F24<>"Choose Soil Associations",INDEX($L$3:$L$24,MATCH(F24,$K$3:$K$24,FALSE),1),"") -> 
C26: needed per plan revisions or by contract modification, will be readily available for review.
E27: Select Hydrologic Soil Group: | F27: Click to Choose Hydrologic Soil Group
C28: All contractors shall conduct their operations in a manner that controls pollutants, minimizes erosion, and prevents sediments from
C29: entering waters of the state and leaving the highway right-of-way. The prime contractor shall be responsible for compliance and | E29: Runoff Coefficient Numbers
C30: implementation of the PPP for their entire contract. This responsibility shall be further shared with subcontractors whose work is a | E30: A link to Chapter 10D-01 is provided to use Table 2 for Runoff Coefficient Numbers.
C31: source of potential pollution as defined in this PPP. | E31: Paved Surfaces | F31: =IF($F$27="A",0.85,IF($F$27="B",0.85,IF($F$27="C",0.85,IF($F$27="D",0.85,"Please select Hydrologic Soil Group")))) -> Please select Hydrologic Soil Group
E32: Granular Shoulder Surfaces | F32: =IF($F$27="A",0.25,IF($F$27="B",0.35,IF($F$27="C",0.4,IF($F$27="D",0.4,"")))) -> 
E33: Grass Surfaces | F33: =IF($F$27="A",0.1,IF($F$27="B",0.2,IF($F$27="C",0.3,IF($F$27="D",0.3,"")))) -> 
C34: I. ROLES AND RESPONSIBILITES
C35: A. Designer: | G35: ACRES
C36: 1. Prepares Base PPP included in the project plan. | E36: Total Acres = (average ROW width x length of permit limits) + interchange areas
C37: 2. Prepares Notice of Intent (NOI) submitted to Iowa DNR.
C38: 3. Signature authority on the Base PPP and NOI. | E38: Paved Surfaces Acres =
C39: B. Contractor/Subcontractor: | E39: Granular Shoulder Surfaces Acres =
C40: 1. Affected contractors/subcontractors are co-permittees with the IDOT and will sign a certification statement adhering to the | E40: Grass Surfaces Acres = | G40: =SUM(G36-SUM(G38:G39)) -> 0
C41: requirements of the NPDES permit and this PPP plan. Affected contractors/subcontractors are anyone responsible for sediment or
C42: erosion controls or involved in land disturbing activities. All co-permittees are legally required under the Clean Water Act | E42: Disturbed Acres = area of new pavt + area of new gran. & earth shoulders + area to be seeded
C43: and the Iowa Administrative Code to ensure compliance with the terms and conditions of this PPP.
C44: 2. Submit an Erosion Control Implementation Plan (ECIP) according to Specifications Section 2602 and any additional plan notes.
C45: 3. Install and maintain appropriate controls. | E45: Percentage Breakdowns Per Surface
C46: 4. Supervise and implement good housekeeping practices. | E46: % Paved Surfaces = | G46: =IF(AND($G$36<>"",$G$38<>""),$G$38/$G$36,"") -> 
C47: 5. Conduct joint required inspections of the site with inspection staff. | E47: % Granular Shoulder Surfaces Acres = | G47: =IF(AND($G$36<>"",$G$39<>""),$G$39/$G$36,"") -> 
C48: 6. Comply with training and certification requirements of Specifications Section 2602. | E48: % Grass Surfaces Acres = | G48: =IF(AND($G$36<>"",$G$40<>""),$G$40/$G$36,"") -> 
C49: 7. Signature authority on Co-Permittee Certification Statements and storm water inspection reports.
C50: C. RCE/Inspector: | E50: Calculate Average Runoff Coefficient Number
C51: 1. Update PPP whenever there is a change in design, construction, operation or maintenance, which has a significant effect on the | E51: Paved Surfaces = | G51: =IF(G46<>"",IF(OR($F$27="A",$F$27="B",$F$27="C",$F$27="D"),F31*G46,""),"") -> 
C52: discharge of pollutants from the project. | E52: Granular Shoulder Surfaces = | G52: =IF(G47<>"",IF(OR($F$27="A",$F$27="B",$F$27="C",$F$27="D"),F32*G47,""),"") -> 
C53: 2. Maintain an up-to-date record that identifies contractors and subcontractors as co-permittees. | E53: Grass Surfaces = | G53: =IF(G48<>"",IF(OR($F$27="A",$F$27="B",$F$27="C",$F$27="D"),F33*G48,""),"") -> 
C54: 3. Make these plans available to the DNR upon their request.
C55: 4. Conduct joint required inspections of the site with the contractor/subcontractor. | E55: Average Runoff Coefficient Number | G55: =ROUNDUP(SUM(G51:G53),2) -> 0
C56: 5. Complete an inspection report after each inspection.
C57: 6. Signature authority on storm water inspection reports and Notice of Discontinuation (NOD).
C59: II. PROJECT SITE DESCRIPTION
C60: A. This Pollution Prevention Plan (PPP) is for the construction of a *Describe Type Of Facility*.
C61: B. This PPP covers approximately *Provide # Of Acres* acres with an estimated *Provide # Of Acres* acres being disturbed. The
C62: portion of the PPP covered by this contract has *Provide # Of Acres* acres disturbed.
C63: C. The PPP is located in an area of *Provide # Of Types Of Soil Association* soil association (*Provide Soil Association Type Or*
C64: *Types*). The estimated weighted average runoff coefficient number for this PPP after completion will be *Provide runoff
C65: coefficient Number*.
C66: D. Storm Water Site Map - Multiple sources of information comprise the base storm water site map including:
C67: 1. Drainage patterns – Plan and Profile sheets and Situation plans.
C68: 2. Proposed Slopes – Cross Sections.
C69: 3. Areas of Soil Disturbance – construction limits shown on Plan and Profile sheets.
C70: 4. Location of Structural Controls – Tabulations on C sheets.
C71: 5. Locations of Non-structural Controls – Tabulations on C sheets.
C72: 6. Locations of Stabilization Practices – generally within construction limits shown on Plan and Profile sheets.
C73: 7. Surface Waters (including wetlands) – Project Location Map and Plan and Profile sheets.
C74: 8. Locations where storm water is discharged – Plan and Profile sheets.
C75: E. The base site map is amended by contract modifications and progress payments (fieldbook entries) of completed erosion control
C76: work. Also, due to project phasing, erosion and sediment controls shown on project plans may not be installed until needed, based
C77: on site conditions. For example, silt fence ditch checks will typically not be installed until the ditch has been installed.
C78: Installed locations may also be modified from tabulation locations by field staff. Installed locations will be documented by
C79: fieldbook entries.
C80: F. Runoff from this work will flow into *List Outlets For Runoff*.
C82: III. CONTROLS
C83: A. The contractor’s ECIP specified in Article 2602.03 for accomplishment of storm water controls should clearly describe the intended
C84: sequence of major activities and for each activity define the control measure and the timing during the construction process that
C85: the measure will be implemented.
C86: B. Preserve vegetation in areas not needed for construction.
C87: C. Sections 2601 and 2602 of the Standard Specifications define requirements to implement erosion and sediment control measures.
C88: Actual quantities used and installed locations may vary from the Base PPP and amendment of the plan will be documented via
C89: fieldbook entries or by contract modification. Additional erosion and sediment control items may be required as determined by the
C90: inspector and/or contractor during storm water monitoring inspections. If the work involved is not applicable to any contract
C91: items, the work will be paid for according to Article 1109.03 paragraph B.
C92: 1. EROSION AND SEDIMENT CONTROLS
C93: a. Stabilization Practices
C94: 1) Site plans will ensure that existing vegetation or natural buffers are preserved where attainable and disturbed portions
C95: of the site will be stabilized.
C96: 2) Stabilization practices shall be initiated as soon as practicable in portions of the site where construction activities
C97: have temporarily or permanently ceased.
C98: 3) Temporary stabilizing seeding shall be completed as the disturbed areas are constructed. If construction activity is not
C99: planned to occur in a disturbed area for at least 21 days, the area shall be stabilized by temporary seeding or mulching
C100: within 14 days.
C101: 4) Permanent and Temporary Stabilization practices to be used for this project are located in the Estimated Project
C102: Quantities (100-0A, 100-1A, or 100-1C) and Estimate Reference Information (100-4A) located on the C sheets of the plan.
C103: Typical drawings detailing construction of the practices to be used on this project are referenced in the Standard Road
C104: Plans Tabulation.
C105: 5) Preservation of existing vegetation within right-of-way or easements will act as vegetative buffer strips.
C106: 6) Preservation of topsoil: Bid items to be used for this project are located in the Estimated Project Quantities (100-0A,
C107: 100-1A, or 100-1C) and Estimate Reference Information (100-4A) located on the C sheets of the plan. Additional
C108: information may be found in Tabulations in the C or T sheets of the plans or is referenced in Standard Specifications
C109: Section 2105.
C110: b. Structural Practices
C111: 1) Structural practices will be implemented to divert flows from exposed soils and detain or otherwise limit runoff and the
C112: discharge of pollutants from exposed areas of the site. Additionally, structural practices may include: silt basins that
C113: provide 3600 cubic feet of storage per acre drained or equivalent sediment controls, outlet structures that withdraw water
C114: from surface when discharging basins, and controls to direct storm water to vegetated areas.
C115: 2) Structural practices to be used for this project are located in the Estimated Project Quantities (100-0A, 100-1A, or
C116: 100-1C) and Estimate Reference Information (100-4A) located on the C sheets of the plan, as well as all other item
C117: specific Tabulations. Typical drawings detailing construction of the devices to be used on this project can be found on
C118: the B sheets of the plans or are referenced in the Standard Road Plans Tabulation.
C119: c. Storm Water Management
C120: 1) Measures shall be installed during the construction process to control pollutants in storm water discharges that will
C121: occur after construction operations have been completed. This may include velocity dissipation devices at discharge
C122: locations and along length of outfall channel as necessary to provide a non-erosion velocity flow from structure to water
C123: course. If included with this project, these items are located in the Estimated Project Quantities (100-0A, 100-1A, or
C124: 100-1C) and Estimate Reference Information (100-4A) located on the C sheets of the plan, as well as all other item
C125: specific Tabulations. Typical drawings detailing construction of the practices to be used on this project are referenced
C126: in the Standard Road Plans Tabulation. The installation of these devices may be subject to Section 404 of the Clean Water
C127: Act.
C128: 2. OTHER CONTROLS
C129: a. Contractor disposal of unused construction materials and construction material wastes shall comply with applicable state and
C130: local waste disposal, sanitary sewer, or septic system regulations. In the event of a conflict with other governmental
C131: laws, rules and regulations, the more restrictive laws, rules or regulations shall apply.
C132: 1) Vehicle Entrances and Exits - Construct and maintain entrances and exits to prevent tracking of sediments onto roadways.
C133: 2) Material Delivery, Storage and Use - Implement practices to prevent discharge of construction materials during delivery,
C134: storage, and use.
C135: 3) Stockpile Management - Install controls to reduce or eliminate pollution of storm water from stockpiles of soil and
C136: paving.
C137: 4) Waste Disposal - Do not discharge any materials, including building materials, into waters of the state, except as
C138: authorized by a Section 404 permit.
C139: 5) Spill Prevention and Control - Implement procedures to contain and clean-up spills and prevent material discharges to the
C140: storm drain system and waters of the state.
C141: 6) Concrete Residuals and Washout Wastes - Designate temporary concrete washout facilities for rinsing out concrete trucks.
C142: Provide directions to truck drivers where designated washout facilities are located. Designated washout areas should be
C143: located at least 50 feet away from storm drains, streams or other water bodies. Care should be taken to ensure these
C144: facilities do not overflow during storm events.
C145: 7) Concrete Grooving/Grinding Slurry – Do not discharge slurry to a waterbody or storm drain. Slurry may be applied on
C146: foreslopes or removed from the project.
C147: 8) Vehicle and Equipment Storage and Maintenance Areas - Perform on site fueling and maintenance in accordance with all
C148: environment laws such as proper storage of onside fuels and proper disposal of used engine oil or other fluids on site.
C149: Employ washing practices that prevent contamination of surface and ground water from wash water.
C150: 9) Litter Management - Ensure employees properly dispose of litter.
C151: 10) Dewatering – Properly treat water to remove suspended sediment before it re-enters a waterbody or discharges off-site.
C152: Measures are also to be taken to prevent scour erosion at dewatering discharge point.
C153: 3. APPROVED STATE OR LOCAL PLANS
C154: During the course of this construction, it is possible that situations will arise where unknown materials will be encountered.
C155: When such situations are encountered, they will be handled according to all federal, state, and local regulations in effect at
C156: the time.
C158: IV. MAINTENANCE PROCEDURES
C159: The contractor is required to maintain all temporary erosion and sediment control measures in proper working order, including
C160: cleaning, repairing, or replacing them throughout the contract period. This shall begin when the features have lost 50% of their
C161: capacity.
C163: V. INSPECTION REQUIREMENTS
C164: A. Inspections shall be made jointly by the contractor and the contracting authority at least once every seven calendar days. Storm
C165: water monitoring inspections will include:
C166: 1. Date of the inspection.
C167: 2. Summary of the scope of the inspection.
C168: 3. Name and qualifications of the personnel making the inspection.
C169: 5. Review erosion and sediment control measures within disturbed areas for the effectiveness in preventing impacts to receiving
C170: waters.
C171: 6. Major observations related to the implementation of the PPP.
C172: 7. Identify corrective actions required to maintain or modify erosion and sediment control measures.
C173: B. Include storm water monitoring inspection reports in the Amended PPP. Incorporate any additional erosion and sediment control
C174: measures determined as a result of the inspection. Immediately begin corrective actions on all deficiencies found within 3
C175: calendar days of the inspection.
C177: VI. NON-STORM WATER DISCHARGES
C178: This includes subsurface drains (i.e. longitudinal and standard subdrains) and slope drains. The velocity of the discharge from
C179: these features may be controlled by the use of patio blocks, Class A stone, erosion stone or other appropriate materials. This also
C180: includes uncontaminated groundwater from dewatering operations, which will be controlled as discussed in Section III of the PPP.
C182: VII. POTENTIAL SOURCES OF OFF RIGHT-OF-WAY (ROW) POLLUTION
C183: Silts, sediment, and other forms of pollution may be transported onto highway right-of-way (ROW) as a result of a storm event.
C184: Potential sources of pollution located outside highway ROW are beyond the control of this PPP. Pollution within highway ROW will be
C185: conveyed and controlled per this PPP.
C187: VIII. DEFINITIONS
C188: A. Base PPP - Initial Pollution Prevention Plan.
C189: B. Amended PPP - May include Plan Revisions or Contract Modifications for new items, storm water monitoring inspection reports, and
C190: fieldbook entries made by the inspector.
C191: C. IDR - Inspector’s Daily Report – this contains the inspector’s daily diary and bid item postings.
C192: D. Controls - Methods, practices, or measures to minimize or prevent erosion, control sedimentation, control storm water, or minimize
C193: contaminants from other types of waste or materials. Also called Best Management Practices (BMPs).
C194: E. Signature Authority - Representative from Designer, Contractor/Subcontractor, or RCE/Inspector authorized to sign various storm
C195: water documents.
C197: ---------------------------------------------------------------------------------------------------------------------------------
C198: CERTIFICATION STATEMENT
C199: I certify under penalty of law that this document and all attachments were prepared under my direction or supervision in accordance
C200: with a system designed to assure that qualified personnel properly gathered and evaluated the information submitted. Based on my inquiry
C201: of the person or persons who manage the system, or those persons directly responsible for gathering the information, the information
C202: submitted is, to the best of my knowledge and belief, true, accurate, and complete. I am aware that there are significant penalties for
C203: submitting false information, including the possibility of fine and imprisonment for knowing violations.
C205: ________________________________________
C206: Signature
C208: ________________________________________
C209: Printed or Typed Name
C211: ________________________________________
... 3 more rows

Sheet DE110_13
A1: TabTitle | B1: =C15 -> DELIVERY AND STOCKPILING
A2: Number of Tab Columns | B2: 6
A3: DE Starter Row Number | B3: 19
A4: TabSheet Starter Row Number | B4: 6
A5: TabSheet Header Row Count | B5: 5
A6: Top Header Cell | B6: J15
A7: Bottom Header Cell | B7: O19
A8: DESheet Row Count | B8: 0
A9: Fixed Empty Rows | B9: 2
A10: Usable Empty Rows | B10: 0
A11: Total Rows Placed | B11: 3 | C11: xlLeft(1) | D11: xlRight(1) | E11: xlRight(1) | F11: xlLeft(1) | G11: xlLeft(1) | H11: xlLeft(1) | J11: =C11 -> xlLeft(1) | K11: =D11 -> xlRight(1) | L11: xlRight(1) | M11: xlLeft(1) | N11: xlLeft(1) | O11: xlLeft(1)
A12: Total Rows Needed | B12: =SUM(B8:B10) -> 2 | C12: General | D12: General | E12: General | F12: General | G12: General | H12: General | J12: =C12 -> General | K12: General | L12: General | M12: General | N12: General | O12: General
A13: Last Tab DE Starter Row | B13: 19 | C13: =CELL("width",C13) -> 35 | D13: 13 | E13: 11 | F13: 28 | G13: 33 | H13: 35 | J13: 0 | K13: 0 | L13: 0 | M13: 0 | N13: 0 | O13: 0
A14: Last Tab TabSheet Starter Row | B14: 6 | C14: A | D14: B | E14: C | F14: D | G14: E | H14: F | J14: a | K14: b | L14: c | M14: d | N14: e | O14: f
A15: Last Copy Starter Row | B15: 1 | C15: DELIVERY AND STOCKPILING | J15: 110-13
A16: Tab Loop Number | B16: 2 | J16: =B17 -> 2010-04-20
A17: Revision Date | B17: 2010-04-20 | C17: ="This Data Entry Sheet fills Tab "&J15&" effective "&TEXT(B17,"mm-dd-yy") -> This Data Entry Sheet fills Tab 110-13 effective 04-20-10 | J17: =C15 -> DELIVERY AND STOCKPILING
A18: Tabulation Width | B18: 2 | C18: Item Description | D18: Quantity | E18: Units | F18: Delivery Location | G18: Contact Name & Number | H18: Remarks
A19: Horizontal Grid Lines | B19: Yes | J19: =C18 -> Item Description | K19: Quantity | L19: Units | M19: Delivery Location | N19: Contact Name & Number | O19: Remarks

Sheet DE110_17
A1: TabTitle | B1: =C16 -> CLEARING AND GRUBBING
A2: Number of Tab Columns | B2: 22
A3: DE Starter Row Number | B3: 24
A4: TabSheet Starter Row Number | B4: 10
A5: TabSheet Header Row Count | B5: 9
A6: Top Header Cell | B6: AB15
A7: Bottom Header Cell | B7: AW23
A8: DESheet Row Count | B8: 0
A9: Fixed Empty Rows | B9: 2
A10: Usable Empty Rows | B10: 0
A11: Total Rows Placed | B11: 2 | C11: xlCenter | D11: xlCenter | E11: xlLeft(1) | F11: xlRight(1) | G11: xlRight(1) | H11: xlRight(1) | I11: xlRight(1) | J11: xlRight(1) | K11: xlRight(1) | L11: xlRight(1) | M11: xlRight(1) | N11: xlRight(1) | O11: xlRight(1) | P11: xlRight(1) | Q11: xlRight(1) | R11: xlRight(1) | T11: xlRight(1) | U11: xlRight(1) | W11: xlRight(1) | X11: xlRight(1) | Y11: xlRight(1) | Z11: xlLeft(1) | AB11: =C11 -> xlCenter | AC11: xlCenter | AD11: xlLeft(1) | AE11: xlRight(1) | AF11: xlRight(1) | AG11: xlRight(1) | AH11: xlRight(1) | AI11: xlRight(1) | AJ11: xlRight(1) | AK11: xlRight(1) | AL11: xlRight(1) | AM11: xlRight(1) | AN11: xlRight(1) | AO11: xlRight(1) | AP11: xlRight(1) | AQ11: xlRight(1) | AR11: =T11 -> xlRight(1) | AS11: =U11 -> xlRight(1) | AT11: =W11 -> xlRight(1) | AU11: xlRight(1) | AV11: xlRight(1) | AW11: xlLeft(1)
